Workbook

Sheet PROJEKTPARAMETER
A1: Projektparameter
A2: Bezeichnung: | B2: SBA GR Graz
A3: PSP/Kostenstelle: | B3: P.50.500.0013
A4: Gesellschaft/Abteilung: | B4: BMG EM
A5: Ersteller/Projektleiter: | B5: RuhdorGe
A6: Bauprojektsakte/Doxis_GZ: | B6: ASF/2011/074111
A7: Auftragnehmer: | B7: DÜRR Austria GmbH
A8: Gewerk: | B8: Systemtechnik

Sheet OBJEKTLISTE
A1: Objektliste - Ortsbezug
A2: Objekt | C2: Verortung | G2: Doxis_ID | H2: Strecke
A3: Objektname | B3: Objekttyp | C3: Strecke | D3: Richtung | E3: von KM | F3: bis KM | H3: min. KM | I3: max. KM
A4: A02 | B4: Freiland / VBA | C4: A02 Südautobahn | D4: unabhängig | E4: 172 | F4: 197 | H4: =IF(C4<>"",VLOOKUP(C4,Strecke_ID,5,FALSE),"") -> 0 | I4: =IF(C4<>"",VLOOKUP(C4,Strecke_ID,6,FALSE),"") -> 380.857
A5: A09 | B5: Freiland / VBA | C5: A09 Pyhrn Autobahn | D5: unabhängig | E5: 184.4 | F5: 193 | H5: 0 | I5: 230.022
A6: AQ_A02_2_172,275 | B6: Freiland / VBA | C6: A02 Südautobahn | D6: km absteigend | E6: 172.275 | F6: 172.275 | G6: 511466B9-511E-4F49-9C54-46957EC56D85 | H6: 0 | I6: 380.857
A7: AQ_A02_1_177,605 | B7: Freiland / VBA | C7: A02 Südautobahn | D7: km aufsteigend | E7: 177.605 | F7: 177.605 | G7: 4B901FFF-009E-4FCC-922C-63FE2AAF5841 | H7: 0 | I7: 380.857
A8: AQ_A02_2_179,666 | B8: Freiland / VBA | C8: A02 Südautobahn | D8: km absteigend | E8: 179.666 | F8: 179.666 | G8: AADFFD90-46AC-487A-B2F2-A0C1CFE6BC37 | H8: 0 | I8: 380.857
A9: AQ_A02_2_181,185 | B9: Freiland / VBA | C9: A02 Südautobahn | D9: km absteigend | E9: 181.185 | F9: 181.185 | G9: 7044B81A-1655-4AD9-B416-F89CA45268B7 | H9: 0 | I9: 380.857
A10: AQ_A02_1_182,487 | B10: Freiland / VBA | C10: A02 Südautobahn | D10: km aufsteigend | E10: 182.487 | F10: 182.487 | G10: D6E529AC-42F3-4A08-BE7E-20E09F4E7E90 | H10: 0 | I10: 380.857
A11: AQ_A02_1_186,000 | B11: Freiland / VBA | C11: A02 Südautobahn | D11: km aufsteigend | E11: 186 | F11: 186 | G11: 50385715-5721-464D-BCE8-E678977A8712 | H11: 0 | I11: 380.857
A12: AQ_A02_2_186,000 | B12: Freiland / VBA | C12: A02 Südautobahn | D12: km absteigend | E12: 186 | F12: 186 | G12: 0BAECB90-FA41-4F8F-8780-32B43B4D2957 | H12: 0 | I12: 380.857
A13: AQ_A02_2_186,867 | B13: Freiland / VBA | C13: A02 Südautobahn | D13: km absteigend | E13: 186.867 | F13: 186.867 | G13: E335AD19-B8A1-40E7-8796-741026B0CBCE | H13: 0 | I13: 380.857
A14: AQ_A02_2_190,814 | B14: Freiland / VBA | C14: A02 Südautobahn | D14: km absteigend | E14: 190.814 | F14: 190.814 | G14: 1420A805-8E69-4063-9AD1-6CD584AE4202 | H14: 0 | I14: 380.857
A15: Maut_A02_1_197,000 | B15: Freiland / VBA | C15: A02 Südautobahn | D15: km aufsteigend | E15: 197 | F15: 197 | G15: 19AE8B22-D007-46D9-B776-3292D801CA07 | H15: 0 | I15: 380.857
A16: Maut_A02_2_197,000 | B16: Freiland / VBA | C16: A02 Südautobahn | D16: km absteigend | E16: 197 | F16: 197 | G16: 53F198D4-AA97-467F-8BD7-5B8B1608A085 | H16: 0 | I16: 380.857
A17: AQ_A09_2_185,378 | B17: Freiland / VBA | C17: A09 Pyhrn Autobahn | D17: km absteigend | E17: 185.378 | F17: 185.378 | G17: DEB8D7F7-BECD-442B-A1E4-B9485B6FBD16 | H17: 0 | I17: 230.022
A18: AQ_A09_2_185,710 | B18: Freiland / VBA | C18: A09 Pyhrn Autobahn | D18: km absteigend | E18: 185.71 | F18: 185.71 | G18: 91ADBCCD-86B3-4A78-BEFB-6849EDFB6C66 | H18: 0 | I18: 230.022
A19: AQ_A09_1_186,210 | B19: Freiland / VBA | C19: A09 Pyhrn Autobahn | D19: km aufsteigend | E19: 186.21 | F19: 186.21 | G19: 5E9856E8-580D-4F35-AFFC-E9BF37A912BA | H19: 0 | I19: 230.022
A20: AQ_A09_2_186,210 | B20: Freiland / VBA | C20: A09 Pyhrn Autobahn | D20: km absteigend | E20: 186.21 | F20: 186.21 | G20: 936889A7-0247-4C2C-9AF0-05A15E0021C9 | H20: 0 | I20: 230.022
A21: EFQ_A09_2_186,900: Ra187,4 | B21: Freiland / VBA | C21: A09 Pyhrn Autobahn | D21: km absteigend | E21: 186.9 | F21: 186.9 | G21: 05B7243C-79DA-4385-8AC6-BADBE7659873 | H21: 0 | I21: 230.022
A22: EFQ_A09_2_187,460: Ra 188,4 | B22: Freiland / VBA | C22: A09 Pyhrn Autobahn | D22: km absteigend | E22: 187.46 | F22: 187.46 | G22: CCDBAC75-D6FF-4ECF-97CD-4DB8E998698D | H22: 0 | I22: 230.022
A23: AQ_A09_1_188,120 | B23: Freiland / VBA | C23: A09 Pyhrn Autobahn | D23: km aufsteigend | E23: 188.12 | F23: 188.12 | G23: 94F1C9FC-5C27-4881-A1BE-08CE120C9465 | H23: 0 | I23: 230.022
A24: AQ_A09_2_188,120 | B24: Freiland / VBA | C24: A09 Pyhrn Autobahn | D24: km absteigend | E24: 188.12 | F24: 188.12 | G24: 0F18679E-6303-4B3D-B1D6-9CE25CF789F4 | H24: 0 | I24: 230.022
A25: AQ_A09_1_190,205 | B25: Freiland / VBA | C25: A09 Pyhrn Autobahn | D25: km aufsteigend | E25: 190.205 | F25: 190.205 | G25: DC5A03F2-5452-4ACB-B06D-7A49C5F8DC26 | H25: 0 | I25: 230.022
A26: AQ_A09_2_190,205 | B26: Freiland / VBA | C26: A09 Pyhrn Autobahn | D26: km absteigend | E26: 190.205 | F26: 190.205 | G26: B82FB5C4-29B8-4D7C-A44F-60AEE377CB4B | H26: 0 | I26: 230.022
A27: AQ_A09_2_191,250 | B27: Freiland / VBA | C27: A09 Pyhrn Autobahn | D27: km absteigend | E27: 191.25 | F27: 191.25 | G27: BA1F323B-A312-40BD-ADAE-128D704648ED | H27: 0 | I27: 230.022
A28: AQ_A09_1_192,150 | B28: Freiland / VBA | C28: A09 Pyhrn Autobahn | D28: km aufsteigend | E28: 192.15 | F28: 192.15 | G28: C11335F8-D68B-4A31-9545-0D3A00D6DCC0 | H28: 0 | I28: 230.022
A29: EFQ_A09_1_192,550: Ra 192,2 | B29: Freiland / VBA | C29: A09 Pyhrn Autobahn | D29: km aufsteigend | E29: 192.55 | F29: 192.55 | G29: 239305D2-0CF8-4E53-8170-246BE4F06EBE | H29: 0 | I29: 230.022
A30: EFQ_A02_2_186,591: Ra186,3 | B30: Freiland / VBA | C30: A02 Südautobahn | D30: km absteigend | E30: 186.591 | F30: 186.591 | G30: 84BEB947-1451-413A-B8C5-B224EAC2FDB9 | H30: 0 | I30: 380.857
A31: EFQ_A02_1_185,602: Ra 186,1 | B31: Freiland / VBA | C31: A02 Südautobahn | D31: km aufsteigend | E31: 185.602 | F31: 185.602 | G31: 5D1A6D46-F0B6-4258-89D7-C51C550F0BCC | H31: 0 | I31: 380.857
A32: EFQ_A02_1_185,658: Ra 186,5 | B32: Freiland / VBA | C32: A02 Südautobahn | D32: km aufsteigend | E32: 185.658 | F32: 185.658 | G32: 0BF070AD-2F3B-4239-B94C-903CA1025100 | H32: 0 | I32: 380.857
A33: EFQ_A02_1_185,669: Ra 186,1 | B33: Freiland / VBA | C33: A02 Südautobahn | D33: km aufsteigend | E33: 185.669 | F33: 185.669 | G33: BA24C179-BE64-4A28-A5C8-E94E07352F19 | H33: 0 | I33: 380.857
A34: MQ_A02_1_185,705: Ra 186,1 | B34: Freiland / Freie Strecke | C34: A02 Südautobahn | D34: km aufsteigend | E34: 185.705 | F34: 185.705 | G34: A8993D48-9C5F-4E7E-9B89-39AC20E0E3A2 | H34: 0 | I34: 380.857
A35: EFQ_A02_1_185,809: Ra186,2 | B35: Freiland / VBA | C35: A02 Südautobahn | D35: km aufsteigend | E35: 185.809 | F35: 185.809 | G35: D4C5E376-A013-4455-A43A-B8097106383C | H35: 0 | I35: 380.857
A36: EFQ_A02_2_186,100: Ra186,4 | B36: Freiland / VBA | C36: A02 Südautobahn | D36: km absteigend | E36: 186.1 | F36: 186.1 | G36: F7EFF164-82D3-40FB-A56E-E98464DE8361 | H36: =IF(C36<>"",VLOOKUP(C36,Strecke_ID,5,FALSE),"") -> 0 | I36: =IF(C36<>"",VLOOKUP(C36,Strecke_ID,6,FALSE),"") -> 380.857
A37: MQ_A02_1_186,250: Ra 186,3 | B37: Freiland / Freie Strecke | C37: A02 Südautobahn | D37: km aufsteigend | E37: 186.25 | F37: 186.25 | G37: 7C54F8EE-02F8-43CF-B868-F5F0894D3C63 | H37: 0 | I37: 380.857
A38: EFQ_A02_2_186,408: Ra 186,3 | B38: Freiland / VBA | C38: A02 Südautobahn | D38: km absteigend | E38: 186.408 | F38: 186.408 | G38: 367CCFD5-A87A-4709-A22A-A92973A6DA32 | H38: 0 | I38: 380.857
A39: WWW Kärntnerstrasse 184,886 | B39: Freiland / VBA | C39: A02 Südautobahn | D39: unabhängig | E39: 184.886 | F39: 184.886 | G39: 6ECA4543-7A5C-4D38-8318-81A5AE057F05 | H39: 0 | I39: 380.857
A40: VBA Umwelt Steiermark | B40: Freiland / VBA | C40: Z nicht zuordenbar | D40: unabhängig | G40: 9963D06E-F88F-4D48-8FD3-F390ED133462 | H40: 0 | I40: 0
H54: =IF(C54<>"",VLOOKUP(C54,Strecke_ID,5,FALSE),"") ->  | I54: =IF(C54<>"",VLOOKUP(C54,Strecke_ID,6,FALSE),"") -> 
H118: =IF(C118<>"",VLOOKUP(C118,Strecke_ID,5,FALSE),"") ->  | I118: =IF(C118<>"",VLOOKUP(C118,Strecke_ID,6,FALSE),"") -> 
H182: =IF(C182<>"",VLOOKUP(C182,Strecke_ID,5,FALSE),"") ->  | I182: =IF(C182<>"",VLOOKUP(C182,Strecke_ID,6,FALSE),"") -> 

Sheet DATEILISTE
A1: Dateiliste / Beschlagwortung der Einzeldateien
A2: Dokument_ID | B2: Ablageregister | C2: Kategorisierung | D2: Dokumentname | E2: Dokumentart | F2: Stichwörter | G2: Objektname | H2: Objekttyp | I2: Objektdetail | J2: Strecke | K2: Richtung | L2: KM_von | M2: KM_bis | N2: Bezeichnung | O2: PSP | P2: Abteilung | Q2: Ersteller | R2: Bauprojektsakte_GZ | S2: Anlassdatum | T2: Nummer | U2: Auftragnehmer | V2: Gewerk | W2: Verfahren | X2: Standort | Y2: Status | Z2: Dokumentenklasse | AA2: Kategorisierung_DoxisID | AB2: Dokumentart_DoxisID | AC2: Objekt_DoxisID | AD2: Objekttyp_DoxisID | AE2: Objektdetail_DoxisID | AF2: Strecke_DoxisID
B3: =IF(D3<>"",VLOOKUP(D3,Register,2,FALSE),"") -> CSV S FotoDoku V1.2 | C3: Bestandsdokumentation | D3: A2 km172,275.zip | E3: Foto | G3: AQ_A02_2_172,275 | H3: =IF(G3<>"",VLOOKUP(G3,OBJEKTLISTE!$A$4:$G$976,2,FALSE),"") -> Freiland / VBA | J3: =IF(G3<>"",VLOOKUP(G3,OBJEKTLISTE!$A$4:$G$976,3,FALSE),"") -> A02 Südautobahn | K3: =IF(G3<>"",VLOOKUP(G3,OBJEKTLISTE!$A$4:$G$976,4,FALSE),"") -> km absteigend | L3: =IF(G3<>"",VLOOKUP(G3,OBJEKTLISTE!$A$4:$G$976,5,FALSE),"") -> 172.275 | M3: =IF(G3<>"",VLOOKUP(G3,OBJEKTLISTE!$A$4:$G$976,6,FALSE),"") -> 172.275 | N3: =IF(ISBLANK(D3),"",IF(ISBLANK(PROJEKTPARAMETER!B$2),"",PROJEKTPARAMETER!B$2)) -> SBA GR Graz | O3: =IF(ISBLANK(D3),"",IF(ISBLANK(PROJEKTPARAMETER!B$3),"",PROJEKTPARAMETER!B$3)) -> P.50.500.0013 | P3: =IF(ISBLANK(D3),"",IF(ISBLANK(PROJEKTPARAMETER!B$4),"",PROJEKTPARAMETER!B$4)) -> BMG EM | Q3: =IF(ISBLANK(D3),"",IF(ISBLANK(PROJEKTPARAMETER!B$5),"",PROJEKTPARAMETER!B$5)) -> RuhdorGe | R3: =IF(ISBLANK(D3),"",IF(ISBLANK(PROJEKTPARAMETER!B$6),"",PROJEKTPARAMETER!B$6)) -> ASF/2011/074111 | U3: =IF(ISBLANK(D3),"",IF(ISBLANK(PROJEKTPARAMETER!B$7),"",PROJEKTPARAMETER!B$7)) -> DÜRR Austria GmbH | V3: =IF(ISBLANK(D3),"",IF(ISBLANK(PROJEKTPARAMETER!B$8),"",PROJEKTPARAMETER!B$8)) -> Systemtechnik | Y3: =IF(ISBLANK(D3),"","freigegeben") -> freigegeben | Z3: =IF(OR(ISBLANK(C3), ISBLANK(E3)),"",VLOOKUP(C3 & "_" & E3,Dokumentart_ID,3,FALSE)) -> BauBestandsDok | AA3: =IF(C3<>"",VLOOKUP(C3,Kategorisierung_ID,2,FALSE),"") -> 430B9357-562A-46F6-9171-0CBFA0EFAF27 | AB3: =IF(OR(ISBLANK(C3), ISBLANK(E3)),"",VLOOKUP(C3 & "_" & E3,Dokumentart_ID,2,FALSE)) -> 68CF29A6-83A0-43EA-9409-DB4F99EA02C2 | AC3: =IF(ISBLANK(G3),"",IF(ISBLANK(VLOOKUP(G3,OBJEKTLISTE!$A$4:$G$976,7,FALSE)),"",VLOOKUP(G3,OBJEKTLISTE!$A$4:$G$976,7,FALSE))) -> 511466B9-511E-4F49-9C54-46957EC56D85 | AD3: =IF(H3<>"",VLOOKUP(H3,Objekttyp_ID,3,FALSE),"") -> 27622F01-0BD0-474D-9586-49456DC68A89 | AE3: =IF(I3="","",IF(VLOOKUP(H3 & "_" & I3,Objektdetail_ID,2,FALSE)="","",VLOOKUP(H3 & "_" & I3,Objektdetail_ID,2,FALSE))) ->  | AF3: =IF(J3<>"",VLOOKUP(J3,Strecke_ID,2,FALSE),"") -> 92B99676-4180-4737-B422-CC11ACCE4EFA
B4: CSV S FotoDoku V1.2 | C4: Bestandsdokumentation | D4: A2 km177,605.zip | E4: Foto | G4: AQ_A02_1_177,605 | H4: =IF(G4<>"",VLOOKUP(G4,OBJEKTLISTE!$A$4:$G$976,2,FALSE),"") -> Freiland / VBA | J4: =IF(G4<>"",VLOOKUP(G4,OBJEKTLISTE!$A$4:$G$976,3,FALSE),"") -> A02 Südautobahn | K4: =IF(G4<>"",VLOOKUP(G4,OBJEKTLISTE!$A$4:$G$976,4,FALSE),"") -> km aufsteigend | L4: =IF(G4<>"",VLOOKUP(G4,OBJEKTLISTE!$A$4:$G$976,5,FALSE),"") -> 177.605 | M4: =IF(G4<>"",VLOOKUP(G4,OBJEKTLISTE!$A$4:$G$976,6,FALSE),"") -> 177.605 | N4: =IF(ISBLANK(D4),"",IF(ISBLANK(PROJEKTPARAMETER!B$2),"",PROJEKTPARAMETER!B$2)) -> SBA GR Graz | O4: =IF(ISBLANK(D4),"",IF(ISBLANK(PROJEKTPARAMETER!B$3),"",PROJEKTPARAMETER!B$3)) -> P.50.500.0013 | P4: =IF(ISBLANK(D4),"",IF(ISBLANK(PROJEKTPARAMETER!B$4),"",PROJEKTPARAMETER!B$4)) -> BMG EM | Q4: =IF(ISBLANK(D4),"",IF(ISBLANK(PROJEKTPARAMETER!B$5),"",PROJEKTPARAMETER!B$5)) -> RuhdorGe | R4: =IF(ISBLANK(D4),"",IF(ISBLANK(PROJEKTPARAMETER!B$6),"",PROJEKTPARAMETER!B$6)) -> ASF/2011/074111 | U4: =IF(ISBLANK(D4),"",IF(ISBLANK(PROJEKTPARAMETER!B$7),"",PROJEKTPARAMETER!B$7)) -> DÜRR Austria GmbH | V4: =IF(ISBLANK(D4),"",IF(ISBLANK(PROJEKTPARAMETER!B$8),"",PROJEKTPARAMETER!B$8)) -> Systemtechnik | Y4: =IF(ISBLANK(D4),"","freigegeben") -> freigegeben | Z4: BauBestandsDok | AA4: 430B9357-562A-46F6-9171-0CBFA0EFAF27 | AB4: 68CF29A6-83A0-43EA-9409-DB4F99EA02C2 | AC4: =IF(ISBLANK(G4),"",IF(ISBLANK(VLOOKUP(G4,OBJEKTLISTE!$A$4:$G$976,7,FALSE)),"",VLOOKUP(G4,OBJEKTLISTE!$A$4:$G$976,7,FALSE))) -> 4B901FFF-009E-4FCC-922C-63FE2AAF5841 | AD4: =IF(H4<>"",VLOOKUP(H4,Objekttyp_ID,3,FALSE),"") -> 27622F01-0BD0-474D-9586-49456DC68A89 | AF4: 92B99676-4180-4737-B422-CC11ACCE4EFA
B5: CSV S FotoDoku V1.2 | C5: Bestandsdokumentation | D5: A2 km179,585.zip | E5: Foto | G5: AQ_A02_2_179,666 | H5: =IF(G5<>"",VLOOKUP(G5,OBJEKTLISTE!$A$4:$G$976,2,FALSE),"") -> Freiland / VBA | J5: =IF(G5<>"",VLOOKUP(G5,OBJEKTLISTE!$A$4:$G$976,3,FALSE),"") -> A02 Südautobahn | K5: =IF(G5<>"",VLOOKUP(G5,OBJEKTLISTE!$A$4:$G$976,4,FALSE),"") -> km absteigend | L5: =IF(G5<>"",VLOOKUP(G5,OBJEKTLISTE!$A$4:$G$976,5,FALSE),"") -> 179.666 | M5: =IF(G5<>"",VLOOKUP(G5,OBJEKTLISTE!$A$4:$G$976,6,FALSE),"") -> 179.666 | N5: =IF(ISBLANK(D5),"",IF(ISBLANK(PROJEKTPARAMETER!B$2),"",PROJEKTPARAMETER!B$2)) -> SBA GR Graz | O5: =IF(ISBLANK(D5),"",IF(ISBLANK(PROJEKTPARAMETER!B$3),"",PROJEKTPARAMETER!B$3)) -> P.50.500.0013 | P5: =IF(ISBLANK(D5),"",IF(ISBLANK(PROJEKTPARAMETER!B$4),"",PROJEKTPARAMETER!B$4)) -> BMG EM | Q5: =IF(ISBLANK(D5),"",IF(ISBLANK(PROJEKTPARAMETER!B$5),"",PROJEKTPARAMETER!B$5)) -> RuhdorGe | R5: =IF(ISBLANK(D5),"",IF(ISBLANK(PROJEKTPARAMETER!B$6),"",PROJEKTPARAMETER!B$6)) -> ASF/2011/074111 | U5: =IF(ISBLANK(D5),"",IF(ISBLANK(PROJEKTPARAMETER!B$7),"",PROJEKTPARAMETER!B$7)) -> DÜRR Austria GmbH | V5: =IF(ISBLANK(D5),"",IF(ISBLANK(PROJEKTPARAMETER!B$8),"",PROJEKTPARAMETER!B$8)) -> Systemtechnik | Y5: freigegeben | Z5: BauBestandsDok | AA5: 430B9357-562A-46F6-9171-0CBFA0EFAF27 | AB5: 68CF29A6-83A0-43EA-9409-DB4F99EA02C2 | AC5: =IF(ISBLANK(G5),"",IF(ISBLANK(VLOOKUP(G5,OBJEKTLISTE!$A$4:$G$976,7,FALSE)),"",VLOOKUP(G5,OBJEKTLISTE!$A$4:$G$976,7,FALSE))) -> AADFFD90-46AC-487A-B2F2-A0C1CFE6BC37 | AD5: 27622F01-0BD0-474D-9586-49456DC68A89 | AF5: 92B99676-4180-4737-B422-CC11ACCE4EFA
B6: CSV S FotoDoku V1.2 | C6: Bestandsdokumentation | D6: A2 km181,185.zip | E6: Foto | G6: AQ_A02_2_181,185 | H6: =IF(G6<>"",VLOOKUP(G6,OBJEKTLISTE!$A$4:$G$976,2,FALSE),"") -> Freiland / VBA | J6: =IF(G6<>"",VLOOKUP(G6,OBJEKTLISTE!$A$4:$G$976,3,FALSE),"") -> A02 Südautobahn | K6: =IF(G6<>"",VLOOKUP(G6,OBJEKTLISTE!$A$4:$G$976,4,FALSE),"") -> km absteigend | L6: =IF(G6<>"",VLOOKUP(G6,OBJEKTLISTE!$A$4:$G$976,5,FALSE),"") -> 181.185 | M6: =IF(G6<>"",VLOOKUP(G6,OBJEKTLISTE!$A$4:$G$976,6,FALSE),"") -> 181.185 | N6: =IF(ISBLANK(D6),"",IF(ISBLANK(PROJEKTPARAMETER!B$2),"",PROJEKTPARAMETER!B$2)) -> SBA GR Graz | O6: =IF(ISBLANK(D6),"",IF(ISBLANK(PROJEKTPARAMETER!B$3),"",PROJEKTPARAMETER!B$3)) -> P.50.500.0013 | P6: =IF(ISBLANK(D6),"",IF(ISBLANK(PROJEKTPARAMETER!B$4),"",PROJEKTPARAMETER!B$4)) -> BMG EM | Q6: =IF(ISBLANK(D6),"",IF(ISBLANK(PROJEKTPARAMETER!B$5),"",PROJEKTPARAMETER!B$5)) -> RuhdorGe | R6: =IF(ISBLANK(D6),"",IF(ISBLANK(PROJEKTPARAMETER!B$6),"",PROJEKTPARAMETER!B$6)) -> ASF/2011/074111 | U6: =IF(ISBLANK(D6),"",IF(ISBLANK(PROJEKTPARAMETER!B$7),"",PROJEKTPARAMETER!B$7)) -> DÜRR Austria GmbH | V6: =IF(ISBLANK(D6),"",IF(ISBLANK(PROJEKTPARAMETER!B$8),"",PROJEKTPARAMETER!B$8)) -> Systemtechnik | Y6: freigegeben | Z6: BauBestandsDok | AA6: 430B9357-562A-46F6-9171-0CBFA0EFAF27 | AB6: 68CF29A6-83A0-43EA-9409-DB4F99EA02C2 | AC6: =IF(ISBLANK(G6),"",IF(ISBLANK(VLOOKUP(G6,OBJEKTLISTE!$A$4:$G$976,7,FALSE)),"",VLOOKUP(G6,OBJEKTLISTE!$A$4:$G$976,7,FALSE))) -> 7044B81A-1655-4AD9-B416-F89CA45268B7 | AD6: 27622F01-0BD0-474D-9586-49456DC68A89 | AF6: 92B99676-4180-4737-B422-CC11ACCE4EFA
B7: CSV S FotoDoku V1.2 | C7: Bestandsdokumentation | D7: A2 km182,487.zip | E7: Foto | G7: AQ_A02_1_182,487 | H7: =IF(G7<>"",VLOOKUP(G7,OBJEKTLISTE!$A$4:$G$976,2,FALSE),"") -> Freiland / VBA | J7: =IF(G7<>"",VLOOKUP(G7,OBJEKTLISTE!$A$4:$G$976,3,FALSE),"") -> A02 Südautobahn | K7: =IF(G7<>"",VLOOKUP(G7,OBJEKTLISTE!$A$4:$G$976,4,FALSE),"") -> km aufsteigend | L7: =IF(G7<>"",VLOOKUP(G7,OBJEKTLISTE!$A$4:$G$976,5,FALSE),"") -> 182.487 | M7: =IF(G7<>"",VLOOKUP(G7,OBJEKTLISTE!$A$4:$G$976,6,FALSE),"") -> 182.487 | N7: =IF(ISBLANK(D7),"",IF(ISBLANK(PROJEKTPARAMETER!B$2),"",PROJEKTPARAMETER!B$2)) -> SBA GR Graz | O7: =IF(ISBLANK(D7),"",IF(ISBLANK(PROJEKTPARAMETER!B$3),"",PROJEKTPARAMETER!B$3)) -> P.50.500.0013 | P7: =IF(ISBLANK(D7),"",IF(ISBLANK(PROJEKTPARAMETER!B$4),"",PROJEKTPARAMETER!B$4)) -> BMG EM | Q7: =IF(ISBLANK(D7),"",IF(ISBLANK(PROJEKTPARAMETER!B$5),"",PROJEKTPARAMETER!B$5)) -> RuhdorGe | R7: =IF(ISBLANK(D7),"",IF(ISBLANK(PROJEKTPARAMETER!B$6),"",PROJEKTPARAMETER!B$6)) -> ASF/2011/074111 | U7: =IF(ISBLANK(D7),"",IF(ISBLANK(PROJEKTPARAMETER!B$7),"",PROJEKTPARAMETER!B$7)) -> DÜRR Austria GmbH | V7: =IF(ISBLANK(D7),"",IF(ISBLANK(PROJEKTPARAMETER!B$8),"",PROJEKTPARAMETER!B$8)) -> Systemtechnik | Y7: freigegeben | Z7: BauBestandsDok | AA7: 430B9357-562A-46F6-9171-0CBFA0EFAF27 | AB7: 68CF29A6-83A0-43EA-9409-DB4F99EA02C2 | AC7: =IF(ISBLANK(G7),"",IF(ISBLANK(VLOOKUP(G7,OBJEKTLISTE!$A$4:$G$976,7,FALSE)),"",VLOOKUP(G7,OBJEKTLISTE!$A$4:$G$976,7,FALSE))) -> D6E529AC-42F3-4A08-BE7E-20E09F4E7E90 | AD7: 27622F01-0BD0-474D-9586-49456DC68A89 | AF7: 92B99676-4180-4737-B422-CC11ACCE4EFA
B8: CSV S FotoDoku V1.2 | C8: Bestandsdokumentation | D8: A2 km185,602.zip | E8: Foto | G8: EFQ_A02_1_185,602: Ra 186,1 | H8: =IF(G8<>"",VLOOKUP(G8,OBJEKTLISTE!$A$4:$G$976,2,FALSE),"") -> Freiland / VBA | J8: =IF(G8<>"",VLOOKUP(G8,OBJEKTLISTE!$A$4:$G$976,3,FALSE),"") -> A02 Südautobahn | K8: =IF(G8<>"",VLOOKUP(G8,OBJEKTLISTE!$A$4:$G$976,4,FALSE),"") -> km aufsteigend | L8: =IF(G8<>"",VLOOKUP(G8,OBJEKTLISTE!$A$4:$G$976,5,FALSE),"") -> 185.602 | M8: =IF(G8<>"",VLOOKUP(G8,OBJEKTLISTE!$A$4:$G$976,6,FALSE),"") -> 185.602 | N8: =IF(ISBLANK(D8),"",IF(ISBLANK(PROJEKTPARAMETER!B$2),"",PROJEKTPARAMETER!B$2)) -> SBA GR Graz | O8: =IF(ISBLANK(D8),"",IF(ISBLANK(PROJEKTPARAMETER!B$3),"",PROJEKTPARAMETER!B$3)) -> P.50.500.0013 | P8: =IF(ISBLANK(D8),"",IF(ISBLANK(PROJEKTPARAMETER!B$4),"",PROJEKTPARAMETER!B$4)) -> BMG EM | Q8: =IF(ISBLANK(D8),"",IF(ISBLANK(PROJEKTPARAMETER!B$5),"",PROJEKTPARAMETER!B$5)) -> RuhdorGe | R8: =IF(ISBLANK(D8),"",IF(ISBLANK(PROJEKTPARAMETER!B$6),"",PROJEKTPARAMETER!B$6)) -> ASF/2011/074111 | U8: =IF(ISBLANK(D8),"",IF(ISBLANK(PROJEKTPARAMETER!B$7),"",PROJEKTPARAMETER!B$7)) -> DÜRR Austria GmbH | V8: =IF(ISBLANK(D8),"",IF(ISBLANK(PROJEKTPARAMETER!B$8),"",PROJEKTPARAMETER!B$8)) -> Systemtechnik | Y8: freigegeben | Z8: BauBestandsDok | AA8: 430B9357-562A-46F6-9171-0CBFA0EFAF27 | AB8: 68CF29A6-83A0-43EA-9409-DB4F99EA02C2 | AC8: =IF(ISBLANK(G8),"",IF(ISBLANK(VLOOKUP(G8,OBJEKTLISTE!$A$4:$G$976,7,FALSE)),"",VLOOKUP(G8,OBJEKTLISTE!$A$4:$G$976,7,FALSE))) -> 5D1A6D46-F0B6-4258-89D7-C51C550F0BCC | AD8: 27622F01-0BD0-474D-9586-49456DC68A89 | AF8: 92B99676-4180-4737-B422-CC11ACCE4EFA
B9: CSV S FotoDoku V1.2 | C9: Bestandsdokumentation | D9: A2 km185,658.zip | E9: Foto | G9: EFQ_A02_1_185,658: Ra 186,5 | H9: =IF(G9<>"",VLOOKUP(G9,OBJEKTLISTE!$A$4:$G$976,2,FALSE),"") -> Freiland / VBA | J9: =IF(G9<>"",VLOOKUP(G9,OBJEKTLISTE!$A$4:$G$976,3,FALSE),"") -> A02 Südautobahn | K9: =IF(G9<>"",VLOOKUP(G9,OBJEKTLISTE!$A$4:$G$976,4,FALSE),"") -> km aufsteigend | L9: =IF(G9<>"",VLOOKUP(G9,OBJEKTLISTE!$A$4:$G$976,5,FALSE),"") -> 185.658 | M9: =IF(G9<>"",VLOOKUP(G9,OBJEKTLISTE!$A$4:$G$976,6,FALSE),"") -> 185.658 | N9: =IF(ISBLANK(D9),"",IF(ISBLANK(PROJEKTPARAMETER!B$2),"",PROJEKTPARAMETER!B$2)) -> SBA GR Graz | O9: =IF(ISBLANK(D9),"",IF(ISBLANK(PROJEKTPARAMETER!B$3),"",PROJEKTPARAMETER!B$3)) -> P.50.500.0013 | P9: =IF(ISBLANK(D9),"",IF(ISBLANK(PROJEKTPARAMETER!B$4),"",PROJEKTPARAMETER!B$4)) -> BMG EM | Q9: =IF(ISBLANK(D9),"",IF(ISBLANK(PROJEKTPARAMETER!B$5),"",PROJEKTPARAMETER!B$5)) -> RuhdorGe | R9: =IF(ISBLANK(D9),"",IF(ISBLANK(PROJEKTPARAMETER!B$6),"",PROJEKTPARAMETER!B$6)) -> ASF/2011/074111 | U9: =IF(ISBLANK(D9),"",IF(ISBLANK(PROJEKTPARAMETER!B$7),"",PROJEKTPARAMETER!B$7)) -> DÜRR Austria GmbH | V9: =IF(ISBLANK(D9),"",IF(ISBLANK(PROJEKTPARAMETER!B$8),"",PROJEKTPARAMETER!B$8)) -> Systemtechnik | Y9: freigegeben | Z9: BauBestandsDok | AA9: 430B9357-562A-46F6-9171-0CBFA0EFAF27 | AB9: 68CF29A6-83A0-43EA-9409-DB4F99EA02C2 | AC9: =IF(ISBLANK(G9),"",IF(ISBLANK(VLOOKUP(G9,OBJEKTLISTE!$A$4:$G$976,7,FALSE)),"",VLOOKUP(G9,OBJEKTLISTE!$A$4:$G$976,7,FALSE))) -> 0BF070AD-2F3B-4239-B94C-903CA1025100 | AD9: 27622F01-0BD0-474D-9586-49456DC68A89 | AF9: 92B99676-4180-4737-B422-CC11ACCE4EFA
B10: CSV S FotoDoku V1.2 | C10: Bestandsdokumentation | D10: A2 km185,669 altes SH.zip | E10: Foto | G10: EFQ_A02_1_185,669: Ra 186,1 | H10: =IF(G10<>"",VLOOKUP(G10,OBJEKTLISTE!$A$4:$G$976,2,FALSE),"") -> Freiland / VBA | J10: =IF(G10<>"",VLOOKUP(G10,OBJEKTLISTE!$A$4:$G$976,3,FALSE),"") -> A02 Südautobahn | K10: =IF(G10<>"",VLOOKUP(G10,OBJEKTLISTE!$A$4:$G$976,4,FALSE),"") -> km aufsteigend | L10: =IF(G10<>"",VLOOKUP(G10,OBJEKTLISTE!$A$4:$G$976,5,FALSE),"") -> 185.669 | M10: =IF(G10<>"",VLOOKUP(G10,OBJEKTLISTE!$A$4:$G$976,6,FALSE),"") -> 185.669 | N10: =IF(ISBLANK(D10),"",IF(ISBLANK(PROJEKTPARAMETER!B$2),"",PROJEKTPARAMETER!B$2)) -> SBA GR Graz | O10: =IF(ISBLANK(D10),"",IF(ISBLANK(PROJEKTPARAMETER!B$3),"",PROJEKTPARAMETER!B$3)) -> P.50.500.0013 | P10: =IF(ISBLANK(D10),"",IF(ISBLANK(PROJEKTPARAMETER!B$4),"",PROJEKTPARAMETER!B$4)) -> BMG EM | Q10: =IF(ISBLANK(D10),"",IF(ISBLANK(PROJEKTPARAMETER!B$5),"",PROJEKTPARAMETER!B$5)) -> RuhdorGe | R10: =IF(ISBLANK(D10),"",IF(ISBLANK(PROJEKTPARAMETER!B$6),"",PROJEKTPARAMETER!B$6)) -> ASF/2011/074111 | U10: =IF(ISBLANK(D10),"",IF(ISBLANK(PROJEKTPARAMETER!B$7),"",PROJEKTPARAMETER!B$7)) -> DÜRR Austria GmbH | V10: =IF(ISBLANK(D10),"",IF(ISBLANK(PROJEKTPARAMETER!B$8),"",PROJEKTPARAMETER!B$8)) -> Systemtechnik | Y10: freigegeben | Z10: BauBestandsDok | AA10: 430B9357-562A-46F6-9171-0CBFA0EFAF27 | AB10: 68CF29A6-83A0-43EA-9409-DB4F99EA02C2 | AC10: =IF(ISBLANK(G10),"",IF(ISBLANK(VLOOKUP(G10,OBJEKTLISTE!$A$4:$G$976,7,FALSE)),"",VLOOKUP(G10,OBJEKTLISTE!$A$4:$G$976,7,FALSE))) -> BA24C179-BE64-4A28-A5C8-E94E07352F19 | AD10: 27622F01-0BD0-474D-9586-49456DC68A89 | AF10: 92B99676-4180-4737-B422-CC11ACCE4EFA
B11: CSV S FotoDoku V1.2 | C11: Bestandsdokumentation | D11: A2 km185,669.zip | E11: Foto | G11: EFQ_A02_1_185,669: Ra 186,1 | H11: =IF(G11<>"",VLOOKUP(G11,OBJEKTLISTE!$A$4:$G$976,2,FALSE),"") -> Freiland / VBA | J11: =IF(G11<>"",VLOOKUP(G11,OBJEKTLISTE!$A$4:$G$976,3,FALSE),"") -> A02 Südautobahn | K11: =IF(G11<>"",VLOOKUP(G11,OBJEKTLISTE!$A$4:$G$976,4,FALSE),"") -> km aufsteigend | L11: =IF(G11<>"",VLOOKUP(G11,OBJEKTLISTE!$A$4:$G$976,5,FALSE),"") -> 185.669 | M11: =IF(G11<>"",VLOOKUP(G11,OBJEKTLISTE!$A$4:$G$976,6,FALSE),"") -> 185.669 | N11: =IF(ISBLANK(D11),"",IF(ISBLANK(PROJEKTPARAMETER!B$2),"",PROJEKTPARAMETER!B$2)) -> SBA GR Graz | O11: =IF(ISBLANK(D11),"",IF(ISBLANK(PROJEKTPARAMETER!B$3),"",PROJEKTPARAMETER!B$3)) -> P.50.500.0013 | P11: =IF(ISBLANK(D11),"",IF(ISBLANK(PROJEKTPARAMETER!B$4),"",PROJEKTPARAMETER!B$4)) -> BMG EM | Q11: =IF(ISBLANK(D11),"",IF(ISBLANK(PROJEKTPARAMETER!B$5),"",PROJEKTPARAMETER!B$5)) -> RuhdorGe | R11: =IF(ISBLANK(D11),"",IF(ISBLANK(PROJEKTPARAMETER!B$6),"",PROJEKTPARAMETER!B$6)) -> ASF/2011/074111 | U11: =IF(ISBLANK(D11),"",IF(ISBLANK(PROJEKTPARAMETER!B$7),"",PROJEKTPARAMETER!B$7)) -> DÜRR Austria GmbH | V11: =IF(ISBLANK(D11),"",IF(ISBLANK(PROJEKTPARAMETER!B$8),"",PROJEKTPARAMETER!B$8)) -> Systemtechnik | Y11: freigegeben | Z11: BauBestandsDok | AA11: 430B9357-562A-46F6-9171-0CBFA0EFAF27 | AB11: 68CF29A6-83A0-43EA-9409-DB4F99EA02C2 | AC11: =IF(ISBLANK(G11),"",IF(ISBLANK(VLOOKUP(G11,OBJEKTLISTE!$A$4:$G$976,7,FALSE)),"",VLOOKUP(G11,OBJEKTLISTE!$A$4:$G$976,7,FALSE))) -> BA24C179-BE64-4A28-A5C8-E94E07352F19 | AD11: 27622F01-0BD0-474D-9586-49456DC68A89 | AF11: 92B99676-4180-4737-B422-CC11ACCE4EFA
B12: CSV S FotoDoku V1.2 | C12: Bestandsdokumentation | D12: A2 km185,705.zip | E12: Foto | G12: MQ_A02_1_185,705: Ra 186,1 | H12: =IF(G12<>"",VLOOKUP(G12,OBJEKTLISTE!$A$4:$G$976,2,FALSE),"") -> Freiland / Freie Strecke | J12: =IF(G12<>"",VLOOKUP(G12,OBJEKTLISTE!$A$4:$G$976,3,FALSE),"") -> A02 Südautobahn | K12: =IF(G12<>"",VLOOKUP(G12,OBJEKTLISTE!$A$4:$G$976,4,FALSE),"") -> km aufsteigend | L12: =IF(G12<>"",VLOOKUP(G12,OBJEKTLISTE!$A$4:$G$976,5,FALSE),"") -> 185.705 | M12: =IF(G12<>"",VLOOKUP(G12,OBJEKTLISTE!$A$4:$G$976,6,FALSE),"") -> 185.705 | N12: =IF(ISBLANK(D12),"",IF(ISBLANK(PROJEKTPARAMETER!B$2),"",PROJEKTPARAMETER!B$2)) -> SBA GR Graz | O12: =IF(ISBLANK(D12),"",IF(ISBLANK(PROJEKTPARAMETER!B$3),"",PROJEKTPARAMETER!B$3)) -> P.50.500.0013 | P12: =IF(ISBLANK(D12),"",IF(ISBLANK(PROJEKTPARAMETER!B$4),"",PROJEKTPARAMETER!B$4)) -> BMG EM | Q12: =IF(ISBLANK(D12),"",IF(ISBLANK(PROJEKTPARAMETER!B$5),"",PROJEKTPARAMETER!B$5)) -> RuhdorGe | R12: =IF(ISBLANK(D12),"",IF(ISBLANK(PROJEKTPARAMETER!B$6),"",PROJEKTPARAMETER!B$6)) -> ASF/2011/074111 | U12: =IF(ISBLANK(D12),"",IF(ISBLANK(PROJEKTPARAMETER!B$7),"",PROJEKTPARAMETER!B$7)) -> DÜRR Austria GmbH | V12: =IF(ISBLANK(D12),"",IF(ISBLANK(PROJEKTPARAMETER!B$8),"",PROJEKTPARAMETER!B$8)) -> Systemtechnik | Y12: freigegeben | Z12: BauBestandsDok | AA12: 430B9357-562A-46F6-9171-0CBFA0EFAF27 | AB12: 68CF29A6-83A0-43EA-9409-DB4F99EA02C2 | AC12: =IF(ISBLANK(G12),"",IF(ISBLANK(VLOOKUP(G12,OBJEKTLISTE!$A$4:$G$976,7,FALSE)),"",VLOOKUP(G12,OBJEKTLISTE!$A$4:$G$976,7,FALSE))) -> A8993D48-9C5F-4E7E-9B89-39AC20E0E3A2 | AD12: E2C8D616-F003-4160-8628-CCF7B02B25A2 | AF12: 92B99676-4180-4737-B422-CC11ACCE4EFA
B13: CSV S FotoDoku V1.2 | C13: Bestandsdokumentation | D13: A2 km185,809.zip | E13: Foto | G13: EFQ_A02_1_185,809: Ra186,2 | H13: =IF(G13<>"",VLOOKUP(G13,OBJEKTLISTE!$A$4:$G$976,2,FALSE),"") -> Freiland / VBA | J13: =IF(G13<>"",VLOOKUP(G13,OBJEKTLISTE!$A$4:$G$976,3,FALSE),"") -> A02 Südautobahn | K13: =IF(G13<>"",VLOOKUP(G13,OBJEKTLISTE!$A$4:$G$976,4,FALSE),"") -> km aufsteigend | L13: =IF(G13<>"",VLOOKUP(G13,OBJEKTLISTE!$A$4:$G$976,5,FALSE),"") -> 185.809 | M13: =IF(G13<>"",VLOOKUP(G13,OBJEKTLISTE!$A$4:$G$976,6,FALSE),"") -> 185.809 | N13: =IF(ISBLANK(D13),"",IF(ISBLANK(PROJEKTPARAMETER!B$2),"",PROJEKTPARAMETER!B$2)) -> SBA GR Graz | O13: =IF(ISBLANK(D13),"",IF(ISBLANK(PROJEKTPARAMETER!B$3),"",PROJEKTPARAMETER!B$3)) -> P.50.500.0013 | P13: =IF(ISBLANK(D13),"",IF(ISBLANK(PROJEKTPARAMETER!B$4),"",PROJEKTPARAMETER!B$4)) -> BMG EM | Q13: =IF(ISBLANK(D13),"",IF(ISBLANK(PROJEKTPARAMETER!B$5),"",PROJEKTPARAMETER!B$5)) -> RuhdorGe | R13: =IF(ISBLANK(D13),"",IF(ISBLANK(PROJEKTPARAMETER!B$6),"",PROJEKTPARAMETER!B$6)) -> ASF/2011/074111 | U13: =IF(ISBLANK(D13),"",IF(ISBLANK(PROJEKTPARAMETER!B$7),"",PROJEKTPARAMETER!B$7)) -> DÜRR Austria GmbH | V13: =IF(ISBLANK(D13),"",IF(ISBLANK(PROJEKTPARAMETER!B$8),"",PROJEKTPARAMETER!B$8)) -> Systemtechnik | Y13: freigegeben | Z13: BauBestandsDok | AA13: 430B9357-562A-46F6-9171-0CBFA0EFAF27 | AB13: 68CF29A6-83A0-43EA-9409-DB4F99EA02C2 | AC13: =IF(ISBLANK(G13),"",IF(ISBLANK(VLOOKUP(G13,OBJEKTLISTE!$A$4:$G$976,7,FALSE)),"",VLOOKUP(G13,OBJEKTLISTE!$A$4:$G$976,7,FALSE))) -> D4C5E376-A013-4455-A43A-B8097106383C | AD13: 27622F01-0BD0-474D-9586-49456DC68A89 | AF13: 92B99676-4180-4737-B422-CC11ACCE4EFA
B14: CSV S FotoDoku V1.2 | C14: Bestandsdokumentation | D14: A2 km186,000_1.zip | E14: Foto | G14: AQ_A02_1_186,000 | H14: =IF(G14<>"",VLOOKUP(G14,OBJEKTLISTE!$A$4:$G$976,2,FALSE),"") -> Freiland / VBA | J14: =IF(G14<>"",VLOOKUP(G14,OBJEKTLISTE!$A$4:$G$976,3,FALSE),"") -> A02 Südautobahn | K14: =IF(G14<>"",VLOOKUP(G14,OBJEKTLISTE!$A$4:$G$976,4,FALSE),"") -> km aufsteigend | L14: =IF(G14<>"",VLOOKUP(G14,OBJEKTLISTE!$A$4:$G$976,5,FALSE),"") -> 186 | M14: =IF(G14<>"",VLOOKUP(G14,OBJEKTLISTE!$A$4:$G$976,6,FALSE),"") -> 186 | N14: =IF(ISBLANK(D14),"",IF(ISBLANK(PROJEKTPARAMETER!B$2),"",PROJEKTPARAMETER!B$2)) -> SBA GR Graz | O14: =IF(ISBLANK(D14),"",IF(ISBLANK(PROJEKTPARAMETER!B$3),"",PROJEKTPARAMETER!B$3)) -> P.50.500.0013 | P14: =IF(ISBLANK(D14),"",IF(ISBLANK(PROJEKTPARAMETER!B$4),"",PROJEKTPARAMETER!B$4)) -> BMG EM | Q14: =IF(ISBLANK(D14),"",IF(ISBLANK(PROJEKTPARAMETER!B$5),"",PROJEKTPARAMETER!B$5)) -> RuhdorGe | R14: =IF(ISBLANK(D14),"",IF(ISBLANK(PROJEKTPARAMETER!B$6),"",PROJEKTPARAMETER!B$6)) -> ASF/2011/074111 | U14: =IF(ISBLANK(D14),"",IF(ISBLANK(PROJEKTPARAMETER!B$7),"",PROJEKTPARAMETER!B$7)) -> DÜRR Austria GmbH | V14: =IF(ISBLANK(D14),"",IF(ISBLANK(PROJEKTPARAMETER!B$8),"",PROJEKTPARAMETER!B$8)) -> Systemtechnik | Y14: freigegeben | Z14: BauBestandsDok | AA14: 430B9357-562A-46F6-9171-0CBFA0EFAF27 | AB14: 68CF29A6-83A0-43EA-9409-DB4F99EA02C2 | AC14: =IF(ISBLANK(G14),"",IF(ISBLANK(VLOOKUP(G14,OBJEKTLISTE!$A$4:$G$976,7,FALSE)),"",VLOOKUP(G14,OBJEKTLISTE!$A$4:$G$976,7,FALSE))) -> 50385715-5721-464D-BCE8-E678977A8712 | AD14: 27622F01-0BD0-474D-9586-49456DC68A89 | AF14: 92B99676-4180-4737-B422-CC11ACCE4EFA
B15: CSV S FotoDoku V1.2 | C15: Bestandsdokumentation | D15: A2 km186,000_2.zip | E15: Foto | G15: AQ_A02_2_186,000 | H15: =IF(G15<>"",VLOOKUP(G15,OBJEKTLISTE!$A$4:$G$976,2,FALSE),"") -> Freiland / VBA | J15: =IF(G15<>"",VLOOKUP(G15,OBJEKTLISTE!$A$4:$G$976,3,FALSE),"") -> A02 Südautobahn | K15: =IF(G15<>"",VLOOKUP(G15,OBJEKTLISTE!$A$4:$G$976,4,FALSE),"") -> km absteigend | L15: =IF(G15<>"",VLOOKUP(G15,OBJEKTLISTE!$A$4:$G$976,5,FALSE),"") -> 186 | M15: =IF(G15<>"",VLOOKUP(G15,OBJEKTLISTE!$A$4:$G$976,6,FALSE),"") -> 186 | N15: =IF(ISBLANK(D15),"",IF(ISBLANK(PROJEKTPARAMETER!B$2),"",PROJEKTPARAMETER!B$2)) -> SBA GR Graz | O15: =IF(ISBLANK(D15),"",IF(ISBLANK(PROJEKTPARAMETER!B$3),"",PROJEKTPARAMETER!B$3)) -> P.50.500.0013 | P15: =IF(ISBLANK(D15),"",IF(ISBLANK(PROJEKTPARAMETER!B$4),"",PROJEKTPARAMETER!B$4)) -> BMG EM | Q15: =IF(ISBLANK(D15),"",IF(ISBLANK(PROJEKTPARAMETER!B$5),"",PROJEKTPARAMETER!B$5)) -> RuhdorGe | R15: =IF(ISBLANK(D15),"",IF(ISBLANK(PROJEKTPARAMETER!B$6),"",PROJEKTPARAMETER!B$6)) -> ASF/2011/074111 | U15: =IF(ISBLANK(D15),"",IF(ISBLANK(PROJEKTPARAMETER!B$7),"",PROJEKTPARAMETER!B$7)) -> DÜRR Austria GmbH | V15: =IF(ISBLANK(D15),"",IF(ISBLANK(PROJEKTPARAMETER!B$8),"",PROJEKTPARAMETER!B$8)) -> Systemtechnik | Y15: freigegeben | Z15: BauBestandsDok | AA15: 430B9357-562A-46F6-9171-0CBFA0EFAF27 | AB15: 68CF29A6-83A0-43EA-9409-DB4F99EA02C2 | AC15: =IF(ISBLANK(G15),"",IF(ISBLANK(VLOOKUP(G15,OBJEKTLISTE!$A$4:$G$976,7,FALSE)),"",VLOOKUP(G15,OBJEKTLISTE!$A$4:$G$976,7,FALSE))) -> 0BAECB90-FA41-4F8F-8780-32B43B4D2957 | AD15: 27622F01-0BD0-474D-9586-49456DC68A89 | AF15: 92B99676-4180-4737-B422-CC11ACCE4EFA
B16: CSV S FotoDoku V1.2 | C16: Bestandsdokumentation | D16: A2 km186,100.zip | E16: Foto | G16: EFQ_A02_2_186,100: Ra186,4 | H16: =IF(G16<>"",VLOOKUP(G16,OBJEKTLISTE!$A$4:$G$976,2,FALSE),"") -> Freiland / VBA | J16: =IF(G16<>"",VLOOKUP(G16,OBJEKTLISTE!$A$4:$G$976,3,FALSE),"") -> A02 Südautobahn | K16: =IF(G16<>"",VLOOKUP(G16,OBJEKTLISTE!$A$4:$G$976,4,FALSE),"") -> km absteigend | L16: =IF(G16<>"",VLOOKUP(G16,OBJEKTLISTE!$A$4:$G$976,5,FALSE),"") -> 186.1 | M16: =IF(G16<>"",VLOOKUP(G16,OBJEKTLISTE!$A$4:$G$976,6,FALSE),"") -> 186.1 | N16: =IF(ISBLANK(D16),"",IF(ISBLANK(PROJEKTPARAMETER!B$2),"",PROJEKTPARAMETER!B$2)) -> SBA GR Graz | O16: =IF(ISBLANK(D16),"",IF(ISBLANK(PROJEKTPARAMETER!B$3),"",PROJEKTPARAMETER!B$3)) -> P.50.500.0013 | P16: =IF(ISBLANK(D16),"",IF(ISBLANK(PROJEKTPARAMETER!B$4),"",PROJEKTPARAMETER!B$4)) -> BMG EM | Q16: =IF(ISBLANK(D16),"",IF(ISBLANK(PROJEKTPARAMETER!B$5),"",PROJEKTPARAMETER!B$5)) -> RuhdorGe | R16: =IF(ISBLANK(D16),"",IF(ISBLANK(PROJEKTPARAMETER!B$6),"",PROJEKTPARAMETER!B$6)) -> ASF/2011/074111 | U16: =IF(ISBLANK(D16),"",IF(ISBLANK(PROJEKTPARAMETER!B$7),"",PROJEKTPARAMETER!B$7)) -> DÜRR Austria GmbH | V16: =IF(ISBLANK(D16),"",IF(ISBLANK(PROJEKTPARAMETER!B$8),"",PROJEKTPARAMETER!B$8)) -> Systemtechnik | Y16: freigegeben | Z16: BauBestandsDok | AA16: 430B9357-562A-46F6-9171-0CBFA0EFAF27 | AB16: 68CF29A6-83A0-43EA-9409-DB4F99EA02C2 | AC16: =IF(ISBLANK(G16),"",IF(ISBLANK(VLOOKUP(G16,OBJEKTLISTE!$A$4:$G$976,7,FALSE)),"",VLOOKUP(G16,OBJEKTLISTE!$A$4:$G$976,7,FALSE))) -> F7EFF164-82D3-40FB-A56E-E98464DE8361 | AD16: 27622F01-0BD0-474D-9586-49456DC68A89 | AF16: 92B99676-4180-4737-B422-CC11ACCE4EFA
B17: CSV S FotoDoku V1.2 | C17: Bestandsdokumentation | D17: A2 km186,250.zip | E17: Foto | G17: MQ_A02_1_186,250: Ra 186,3 | H17: =IF(G17<>"",VLOOKUP(G17,OBJEKTLISTE!$A$4:$G$976,2,FALSE),"") -> Freiland / Freie Strecke | J17: =IF(G17<>"",VLOOKUP(G17,OBJEKTLISTE!$A$4:$G$976,3,FALSE),"") -> A02 Südautobahn | K17: =IF(G17<>"",VLOOKUP(G17,OBJEKTLISTE!$A$4:$G$976,4,FALSE),"") -> km aufsteigend | L17: =IF(G17<>"",VLOOKUP(G17,OBJEKTLISTE!$A$4:$G$976,5,FALSE),"") -> 186.25 | M17: =IF(G17<>"",VLOOKUP(G17,OBJEKTLISTE!$A$4:$G$976,6,FALSE),"") -> 186.25 | N17: =IF(ISBLANK(D17),"",IF(ISBLANK(PROJEKTPARAMETER!B$2),"",PROJEKTPARAMETER!B$2)) -> SBA GR Graz | O17: =IF(ISBLANK(D17),"",IF(ISBLANK(PROJEKTPARAMETER!B$3),"",PROJEKTPARAMETER!B$3)) -> P.50.500.0013 | P17: =IF(ISBLANK(D17),"",IF(ISBLANK(PROJEKTPARAMETER!B$4),"",PROJEKTPARAMETER!B$4)) -> BMG EM | Q17: =IF(ISBLANK(D17),"",IF(ISBLANK(PROJEKTPARAMETER!B$5),"",PROJEKTPARAMETER!B$5)) -> RuhdorGe | R17: =IF(ISBLANK(D17),"",IF(ISBLANK(PROJEKTPARAMETER!B$6),"",PROJEKTPARAMETER!B$6)) -> ASF/2011/074111 | U17: =IF(ISBLANK(D17),"",IF(ISBLANK(PROJEKTPARAMETER!B$7),"",PROJEKTPARAMETER!B$7)) -> DÜRR Austria GmbH | V17: =IF(ISBLANK(D17),"",IF(ISBLANK(PROJEKTPARAMETER!B$8),"",PROJEKTPARAMETER!B$8)) -> Systemtechnik | Y17: freigegeben | Z17: BauBestandsDok | AA17: 430B9357-562A-46F6-9171-0CBFA0EFAF27 | AB17: 68CF29A6-83A0-43EA-9409-DB4F99EA02C2 | AC17: =IF(ISBLANK(G17),"",IF(ISBLANK(VLOOKUP(G17,OBJEKTLISTE!$A$4:$G$976,7,FALSE)),"",VLOOKUP(G17,OBJEKTLISTE!$A$4:$G$976,7,FALSE))) -> 7C54F8EE-02F8-43CF-B868-F5F0894D3C63 | AD17: E2C8D616-F003-4160-8628-CCF7B02B25A2 | AF17: 92B99676-4180-4737-B422-CC11ACCE4EFA
B18: CSV S FotoDoku V1.2 | C18: Bestandsdokumentation | D18: A2 km186,408.zip | E18: Foto | G18: EFQ_A02_2_186,408: Ra 186,3 | H18: =IF(G18<>"",VLOOKUP(G18,OBJEKTLISTE!$A$4:$G$976,2,FALSE),"") -> Freiland / VBA | J18: =IF(G18<>"",VLOOKUP(G18,OBJEKTLISTE!$A$4:$G$976,3,FALSE),"") -> A02 Südautobahn | K18: =IF(G18<>"",VLOOKUP(G18,OBJEKTLISTE!$A$4:$G$976,4,FALSE),"") -> km absteigend | L18: =IF(G18<>"",VLOOKUP(G18,OBJEKTLISTE!$A$4:$G$976,5,FALSE),"") -> 186.408 | M18: =IF(G18<>"",VLOOKUP(G18,OBJEKTLISTE!$A$4:$G$976,6,FALSE),"") -> 186.408 | N18: =IF(ISBLANK(D18),"",IF(ISBLANK(PROJEKTPARAMETER!B$2),"",PROJEKTPARAMETER!B$2)) -> SBA GR Graz | O18: =IF(ISBLANK(D18),"",IF(ISBLANK(PROJEKTPARAMETER!B$3),"",PROJEKTPARAMETER!B$3)) -> P.50.500.0013 | P18: =IF(ISBLANK(D18),"",IF(ISBLANK(PROJEKTPARAMETER!B$4),"",PROJEKTPARAMETER!B$4)) -> BMG EM | Q18: =IF(ISBLANK(D18),"",IF(ISBLANK(PROJEKTPARAMETER!B$5),"",PROJEKTPARAMETER!B$5)) -> RuhdorGe | R18: =IF(ISBLANK(D18),"",IF(ISBLANK(PROJEKTPARAMETER!B$6),"",PROJEKTPARAMETER!B$6)) -> ASF/2011/074111 | U18: =IF(ISBLANK(D18),"",IF(ISBLANK(PROJEKTPARAMETER!B$7),"",PROJEKTPARAMETER!B$7)) -> DÜRR Austria GmbH | V18: =IF(ISBLANK(D18),"",IF(ISBLANK(PROJEKTPARAMETER!B$8),"",PROJEKTPARAMETER!B$8)) -> Systemtechnik | Y18: freigegeben | Z18: BauBestandsDok | AA18: 430B9357-562A-46F6-9171-0CBFA0EFAF27 | AB18: 68CF29A6-83A0-43EA-9409-DB4F99EA02C2 | AC18: =IF(ISBLANK(G18),"",IF(ISBLANK(VLOOKUP(G18,OBJEKTLISTE!$A$4:$G$976,7,FALSE)),"",VLOOKUP(G18,OBJEKTLISTE!$A$4:$G$976,7,FALSE))) -> 367CCFD5-A87A-4709-A22A-A92973A6DA32 | AD18: 27622F01-0BD0-474D-9586-49456DC68A89 | AF18: 92B99676-4180-4737-B422-CC11ACCE4EFA
B19: CSV S FotoDoku V1.2 | C19: Bestandsdokumentation | D19: A2 km186,591.zip | E19: Foto | G19: EFQ_A02_2_186,591: Ra186,3 | H19: =IF(G19<>"",VLOOKUP(G19,OBJEKTLISTE!$A$4:$G$976,2,FALSE),"") -> Freiland / VBA | J19: =IF(G19<>"",VLOOKUP(G19,OBJEKTLISTE!$A$4:$G$976,3,FALSE),"") -> A02 Südautobahn | K19: =IF(G19<>"",VLOOKUP(G19,OBJEKTLISTE!$A$4:$G$976,4,FALSE),"") -> km absteigend | L19: =IF(G19<>"",VLOOKUP(G19,OBJEKTLISTE!$A$4:$G$976,5,FALSE),"") -> 186.591 | M19: =IF(G19<>"",VLOOKUP(G19,OBJEKTLISTE!$A$4:$G$976,6,FALSE),"") -> 186.591 | N19: =IF(ISBLANK(D19),"",IF(ISBLANK(PROJEKTPARAMETER!B$2),"",PROJEKTPARAMETER!B$2)) -> SBA GR Graz | O19: =IF(ISBLANK(D19),"",IF(ISBLANK(PROJEKTPARAMETER!B$3),"",PROJEKTPARAMETER!B$3)) -> P.50.500.0013 | P19: =IF(ISBLANK(D19),"",IF(ISBLANK(PROJEKTPARAMETER!B$4),"",PROJEKTPARAMETER!B$4)) -> BMG EM | Q19: =IF(ISBLANK(D19),"",IF(ISBLANK(PROJEKTPARAMETER!B$5),"",PROJEKTPARAMETER!B$5)) -> RuhdorGe | R19: =IF(ISBLANK(D19),"",IF(ISBLANK(PROJEKTPARAMETER!B$6),"",PROJEKTPARAMETER!B$6)) -> ASF/2011/074111 | U19: =IF(ISBLANK(D19),"",IF(ISBLANK(PROJEKTPARAMETER!B$7),"",PROJEKTPARAMETER!B$7)) -> DÜRR Austria GmbH | V19: =IF(ISBLANK(D19),"",IF(ISBLANK(PROJEKTPARAMETER!B$8),"",PROJEKTPARAMETER!B$8)) -> Systemtechnik | Y19: freigegeben | Z19: BauBestandsDok | AA19: 430B9357-562A-46F6-9171-0CBFA0EFAF27 | AB19: 68CF29A6-83A0-43EA-9409-DB4F99EA02C2 | AC19: =IF(ISBLANK(G19),"",IF(ISBLANK(VLOOKUP(G19,OBJEKTLISTE!$A$4:$G$976,7,FALSE)),"",VLOOKUP(G19,OBJEKTLISTE!$A$4:$G$976,7,FALSE))) -> 84BEB947-1451-413A-B8C5-B224EAC2FDB9 | AD19: 27622F01-0BD0-474D-9586-49456DC68A89 | AF19: 92B99676-4180-4737-B422-CC11ACCE4EFA
B20: CSV S FotoDoku V1.2 | C20: Bestandsdokumentation | D20: A2 km186,867.zip | E20: Foto | G20: AQ_A02_2_186,867 | H20: =IF(G20<>"",VLOOKUP(G20,OBJEKTLISTE!$A$4:$G$976,2,FALSE),"") -> Freiland / VBA | J20: =IF(G20<>"",VLOOKUP(G20,OBJEKTLISTE!$A$4:$G$976,3,FALSE),"") -> A02 Südautobahn | K20: =IF(G20<>"",VLOOKUP(G20,OBJEKTLISTE!$A$4:$G$976,4,FALSE),"") -> km absteigend | L20: =IF(G20<>"",VLOOKUP(G20,OBJEKTLISTE!$A$4:$G$976,5,FALSE),"") -> 186.867 | M20: =IF(G20<>"",VLOOKUP(G20,OBJEKTLISTE!$A$4:$G$976,6,FALSE),"") -> 186.867 | N20: =IF(ISBLANK(D20),"",IF(ISBLANK(PROJEKTPARAMETER!B$2),"",PROJEKTPARAMETER!B$2)) -> SBA GR Graz | O20: =IF(ISBLANK(D20),"",IF(ISBLANK(PROJEKTPARAMETER!B$3),"",PROJEKTPARAMETER!B$3)) -> P.50.500.0013 | P20: =IF(ISBLANK(D20),"",IF(ISBLANK(PROJEKTPARAMETER!B$4),"",PROJEKTPARAMETER!B$4)) -> BMG EM | Q20: =IF(ISBLANK(D20),"",IF(ISBLANK(PROJEKTPARAMETER!B$5),"",PROJEKTPARAMETER!B$5)) -> RuhdorGe | R20: =IF(ISBLANK(D20),"",IF(ISBLANK(PROJEKTPARAMETER!B$6),"",PROJEKTPARAMETER!B$6)) -> ASF/2011/074111 | U20: =IF(ISBLANK(D20),"",IF(ISBLANK(PROJEKTPARAMETER!B$7),"",PROJEKTPARAMETER!B$7)) -> DÜRR Austria GmbH | V20: =IF(ISBLANK(D20),"",IF(ISBLANK(PROJEKTPARAMETER!B$8),"",PROJEKTPARAMETER!B$8)) -> Systemtechnik | Y20: freigegeben | Z20: BauBestandsDok | AA20: 430B9357-562A-46F6-9171-0CBFA0EFAF27 | AB20: 68CF29A6-83A0-43EA-9409-DB4F99EA02C2 | AC20: =IF(ISBLANK(G20),"",IF(ISBLANK(VLOOKUP(G20,OBJEKTLISTE!$A$4:$G$976,7,FALSE)),"",VLOOKUP(G20,OBJEKTLISTE!$A$4:$G$976,7,FALSE))) -> E335AD19-B8A1-40E7-8796-741026B0CBCE | AD20: 27622F01-0BD0-474D-9586-49456DC68A89 | AF20: 92B99676-4180-4737-B422-CC11ACCE4EFA
B21: CSV S FotoDoku V1.2 | C21: Bestandsdokumentation | D21: A2 km190,814.zip | E21: Foto | G21: AQ_A02_2_190,814 | H21: =IF(G21<>"",VLOOKUP(G21,OBJEKTLISTE!$A$4:$G$976,2,FALSE),"") -> Freiland / VBA | J21: =IF(G21<>"",VLOOKUP(G21,OBJEKTLISTE!$A$4:$G$976,3,FALSE),"") -> A02 Südautobahn | K21: =IF(G21<>"",VLOOKUP(G21,OBJEKTLISTE!$A$4:$G$976,4,FALSE),"") -> km absteigend | L21: =IF(G21<>"",VLOOKUP(G21,OBJEKTLISTE!$A$4:$G$976,5,FALSE),"") -> 190.814 | M21: =IF(G21<>"",VLOOKUP(G21,OBJEKTLISTE!$A$4:$G$976,6,FALSE),"") -> 190.814 | N21: =IF(ISBLANK(D21),"",IF(ISBLANK(PROJEKTPARAMETER!B$2),"",PROJEKTPARAMETER!B$2)) -> SBA GR Graz | O21: =IF(ISBLANK(D21),"",IF(ISBLANK(PROJEKTPARAMETER!B$3),"",PROJEKTPARAMETER!B$3)) -> P.50.500.0013 | P21: =IF(ISBLANK(D21),"",IF(ISBLANK(PROJEKTPARAMETER!B$4),"",PROJEKTPARAMETER!B$4)) -> BMG EM | Q21: =IF(ISBLANK(D21),"",IF(ISBLANK(PROJEKTPARAMETER!B$5),"",PROJEKTPARAMETER!B$5)) -> RuhdorGe | R21: =IF(ISBLANK(D21),"",IF(ISBLANK(PROJEKTPARAMETER!B$6),"",PROJEKTPARAMETER!B$6)) -> ASF/2011/074111 | U21: =IF(ISBLANK(D21),"",IF(ISBLANK(PROJEKTPARAMETER!B$7),"",PROJEKTPARAMETER!B$7)) -> DÜRR Austria GmbH | V21: =IF(ISBLANK(D21),"",IF(ISBLANK(PROJEKTPARAMETER!B$8),"",PROJEKTPARAMETER!B$8)) -> Systemtechnik | Y21: freigegeben | Z21: BauBestandsDok | AA21: 430B9357-562A-46F6-9171-0CBFA0EFAF27 | AB21: 68CF29A6-83A0-43EA-9409-DB4F99EA02C2 | AC21: =IF(ISBLANK(G21),"",IF(ISBLANK(VLOOKUP(G21,OBJEKTLISTE!$A$4:$G$976,7,FALSE)),"",VLOOKUP(G21,OBJEKTLISTE!$A$4:$G$976,7,FALSE))) -> 1420A805-8E69-4063-9AD1-6CD584AE4202 | AD21: 27622F01-0BD0-474D-9586-49456DC68A89 | AF21: 92B99676-4180-4737-B422-CC11ACCE4EFA
B22: CSV S FotoDoku V1.2 | C22: Bestandsdokumentation | D22: A2 km197,000.zip | E22: Foto | G22: Maut_A02_1_197,000 | H22: =IF(G22<>"",VLOOKUP(G22,OBJEKTLISTE!$A$4:$G$976,2,FALSE),"") -> Freiland / VBA | J22: =IF(G22<>"",VLOOKUP(G22,OBJEKTLISTE!$A$4:$G$976,3,FALSE),"") -> A02 Südautobahn | K22: =IF(G22<>"",VLOOKUP(G22,OBJEKTLISTE!$A$4:$G$976,4,FALSE),"") -> km aufsteigend | L22: =IF(G22<>"",VLOOKUP(G22,OBJEKTLISTE!$A$4:$G$976,5,FALSE),"") -> 197 | M22: =IF(G22<>"",VLOOKUP(G22,OBJEKTLISTE!$A$4:$G$976,6,FALSE),"") -> 197 | N22: =IF(ISBLANK(D22),"",IF(ISBLANK(PROJEKTPARAMETER!B$2),"",PROJEKTPARAMETER!B$2)) -> SBA GR Graz | O22: =IF(ISBLANK(D22),"",IF(ISBLANK(PROJEKTPARAMETER!B$3),"",PROJEKTPARAMETER!B$3)) -> P.50.500.0013 | P22: =IF(ISBLANK(D22),"",IF(ISBLANK(PROJEKTPARAMETER!B$4),"",PROJEKTPARAMETER!B$4)) -> BMG EM | Q22: =IF(ISBLANK(D22),"",IF(ISBLANK(PROJEKTPARAMETER!B$5),"",PROJEKTPARAMETER!B$5)) -> RuhdorGe | R22: =IF(ISBLANK(D22),"",IF(ISBLANK(PROJEKTPARAMETER!B$6),"",PROJEKTPARAMETER!B$6)) -> ASF/2011/074111 | U22: =IF(ISBLANK(D22),"",IF(ISBLANK(PROJEKTPARAMETER!B$7),"",PROJEKTPARAMETER!B$7)) -> DÜRR Austria GmbH | V22: =IF(ISBLANK(D22),"",IF(ISBLANK(PROJEKTPARAMETER!B$8),"",PROJEKTPARAMETER!B$8)) -> Systemtechnik | Y22: freigegeben | Z22: BauBestandsDok | AA22: 430B9357-562A-46F6-9171-0CBFA0EFAF27 | AB22: 68CF29A6-83A0-43EA-9409-DB4F99EA02C2 | AC22: =IF(ISBLANK(G22),"",IF(ISBLANK(VLOOKUP(G22,OBJEKTLISTE!$A$4:$G$976,7,FALSE)),"",VLOOKUP(G22,OBJEKTLISTE!$A$4:$G$976,7,FALSE))) -> 19AE8B22-D007-46D9-B776-3292D801CA07 | AD22: 27622F01-0BD0-474D-9586-49456DC68A89 | AF22: 92B99676-4180-4737-B422-CC11ACCE4EFA
B23: CSV S FotoDoku V1.2 | C23: Bestandsdokumentation | D23: A2 km197,000.zip | E23: Foto | G23: Maut_A02_2_197,000 | H23: =IF(G23<>"",VLOOKUP(G23,OBJEKTLISTE!$A$4:$G$976,2,FALSE),"") -> Freiland / VBA | J23: =IF(G23<>"",VLOOKUP(G23,OBJEKTLISTE!$A$4:$G$976,3,FALSE),"") -> A02 Südautobahn | K23: =IF(G23<>"",VLOOKUP(G23,OBJEKTLISTE!$A$4:$G$976,4,FALSE),"") -> km absteigend | L23: =IF(G23<>"",VLOOKUP(G23,OBJEKTLISTE!$A$4:$G$976,5,FALSE),"") -> 197 | M23: =IF(G23<>"",VLOOKUP(G23,OBJEKTLISTE!$A$4:$G$976,6,FALSE),"") -> 197 | N23: =IF(ISBLANK(D23),"",IF(ISBLANK(PROJEKTPARAMETER!B$2),"",PROJEKTPARAMETER!B$2)) -> SBA GR Graz | O23: =IF(ISBLANK(D23),"",IF(ISBLANK(PROJEKTPARAMETER!B$3),"",PROJEKTPARAMETER!B$3)) -> P.50.500.0013 | P23: =IF(ISBLANK(D23),"",IF(ISBLANK(PROJEKTPARAMETER!B$4),"",PROJEKTPARAMETER!B$4)) -> BMG EM | Q23: =IF(ISBLANK(D23),"",IF(ISBLANK(PROJEKTPARAMETER!B$5),"",PROJEKTPARAMETER!B$5)) -> RuhdorGe | R23: =IF(ISBLANK(D23),"",IF(ISBLANK(PROJEKTPARAMETER!B$6),"",PROJEKTPARAMETER!B$6)) -> ASF/2011/074111 | U23: =IF(ISBLANK(D23),"",IF(ISBLANK(PROJEKTPARAMETER!B$7),"",PROJEKTPARAMETER!B$7)) -> DÜRR Austria GmbH | V23: =IF(ISBLANK(D23),"",IF(ISBLANK(PROJEKTPARAMETER!B$8),"",PROJEKTPARAMETER!B$8)) -> Systemtechnik | Y23: freigegeben | Z23: BauBestandsDok | AA23: 430B9357-562A-46F6-9171-0CBFA0EFAF27 | AB23: 68CF29A6-83A0-43EA-9409-DB4F99EA02C2 | AC23: =IF(ISBLANK(G23),"",IF(ISBLANK(VLOOKUP(G23,OBJEKTLISTE!$A$4:$G$976,7,FALSE)),"",VLOOKUP(G23,OBJEKTLISTE!$A$4:$G$976,7,FALSE))) -> 53F198D4-AA97-467F-8BD7-5B8B1608A085 | AD23: 27622F01-0BD0-474D-9586-49456DC68A89 | AF23: 92B99676-4180-4737-B422-CC11ACCE4EFA
B24: CSV S FotoDoku V1.2 | C24: Bestandsdokumentation | D24: A9 km184,886.zip | E24: Foto | G24: WWW Kärntnerstrasse 184,886 | H24: =IF(G24<>"",VLOOKUP(G24,OBJEKTLISTE!$A$4:$G$976,2,FALSE),"") -> Freiland / VBA | J24: =IF(G24<>"",VLOOKUP(G24,OBJEKTLISTE!$A$4:$G$976,3,FALSE),"") -> A02 Südautobahn | K24: =IF(G24<>"",VLOOKUP(G24,OBJEKTLISTE!$A$4:$G$976,4,FALSE),"") -> unabhängig | L24: =IF(G24<>"",VLOOKUP(G24,OBJEKTLISTE!$A$4:$G$976,5,FALSE),"") -> 184.886 | M24: =IF(G24<>"",VLOOKUP(G24,OBJEKTLISTE!$A$4:$G$976,6,FALSE),"") -> 184.886 | N24: =IF(ISBLANK(D24),"",IF(ISBLANK(PROJEKTPARAMETER!B$2),"",PROJEKTPARAMETER!B$2)) -> SBA GR Graz | O24: =IF(ISBLANK(D24),"",IF(ISBLANK(PROJEKTPARAMETER!B$3),"",PROJEKTPARAMETER!B$3)) -> P.50.500.0013 | P24: =IF(ISBLANK(D24),"",IF(ISBLANK(PROJEKTPARAMETER!B$4),"",PROJEKTPARAMETER!B$4)) -> BMG EM | Q24: =IF(ISBLANK(D24),"",IF(ISBLANK(PROJEKTPARAMETER!B$5),"",PROJEKTPARAMETER!B$5)) -> RuhdorGe | R24: =IF(ISBLANK(D24),"",IF(ISBLANK(PROJEKTPARAMETER!B$6),"",PROJEKTPARAMETER!B$6)) -> ASF/2011/074111 | U24: =IF(ISBLANK(D24),"",IF(ISBLANK(PROJEKTPARAMETER!B$7),"",PROJEKTPARAMETER!B$7)) -> DÜRR Austria GmbH | V24: =IF(ISBLANK(D24),"",IF(ISBLANK(PROJEKTPARAMETER!B$8),"",PROJEKTPARAMETER!B$8)) -> Systemtechnik | Y24: freigegeben | Z24: BauBestandsDok | AA24: 430B9357-562A-46F6-9171-0CBFA0EFAF27 | AB24: 68CF29A6-83A0-43EA-9409-DB4F99EA02C2 | AC24: =IF(ISBLANK(G24),"",IF(ISBLANK(VLOOKUP(G24,OBJEKTLISTE!$A$4:$G$976,7,FALSE)),"",VLOOKUP(G24,OBJEKTLISTE!$A$4:$G$976,7,FALSE))) -> 6ECA4543-7A5C-4D38-8318-81A5AE057F05 | AD24: 27622F01-0BD0-474D-9586-49456DC68A89 | AF24: 92B99676-4180-4737-B422-CC11ACCE4EFA
B25: CSV S FotoDoku V1.2 | C25: Bestandsdokumentation | D25: A9 km185,378.zip | E25: Foto | G25: AQ_A09_2_185,378 | H25: =IF(G25<>"",VLOOKUP(G25,OBJEKTLISTE!$A$4:$G$976,2,FALSE),"") -> Freiland / VBA | J25: =IF(G25<>"",VLOOKUP(G25,OBJEKTLISTE!$A$4:$G$976,3,FALSE),"") -> A09 Pyhrn Autobahn | K25: =IF(G25<>"",VLOOKUP(G25,OBJEKTLISTE!$A$4:$G$976,4,FALSE),"") -> km absteigend | L25: =IF(G25<>"",VLOOKUP(G25,OBJEKTLISTE!$A$4:$G$976,5,FALSE),"") -> 185.378 | M25: =IF(G25<>"",VLOOKUP(G25,OBJEKTLISTE!$A$4:$G$976,6,FALSE),"") -> 185.378 | N25: =IF(ISBLANK(D25),"",IF(ISBLANK(PROJEKTPARAMETER!B$2),"",PROJEKTPARAMETER!B$2)) -> SBA GR Graz | O25: =IF(ISBLANK(D25),"",IF(ISBLANK(PROJEKTPARAMETER!B$3),"",PROJEKTPARAMETER!B$3)) -> P.50.500.0013 | P25: =IF(ISBLANK(D25),"",IF(ISBLANK(PROJEKTPARAMETER!B$4),"",PROJEKTPARAMETER!B$4)) -> BMG EM | Q25: =IF(ISBLANK(D25),"",IF(ISBLANK(PROJEKTPARAMETER!B$5),"",PROJEKTPARAMETER!B$5)) -> RuhdorGe | R25: =IF(ISBLANK(D25),"",IF(ISBLANK(PROJEKTPARAMETER!B$6),"",PROJEKTPARAMETER!B$6)) -> ASF/2011/074111 | U25: =IF(ISBLANK(D25),"",IF(ISBLANK(PROJEKTPARAMETER!B$7),"",PROJEKTPARAMETER!B$7)) -> DÜRR Austria GmbH | V25: =IF(ISBLANK(D25),"",IF(ISBLANK(PROJEKTPARAMETER!B$8),"",PROJEKTPARAMETER!B$8)) -> Systemtechnik | Y25: freigegeben | Z25: BauBestandsDok | AA25: 430B9357-562A-46F6-9171-0CBFA0EFAF27 | AB25: 68CF29A6-83A0-43EA-9409-DB4F99EA02C2 | AC25: =IF(ISBLANK(G25),"",IF(ISBLANK(VLOOKUP(G25,OBJEKTLISTE!$A$4:$G$976,7,FALSE)),"",VLOOKUP(G25,OBJEKTLISTE!$A$4:$G$976,7,FALSE))) -> DEB8D7F7-BECD-442B-A1E4-B9485B6FBD16 | AD25: 27622F01-0BD0-474D-9586-49456DC68A89 | AF25: BE845CED-991C-445A-8DC2-C61712E90BC5
B26: CSV S FotoDoku V1.2 | C26: Bestandsdokumentation | D26: A9 km185,710.zip | E26: Foto | G26: AQ_A09_2_185,710 | H26: =IF(G26<>"",VLOOKUP(G26,OBJEKTLISTE!$A$4:$G$976,2,FALSE),"") -> Freiland / VBA | J26: =IF(G26<>"",VLOOKUP(G26,OBJEKTLISTE!$A$4:$G$976,3,FALSE),"") -> A09 Pyhrn Autobahn | K26: =IF(G26<>"",VLOOKUP(G26,OBJEKTLISTE!$A$4:$G$976,4,FALSE),"") -> km absteigend | L26: =IF(G26<>"",VLOOKUP(G26,OBJEKTLISTE!$A$4:$G$976,5,FALSE),"") -> 185.71 | M26: =IF(G26<>"",VLOOKUP(G26,OBJEKTLISTE!$A$4:$G$976,6,FALSE),"") -> 185.71 | N26: =IF(ISBLANK(D26),"",IF(ISBLANK(PROJEKTPARAMETER!B$2),"",PROJEKTPARAMETER!B$2)) -> SBA GR Graz | O26: =IF(ISBLANK(D26),"",IF(ISBLANK(PROJEKTPARAMETER!B$3),"",PROJEKTPARAMETER!B$3)) -> P.50.500.0013 | P26: =IF(ISBLANK(D26),"",IF(ISBLANK(PROJEKTPARAMETER!B$4),"",PROJEKTPARAMETER!B$4)) -> BMG EM | Q26: =IF(ISBLANK(D26),"",IF(ISBLANK(PROJEKTPARAMETER!B$5),"",PROJEKTPARAMETER!B$5)) -> RuhdorGe | R26: =IF(ISBLANK(D26),"",IF(ISBLANK(PROJEKTPARAMETER!B$6),"",PROJEKTPARAMETER!B$6)) -> ASF/2011/074111 | U26: =IF(ISBLANK(D26),"",IF(ISBLANK(PROJEKTPARAMETER!B$7),"",PROJEKTPARAMETER!B$7)) -> DÜRR Austria GmbH | V26: =IF(ISBLANK(D26),"",IF(ISBLANK(PROJEKTPARAMETER!B$8),"",PROJEKTPARAMETER!B$8)) -> Systemtechnik | Y26: freigegeben | Z26: BauBestandsDok | AA26: 430B9357-562A-46F6-9171-0CBFA0EFAF27 | AB26: 68CF29A6-83A0-43EA-9409-DB4F99EA02C2 | AC26: =IF(ISBLANK(G26),"",IF(ISBLANK(VLOOKUP(G26,OBJEKTLISTE!$A$4:$G$976,7,FALSE)),"",VLOOKUP(G26,OBJEKTLISTE!$A$4:$G$976,7,FALSE))) -> 91ADBCCD-86B3-4A78-BEFB-6849EDFB6C66 | AD26: 27622F01-0BD0-474D-9586-49456DC68A89 | AF26: BE845CED-991C-445A-8DC2-C61712E90BC5
B27: CSV S FotoDoku V1.2 | C27: Bestandsdokumentation | D27: A9 km186,210.zip | E27: Foto | G27: AQ_A09_1_186,210 | H27: =IF(G27<>"",VLOOKUP(G27,OBJEKTLISTE!$A$4:$G$976,2,FALSE),"") -> Freiland / VBA | J27: =IF(G27<>"",VLOOKUP(G27,OBJEKTLISTE!$A$4:$G$976,3,FALSE),"") -> A09 Pyhrn Autobahn | K27: =IF(G27<>"",VLOOKUP(G27,OBJEKTLISTE!$A$4:$G$976,4,FALSE),"") -> km aufsteigend | L27: =IF(G27<>"",VLOOKUP(G27,OBJEKTLISTE!$A$4:$G$976,5,FALSE),"") -> 186.21 | M27: =IF(G27<>"",VLOOKUP(G27,OBJEKTLISTE!$A$4:$G$976,6,FALSE),"") -> 186.21 | N27: =IF(ISBLANK(D27),"",IF(ISBLANK(PROJEKTPARAMETER!B$2),"",PROJEKTPARAMETER!B$2)) -> SBA GR Graz | O27: =IF(ISBLANK(D27),"",IF(ISBLANK(PROJEKTPARAMETER!B$3),"",PROJEKTPARAMETER!B$3)) -> P.50.500.0013 | P27: =IF(ISBLANK(D27),"",IF(ISBLANK(PROJEKTPARAMETER!B$4),"",PROJEKTPARAMETER!B$4)) -> BMG EM | Q27: =IF(ISBLANK(D27),"",IF(ISBLANK(PROJEKTPARAMETER!B$5),"",PROJEKTPARAMETER!B$5)) -> RuhdorGe | R27: =IF(ISBLANK(D27),"",IF(ISBLANK(PROJEKTPARAMETER!B$6),"",PROJEKTPARAMETER!B$6)) -> ASF/2011/074111 | U27: =IF(ISBLANK(D27),"",IF(ISBLANK(PROJEKTPARAMETER!B$7),"",PROJEKTPARAMETER!B$7)) -> DÜRR Austria GmbH | V27: =IF(ISBLANK(D27),"",IF(ISBLANK(PROJEKTPARAMETER!B$8),"",PROJEKTPARAMETER!B$8)) -> Systemtechnik | Y27: freigegeben | Z27: BauBestandsDok | AA27: 430B9357-562A-46F6-9171-0CBFA0EFAF27 | AB27: 68CF29A6-83A0-43EA-9409-DB4F99EA02C2 | AC27: =IF(ISBLANK(G27),"",IF(ISBLANK(VLOOKUP(G27,OBJEKTLISTE!$A$4:$G$976,7,FALSE)),"",VLOOKUP(G27,OBJEKTLISTE!$A$4:$G$976,7,FALSE))) -> 5E9856E8-580D-4F35-AFFC-E9BF37A912BA | AD27: 27622F01-0BD0-474D-9586-49456DC68A89 | AF27: BE845CED-991C-445A-8DC2-C61712E90BC5
B28: CSV S FotoDoku V1.2 | C28: Bestandsdokumentation | D28: A9 km186,210.zip | E28: Foto | G28: AQ_A09_2_186,210 | H28: =IF(G28<>"",VLOOKUP(G28,OBJEKTLISTE!$A$4:$G$976,2,FALSE),"") -> Freiland / VBA | J28: =IF(G28<>"",VLOOKUP(G28,OBJEKTLISTE!$A$4:$G$976,3,FALSE),"") -> A09 Pyhrn Autobahn | K28: =IF(G28<>"",VLOOKUP(G28,OBJEKTLISTE!$A$4:$G$976,4,FALSE),"") -> km absteigend | L28: =IF(G28<>"",VLOOKUP(G28,OBJEKTLISTE!$A$4:$G$976,5,FALSE),"") -> 186.21 | M28: =IF(G28<>"",VLOOKUP(G28,OBJEKTLISTE!$A$4:$G$976,6,FALSE),"") -> 186.21 | N28: =IF(ISBLANK(D28),"",IF(ISBLANK(PROJEKTPARAMETER!B$2),"",PROJEKTPARAMETER!B$2)) -> SBA GR Graz | O28: =IF(ISBLANK(D28),"",IF(ISBLANK(PROJEKTPARAMETER!B$3),"",PROJEKTPARAMETER!B$3)) -> P.50.500.0013 | P28: =IF(ISBLANK(D28),"",IF(ISBLANK(PROJEKTPARAMETER!B$4),"",PROJEKTPARAMETER!B$4)) -> BMG EM | Q28: =IF(ISBLANK(D28),"",IF(ISBLANK(PROJEKTPARAMETER!B$5),"",PROJEKTPARAMETER!B$5)) -> RuhdorGe | R28: =IF(ISBLANK(D28),"",IF(ISBLANK(PROJEKTPARAMETER!B$6),"",PROJEKTPARAMETER!B$6)) -> ASF/2011/074111 | U28: =IF(ISBLANK(D28),"",IF(ISBLANK(PROJEKTPARAMETER!B$7),"",PROJEKTPARAMETER!B$7)) -> DÜRR Austria GmbH | V28: =IF(ISBLANK(D28),"",IF(ISBLANK(PROJEKTPARAMETER!B$8),"",PROJEKTPARAMETER!B$8)) -> Systemtechnik | Y28: freigegeben | Z28: BauBestandsDok | AA28: 430B9357-562A-46F6-9171-0CBFA0EFAF27 | AB28: 68CF29A6-83A0-43EA-9409-DB4F99EA02C2 | AC28: =IF(ISBLANK(G28),"",IF(ISBLANK(VLOOKUP(G28,OBJEKTLISTE!$A$4:$G$976,7,FALSE)),"",VLOOKUP(G28,OBJEKTLISTE!$A$4:$G$976,7,FALSE))) -> 936889A7-0247-4C2C-9AF0-05A15E0021C9 | AD28: 27622F01-0BD0-474D-9586-49456DC68A89 | AF28: BE845CED-991C-445A-8DC2-C61712E90BC5
B29: CSV S FotoDoku V1.2 | C29: Bestandsdokumentation | D29: A9 km186,900.zip | E29: Foto | G29: EFQ_A09_2_186,900: Ra187,4 | H29: =IF(G29<>"",VLOOKUP(G29,OBJEKTLISTE!$A$4:$G$976,2,FALSE),"") -> Freiland / VBA | J29: =IF(G29<>"",VLOOKUP(G29,OBJEKTLISTE!$A$4:$G$976,3,FALSE),"") -> A09 Pyhrn Autobahn | K29: =IF(G29<>"",VLOOKUP(G29,OBJEKTLISTE!$A$4:$G$976,4,FALSE),"") -> km absteigend | L29: =IF(G29<>"",VLOOKUP(G29,OBJEKTLISTE!$A$4:$G$976,5,FALSE),"") -> 186.9 | M29: =IF(G29<>"",VLOOKUP(G29,OBJEKTLISTE!$A$4:$G$976,6,FALSE),"") -> 186.9 | N29: =IF(ISBLANK(D29),"",IF(ISBLANK(PROJEKTPARAMETER!B$2),"",PROJEKTPARAMETER!B$2)) -> SBA GR Graz | O29: =IF(ISBLANK(D29),"",IF(ISBLANK(PROJEKTPARAMETER!B$3),"",PROJEKTPARAMETER!B$3)) -> P.50.500.0013 | P29: =IF(ISBLANK(D29),"",IF(ISBLANK(PROJEKTPARAMETER!B$4),"",PROJEKTPARAMETER!B$4)) -> BMG EM | Q29: =IF(ISBLANK(D29),"",IF(ISBLANK(PROJEKTPARAMETER!B$5),"",PROJEKTPARAMETER!B$5)) -> RuhdorGe | R29: =IF(ISBLANK(D29),"",IF(ISBLANK(PROJEKTPARAMETER!B$6),"",PROJEKTPARAMETER!B$6)) -> ASF/2011/074111 | U29: =IF(ISBLANK(D29),"",IF(ISBLANK(PROJEKTPARAMETER!B$7),"",PROJEKTPARAMETER!B$7)) -> DÜRR Austria GmbH | V29: =IF(ISBLANK(D29),"",IF(ISBLANK(PROJEKTPARAMETER!B$8),"",PROJEKTPARAMETER!B$8)) -> Systemtechnik | Y29: freigegeben | Z29: BauBestandsDok | AA29: 430B9357-562A-46F6-9171-0CBFA0EFAF27 | AB29: 68CF29A6-83A0-43EA-9409-DB4F99EA02C2 | AC29: =IF(ISBLANK(G29),"",IF(ISBLANK(VLOOKUP(G29,OBJEKTLISTE!$A$4:$G$976,7,FALSE)),"",VLOOKUP(G29,OBJEKTLISTE!$A$4:$G$976,7,FALSE))) -> 05B7243C-79DA-4385-8AC6-BADBE7659873 | AD29: 27622F01-0BD0-474D-9586-49456DC68A89 | AF29: BE845CED-991C-445A-8DC2-C61712E90BC5
B30: CSV S FotoDoku V1.2 | C30: Bestandsdokumentation | D30: A9 km187,460.zip | E30: Foto | G30: EFQ_A09_2_187,460: Ra 188,4 | H30: =IF(G30<>"",VLOOKUP(G30,OBJEKTLISTE!$A$4:$G$976,2,FALSE),"") -> Freiland / VBA | J30: =IF(G30<>"",VLOOKUP(G30,OBJEKTLISTE!$A$4:$G$976,3,FALSE),"") -> A09 Pyhrn Autobahn | K30: =IF(G30<>"",VLOOKUP(G30,OBJEKTLISTE!$A$4:$G$976,4,FALSE),"") -> km absteigend | L30: =IF(G30<>"",VLOOKUP(G30,OBJEKTLISTE!$A$4:$G$976,5,FALSE),"") -> 187.46 | M30: =IF(G30<>"",VLOOKUP(G30,OBJEKTLISTE!$A$4:$G$976,6,FALSE),"") -> 187.46 | N30: =IF(ISBLANK(D30),"",IF(ISBLANK(PROJEKTPARAMETER!B$2),"",PROJEKTPARAMETER!B$2)) -> SBA GR Graz | O30: =IF(ISBLANK(D30),"",IF(ISBLANK(PROJEKTPARAMETER!B$3),"",PROJEKTPARAMETER!B$3)) -> P.50.500.0013 | P30: =IF(ISBLANK(D30),"",IF(ISBLANK(PROJEKTPARAMETER!B$4),"",PROJEKTPARAMETER!B$4)) -> BMG EM | Q30: =IF(ISBLANK(D30),"",IF(ISBLANK(PROJEKTPARAMETER!B$5),"",PROJEKTPARAMETER!B$5)) -> RuhdorGe | R30: =IF(ISBLANK(D30),"",IF(ISBLANK(PROJEKTPARAMETER!B$6),"",PROJEKTPARAMETER!B$6)) -> ASF/2011/074111 | U30: =IF(ISBLANK(D30),"",IF(ISBLANK(PROJEKTPARAMETER!B$7),"",PROJEKTPARAMETER!B$7)) -> DÜRR Austria GmbH | V30: =IF(ISBLANK(D30),"",IF(ISBLANK(PROJEKTPARAMETER!B$8),"",PROJEKTPARAMETER!B$8)) -> Systemtechnik | Y30: freigegeben | Z30: BauBestandsDok | AA30: 430B9357-562A-46F6-9171-0CBFA0EFAF27 | AB30: 68CF29A6-83A0-43EA-9409-DB4F99EA02C2 | AC30: =IF(ISBLANK(G30),"",IF(ISBLANK(VLOOKUP(G30,OBJEKTLISTE!$A$4:$G$976,7,FALSE)),"",VLOOKUP(G30,OBJEKTLISTE!$A$4:$G$976,7,FALSE))) -> CCDBAC75-D6FF-4ECF-97CD-4DB8E998698D | AD30: 27622F01-0BD0-474D-9586-49456DC68A89 | AF30: BE845CED-991C-445A-8DC2-C61712E90BC5
B31: CSV S FotoDoku V1.2 | C31: Bestandsdokumentation | D31: A9 km188,120.zip | E31: Foto | G31: AQ_A09_1_188,120 | H31: =IF(G31<>"",VLOOKUP(G31,OBJEKTLISTE!$A$4:$G$976,2,FALSE),"") -> Freiland / VBA | J31: =IF(G31<>"",VLOOKUP(G31,OBJEKTLISTE!$A$4:$G$976,3,FALSE),"") -> A09 Pyhrn Autobahn | K31: =IF(G31<>"",VLOOKUP(G31,OBJEKTLISTE!$A$4:$G$976,4,FALSE),"") -> km aufsteigend | L31: =IF(G31<>"",VLOOKUP(G31,OBJEKTLISTE!$A$4:$G$976,5,FALSE),"") -> 188.12 | M31: =IF(G31<>"",VLOOKUP(G31,OBJEKTLISTE!$A$4:$G$976,6,FALSE),"") -> 188.12 | N31: =IF(ISBLANK(D31),"",IF(ISBLANK(PROJEKTPARAMETER!B$2),"",PROJEKTPARAMETER!B$2)) -> SBA GR Graz | O31: =IF(ISBLANK(D31),"",IF(ISBLANK(PROJEKTPARAMETER!B$3),"",PROJEKTPARAMETER!B$3)) -> P.50.500.0013 | P31: =IF(ISBLANK(D31),"",IF(ISBLANK(PROJEKTPARAMETER!B$4),"",PROJEKTPARAMETER!B$4)) -> BMG EM | Q31: =IF(ISBLANK(D31),"",IF(ISBLANK(PROJEKTPARAMETER!B$5),"",PROJEKTPARAMETER!B$5)) -> RuhdorGe | R31: =IF(ISBLANK(D31),"",IF(ISBLANK(PROJEKTPARAMETER!B$6),"",PROJEKTPARAMETER!B$6)) -> ASF/2011/074111 | U31: =IF(ISBLANK(D31),"",IF(ISBLANK(PROJEKTPARAMETER!B$7),"",PROJEKTPARAMETER!B$7)) -> DÜRR Austria GmbH | V31: =IF(ISBLANK(D31),"",IF(ISBLANK(PROJEKTPARAMETER!B$8),"",PROJEKTPARAMETER!B$8)) -> Systemtechnik | Y31: freigegeben | Z31: BauBestandsDok | AA31: 430B9357-562A-46F6-9171-0CBFA0EFAF27 | AB31: 68CF29A6-83A0-43EA-9409-DB4F99EA02C2 | AC31: =IF(ISBLANK(G31),"",IF(ISBLANK(VLOOKUP(G31,OBJEKTLISTE!$A$4:$G$976,7,FALSE)),"",VLOOKUP(G31,OBJEKTLISTE!$A$4:$G$976,7,FALSE))) -> 94F1C9FC-5C27-4881-A1BE-08CE120C9465 | AD31: 27622F01-0BD0-474D-9586-49456DC68A89 | AF31: BE845CED-991C-445A-8DC2-C61712E90BC5
B32: CSV S FotoDoku V1.2 | C32: Bestandsdokumentation | D32: A9 km188,120.zip | E32: Foto | G32: AQ_A09_2_188,120 | H32: =IF(G32<>"",VLOOKUP(G32,OBJEKTLISTE!$A$4:$G$976,2,FALSE),"") -> Freiland / VBA | J32: =IF(G32<>"",VLOOKUP(G32,OBJEKTLISTE!$A$4:$G$976,3,FALSE),"") -> A09 Pyhrn Autobahn | K32: =IF(G32<>"",VLOOKUP(G32,OBJEKTLISTE!$A$4:$G$976,4,FALSE),"") -> km absteigend | L32: =IF(G32<>"",VLOOKUP(G32,OBJEKTLISTE!$A$4:$G$976,5,FALSE),"") -> 188.12 | M32: =IF(G32<>"",VLOOKUP(G32,OBJEKTLISTE!$A$4:$G$976,6,FALSE),"") -> 188.12 | N32: =IF(ISBLANK(D32),"",IF(ISBLANK(PROJEKTPARAMETER!B$2),"",PROJEKTPARAMETER!B$2)) -> SBA GR Graz | O32: =IF(ISBLANK(D32),"",IF(ISBLANK(PROJEKTPARAMETER!B$3),"",PROJEKTPARAMETER!B$3)) -> P.50.500.0013 | P32: =IF(ISBLANK(D32),"",IF(ISBLANK(PROJEKTPARAMETER!B$4),"",PROJEKTPARAMETER!B$4)) -> BMG EM | Q32: =IF(ISBLANK(D32),"",IF(ISBLANK(PROJEKTPARAMETER!B$5),"",PROJEKTPARAMETER!B$5)) -> RuhdorGe | R32: =IF(ISBLANK(D32),"",IF(ISBLANK(PROJEKTPARAMETER!B$6),"",PROJEKTPARAMETER!B$6)) -> ASF/2011/074111 | U32: =IF(ISBLANK(D32),"",IF(ISBLANK(PROJEKTPARAMETER!B$7),"",PROJEKTPARAMETER!B$7)) -> DÜRR Austria GmbH | V32: =IF(ISBLANK(D32),"",IF(ISBLANK(PROJEKTPARAMETER!B$8),"",PROJEKTPARAMETER!B$8)) -> Systemtechnik | Y32: freigegeben | Z32: BauBestandsDok | AA32: 430B9357-562A-46F6-9171-0CBFA0EFAF27 | AB32: 68CF29A6-83A0-43EA-9409-DB4F99EA02C2 | AC32: =IF(ISBLANK(G32),"",IF(ISBLANK(VLOOKUP(G32,OBJEKTLISTE!$A$4:$G$976,7,FALSE)),"",VLOOKUP(G32,OBJEKTLISTE!$A$4:$G$976,7,FALSE))) -> 0F18679E-6303-4B3D-B1D6-9CE25CF789F4 | AD32: 27622F01-0BD0-474D-9586-49456DC68A89 | AF32: BE845CED-991C-445A-8DC2-C61712E90BC5
B33: CSV S FotoDoku V1.2 | C33: Bestandsdokumentation | D33: A9 km190,205.zip | E33: Foto | G33: AQ_A09_1_190,205 | H33: =IF(G33<>"",VLOOKUP(G33,OBJEKTLISTE!$A$4:$G$976,2,FALSE),"") -> Freiland / VBA | J33: =IF(G33<>"",VLOOKUP(G33,OBJEKTLISTE!$A$4:$G$976,3,FALSE),"") -> A09 Pyhrn Autobahn | K33: =IF(G33<>"",VLOOKUP(G33,OBJEKTLISTE!$A$4:$G$976,4,FALSE),"") -> km aufsteigend | L33: =IF(G33<>"",VLOOKUP(G33,OBJEKTLISTE!$A$4:$G$976,5,FALSE),"") -> 190.205 | M33: =IF(G33<>"",VLOOKUP(G33,OBJEKTLISTE!$A$4:$G$976,6,FALSE),"") -> 190.205 | N33: =IF(ISBLANK(D33),"",IF(ISBLANK(PROJEKTPARAMETER!B$2),"",PROJEKTPARAMETER!B$2)) -> SBA GR Graz | O33: =IF(ISBLANK(D33),"",IF(ISBLANK(PROJEKTPARAMETER!B$3),"",PROJEKTPARAMETER!B$3)) -> P.50.500.0013 | P33: =IF(ISBLANK(D33),"",IF(ISBLANK(PROJEKTPARAMETER!B$4),"",PROJEKTPARAMETER!B$4)) -> BMG EM | Q33: =IF(ISBLANK(D33),"",IF(ISBLANK(PROJEKTPARAMETER!B$5),"",PROJEKTPARAMETER!B$5)) -> RuhdorGe | R33: =IF(ISBLANK(D33),"",IF(ISBLANK(PROJEKTPARAMETER!B$6),"",PROJEKTPARAMETER!B$6)) -> ASF/2011/074111 | U33: =IF(ISBLANK(D33),"",IF(ISBLANK(PROJEKTPARAMETER!B$7),"",PROJEKTPARAMETER!B$7)) -> DÜRR Austria GmbH | V33: =IF(ISBLANK(D33),"",IF(ISBLANK(PROJEKTPARAMETER!B$8),"",PROJEKTPARAMETER!B$8)) -> Systemtechnik | Y33: freigegeben | Z33: BauBestandsDok | AA33: 430B9357-562A-46F6-9171-0CBFA0EFAF27 | AB33: 68CF29A6-83A0-43EA-9409-DB4F99EA02C2 | AC33: =IF(ISBLANK(G33),"",IF(ISBLANK(VLOOKUP(G33,OBJEKTLISTE!$A$4:$G$976,7,FALSE)),"",VLOOKUP(G33,OBJEKTLISTE!$A$4:$G$976,7,FALSE))) -> DC5A03F2-5452-4ACB-B06D-7A49C5F8DC26 | AD33: 27622F01-0BD0-474D-9586-49456DC68A89 | AF33: BE845CED-991C-445A-8DC2-C61712E90BC5
B34: CSV S FotoDoku V1.2 | C34: Bestandsdokumentation | D34: A9 km190,205.zip | E34: Foto | G34: AQ_A09_2_190,205 | H34: =IF(G34<>"",VLOOKUP(G34,OBJEKTLISTE!$A$4:$G$976,2,FALSE),"") -> Freiland / VBA | J34: =IF(G34<>"",VLOOKUP(G34,OBJEKTLISTE!$A$4:$G$976,3,FALSE),"") -> A09 Pyhrn Autobahn | K34: =IF(G34<>"",VLOOKUP(G34,OBJEKTLISTE!$A$4:$G$976,4,FALSE),"") -> km absteigend | L34: =IF(G34<>"",VLOOKUP(G34,OBJEKTLISTE!$A$4:$G$976,5,FALSE),"") -> 190.205 | M34: =IF(G34<>"",VLOOKUP(G34,OBJEKTLISTE!$A$4:$G$976,6,FALSE),"") -> 190.205 | N34: =IF(ISBLANK(D34),"",IF(ISBLANK(PROJEKTPARAMETER!B$2),"",PROJEKTPARAMETER!B$2)) -> SBA GR Graz | O34: =IF(ISBLANK(D34),"",IF(ISBLANK(PROJEKTPARAMETER!B$3),"",PROJEKTPARAMETER!B$3)) -> P.50.500.0013 | P34: =IF(ISBLANK(D34),"",IF(ISBLANK(PROJEKTPARAMETER!B$4),"",PROJEKTPARAMETER!B$4)) -> BMG EM | Q34: =IF(ISBLANK(D34),"",IF(ISBLANK(PROJEKTPARAMETER!B$5),"",PROJEKTPARAMETER!B$5)) -> RuhdorGe | R34: =IF(ISBLANK(D34),"",IF(ISBLANK(PROJEKTPARAMETER!B$6),"",PROJEKTPARAMETER!B$6)) -> ASF/2011/074111 | U34: =IF(ISBLANK(D34),"",IF(ISBLANK(PROJEKTPARAMETER!B$7),"",PROJEKTPARAMETER!B$7)) -> DÜRR Austria GmbH | V34: =IF(ISBLANK(D34),"",IF(ISBLANK(PROJEKTPARAMETER!B$8),"",PROJEKTPARAMETER!B$8)) -> Systemtechnik | Y34: freigegeben | Z34: BauBestandsDok | AA34: 430B9357-562A-46F6-9171-0CBFA0EFAF27 | AB34: 68CF29A6-83A0-43EA-9409-DB4F99EA02C2 | AC34: =IF(ISBLANK(G34),"",IF(ISBLANK(VLOOKUP(G34,OBJEKTLISTE!$A$4:$G$976,7,FALSE)),"",VLOOKUP(G34,OBJEKTLISTE!$A$4:$G$976,7,FALSE))) -> B82FB5C4-29B8-4D7C-A44F-60AEE377CB4B | AD34: 27622F01-0BD0-474D-9586-49456DC68A89 | AF34: BE845CED-991C-445A-8DC2-C61712E90BC5
B35: CSV S FotoDoku V1.2 | C35: Bestandsdokumentation | D35: A9 km191,250.zip | E35: Foto | G35: AQ_A09_2_191,250 | H35: =IF(G35<>"",VLOOKUP(G35,OBJEKTLISTE!$A$4:$G$976,2,FALSE),"") -> Freiland / VBA | J35: =IF(G35<>"",VLOOKUP(G35,OBJEKTLISTE!$A$4:$G$976,3,FALSE),"") -> A09 Pyhrn Autobahn | K35: =IF(G35<>"",VLOOKUP(G35,OBJEKTLISTE!$A$4:$G$976,4,FALSE),"") -> km absteigend | L35: =IF(G35<>"",VLOOKUP(G35,OBJEKTLISTE!$A$4:$G$976,5,FALSE),"") -> 191.25 | M35: =IF(G35<>"",VLOOKUP(G35,OBJEKTLISTE!$A$4:$G$976,6,FALSE),"") -> 191.25 | N35: =IF(ISBLANK(D35),"",IF(ISBLANK(PROJEKTPARAMETER!B$2),"",PROJEKTPARAMETER!B$2)) -> SBA GR Graz | O35: =IF(ISBLANK(D35),"",IF(ISBLANK(PROJEKTPARAMETER!B$3),"",PROJEKTPARAMETER!B$3)) -> P.50.500.0013 | P35: =IF(ISBLANK(D35),"",IF(ISBLANK(PROJEKTPARAMETER!B$4),"",PROJEKTPARAMETER!B$4)) -> BMG EM | Q35: =IF(ISBLANK(D35),"",IF(ISBLANK(PROJEKTPARAMETER!B$5),"",PROJEKTPARAMETER!B$5)) -> RuhdorGe | R35: =IF(ISBLANK(D35),"",IF(ISBLANK(PROJEKTPARAMETER!B$6),"",PROJEKTPARAMETER!B$6)) -> ASF/2011/074111 | U35: =IF(ISBLANK(D35),"",IF(ISBLANK(PROJEKTPARAMETER!B$7),"",PROJEKTPARAMETER!B$7)) -> DÜRR Austria GmbH | V35: =IF(ISBLANK(D35),"",IF(ISBLANK(PROJEKTPARAMETER!B$8),"",PROJEKTPARAMETER!B$8)) -> Systemtechnik | Y35: freigegeben | Z35: BauBestandsDok | AA35: 430B9357-562A-46F6-9171-0CBFA0EFAF27 | AB35: 68CF29A6-83A0-43EA-9409-DB4F99EA02C2 | AC35: =IF(ISBLANK(G35),"",IF(ISBLANK(VLOOKUP(G35,OBJEKTLISTE!$A$4:$G$976,7,FALSE)),"",VLOOKUP(G35,OBJEKTLISTE!$A$4:$G$976,7,FALSE))) -> BA1F323B-A312-40BD-ADAE-128D704648ED | AD35: 27622F01-0BD0-474D-9586-49456DC68A89 | AF35: BE845CED-991C-445A-8DC2-C61712E90BC5
B36: CSV S FotoDoku V1.2 | C36: Bestandsdokumentation | D36: A9 km192,150.zip | E36: Foto | G36: AQ_A09_1_192,150 | H36: =IF(G36<>"",VLOOKUP(G36,OBJEKTLISTE!$A$4:$G$976,2,FALSE),"") -> Freiland / VBA | J36: =IF(G36<>"",VLOOKUP(G36,OBJEKTLISTE!$A$4:$G$976,3,FALSE),"") -> A09 Pyhrn Autobahn | K36: =IF(G36<>"",VLOOKUP(G36,OBJEKTLISTE!$A$4:$G$976,4,FALSE),"") -> km aufsteigend | L36: =IF(G36<>"",VLOOKUP(G36,OBJEKTLISTE!$A$4:$G$976,5,FALSE),"") -> 192.15 | M36: =IF(G36<>"",VLOOKUP(G36,OBJEKTLISTE!$A$4:$G$976,6,FALSE),"") -> 192.15 | N36: =IF(ISBLANK(D36),"",IF(ISBLANK(PROJEKTPARAMETER!B$2),"",PROJEKTPARAMETER!B$2)) -> SBA GR Graz | O36: =IF(ISBLANK(D36),"",IF(ISBLANK(PROJEKTPARAMETER!B$3),"",PROJEKTPARAMETER!B$3)) -> P.50.500.0013 | P36: =IF(ISBLANK(D36),"",IF(ISBLANK(PROJEKTPARAMETER!B$4),"",PROJEKTPARAMETER!B$4)) -> BMG EM | Q36: =IF(ISBLANK(D36),"",IF(ISBLANK(PROJEKTPARAMETER!B$5),"",PROJEKTPARAMETER!B$5)) -> RuhdorGe | R36: =IF(ISBLANK(D36),"",IF(ISBLANK(PROJEKTPARAMETER!B$6),"",PROJEKTPARAMETER!B$6)) -> ASF/2011/074111 | U36: =IF(ISBLANK(D36),"",IF(ISBLANK(PROJEKTPARAMETER!B$7),"",PROJEKTPARAMETER!B$7)) -> DÜRR Austria GmbH | V36: =IF(ISBLANK(D36),"",IF(ISBLANK(PROJEKTPARAMETER!B$8),"",PROJEKTPARAMETER!B$8)) -> Systemtechnik | Y36: freigegeben | Z36: BauBestandsDok | AA36: 430B9357-562A-46F6-9171-0CBFA0EFAF27 | AB36: 68CF29A6-83A0-43EA-9409-DB4F99EA02C2 | AC36: =IF(ISBLANK(G36),"",IF(ISBLANK(VLOOKUP(G36,OBJEKTLISTE!$A$4:$G$976,7,FALSE)),"",VLOOKUP(G36,OBJEKTLISTE!$A$4:$G$976,7,FALSE))) -> C11335F8-D68B-4A31-9545-0D3A00D6DCC0 | AD36: 27622F01-0BD0-474D-9586-49456DC68A89 | AF36: BE845CED-991C-445A-8DC2-C61712E90BC5
B37: CSV S FotoDoku V1.2 | C37: Bestandsdokumentation | D37: A9 km192,550.zip | E37: Foto | G37: EFQ_A09_1_192,550: Ra 192,2 | H37: =IF(G37<>"",VLOOKUP(G37,OBJEKTLISTE!$A$4:$G$976,2,FALSE),"") -> Freiland / VBA | J37: =IF(G37<>"",VLOOKUP(G37,OBJEKTLISTE!$A$4:$G$976,3,FALSE),"") -> A09 Pyhrn Autobahn | K37: =IF(G37<>"",VLOOKUP(G37,OBJEKTLISTE!$A$4:$G$976,4,FALSE),"") -> km aufsteigend | L37: =IF(G37<>"",VLOOKUP(G37,OBJEKTLISTE!$A$4:$G$976,5,FALSE),"") -> 192.55 | M37: =IF(G37<>"",VLOOKUP(G37,OBJEKTLISTE!$A$4:$G$976,6,FALSE),"") -> 192.55 | N37: =IF(ISBLANK(D37),"",IF(ISBLANK(PROJEKTPARAMETER!B$2),"",PROJEKTPARAMETER!B$2)) -> SBA GR Graz | O37: =IF(ISBLANK(D37),"",IF(ISBLANK(PROJEKTPARAMETER!B$3),"",PROJEKTPARAMETER!B$3)) -> P.50.500.0013 | P37: =IF(ISBLANK(D37),"",IF(ISBLANK(PROJEKTPARAMETER!B$4),"",PROJEKTPARAMETER!B$4)) -> BMG EM | Q37: =IF(ISBLANK(D37),"",IF(ISBLANK(PROJEKTPARAMETER!B$5),"",PROJEKTPARAMETER!B$5)) -> RuhdorGe | R37: =IF(ISBLANK(D37),"",IF(ISBLANK(PROJEKTPARAMETER!B$6),"",PROJEKTPARAMETER!B$6)) -> ASF/2011/074111 | U37: =IF(ISBLANK(D37),"",IF(ISBLANK(PROJEKTPARAMETER!B$7),"",PROJEKTPARAMETER!B$7)) -> DÜRR Austria GmbH | V37: =IF(ISBLANK(D37),"",IF(ISBLANK(PROJEKTPARAMETER!B$8),"",PROJEKTPARAMETER!B$8)) -> Systemtechnik | Y37: freigegeben | Z37: BauBestandsDok | AA37: 430B9357-562A-46F6-9171-0CBFA0EFAF27 | AB37: 68CF29A6-83A0-43EA-9409-DB4F99EA02C2 | AC37: =IF(ISBLANK(G37),"",IF(ISBLANK(VLOOKUP(G37,OBJEKTLISTE!$A$4:$G$976,7,FALSE)),"",VLOOKUP(G37,OBJEKTLISTE!$A$4:$G$976,7,FALSE))) -> 239305D2-0CF8-4E53-8170-246BE4F06EBE | AD37: 27622F01-0BD0-474D-9586-49456DC68A89 | AF37: BE845CED-991C-445A-8DC2-C61712E90BC5
B38: CSV S FotoDoku V1.2 | C38: Bestandsdokumentation | D38: Schalthaus Graz West.zip | E38: Foto | G38: A02 | H38: =IF(G38<>"",VLOOKUP(G38,OBJEKTLISTE!$A$4:$G$976,2,FALSE),"") -> Freiland / VBA | J38: =IF(G38<>"",VLOOKUP(G38,OBJEKTLISTE!$A$4:$G$976,3,FALSE),"") -> A02 Südautobahn | K38: =IF(G38<>"",VLOOKUP(G38,OBJEKTLISTE!$A$4:$G$976,4,FALSE),"") -> unabhängig | L38: =IF(G38<>"",VLOOKUP(G38,OBJEKTLISTE!$A$4:$G$976,5,FALSE),"") -> 172 | M38: =IF(G38<>"",VLOOKUP(G38,OBJEKTLISTE!$A$4:$G$976,6,FALSE),"") -> 197 | N38: =IF(ISBLANK(D38),"",IF(ISBLANK(PROJEKTPARAMETER!B$2),"",PROJEKTPARAMETER!B$2)) -> SBA GR Graz | O38: =IF(ISBLANK(D38),"",IF(ISBLANK(PROJEKTPARAMETER!B$3),"",PROJEKTPARAMETER!B$3)) -> P.50.500.0013 | P38: =IF(ISBLANK(D38),"",IF(ISBLANK(PROJEKTPARAMETER!B$4),"",PROJEKTPARAMETER!B$4)) -> BMG EM | Q38: =IF(ISBLANK(D38),"",IF(ISBLANK(PROJEKTPARAMETER!B$5),"",PROJEKTPARAMETER!B$5)) -> RuhdorGe | R38: =IF(ISBLANK(D38),"",IF(ISBLANK(PROJEKTPARAMETER!B$6),"",PROJEKTPARAMETER!B$6)) -> ASF/2011/074111 | U38: =IF(ISBLANK(D38),"",IF(ISBLANK(PROJEKTPARAMETER!B$7),"",PROJEKTPARAMETER!B$7)) -> DÜRR Austria GmbH | V38: =IF(ISBLANK(D38),"",IF(ISBLANK(PROJEKTPARAMETER!B$8),"",PROJEKTPARAMETER!B$8)) -> Systemtechnik | Y38: freigegeben | Z38: BauBestandsDok | AA38: 430B9357-562A-46F6-9171-0CBFA0EFAF27 | AB38: 68CF29A6-83A0-43EA-9409-DB4F99EA02C2 | AC38: =IF(ISBLANK(G38),"",IF(ISBLANK(VLOOKUP(G38,OBJEKTLISTE!$A$4:$G$976,7,FALSE)),"",VLOOKUP(G38,OBJEKTLISTE!$A$4:$G$976,7,FALSE))) ->  | AD38: 27622F01-0BD0-474D-9586-49456DC68A89 | AF38: 92B99676-4180-4737-B422-CC11ACCE4EFA
H39: =IF(G39<>"",VLOOKUP(G39,OBJEKTLISTE!$A$4:$G$976,2,FALSE),"") ->  | J39: =IF(G39<>"",VLOOKUP(G39,OBJEKTLISTE!$A$4:$G$976,3,FALSE),"") ->  | K39: =IF(G39<>"",VLOOKUP(G39,OBJEKTLISTE!$A$4:$G$976,4,FALSE),"") ->  | L39: =IF(G39<>"",VLOOKUP(G39,OBJEKTLISTE!$A$4:$G$976,5,FALSE),"") ->  | M39: =IF(G39<>"",VLOOKUP(G39,OBJEKTLISTE!$A$4:$G$976,6,FALSE),"") ->  | N39: =IF(ISBLANK(D39),"",IF(ISBLANK(PROJEKTPARAMETER!B$2),"",PROJEKTPARAMETER!B$2)) ->  | O39: =IF(ISBLANK(D39),"",IF(ISBLANK(PROJEKTPARAMETER!B$3),"",PROJEKTPARAMETER!B$3)) ->  | P39: =IF(ISBLANK(D39),"",IF(ISBLANK(PROJEKTPARAMETER!B$4),"",PROJEKTPARAMETER!B$4)) ->  | Q39: =IF(ISBLANK(D39),"",IF(ISBLANK(PROJEKTPARAMETER!B$5),"",PROJEKTPARAMETER!B$5)) ->  | R39: =IF(ISBLANK(D39),"",IF(ISBLANK(PROJEKTPARAMETER!B$6),"",PROJEKTPARAMETER!B$6)) ->  | U39: =IF(ISBLANK(D39),"",IF(ISBLANK(PROJEKTPARAMETER!B$7),"",PROJEKTPARAMETER!B$7)) ->  | V39: =IF(ISBLANK(D39),"",IF(ISBLANK(PROJEKTPARAMETER!B$8),"",PROJEKTPARAMETER!B$8)) ->  | AC39: =IF(ISBLANK(G39),"",IF(ISBLANK(VLOOKUP(G39,OBJEKTLISTE!$A$4:$G$976,7,FALSE)),"",VLOOKUP(G39,OBJEKTLISTE!$A$4:$G$976,7,FALSE))) -> 
H40: =IF(G40<>"",VLOOKUP(G40,OBJEKTLISTE!$A$4:$G$976,2,FALSE),"") ->  | J40: =IF(G40<>"",VLOOKUP(G40,OBJEKTLISTE!$A$4:$G$976,3,FALSE),"") ->  | K40: =IF(G40<>"",VLOOKUP(G40,OBJEKTLISTE!$A$4:$G$976,4,FALSE),"") ->  | L40: =IF(G40<>"",VLOOKUP(G40,OBJEKTLISTE!$A$4:$G$976,5,FALSE),"") ->  | M40: =IF(G40<>"",VLOOKUP(G40,OBJEKTLISTE!$A$4:$G$976,6,FALSE),"") ->  | N40: =IF(ISBLANK(D40),"",IF(ISBLANK(PROJEKTPARAMETER!B$2),"",PROJEKTPARAMETER!B$2)) ->  | O40: =IF(ISBLANK(D40),"",IF(ISBLANK(PROJEKTPARAMETER!B$3),"",PROJEKTPARAMETER!B$3)) ->  | P40: =IF(ISBLANK(D40),"",IF(ISBLANK(PROJEKTPARAMETER!B$4),"",PROJEKTPARAMETER!B$4)) ->  | Q40: =IF(ISBLANK(D40),"",IF(ISBLANK(PROJEKTPARAMETER!B$5),"",PROJEKTPARAMETER!B$5)) ->  | R40: =IF(ISBLANK(D40),"",IF(ISBLANK(PROJEKTPARAMETER!B$6),"",PROJEKTPARAMETER!B$6)) ->  | U40: =IF(ISBLANK(D40),"",IF(ISBLANK(PROJEKTPARAMETER!B$7),"",PROJEKTPARAMETER!B$7)) ->  | V40: =IF(ISBLANK(D40),"",IF(ISBLANK(PROJEKTPARAMETER!B$8),"",PROJEKTPARAMETER!B$8)) ->  | AC40: =IF(ISBLANK(G40),"",IF(ISBLANK(VLOOKUP(G40,OBJEKTLISTE!$A$4:$G$976,7,FALSE)),"",VLOOKUP(G40,OBJEKTLISTE!$A$4:$G$976,7,FALSE))) -> 
H41: =IF(G41<>"",VLOOKUP(G41,OBJEKTLISTE!$A$4:$G$976,2,FALSE),"") ->  | J41: =IF(G41<>"",VLOOKUP(G41,OBJEKTLISTE!$A$4:$G$976,3,FALSE),"") ->  | K41: =IF(G41<>"",VLOOKUP(G41,OBJEKTLISTE!$A$4:$G$976,4,FALSE),"") ->  | L41: =IF(G41<>"",VLOOKUP(G41,OBJEKTLISTE!$A$4:$G$976,5,FALSE),"") ->  | M41: =IF(G41<>"",VLOOKUP(G41,OBJEKTLISTE!$A$4:$G$976,6,FALSE),"") ->  | N41: =IF(ISBLANK(D41),"",IF(ISBLANK(PROJEKTPARAMETER!B$2),"",PROJEKTPARAMETER!B$2)) ->  | O41: =IF(ISBLANK(D41),"",IF(ISBLANK(PROJEKTPARAMETER!B$3),"",PROJEKTPARAMETER!B$3)) ->  | P41: =IF(ISBLANK(D41),"",IF(ISBLANK(PROJEKTPARAMETER!B$4),"",PROJEKTPARAMETER!B$4)) ->  | Q41: =IF(ISBLANK(D41),"",IF(ISBLANK(PROJEKTPARAMETER!B$5),"",PROJEKTPARAMETER!B$5)) ->  | R41: =IF(ISBLANK(D41),"",IF(ISBLANK(PROJEKTPARAMETER!B$6),"",PROJEKTPARAMETER!B$6)) ->  | U41: =IF(ISBLANK(D41),"",IF(ISBLANK(PROJEKTPARAMETER!B$7),"",PROJEKTPARAMETER!B$7)) ->  | V41: =IF(ISBLANK(D41),"",IF(ISBLANK(PROJEKTPARAMETER!B$8),"",PROJEKTPARAMETER!B$8)) ->  | AC41: =IF(ISBLANK(G41),"",IF(ISBLANK(VLOOKUP(G41,OBJEKTLISTE!$A$4:$G$976,7,FALSE)),"",VLOOKUP(G41,OBJEKTLISTE!$A$4:$G$976,7,FALSE))) -> 
H42: =IF(G42<>"",VLOOKUP(G42,OBJEKTLISTE!$A$4:$G$976,2,FALSE),"") ->  | J42: =IF(G42<>"",VLOOKUP(G42,OBJEKTLISTE!$A$4:$G$976,3,FALSE),"") ->  | K42: =IF(G42<>"",VLOOKUP(G42,OBJEKTLISTE!$A$4:$G$976,4,FALSE),"") ->  | L42: =IF(G42<>"",VLOOKUP(G42,OBJEKTLISTE!$A$4:$G$976,5,FALSE),"") ->  | M42: =IF(G42<>"",VLOOKUP(G42,OBJEKTLISTE!$A$4:$G$976,6,FALSE),"") ->  | N42: =IF(ISBLANK(D42),"",IF(ISBLANK(PROJEKTPARAMETER!B$2),"",PROJEKTPARAMETER!B$2)) ->  | O42: =IF(ISBLANK(D42),"",IF(ISBLANK(PROJEKTPARAMETER!B$3),"",PROJEKTPARAMETER!B$3)) ->  | P42: =IF(ISBLANK(D42),"",IF(ISBLANK(PROJEKTPARAMETER!B$4),"",PROJEKTPARAMETER!B$4)) ->  | Q42: =IF(ISBLANK(D42),"",IF(ISBLANK(PROJEKTPARAMETER!B$5),"",PROJEKTPARAMETER!B$5)) ->  | R42: =IF(ISBLANK(D42),"",IF(ISBLANK(PROJEKTPARAMETER!B$6),"",PROJEKTPARAMETER!B$6)) ->  | U42: =IF(ISBLANK(D42),"",IF(ISBLANK(PROJEKTPARAMETER!B$7),"",PROJEKTPARAMETER!B$7)) ->  | V42: =IF(ISBLANK(D42),"",IF(ISBLANK(PROJEKTPARAMETER!B$8),"",PROJEKTPARAMETER!B$8)) ->  | AC42: =IF(ISBLANK(G42),"",IF(ISBLANK(VLOOKUP(G42,OBJEKTLISTE!$A$4:$G$976,7,FALSE)),"",VLOOKUP(G42,OBJEKTLISTE!$A$4:$G$976,7,FALSE))) -> 
H43: =IF(G43<>"",VLOOKUP(G43,OBJEKTLISTE!$A$4:$G$976,2,FALSE),"") ->  | J43: =IF(G43<>"",VLOOKUP(G43,OBJEKTLISTE!$A$4:$G$976,3,FALSE),"") ->  | K43: =IF(G43<>"",VLOOKUP(G43,OBJEKTLISTE!$A$4:$G$976,4,FALSE),"") ->  | L43: =IF(G43<>"",VLOOKUP(G43,OBJEKTLISTE!$A$4:$G$976,5,FALSE),"") ->  | M43: =IF(G43<>"",VLOOKUP(G43,OBJEKTLISTE!$A$4:$G$976,6,FALSE),"") ->  | N43: =IF(ISBLANK(D43),"",IF(ISBLANK(PROJEKTPARAMETER!B$2),"",PROJEKTPARAMETER!B$2)) ->  | O43: =IF(ISBLANK(D43),"",IF(ISBLANK(PROJEKTPARAMETER!B$3),"",PROJEKTPARAMETER!B$3)) ->  | P43: =IF(ISBLANK(D43),"",IF(ISBLANK(PROJEKTPARAMETER!B$4),"",PROJEKTPARAMETER!B$4)) ->  | Q43: =IF(ISBLANK(D43),"",IF(ISBLANK(PROJEKTPARAMETER!B$5),"",PROJEKTPARAMETER!B$5)) ->  | R43: =IF(ISBLANK(D43),"",IF(ISBLANK(PROJEKTPARAMETER!B$6),"",PROJEKTPARAMETER!B$6)) ->  | U43: =IF(ISBLANK(D43),"",IF(ISBLANK(PROJEKTPARAMETER!B$7),"",PROJEKTPARAMETER!B$7)) ->  | V43: =IF(ISBLANK(D43),"",IF(ISBLANK(PROJEKTPARAMETER!B$8),"",PROJEKTPARAMETER!B$8)) ->  | AC43: =IF(ISBLANK(G43),"",IF(ISBLANK(VLOOKUP(G43,OBJEKTLISTE!$A$4:$G$976,7,FALSE)),"",VLOOKUP(G43,OBJEKTLISTE!$A$4:$G$976,7,FALSE))) -> 
H44: =IF(G44<>"",VLOOKUP(G44,OBJEKTLISTE!$A$4:$G$976,2,FALSE),"") ->  | J44: =IF(G44<>"",VLOOKUP(G44,OBJEKTLISTE!$A$4:$G$976,3,FALSE),"") ->  | K44: =IF(G44<>"",VLOOKUP(G44,OBJEKTLISTE!$A$4:$G$976,4,FALSE),"") ->  | L44: =IF(G44<>"",VLOOKUP(G44,OBJEKTLISTE!$A$4:$G$976,5,FALSE),"") ->  | M44: =IF(G44<>"",VLOOKUP(G44,OBJEKTLISTE!$A$4:$G$976,6,FALSE),"") ->  | N44: =IF(ISBLANK(D44),"",IF(ISBLANK(PROJEKTPARAMETER!B$2),"",PROJEKTPARAMETER!B$2)) ->  | O44: =IF(ISBLANK(D44),"",IF(ISBLANK(PROJEKTPARAMETER!B$3),"",PROJEKTPARAMETER!B$3)) ->  | P44: =IF(ISBLANK(D44),"",IF(ISBLANK(PROJEKTPARAMETER!B$4),"",PROJEKTPARAMETER!B$4)) ->  | Q44: =IF(ISBLANK(D44),"",IF(ISBLANK(PROJEKTPARAMETER!B$5),"",PROJEKTPARAMETER!B$5)) ->  | R44: =IF(ISBLANK(D44),"",IF(ISBLANK(PROJEKTPARAMETER!B$6),"",PROJEKTPARAMETER!B$6)) ->  | U44: =IF(ISBLANK(D44),"",IF(ISBLANK(PROJEKTPARAMETER!B$7),"",PROJEKTPARAMETER!B$7)) ->  | V44: =IF(ISBLANK(D44),"",IF(ISBLANK(PROJEKTPARAMETER!B$8),"",PROJEKTPARAMETER!B$8)) ->  | AC44: =IF(ISBLANK(G44),"",IF(ISBLANK(VLOOKUP(G44,OBJEKTLISTE!$A$4:$G$976,7,FALSE)),"",VLOOKUP(G44,OBJEKTLISTE!$A$4:$G$976,7,FALSE))) -> 
H45: =IF(G45<>"",VLOOKUP(G45,OBJEKTLISTE!$A$4:$G$976,2,FALSE),"") ->  | J45: =IF(G45<>"",VLOOKUP(G45,OBJEKTLISTE!$A$4:$G$976,3,FALSE),"") ->  | K45: =IF(G45<>"",VLOOKUP(G45,OBJEKTLISTE!$A$4:$G$976,4,FALSE),"") ->  | L45: =IF(G45<>"",VLOOKUP(G45,OBJEKTLISTE!$A$4:$G$976,5,FALSE),"") ->  | M45: =IF(G45<>"",VLOOKUP(G45,OBJEKTLISTE!$A$4:$G$976,6,FALSE),"") ->  | N45: =IF(ISBLANK(D45),"",IF(ISBLANK(PROJEKTPARAMETER!B$2),"",PROJEKTPARAMETER!B$2)) ->  | O45: =IF(ISBLANK(D45),"",IF(ISBLANK(PROJEKTPARAMETER!B$3),"",PROJEKTPARAMETER!B$3)) ->  | P45: =IF(ISBLANK(D45),"",IF(ISBLANK(PROJEKTPARAMETER!B$4),"",PROJEKTPARAMETER!B$4)) ->  | Q45: =IF(ISBLANK(D45),"",IF(ISBLANK(PROJEKTPARAMETER!B$5),"",PROJEKTPARAMETER!B$5)) ->  | R45: =IF(ISBLANK(D45),"",IF(ISBLANK(PROJEKTPARAMETER!B$6),"",PROJEKTPARAMETER!B$6)) ->  | U45: =IF(ISBLANK(D45),"",IF(ISBLANK(PROJEKTPARAMETER!B$7),"",PROJEKTPARAMETER!B$7)) ->  | V45: =IF(ISBLANK(D45),"",IF(ISBLANK(PROJEKTPARAMETER!B$8),"",PROJEKTPARAMETER!B$8)) ->  | AC45: =IF(ISBLANK(G45),"",IF(ISBLANK(VLOOKUP(G45,OBJEKTLISTE!$A$4:$G$976,7,FALSE)),"",VLOOKUP(G45,OBJEKTLISTE!$A$4:$G$976,7,FALSE))) -> 
H46: =IF(G46<>"",VLOOKUP(G46,OBJEKTLISTE!$A$4:$G$976,2,FALSE),"") ->  | J46: =IF(G46<>"",VLOOKUP(G46,OBJEKTLISTE!$A$4:$G$976,3,FALSE),"") ->  | K46: =IF(G46<>"",VLOOKUP(G46,OBJEKTLISTE!$A$4:$G$976,4,FALSE),"") ->  | L46: =IF(G46<>"",VLOOKUP(G46,OBJEKTLISTE!$A$4:$G$976,5,FALSE),"") ->  | M46: =IF(G46<>"",VLOOKUP(G46,OBJEKTLISTE!$A$4:$G$976,6,FALSE),"") ->  | N46: =IF(ISBLANK(D46),"",IF(ISBLANK(PROJEKTPARAMETER!B$2),"",PROJEKTPARAMETER!B$2)) ->  | O46: =IF(ISBLANK(D46),"",IF(ISBLANK(PROJEKTPARAMETER!B$3),"",PROJEKTPARAMETER!B$3)) ->  | P46: =IF(ISBLANK(D46),"",IF(ISBLANK(PROJEKTPARAMETER!B$4),"",PROJEKTPARAMETER!B$4)) ->  | Q46: =IF(ISBLANK(D46),"",IF(ISBLANK(PROJEKTPARAMETER!B$5),"",PROJEKTPARAMETER!B$5)) ->  | R46: =IF(ISBLANK(D46),"",IF(ISBLANK(PROJEKTPARAMETER!B$6),"",PROJEKTPARAMETER!B$6)) ->  | U46: =IF(ISBLANK(D46),"",IF(ISBLANK(PROJEKTPARAMETER!B$7),"",PROJEKTPARAMETER!B$7)) ->  | V46: =IF(ISBLANK(D46),"",IF(ISBLANK(PROJEKTPARAMETER!B$8),"",PROJEKTPARAMETER!B$8)) ->  | AC46: =IF(ISBLANK(G46),"",IF(ISBLANK(VLOOKUP(G46,OBJEKTLISTE!$A$4:$G$976,7,FALSE)),"",VLOOKUP(G46,OBJEKTLISTE!$A$4:$G$976,7,FALSE))) -> 
H47: =IF(G47<>"",VLOOKUP(G47,OBJEKTLISTE!$A$4:$G$976,2,FALSE),"") ->  | J47: =IF(G47<>"",VLOOKUP(G47,OBJEKTLISTE!$A$4:$G$976,3,FALSE),"") ->  | K47: =IF(G47<>"",VLOOKUP(G47,OBJEKTLISTE!$A$4:$G$976,4,FALSE),"") ->  | L47: =IF(G47<>"",VLOOKUP(G47,OBJEKTLISTE!$A$4:$G$976,5,FALSE),"") ->  | M47: =IF(G47<>"",VLOOKUP(G47,OBJEKTLISTE!$A$4:$G$976,6,FALSE),"") ->  | N47: =IF(ISBLANK(D47),"",IF(ISBLANK(PROJEKTPARAMETER!B$2),"",PROJEKTPARAMETER!B$2)) ->  | O47: =IF(ISBLANK(D47),"",IF(ISBLANK(PROJEKTPARAMETER!B$3),"",PROJEKTPARAMETER!B$3)) ->  | P47: =IF(ISBLANK(D47),"",IF(ISBLANK(PROJEKTPARAMETER!B$4),"",PROJEKTPARAMETER!B$4)) ->  | Q47: =IF(ISBLANK(D47),"",IF(ISBLANK(PROJEKTPARAMETER!B$5),"",PROJEKTPARAMETER!B$5)) ->  | R47: =IF(ISBLANK(D47),"",IF(ISBLANK(PROJEKTPARAMETER!B$6),"",PROJEKTPARAMETER!B$6)) ->  | U47: =IF(ISBLANK(D47),"",IF(ISBLANK(PROJEKTPARAMETER!B$7),"",PROJEKTPARAMETER!B$7)) ->  | V47: =IF(ISBLANK(D47),"",IF(ISBLANK(PROJEKTPARAMETER!B$8),"",PROJEKTPARAMETER!B$8)) ->  | AC47: =IF(ISBLANK(G47),"",IF(ISBLANK(VLOOKUP(G47,OBJEKTLISTE!$A$4:$G$976,7,FALSE)),"",VLOOKUP(G47,OBJEKTLISTE!$A$4:$G$976,7,FALSE))) -> 
H48: =IF(G48<>"",VLOOKUP(G48,OBJEKTLISTE!$A$4:$G$976,2,FALSE),"") ->  | J48: =IF(G48<>"",VLOOKUP(G48,OBJEKTLISTE!$A$4:$G$976,3,FALSE),"") ->  | K48: =IF(G48<>"",VLOOKUP(G48,OBJEKTLISTE!$A$4:$G$976,4,FALSE),"") ->  | L48: =IF(G48<>"",VLOOKUP(G48,OBJEKTLISTE!$A$4:$G$976,5,FALSE),"") ->  | M48: =IF(G48<>"",VLOOKUP(G48,OBJEKTLISTE!$A$4:$G$976,6,FALSE),"") ->  | N48: =IF(ISBLANK(D48),"",IF(ISBLANK(PROJEKTPARAMETER!B$2),"",PROJEKTPARAMETER!B$2)) ->  | O48: =IF(ISBLANK(D48),"",IF(ISBLANK(PROJEKTPARAMETER!B$3),"",PROJEKTPARAMETER!B$3)) ->  | P48: =IF(ISBLANK(D48),"",IF(ISBLANK(PROJEKTPARAMETER!B$4),"",PROJEKTPARAMETER!B$4)) ->  | Q48: =IF(ISBLANK(D48),"",IF(ISBLANK(PROJEKTPARAMETER!B$5),"",PROJEKTPARAMETER!B$5)) ->  | R48: =IF(ISBLANK(D48),"",IF(ISBLANK(PROJEKTPARAMETER!B$6),"",PROJEKTPARAMETER!B$6)) ->  | U48: =IF(ISBLANK(D48),"",IF(ISBLANK(PROJEKTPARAMETER!B$7),"",PROJEKTPARAMETER!B$7)) ->  | V48: =IF(ISBLANK(D48),"",IF(ISBLANK(PROJEKTPARAMETER!B$8),"",PROJEKTPARAMETER!B$8)) ->  | AC48: =IF(ISBLANK(G48),"",IF(ISBLANK(VLOOKUP(G48,OBJEKTLISTE!$A$4:$G$976,7,FALSE)),"",VLOOKUP(G48,OBJEKTLISTE!$A$4:$G$976,7,FALSE))) -> 
H49: =IF(G49<>"",VLOOKUP(G49,OBJEKTLISTE!$A$4:$G$976,2,FALSE),"") ->  | J49: =IF(G49<>"",VLOOKUP(G49,OBJEKTLISTE!$A$4:$G$976,3,FALSE),"") ->  | K49: =IF(G49<>"",VLOOKUP(G49,OBJEKTLISTE!$A$4:$G$976,4,FALSE),"") ->  | L49: =IF(G49<>"",VLOOKUP(G49,OBJEKTLISTE!$A$4:$G$976,5,FALSE),"") ->  | M49: =IF(G49<>"",VLOOKUP(G49,OBJEKTLISTE!$A$4:$G$976,6,FALSE),"") ->  | N49: =IF(ISBLANK(D49),"",IF(ISBLANK(PROJEKTPARAMETER!B$2),"",PROJEKTPARAMETER!B$2)) ->  | O49: =IF(ISBLANK(D49),"",IF(ISBLANK(PROJEKTPARAMETER!B$3),"",PROJEKTPARAMETER!B$3)) ->  | P49: =IF(ISBLANK(D49),"",IF(ISBLANK(PROJEKTPARAMETER!B$4),"",PROJEKTPARAMETER!B$4)) ->  | Q49: =IF(ISBLANK(D49),"",IF(ISBLANK(PROJEKTPARAMETER!B$5),"",PROJEKTPARAMETER!B$5)) ->  | R49: =IF(ISBLANK(D49),"",IF(ISBLANK(PROJEKTPARAMETER!B$6),"",PROJEKTPARAMETER!B$6)) ->  | U49: =IF(ISBLANK(D49),"",IF(ISBLANK(PROJEKTPARAMETER!B$7),"",PROJEKTPARAMETER!B$7)) ->  | V49: =IF(ISBLANK(D49),"",IF(ISBLANK(PROJEKTPARAMETER!B$8),"",PROJEKTPARAMETER!B$8)) ->  | AC49: =IF(ISBLANK(G49),"",IF(ISBLANK(VLOOKUP(G49,OBJEKTLISTE!$A$4:$G$976,7,FALSE)),"",VLOOKUP(G49,OBJEKTLISTE!$A$4:$G$976,7,FALSE))) -> 
H50: =IF(G50<>"",VLOOKUP(G50,OBJEKTLISTE!$A$4:$G$976,2,FALSE),"") ->  | J50: =IF(G50<>"",VLOOKUP(G50,OBJEKTLISTE!$A$4:$G$976,3,FALSE),"") ->  | K50: =IF(G50<>"",VLOOKUP(G50,OBJEKTLISTE!$A$4:$G$976,4,FALSE),"") ->  | L50: =IF(G50<>"",VLOOKUP(G50,OBJEKTLISTE!$A$4:$G$976,5,FALSE),"") ->  | M50: =IF(G50<>"",VLOOKUP(G50,OBJEKTLISTE!$A$4:$G$976,6,FALSE),"") ->  | N50: =IF(ISBLANK(D50),"",IF(ISBLANK(PROJEKTPARAMETER!B$2),"",PROJEKTPARAMETER!B$2)) ->  | O50: =IF(ISBLANK(D50),"",IF(ISBLANK(PROJEKTPARAMETER!B$3),"",PROJEKTPARAMETER!B$3)) ->  | P50: =IF(ISBLANK(D50),"",IF(ISBLANK(PROJEKTPARAMETER!B$4),"",PROJEKTPARAMETER!B$4)) ->  | Q50: =IF(ISBLANK(D50),"",IF(ISBLANK(PROJEKTPARAMETER!B$5),"",PROJEKTPARAMETER!B$5)) ->  | R50: =IF(ISBLANK(D50),"",IF(ISBLANK(PROJEKTPARAMETER!B$6),"",PROJEKTPARAMETER!B$6)) ->  | U50: =IF(ISBLANK(D50),"",IF(ISBLANK(PROJEKTPARAMETER!B$7),"",PROJEKTPARAMETER!B$7)) ->  | V50: =IF(ISBLANK(D50),"",IF(ISBLANK(PROJEKTPARAMETER!B$8),"",PROJEKTPARAMETER!B$8)) ->  | AC50: =IF(ISBLANK(G50),"",IF(ISBLANK(VLOOKUP(G50,OBJEKTLISTE!$A$4:$G$976,7,FALSE)),"",VLOOKUP(G50,OBJEKTLISTE!$A$4:$G$976,7,FALSE))) -> 
H51: =IF(G51<>"",VLOOKUP(G51,OBJEKTLISTE!$A$4:$G$976,2,FALSE),"") ->  | J51: =IF(G51<>"",VLOOKUP(G51,OBJEKTLISTE!$A$4:$G$976,3,FALSE),"") ->  | K51: =IF(G51<>"",VLOOKUP(G51,OBJEKTLISTE!$A$4:$G$976,4,FALSE),"") ->  | L51: =IF(G51<>"",VLOOKUP(G51,OBJEKTLISTE!$A$4:$G$976,5,FALSE),"") ->  | M51: =IF(G51<>"",VLOOKUP(G51,OBJEKTLISTE!$A$4:$G$976,6,FALSE),"") ->  | N51: =IF(ISBLANK(D51),"",IF(ISBLANK(PROJEKTPARAMETER!B$2),"",PROJEKTPARAMETER!B$2)) ->  | O51: =IF(ISBLANK(D51),"",IF(ISBLANK(PROJEKTPARAMETER!B$3),"",PROJEKTPARAMETER!B$3)) ->  | P51: =IF(ISBLANK(D51),"",IF(ISBLANK(PROJEKTPARAMETER!B$4),"",PROJEKTPARAMETER!B$4)) ->  | Q51: =IF(ISBLANK(D51),"",IF(ISBLANK(PROJEKTPARAMETER!B$5),"",PROJEKTPARAMETER!B$5)) ->  | R51: =IF(ISBLANK(D51),"",IF(ISBLANK(PROJEKTPARAMETER!B$6),"",PROJEKTPARAMETER!B$6)) ->  | U51: =IF(ISBLANK(D51),"",IF(ISBLANK(PROJEKTPARAMETER!B$7),"",PROJEKTPARAMETER!B$7)) ->  | V51: =IF(ISBLANK(D51),"",IF(ISBLANK(PROJEKTPARAMETER!B$8),"",PROJEKTPARAMETER!B$8)) ->  | AC51: =IF(ISBLANK(G51),"",IF(ISBLANK(VLOOKUP(G51,OBJEKTLISTE!$A$4:$G$976,7,FALSE)),"",VLOOKUP(G51,OBJEKTLISTE!$A$4:$G$976,7,FALSE))) -> 
H52: =IF(G52<>"",VLOOKUP(G52,OBJEKTLISTE!$A$4:$G$976,2,FALSE),"") ->  | J52: =IF(G52<>"",VLOOKUP(G52,OBJEKTLISTE!$A$4:$G$976,3,FALSE),"") ->  | K52: =IF(G52<>"",VLOOKUP(G52,OBJEKTLISTE!$A$4:$G$976,4,FALSE),"") ->  | L52: =IF(G52<>"",VLOOKUP(G52,OBJEKTLISTE!$A$4:$G$976,5,FALSE),"") ->  | M52: =IF(G52<>"",VLOOKUP(G52,OBJEKTLISTE!$A$4:$G$976,6,FALSE),"") ->  | N52: =IF(ISBLANK(D52),"",IF(ISBLANK(PROJEKTPARAMETER!B$2),"",PROJEKTPARAMETER!B$2)) ->  | O52: =IF(ISBLANK(D52),"",IF(ISBLANK(PROJEKTPARAMETER!B$3),"",PROJEKTPARAMETER!B$3)) ->  | P52: =IF(ISBLANK(D52),"",IF(ISBLANK(PROJEKTPARAMETER!B$4),"",PROJEKTPARAMETER!B$4)) ->  | Q52: =IF(ISBLANK(D52),"",IF(ISBLANK(PROJEKTPARAMETER!B$5),"",PROJEKTPARAMETER!B$5)) ->  | R52: =IF(ISBLANK(D52),"",IF(ISBLANK(PROJEKTPARAMETER!B$6),"",PROJEKTPARAMETER!B$6)) ->  | U52: =IF(ISBLANK(D52),"",IF(ISBLANK(PROJEKTPARAMETER!B$7),"",PROJEKTPARAMETER!B$7)) ->  | V52: =IF(ISBLANK(D52),"",IF(ISBLANK(PROJEKTPARAMETER!B$8),"",PROJEKTPARAMETER!B$8)) ->  | AC52: =IF(ISBLANK(G52),"",IF(ISBLANK(VLOOKUP(G52,OBJEKTLISTE!$A$4:$G$976,7,FALSE)),"",VLOOKUP(G52,OBJEKTLISTE!$A$4:$G$976,7,FALSE))) -> 
H53: =IF(G53<>"",VLOOKUP(G53,OBJEKTLISTE!$A$4:$G$976,2,FALSE),"") ->  | J53: =IF(G53<>"",VLOOKUP(G53,OBJEKTLISTE!$A$4:$G$976,3,FALSE),"") ->  | K53: =IF(G53<>"",VLOOKUP(G53,OBJEKTLISTE!$A$4:$G$976,4,FALSE),"") ->  | L53: =IF(G53<>"",VLOOKUP(G53,OBJEKTLISTE!$A$4:$G$976,5,FALSE),"") ->  | M53: =IF(G53<>"",VLOOKUP(G53,OBJEKTLISTE!$A$4:$G$976,6,FALSE),"") ->  | N53: =IF(ISBLANK(D53),"",IF(ISBLANK(PROJEKTPARAMETER!B$2),"",PROJEKTPARAMETER!B$2)) ->  | O53: =IF(ISBLANK(D53),"",IF(ISBLANK(PROJEKTPARAMETER!B$3),"",PROJEKTPARAMETER!B$3)) ->  | P53: =IF(ISBLANK(D53),"",IF(ISBLANK(PROJEKTPARAMETER!B$4),"",PROJEKTPARAMETER!B$4)) ->  | Q53: =IF(ISBLANK(D53),"",IF(ISBLANK(PROJEKTPARAMETER!B$5),"",PROJEKTPARAMETER!B$5)) ->  | R53: =IF(ISBLANK(D53),"",IF(ISBLANK(PROJEKTPARAMETER!B$6),"",PROJEKTPARAMETER!B$6)) ->  | U53: =IF(ISBLANK(D53),"",IF(ISBLANK(PROJEKTPARAMETER!B$7),"",PROJEKTPARAMETER!B$7)) ->  | V53: =IF(ISBLANK(D53),"",IF(ISBLANK(PROJEKTPARAMETER!B$8),"",PROJEKTPARAMETER!B$8)) ->  | AC53: =IF(ISBLANK(G53),"",IF(ISBLANK(VLOOKUP(G53,OBJEKTLISTE!$A$4:$G$976,7,FALSE)),"",VLOOKUP(G53,OBJEKTLISTE!$A$4:$G$976,7,FALSE))) -> 
H54: =IF(G54<>"",VLOOKUP(G54,OBJEKTLISTE!$A$4:$G$976,2,FALSE),"") ->  | J54: =IF(G54<>"",VLOOKUP(G54,OBJEKTLISTE!$A$4:$G$976,3,FALSE),"") ->  | K54: =IF(G54<>"",VLOOKUP(G54,OBJEKTLISTE!$A$4:$G$976,4,FALSE),"") ->  | L54: =IF(G54<>"",VLOOKUP(G54,OBJEKTLISTE!$A$4:$G$976,5,FALSE),"") ->  | M54: =IF(G54<>"",VLOOKUP(G54,OBJEKTLISTE!$A$4:$G$976,6,FALSE),"") ->  | N54: =IF(ISBLANK(D54),"",IF(ISBLANK(PROJEKTPARAMETER!B$2),"",PROJEKTPARAMETER!B$2)) ->  | O54: =IF(ISBLANK(D54),"",IF(ISBLANK(PROJEKTPARAMETER!B$3),"",PROJEKTPARAMETER!B$3)) ->  | P54: =IF(ISBLANK(D54),"",IF(ISBLANK(PROJEKTPARAMETER!B$4),"",PROJEKTPARAMETER!B$4)) ->  | Q54: =IF(ISBLANK(D54),"",IF(ISBLANK(PROJEKTPARAMETER!B$5),"",PROJEKTPARAMETER!B$5)) ->  | R54: =IF(ISBLANK(D54),"",IF(ISBLANK(PROJEKTPARAMETER!B$6),"",PROJEKTPARAMETER!B$6)) ->  | U54: =IF(ISBLANK(D54),"",IF(ISBLANK(PROJEKTPARAMETER!B$7),"",PROJEKTPARAMETER!B$7)) ->  | V54: =IF(ISBLANK(D54),"",IF(ISBLANK(PROJEKTPARAMETER!B$8),"",PROJEKTPARAMETER!B$8)) ->  | AC54: =IF(ISBLANK(G54),"",IF(ISBLANK(VLOOKUP(G54,OBJEKTLISTE!$A$4:$G$976,7,FALSE)),"",VLOOKUP(G54,OBJEKTLISTE!$A$4:$G$976,7,FALSE))) -> 
H55: =IF(G55<>"",VLOOKUP(G55,OBJEKTLISTE!$A$4:$G$976,2,FALSE),"") ->  | J55: =IF(G55<>"",VLOOKUP(G55,OBJEKTLISTE!$A$4:$G$976,3,FALSE),"") ->  | K55: =IF(G55<>"",VLOOKUP(G55,OBJEKTLISTE!$A$4:$G$976,4,FALSE),"") ->  | L55: =IF(G55<>"",VLOOKUP(G55,OBJEKTLISTE!$A$4:$G$976,5,FALSE),"") ->  | M55: =IF(G55<>"",VLOOKUP(G55,OBJEKTLISTE!$A$4:$G$976,6,FALSE),"") ->  | N55: =IF(ISBLANK(D55),"",IF(ISBLANK(PROJEKTPARAMETER!B$2),"",PROJEKTPARAMETER!B$2)) ->  | O55: =IF(ISBLANK(D55),"",IF(ISBLANK(PROJEKTPARAMETER!B$3),"",PROJEKTPARAMETER!B$3)) ->  | P55: =IF(ISBLANK(D55),"",IF(ISBLANK(PROJEKTPARAMETER!B$4),"",PROJEKTPARAMETER!B$4)) ->  | Q55: =IF(ISBLANK(D55),"",IF(ISBLANK(PROJEKTPARAMETER!B$5),"",PROJEKTPARAMETER!B$5)) ->  | R55: =IF(ISBLANK(D55),"",IF(ISBLANK(PROJEKTPARAMETER!B$6),"",PROJEKTPARAMETER!B$6)) ->  | U55: =IF(ISBLANK(D55),"",IF(ISBLANK(PROJEKTPARAMETER!B$7),"",PROJEKTPARAMETER!B$7)) ->  | V55: =IF(ISBLANK(D55),"",IF(ISBLANK(PROJEKTPARAMETER!B$8),"",PROJEKTPARAMETER!B$8)) ->  | AC55: =IF(ISBLANK(G55),"",IF(ISBLANK(VLOOKUP(G55,OBJEKTLISTE!$A$4:$G$976,7,FALSE)),"",VLOOKUP(G55,OBJEKTLISTE!$A$4:$G$976,7,FALSE))) -> 
H56: =IF(G56<>"",VLOOKUP(G56,OBJEKTLISTE!$A$4:$G$976,2,FALSE),"") ->  | J56: =IF(G56<>"",VLOOKUP(G56,OBJEKTLISTE!$A$4:$G$976,3,FALSE),"") ->  | K56: =IF(G56<>"",VLOOKUP(G56,OBJEKTLISTE!$A$4:$G$976,4,FALSE),"") ->  | L56: =IF(G56<>"",VLOOKUP(G56,OBJEKTLISTE!$A$4:$G$976,5,FALSE),"") ->  | M56: =IF(G56<>"",VLOOKUP(G56,OBJEKTLISTE!$A$4:$G$976,6,FALSE),"") ->  | N56: =IF(ISBLANK(D56),"",IF(ISBLANK(PROJEKTPARAMETER!B$2),"",PROJEKTPARAMETER!B$2)) ->  | O56: =IF(ISBLANK(D56),"",IF(ISBLANK(PROJEKTPARAMETER!B$3),"",PROJEKTPARAMETER!B$3)) ->  | P56: =IF(ISBLANK(D56),"",IF(ISBLANK(PROJEKTPARAMETER!B$4),"",PROJEKTPARAMETER!B$4)) ->  | Q56: =IF(ISBLANK(D56),"",IF(ISBLANK(PROJEKTPARAMETER!B$5),"",PROJEKTPARAMETER!B$5)) ->  | R56: =IF(ISBLANK(D56),"",IF(ISBLANK(PROJEKTPARAMETER!B$6),"",PROJEKTPARAMETER!B$6)) ->  | U56: =IF(ISBLANK(D56),"",IF(ISBLANK(PROJEKTPARAMETER!B$7),"",PROJEKTPARAMETER!B$7)) ->  | V56: =IF(ISBLANK(D56),"",IF(ISBLANK(PROJEKTPARAMETER!B$8),"",PROJEKTPARAMETER!B$8)) ->  | AC56: =IF(ISBLANK(G56),"",IF(ISBLANK(VLOOKUP(G56,OBJEKTLISTE!$A$4:$G$976,7,FALSE)),"",VLOOKUP(G56,OBJEKTLISTE!$A$4:$G$976,7,FALSE))) -> 
H57: =IF(G57<>"",VLOOKUP(G57,OBJEKTLISTE!$A$4:$G$976,2,FALSE),"") ->  | J57: =IF(G57<>"",VLOOKUP(G57,OBJEKTLISTE!$A$4:$G$976,3,FALSE),"") ->  | K57: =IF(G57<>"",VLOOKUP(G57,OBJEKTLISTE!$A$4:$G$976,4,FALSE),"") ->  | L57: =IF(G57<>"",VLOOKUP(G57,OBJEKTLISTE!$A$4:$G$976,5,FALSE),"") ->  | M57: =IF(G57<>"",VLOOKUP(G57,OBJEKTLISTE!$A$4:$G$976,6,FALSE),"") ->  | N57: =IF(ISBLANK(D57),"",IF(ISBLANK(PROJEKTPARAMETER!B$2),"",PROJEKTPARAMETER!B$2)) ->  | O57: =IF(ISBLANK(D57),"",IF(ISBLANK(PROJEKTPARAMETER!B$3),"",PROJEKTPARAMETER!B$3)) ->  | P57: =IF(ISBLANK(D57),"",IF(ISBLANK(PROJEKTPARAMETER!B$4),"",PROJEKTPARAMETER!B$4)) ->  | Q57: =IF(ISBLANK(D57),"",IF(ISBLANK(PROJEKTPARAMETER!B$5),"",PROJEKTPARAMETER!B$5)) ->  | R57: =IF(ISBLANK(D57),"",IF(ISBLANK(PROJEKTPARAMETER!B$6),"",PROJEKTPARAMETER!B$6)) ->  | U57: =IF(ISBLANK(D57),"",IF(ISBLANK(PROJEKTPARAMETER!B$7),"",PROJEKTPARAMETER!B$7)) ->  | V57: =IF(ISBLANK(D57),"",IF(ISBLANK(PROJEKTPARAMETER!B$8),"",PROJEKTPARAMETER!B$8)) ->  | AC57: =IF(ISBLANK(G57),"",IF(ISBLANK(VLOOKUP(G57,OBJEKTLISTE!$A$4:$G$976,7,FALSE)),"",VLOOKUP(G57,OBJEKTLISTE!$A$4:$G$976,7,FALSE))) -> 
H58: =IF(G58<>"",VLOOKUP(G58,OBJEKTLISTE!$A$4:$G$976,2,FALSE),"") ->  | J58: =IF(G58<>"",VLOOKUP(G58,OBJEKTLISTE!$A$4:$G$976,3,FALSE),"") ->  | K58: =IF(G58<>"",VLOOKUP(G58,OBJEKTLISTE!$A$4:$G$976,4,FALSE),"") ->  | L58: =IF(G58<>"",VLOOKUP(G58,OBJEKTLISTE!$A$4:$G$976,5,FALSE),"") ->  | M58: =IF(G58<>"",VLOOKUP(G58,OBJEKTLISTE!$A$4:$G$976,6,FALSE),"") ->  | N58: =IF(ISBLANK(D58),"",IF(ISBLANK(PROJEKTPARAMETER!B$2),"",PROJEKTPARAMETER!B$2)) ->  | O58: =IF(ISBLANK(D58),"",IF(ISBLANK(PROJEKTPARAMETER!B$3),"",PROJEKTPARAMETER!B$3)) ->  | P58: =IF(ISBLANK(D58),"",IF(ISBLANK(PROJEKTPARAMETER!B$4),"",PROJEKTPARAMETER!B$4)) ->  | Q58: =IF(ISBLANK(D58),"",IF(ISBLANK(PROJEKTPARAMETER!B$5),"",PROJEKTPARAMETER!B$5)) ->  | R58: =IF(ISBLANK(D58),"",IF(ISBLANK(PROJEKTPARAMETER!B$6),"",PROJEKTPARAMETER!B$6)) ->  | U58: =IF(ISBLANK(D58),"",IF(ISBLANK(PROJEKTPARAMETER!B$7),"",PROJEKTPARAMETER!B$7)) ->  | V58: =IF(ISBLANK(D58),"",IF(ISBLANK(PROJEKTPARAMETER!B$8),"",PROJEKTPARAMETER!B$8)) ->  | AC58: =IF(ISBLANK(G58),"",IF(ISBLANK(VLOOKUP(G58,OBJEKTLISTE!$A$4:$G$976,7,FALSE)),"",VLOOKUP(G58,OBJEKTLISTE!$A$4:$G$976,7,FALSE))) -> 
H59: =IF(G59<>"",VLOOKUP(G59,OBJEKTLISTE!$A$4:$G$976,2,FALSE),"") ->  | J59: =IF(G59<>"",VLOOKUP(G59,OBJEKTLISTE!$A$4:$G$976,3,FALSE),"") ->  | K59: =IF(G59<>"",VLOOKUP(G59,OBJEKTLISTE!$A$4:$G$976,4,FALSE),"") ->  | L59: =IF(G59<>"",VLOOKUP(G59,OBJEKTLISTE!$A$4:$G$976,5,FALSE),"") ->  | M59: =IF(G59<>"",VLOOKUP(G59,OBJEKTLISTE!$A$4:$G$976,6,FALSE),"") ->  | N59: =IF(ISBLANK(D59),"",IF(ISBLANK(PROJEKTPARAMETER!B$2),"",PROJEKTPARAMETER!B$2)) ->  | O59: =IF(ISBLANK(D59),"",IF(ISBLANK(PROJEKTPARAMETER!B$3),"",PROJEKTPARAMETER!B$3)) ->  | P59: =IF(ISBLANK(D59),"",IF(ISBLANK(PROJEKTPARAMETER!B$4),"",PROJEKTPARAMETER!B$4)) ->  | Q59: =IF(ISBLANK(D59),"",IF(ISBLANK(PROJEKTPARAMETER!B$5),"",PROJEKTPARAMETER!B$5)) ->  | R59: =IF(ISBLANK(D59),"",IF(ISBLANK(PROJEKTPARAMETER!B$6),"",PROJEKTPARAMETER!B$6)) ->  | U59: =IF(ISBLANK(D59),"",IF(ISBLANK(PROJEKTPARAMETER!B$7),"",PROJEKTPARAMETER!B$7)) ->  | V59: =IF(ISBLANK(D59),"",IF(ISBLANK(PROJEKTPARAMETER!B$8),"",PROJEKTPARAMETER!B$8)) ->  | AC59: =IF(ISBLANK(G59),"",IF(ISBLANK(VLOOKUP(G59,OBJEKTLISTE!$A$4:$G$976,7,FALSE)),"",VLOOKUP(G59,OBJEKTLISTE!$A$4:$G$976,7,FALSE))) -> 
H60: =IF(G60<>"",VLOOKUP(G60,OBJEKTLISTE!$A$4:$G$976,2,FALSE),"") ->  | J60: =IF(G60<>"",VLOOKUP(G60,OBJEKTLISTE!$A$4:$G$976,3,FALSE),"") ->  | K60: =IF(G60<>"",VLOOKUP(G60,OBJEKTLISTE!$A$4:$G$976,4,FALSE),"") ->  | L60: =IF(G60<>"",VLOOKUP(G60,OBJEKTLISTE!$A$4:$G$976,5,FALSE),"") ->  | M60: =IF(G60<>"",VLOOKUP(G60,OBJEKTLISTE!$A$4:$G$976,6,FALSE),"") ->  | N60: =IF(ISBLANK(D60),"",IF(ISBLANK(PROJEKTPARAMETER!B$2),"",PROJEKTPARAMETER!B$2)) ->  | O60: =IF(ISBLANK(D60),"",IF(ISBLANK(PROJEKTPARAMETER!B$3),"",PROJEKTPARAMETER!B$3)) ->  | P60: =IF(ISBLANK(D60),"",IF(ISBLANK(PROJEKTPARAMETER!B$4),"",PROJEKTPARAMETER!B$4)) ->  | Q60: =IF(ISBLANK(D60),"",IF(ISBLANK(PROJEKTPARAMETER!B$5),"",PROJEKTPARAMETER!B$5)) ->  | R60: =IF(ISBLANK(D60),"",IF(ISBLANK(PROJEKTPARAMETER!B$6),"",PROJEKTPARAMETER!B$6)) ->  | U60: =IF(ISBLANK(D60),"",IF(ISBLANK(PROJEKTPARAMETER!B$7),"",PROJEKTPARAMETER!B$7)) ->  | V60: =IF(ISBLANK(D60),"",IF(ISBLANK(PROJEKTPARAMETER!B$8),"",PROJEKTPARAMETER!B$8)) ->  | AC60: =IF(ISBLANK(G60),"",IF(ISBLANK(VLOOKUP(G60,OBJEKTLISTE!$A$4:$G$976,7,FALSE)),"",VLOOKUP(G60,OBJEKTLISTE!$A$4:$G$976,7,FALSE))) -> 
H61: =IF(G61<>"",VLOOKUP(G61,OBJEKTLISTE!$A$4:$G$976,2,FALSE),"") ->  | J61: =IF(G61<>"",VLOOKUP(G61,OBJEKTLISTE!$A$4:$G$976,3,FALSE),"") ->  | K61: =IF(G61<>"",VLOOKUP(G61,OBJEKTLISTE!$A$4:$G$976,4,FALSE),"") ->  | L61: =IF(G61<>"",VLOOKUP(G61,OBJEKTLISTE!$A$4:$G$976,5,FALSE),"") ->  | M61: =IF(G61<>"",VLOOKUP(G61,OBJEKTLISTE!$A$4:$G$976,6,FALSE),"") ->  | N61: =IF(ISBLANK(D61),"",IF(ISBLANK(PROJEKTPARAMETER!B$2),"",PROJEKTPARAMETER!B$2)) ->  | O61: =IF(ISBLANK(D61),"",IF(ISBLANK(PROJEKTPARAMETER!B$3),"",PROJEKTPARAMETER!B$3)) ->  | P61: =IF(ISBLANK(D61),"",IF(ISBLANK(PROJEKTPARAMETER!B$4),"",PROJEKTPARAMETER!B$4)) ->  | Q61: =IF(ISBLANK(D61),"",IF(ISBLANK(PROJEKTPARAMETER!B$5),"",PROJEKTPARAMETER!B$5)) ->  | R61: =IF(ISBLANK(D61),"",IF(ISBLANK(PROJEKTPARAMETER!B$6),"",PROJEKTPARAMETER!B$6)) ->  | U61: =IF(ISBLANK(D61),"",IF(ISBLANK(PROJEKTPARAMETER!B$7),"",PROJEKTPARAMETER!B$7)) ->  | V61: =IF(ISBLANK(D61),"",IF(ISBLANK(PROJEKTPARAMETER!B$8),"",PROJEKTPARAMETER!B$8)) ->  | AC61: =IF(ISBLANK(G61),"",IF(ISBLANK(VLOOKUP(G61,OBJEKTLISTE!$A$4:$G$976,7,FALSE)),"",VLOOKUP(G61,OBJEKTLISTE!$A$4:$G$976,7,FALSE))) -> 
H62: =IF(G62<>"",VLOOKUP(G62,OBJEKTLISTE!$A$4:$G$976,2,FALSE),"") ->  | J62: =IF(G62<>"",VLOOKUP(G62,OBJEKTLISTE!$A$4:$G$976,3,FALSE),"") ->  | K62: =IF(G62<>"",VLOOKUP(G62,OBJEKTLISTE!$A$4:$G$976,4,FALSE),"") ->  | L62: =IF(G62<>"",VLOOKUP(G62,OBJEKTLISTE!$A$4:$G$976,5,FALSE),"") ->  | M62: =IF(G62<>"",VLOOKUP(G62,OBJEKTLISTE!$A$4:$G$976,6,FALSE),"") ->  | N62: =IF(ISBLANK(D62),"",IF(ISBLANK(PROJEKTPARAMETER!B$2),"",PROJEKTPARAMETER!B$2)) ->  | O62: =IF(ISBLANK(D62),"",IF(ISBLANK(PROJEKTPARAMETER!B$3),"",PROJEKTPARAMETER!B$3)) ->  | P62: =IF(ISBLANK(D62),"",IF(ISBLANK(PROJEKTPARAMETER!B$4),"",PROJEKTPARAMETER!B$4)) ->  | Q62: =IF(ISBLANK(D62),"",IF(ISBLANK(PROJEKTPARAMETER!B$5),"",PROJEKTPARAMETER!B$5)) ->  | R62: =IF(ISBLANK(D62),"",IF(ISBLANK(PROJEKTPARAMETER!B$6),"",PROJEKTPARAMETER!B$6)) ->  | U62: =IF(ISBLANK(D62),"",IF(ISBLANK(PROJEKTPARAMETER!B$7),"",PROJEKTPARAMETER!B$7)) ->  | V62: =IF(ISBLANK(D62),"",IF(ISBLANK(PROJEKTPARAMETER!B$8),"",PROJEKTPARAMETER!B$8)) ->  | AC62: =IF(ISBLANK(G62),"",IF(ISBLANK(VLOOKUP(G62,OBJEKTLISTE!$A$4:$G$976,7,FALSE)),"",VLOOKUP(G62,OBJEKTLISTE!$A$4:$G$976,7,FALSE))) -> 
H63: =IF(G63<>"",VLOOKUP(G63,OBJEKTLISTE!$A$4:$G$976,2,FALSE),"") ->  | J63: =IF(G63<>"",VLOOKUP(G63,OBJEKTLISTE!$A$4:$G$976,3,FALSE),"") ->  | K63: =IF(G63<>"",VLOOKUP(G63,OBJEKTLISTE!$A$4:$G$976,4,FALSE),"") ->  | L63: =IF(G63<>"",VLOOKUP(G63,OBJEKTLISTE!$A$4:$G$976,5,FALSE),"") ->  | M63: =IF(G63<>"",VLOOKUP(G63,OBJEKTLISTE!$A$4:$G$976,6,FALSE),"") ->  | N63: =IF(ISBLANK(D63),"",IF(ISBLANK(PROJEKTPARAMETER!B$2),"",PROJEKTPARAMETER!B$2)) ->  | O63: =IF(ISBLANK(D63),"",IF(ISBLANK(PROJEKTPARAMETER!B$3),"",PROJEKTPARAMETER!B$3)) ->  | P63: =IF(ISBLANK(D63),"",IF(ISBLANK(PROJEKTPARAMETER!B$4),"",PROJEKTPARAMETER!B$4)) ->  | Q63: =IF(ISBLANK(D63),"",IF(ISBLANK(PROJEKTPARAMETER!B$5),"",PROJEKTPARAMETER!B$5)) ->  | R63: =IF(ISBLANK(D63),"",IF(ISBLANK(PROJEKTPARAMETER!B$6),"",PROJEKTPARAMETER!B$6)) ->  | U63: =IF(ISBLANK(D63),"",IF(ISBLANK(PROJEKTPARAMETER!B$7),"",PROJEKTPARAMETER!B$7)) ->  | V63: =IF(ISBLANK(D63),"",IF(ISBLANK(PROJEKTPARAMETER!B$8),"",PROJEKTPARAMETER!B$8)) ->  | AC63: =IF(ISBLANK(G63),"",IF(ISBLANK(VLOOKUP(G63,OBJEKTLISTE!$A$4:$G$976,7,FALSE)),"",VLOOKUP(G63,OBJEKTLISTE!$A$4:$G$976,7,FALSE))) -> 
H64: =IF(G64<>"",VLOOKUP(G64,OBJEKTLISTE!$A$4:$G$976,2,FALSE),"") ->  | J64: =IF(G64<>"",VLOOKUP(G64,OBJEKTLISTE!$A$4:$G$976,3,FALSE),"") ->  | K64: =IF(G64<>"",VLOOKUP(G64,OBJEKTLISTE!$A$4:$G$976,4,FALSE),"") ->  | L64: =IF(G64<>"",VLOOKUP(G64,OBJEKTLISTE!$A$4:$G$976,5,FALSE),"") ->  | M64: =IF(G64<>"",VLOOKUP(G64,OBJEKTLISTE!$A$4:$G$976,6,FALSE),"") ->  | N64: =IF(ISBLANK(D64),"",IF(ISBLANK(PROJEKTPARAMETER!B$2),"",PROJEKTPARAMETER!B$2)) ->  | O64: =IF(ISBLANK(D64),"",IF(ISBLANK(PROJEKTPARAMETER!B$3),"",PROJEKTPARAMETER!B$3)) ->  | P64: =IF(ISBLANK(D64),"",IF(ISBLANK(PROJEKTPARAMETER!B$4),"",PROJEKTPARAMETER!B$4)) ->  | Q64: =IF(ISBLANK(D64),"",IF(ISBLANK(PROJEKTPARAMETER!B$5),"",PROJEKTPARAMETER!B$5)) ->  | R64: =IF(ISBLANK(D64),"",IF(ISBLANK(PROJEKTPARAMETER!B$6),"",PROJEKTPARAMETER!B$6)) ->  | U64: =IF(ISBLANK(D64),"",IF(ISBLANK(PROJEKTPARAMETER!B$7),"",PROJEKTPARAMETER!B$7)) ->  | V64: =IF(ISBLANK(D64),"",IF(ISBLANK(PROJEKTPARAMETER!B$8),"",PROJEKTPARAMETER!B$8)) ->  | AC64: =IF(ISBLANK(G64),"",IF(ISBLANK(VLOOKUP(G64,OBJEKTLISTE!$A$4:$G$976,7,FALSE)),"",VLOOKUP(G64,OBJEKTLISTE!$A$4:$G$976,7,FALSE))) -> 
H65: =IF(G65<>"",VLOOKUP(G65,OBJEKTLISTE!$A$4:$G$976,2,FALSE),"") ->  | J65: =IF(G65<>"",VLOOKUP(G65,OBJEKTLISTE!$A$4:$G$976,3,FALSE),"") ->  | K65: =IF(G65<>"",VLOOKUP(G65,OBJEKTLISTE!$A$4:$G$976,4,FALSE),"") ->  | L65: =IF(G65<>"",VLOOKUP(G65,OBJEKTLISTE!$A$4:$G$976,5,FALSE),"") ->  | M65: =IF(G65<>"",VLOOKUP(G65,OBJEKTLISTE!$A$4:$G$976,6,FALSE),"") ->  | N65: =IF(ISBLANK(D65),"",IF(ISBLANK(PROJEKTPARAMETER!B$2),"",PROJEKTPARAMETER!B$2)) ->  | O65: =IF(ISBLANK(D65),"",IF(ISBLANK(PROJEKTPARAMETER!B$3),"",PROJEKTPARAMETER!B$3)) ->  | P65: =IF(ISBLANK(D65),"",IF(ISBLANK(PROJEKTPARAMETER!B$4),"",PROJEKTPARAMETER!B$4)) ->  | Q65: =IF(ISBLANK(D65),"",IF(ISBLANK(PROJEKTPARAMETER!B$5),"",PROJEKTPARAMETER!B$5)) ->  | R65: =IF(ISBLANK(D65),"",IF(ISBLANK(PROJEKTPARAMETER!B$6),"",PROJEKTPARAMETER!B$6)) ->  | U65: =IF(ISBLANK(D65),"",IF(ISBLANK(PROJEKTPARAMETER!B$7),"",PROJEKTPARAMETER!B$7)) ->  | V65: =IF(ISBLANK(D65),"",IF(ISBLANK(PROJEKTPARAMETER!B$8),"",PROJEKTPARAMETER!B$8)) ->  | AC65: =IF(ISBLANK(G65),"",IF(ISBLANK(VLOOKUP(G65,OBJEKTLISTE!$A$4:$G$976,7,FALSE)),"",VLOOKUP(G65,OBJEKTLISTE!$A$4:$G$976,7,FALSE))) -> 
H66: =IF(G66<>"",VLOOKUP(G66,OBJEKTLISTE!$A$4:$G$976,2,FALSE),"") ->  | J66: =IF(G66<>"",VLOOKUP(G66,OBJEKTLISTE!$A$4:$G$976,3,FALSE),"") ->  | K66: =IF(G66<>"",VLOOKUP(G66,OBJEKTLISTE!$A$4:$G$976,4,FALSE),"") ->  | L66: =IF(G66<>"",VLOOKUP(G66,OBJEKTLISTE!$A$4:$G$976,5,FALSE),"") ->  | M66: =IF(G66<>"",VLOOKUP(G66,OBJEKTLISTE!$A$4:$G$976,6,FALSE),"") ->  | N66: =IF(ISBLANK(D66),"",IF(ISBLANK(PROJEKTPARAMETER!B$2),"",PROJEKTPARAMETER!B$2)) ->  | O66: =IF(ISBLANK(D66),"",IF(ISBLANK(PROJEKTPARAMETER!B$3),"",PROJEKTPARAMETER!B$3)) ->  | P66: =IF(ISBLANK(D66),"",IF(ISBLANK(PROJEKTPARAMETER!B$4),"",PROJEKTPARAMETER!B$4)) ->  | Q66: =IF(ISBLANK(D66),"",IF(ISBLANK(PROJEKTPARAMETER!B$5),"",PROJEKTPARAMETER!B$5)) ->  | R66: =IF(ISBLANK(D66),"",IF(ISBLANK(PROJEKTPARAMETER!B$6),"",PROJEKTPARAMETER!B$6)) ->  | U66: =IF(ISBLANK(D66),"",IF(ISBLANK(PROJEKTPARAMETER!B$7),"",PROJEKTPARAMETER!B$7)) ->  | V66: =IF(ISBLANK(D66),"",IF(ISBLANK(PROJEKTPARAMETER!B$8),"",PROJEKTPARAMETER!B$8)) ->  | AC66: =IF(ISBLANK(G66),"",IF(ISBLANK(VLOOKUP(G66,OBJEKTLISTE!$A$4:$G$976,7,FALSE)),"",VLOOKUP(G66,OBJEKTLISTE!$A$4:$G$976,7,FALSE))) -> 
H67: =IF(G67<>"",VLOOKUP(G67,OBJEKTLISTE!$A$4:$G$976,2,FALSE),"") ->  | J67: =IF(G67<>"",VLOOKUP(G67,OBJEKTLISTE!$A$4:$G$976,3,FALSE),"") ->  | K67: =IF(G67<>"",VLOOKUP(G67,OBJEKTLISTE!$A$4:$G$976,4,FALSE),"") ->  | L67: =IF(G67<>"",VLOOKUP(G67,OBJEKTLISTE!$A$4:$G$976,5,FALSE),"") ->  | M67: =IF(G67<>"",VLOOKUP(G67,OBJEKTLISTE!$A$4:$G$976,6,FALSE),"") ->  | N67: =IF(ISBLANK(D67),"",IF(ISBLANK(PROJEKTPARAMETER!B$2),"",PROJEKTPARAMETER!B$2)) ->  | O67: =IF(ISBLANK(D67),"",IF(ISBLANK(PROJEKTPARAMETER!B$3),"",PROJEKTPARAMETER!B$3)) ->  | P67: =IF(ISBLANK(D67),"",IF(ISBLANK(PROJEKTPARAMETER!B$4),"",PROJEKTPARAMETER!B$4)) ->  | Q67: =IF(ISBLANK(D67),"",IF(ISBLANK(PROJEKTPARAMETER!B$5),"",PROJEKTPARAMETER!B$5)) ->  | R67: =IF(ISBLANK(D67),"",IF(ISBLANK(PROJEKTPARAMETER!B$6),"",PROJEKTPARAMETER!B$6)) ->  | U67: =IF(ISBLANK(D67),"",IF(ISBLANK(PROJEKTPARAMETER!B$7),"",PROJEKTPARAMETER!B$7)) ->  | V67: =IF(ISBLANK(D67),"",IF(ISBLANK(PROJEKTPARAMETER!B$8),"",PROJEKTPARAMETER!B$8)) ->  | Z67: =IF(OR(ISBLANK(C67), ISBLANK(E67)),"",VLOOKUP(C67 & "_" & E67,Dokumentart_ID,3,FALSE)) ->  | AA67: =IF(C67<>"",VLOOKUP(C67,Kategorisierung_ID,2,FALSE),"") ->  | AB67: =IF(OR(ISBLANK(C67), ISBLANK(E67)),"",VLOOKUP(C67 & "_" & E67,Dokumentart_ID,2,FALSE)) ->  | AC67: =IF(ISBLANK(G67),"",IF(ISBLANK(VLOOKUP(G67,OBJEKTLISTE!$A$4:$G$976,7,FALSE)),"",VLOOKUP(G67,OBJEKTLISTE!$A$4:$G$976,7,FALSE))) ->  | AD67: =IF(H67<>"",VLOOKUP(H67,Objekttyp_ID,3,FALSE),"") ->  | AE67: =IF(I67="","",IF(VLOOKUP(H67 & "_" & I67,Objektdetail_ID,2,FALSE)="","",VLOOKUP(H67 & "_" & I67,Objektdetail_ID,2,FALSE))) ->  | AF67: =IF(J67<>"",VLOOKUP(J67,Strecke_ID,2,FALSE),"") -> 
H68: =IF(G68<>"",VLOOKUP(G68,OBJEKTLISTE!$A$4:$G$976,2,FALSE),"") ->  | J68: =IF(G68<>"",VLOOKUP(G68,OBJEKTLISTE!$A$4:$G$976,3,FALSE),"") ->  | K68: =IF(G68<>"",VLOOKUP(G68,OBJEKTLISTE!$A$4:$G$976,4,FALSE),"") ->  | L68: =IF(G68<>"",VLOOKUP(G68,OBJEKTLISTE!$A$4:$G$976,5,FALSE),"") ->  | M68: =IF(G68<>"",VLOOKUP(G68,OBJEKTLISTE!$A$4:$G$976,6,FALSE),"") ->  | N68: =IF(ISBLANK(D68),"",IF(ISBLANK(PROJEKTPARAMETER!B$2),"",PROJEKTPARAMETER!B$2)) ->  | O68: =IF(ISBLANK(D68),"",IF(ISBLANK(PROJEKTPARAMETER!B$3),"",PROJEKTPARAMETER!B$3)) ->  | P68: =IF(ISBLANK(D68),"",IF(ISBLANK(PROJEKTPARAMETER!B$4),"",PROJEKTPARAMETER!B$4)) ->  | Q68: =IF(ISBLANK(D68),"",IF(ISBLANK(PROJEKTPARAMETER!B$5),"",PROJEKTPARAMETER!B$5)) ->  | R68: =IF(ISBLANK(D68),"",IF(ISBLANK(PROJEKTPARAMETER!B$6),"",PROJEKTPARAMETER!B$6)) ->  | U68: =IF(ISBLANK(D68),"",IF(ISBLANK(PROJEKTPARAMETER!B$7),"",PROJEKTPARAMETER!B$7)) ->  | V68: =IF(ISBLANK(D68),"",IF(ISBLANK(PROJEKTPARAMETER!B$8),"",PROJEKTPARAMETER!B$8)) ->  | Y68: =IF(ISBLANK(D68),"","freigegeben") ->  | AC68: =IF(ISBLANK(G68),"",IF(ISBLANK(VLOOKUP(G68,OBJEKTLISTE!$A$4:$G$976,7,FALSE)),"",VLOOKUP(G68,OBJEKTLISTE!$A$4:$G$976,7,FALSE))) -> 
H69: =IF(G69<>"",VLOOKUP(G69,OBJEKTLISTE!$A$4:$G$976,2,FALSE),"") ->  | J69: =IF(G69<>"",VLOOKUP(G69,OBJEKTLISTE!$A$4:$G$976,3,FALSE),"") ->  | K69: =IF(G69<>"",VLOOKUP(G69,OBJEKTLISTE!$A$4:$G$976,4,FALSE),"") ->  | L69: =IF(G69<>"",VLOOKUP(G69,OBJEKTLISTE!$A$4:$G$976,5,FALSE),"") ->  | M69: =IF(G69<>"",VLOOKUP(G69,OBJEKTLISTE!$A$4:$G$976,6,FALSE),"") ->  | N69: =IF(ISBLANK(D69),"",IF(ISBLANK(PROJEKTPARAMETER!B$2),"",PROJEKTPARAMETER!B$2)) ->  | O69: =IF(ISBLANK(D69),"",IF(ISBLANK(PROJEKTPARAMETER!B$3),"",PROJEKTPARAMETER!B$3)) ->  | P69: =IF(ISBLANK(D69),"",IF(ISBLANK(PROJEKTPARAMETER!B$4),"",PROJEKTPARAMETER!B$4)) ->  | Q69: =IF(ISBLANK(D69),"",IF(ISBLANK(PROJEKTPARAMETER!B$5),"",PROJEKTPARAMETER!B$5)) ->  | R69: =IF(ISBLANK(D69),"",IF(ISBLANK(PROJEKTPARAMETER!B$6),"",PROJEKTPARAMETER!B$6)) ->  | U69: =IF(ISBLANK(D69),"",IF(ISBLANK(PROJEKTPARAMETER!B$7),"",PROJEKTPARAMETER!B$7)) ->  | V69: =IF(ISBLANK(D69),"",IF(ISBLANK(PROJEKTPARAMETER!B$8),"",PROJEKTPARAMETER!B$8)) ->  | AC69: =IF(ISBLANK(G69),"",IF(ISBLANK(VLOOKUP(G69,OBJEKTLISTE!$A$4:$G$976,7,FALSE)),"",VLOOKUP(G69,OBJEKTLISTE!$A$4:$G$976,7,FALSE))) -> 
H70: =IF(G70<>"",VLOOKUP(G70,OBJEKTLISTE!$A$4:$G$976,2,FALSE),"") ->  | J70: =IF(G70<>"",VLOOKUP(G70,OBJEKTLISTE!$A$4:$G$976,3,FALSE),"") ->  | K70: =IF(G70<>"",VLOOKUP(G70,OBJEKTLISTE!$A$4:$G$976,4,FALSE),"") ->  | L70: =IF(G70<>"",VLOOKUP(G70,OBJEKTLISTE!$A$4:$G$976,5,FALSE),"") ->  | M70: =IF(G70<>"",VLOOKUP(G70,OBJEKTLISTE!$A$4:$G$976,6,FALSE),"") ->  | N70: =IF(ISBLANK(D70),"",IF(ISBLANK(PROJEKTPARAMETER!B$2),"",PROJEKTPARAMETER!B$2)) ->  | O70: =IF(ISBLANK(D70),"",IF(ISBLANK(PROJEKTPARAMETER!B$3),"",PROJEKTPARAMETER!B$3)) ->  | P70: =IF(ISBLANK(D70),"",IF(ISBLANK(PROJEKTPARAMETER!B$4),"",PROJEKTPARAMETER!B$4)) ->  | Q70: =IF(ISBLANK(D70),"",IF(ISBLANK(PROJEKTPARAMETER!B$5),"",PROJEKTPARAMETER!B$5)) ->  | R70: =IF(ISBLANK(D70),"",IF(ISBLANK(PROJEKTPARAMETER!B$6),"",PROJEKTPARAMETER!B$6)) ->  | U70: =IF(ISBLANK(D70),"",IF(ISBLANK(PROJEKTPARAMETER!B$7),"",PROJEKTPARAMETER!B$7)) ->  | V70: =IF(ISBLANK(D70),"",IF(ISBLANK(PROJEKTPARAMETER!B$8),"",PROJEKTPARAMETER!B$8)) ->  | AC70: =IF(ISBLANK(G70),"",IF(ISBLANK(VLOOKUP(G70,OBJEKTLISTE!$A$4:$G$976,7,FALSE)),"",VLOOKUP(G70,OBJEKTLISTE!$A$4:$G$976,7,FALSE))) -> 
H71: =IF(G71<>"",VLOOKUP(G71,OBJEKTLISTE!$A$4:$G$976,2,FALSE),"") ->  | J71: =IF(G71<>"",VLOOKUP(G71,OBJEKTLISTE!$A$4:$G$976,3,FALSE),"") ->  | K71: =IF(G71<>"",VLOOKUP(G71,OBJEKTLISTE!$A$4:$G$976,4,FALSE),"") ->  | L71: =IF(G71<>"",VLOOKUP(G71,OBJEKTLISTE!$A$4:$G$976,5,FALSE),"") ->  | M71: =IF(G71<>"",VLOOKUP(G71,OBJEKTLISTE!$A$4:$G$976,6,FALSE),"") ->  | N71: =IF(ISBLANK(D71),"",IF(ISBLANK(PROJEKTPARAMETER!B$2),"",PROJEKTPARAMETER!B$2)) ->  | O71: =IF(ISBLANK(D71),"",IF(ISBLANK(PROJEKTPARAMETER!B$3),"",PROJEKTPARAMETER!B$3)) ->  | P71: =IF(ISBLANK(D71),"",IF(ISBLANK(PROJEKTPARAMETER!B$4),"",PROJEKTPARAMETER!B$4)) ->  | Q71: =IF(ISBLANK(D71),"",IF(ISBLANK(PROJEKTPARAMETER!B$5),"",PROJEKTPARAMETER!B$5)) ->  | R71: =IF(ISBLANK(D71),"",IF(ISBLANK(PROJEKTPARAMETER!B$6),"",PROJEKTPARAMETER!B$6)) ->  | U71: =IF(ISBLANK(D71),"",IF(ISBLANK(PROJEKTPARAMETER!B$7),"",PROJEKTPARAMETER!B$7)) ->  | V71: =IF(ISBLANK(D71),"",IF(ISBLANK(PROJEKTPARAMETER!B$8),"",PROJEKTPARAMETER!B$8)) ->  | AC71: =IF(ISBLANK(G71),"",IF(ISBLANK(VLOOKUP(G71,OBJEKTLISTE!$A$4:$G$976,7,FALSE)),"",VLOOKUP(G71,OBJEKTLISTE!$A$4:$G$976,7,FALSE))) -> 
H72: =IF(G72<>"",VLOOKUP(G72,OBJEKTLISTE!$A$4:$G$976,2,FALSE),"") ->  | J72: =IF(G72<>"",VLOOKUP(G72,OBJEKTLISTE!$A$4:$G$976,3,FALSE),"") ->  | K72: =IF(G72<>"",VLOOKUP(G72,OBJEKTLISTE!$A$4:$G$976,4,FALSE),"") ->  | L72: =IF(G72<>"",VLOOKUP(G72,OBJEKTLISTE!$A$4:$G$976,5,FALSE),"") ->  | M72: =IF(G72<>"",VLOOKUP(G72,OBJEKTLISTE!$A$4:$G$976,6,FALSE),"") ->  | N72: =IF(ISBLANK(D72),"",IF(ISBLANK(PROJEKTPARAMETER!B$2),"",PROJEKTPARAMETER!B$2)) ->  | O72: =IF(ISBLANK(D72),"",IF(ISBLANK(PROJEKTPARAMETER!B$3),"",PROJEKTPARAMETER!B$3)) ->  | P72: =IF(ISBLANK(D72),"",IF(ISBLANK(PROJEKTPARAMETER!B$4),"",PROJEKTPARAMETER!B$4)) ->  | Q72: =IF(ISBLANK(D72),"",IF(ISBLANK(PROJEKTPARAMETER!B$5),"",PROJEKTPARAMETER!B$5)) ->  | R72: =IF(ISBLANK(D72),"",IF(ISBLANK(PROJEKTPARAMETER!B$6),"",PROJEKTPARAMETER!B$6)) ->  | U72: =IF(ISBLANK(D72),"",IF(ISBLANK(PROJEKTPARAMETER!B$7),"",PROJEKTPARAMETER!B$7)) ->  | V72: =IF(ISBLANK(D72),"",IF(ISBLANK(PROJEKTPARAMETER!B$8),"",PROJEKTPARAMETER!B$8)) ->  | AC72: =IF(ISBLANK(G72),"",IF(ISBLANK(VLOOKUP(G72,OBJEKTLISTE!$A$4:$G$976,7,FALSE)),"",VLOOKUP(G72,OBJEKTLISTE!$A$4:$G$976,7,FALSE))) -> 
H73: =IF(G73<>"",VLOOKUP(G73,OBJEKTLISTE!$A$4:$G$976,2,FALSE),"") ->  | J73: =IF(G73<>"",VLOOKUP(G73,OBJEKTLISTE!$A$4:$G$976,3,FALSE),"") ->  | K73: =IF(G73<>"",VLOOKUP(G73,OBJEKTLISTE!$A$4:$G$976,4,FALSE),"") ->  | L73: =IF(G73<>"",VLOOKUP(G73,OBJEKTLISTE!$A$4:$G$976,5,FALSE),"") ->  | M73: =IF(G73<>"",VLOOKUP(G73,OBJEKTLISTE!$A$4:$G$976,6,FALSE),"") ->  | N73: =IF(ISBLANK(D73),"",IF(ISBLANK(PROJEKTPARAMETER!B$2),"",PROJEKTPARAMETER!B$2)) ->  | O73: =IF(ISBLANK(D73),"",IF(ISBLANK(PROJEKTPARAMETER!B$3),"",PROJEKTPARAMETER!B$3)) ->  | P73: =IF(ISBLANK(D73),"",IF(ISBLANK(PROJEKTPARAMETER!B$4),"",PROJEKTPARAMETER!B$4)) ->  | Q73: =IF(ISBLANK(D73),"",IF(ISBLANK(PROJEKTPARAMETER!B$5),"",PROJEKTPARAMETER!B$5)) ->  | R73: =IF(ISBLANK(D73),"",IF(ISBLANK(PROJEKTPARAMETER!B$6),"",PROJEKTPARAMETER!B$6)) ->  | U73: =IF(ISBLANK(D73),"",IF(ISBLANK(PROJEKTPARAMETER!B$7),"",PROJEKTPARAMETER!B$7)) ->  | V73: =IF(ISBLANK(D73),"",IF(ISBLANK(PROJEKTPARAMETER!B$8),"",PROJEKTPARAMETER!B$8)) ->  | AC73: =IF(ISBLANK(G73),"",IF(ISBLANK(VLOOKUP(G73,OBJEKTLISTE!$A$4:$G$976,7,FALSE)),"",VLOOKUP(G73,OBJEKTLISTE!$A$4:$G$976,7,FALSE))) -> 
H74: =IF(G74<>"",VLOOKUP(G74,OBJEKTLISTE!$A$4:$G$976,2,FALSE),"") ->  | J74: =IF(G74<>"",VLOOKUP(G74,OBJEKTLISTE!$A$4:$G$976,3,FALSE),"") ->  | K74: =IF(G74<>"",VLOOKUP(G74,OBJEKTLISTE!$A$4:$G$976,4,FALSE),"") ->  | L74: =IF(G74<>"",VLOOKUP(G74,OBJEKTLISTE!$A$4:$G$976,5,FALSE),"") ->  | M74: =IF(G74<>"",VLOOKUP(G74,OBJEKTLISTE!$A$4:$G$976,6,FALSE),"") ->  | N74: =IF(ISBLANK(D74),"",IF(ISBLANK(PROJEKTPARAMETER!B$2),"",PROJEKTPARAMETER!B$2)) ->  | O74: =IF(ISBLANK(D74),"",IF(ISBLANK(PROJEKTPARAMETER!B$3),"",PROJEKTPARAMETER!B$3)) ->  | P74: =IF(ISBLANK(D74),"",IF(ISBLANK(PROJEKTPARAMETER!B$4),"",PROJEKTPARAMETER!B$4)) ->  | Q74: =IF(ISBLANK(D74),"",IF(ISBLANK(PROJEKTPARAMETER!B$5),"",PROJEKTPARAMETER!B$5)) ->  | R74: =IF(ISBLANK(D74),"",IF(ISBLANK(PROJEKTPARAMETER!B$6),"",PROJEKTPARAMETER!B$6)) ->  | U74: =IF(ISBLANK(D74),"",IF(ISBLANK(PROJEKTPARAMETER!B$7),"",PROJEKTPARAMETER!B$7)) ->  | V74: =IF(ISBLANK(D74),"",IF(ISBLANK(PROJEKTPARAMETER!B$8),"",PROJEKTPARAMETER!B$8)) ->  | AC74: =IF(ISBLANK(G74),"",IF(ISBLANK(VLOOKUP(G74,OBJEKTLISTE!$A$4:$G$976,7,FALSE)),"",VLOOKUP(G74,OBJEKTLISTE!$A$4:$G$976,7,FALSE))) -> 
H75: =IF(G75<>"",VLOOKUP(G75,OBJEKTLISTE!$A$4:$G$976,2,FALSE),"") ->  | J75: =IF(G75<>"",VLOOKUP(G75,OBJEKTLISTE!$A$4:$G$976,3,FALSE),"") ->  | K75: =IF(G75<>"",VLOOKUP(G75,OBJEKTLISTE!$A$4:$G$976,4,FALSE),"") ->  | L75: =IF(G75<>"",VLOOKUP(G75,OBJEKTLISTE!$A$4:$G$976,5,FALSE),"") ->  | M75: =IF(G75<>"",VLOOKUP(G75,OBJEKTLISTE!$A$4:$G$976,6,FALSE),"") ->  | N75: =IF(ISBLANK(D75),"",IF(ISBLANK(PROJEKTPARAMETER!B$2),"",PROJEKTPARAMETER!B$2)) ->  | O75: =IF(ISBLANK(D75),"",IF(ISBLANK(PROJEKTPARAMETER!B$3),"",PROJEKTPARAMETER!B$3)) ->  | P75: =IF(ISBLANK(D75),"",IF(ISBLANK(PROJEKTPARAMETER!B$4),"",PROJEKTPARAMETER!B$4)) ->  | Q75: =IF(ISBLANK(D75),"",IF(ISBLANK(PROJEKTPARAMETER!B$5),"",PROJEKTPARAMETER!B$5)) ->  | R75: =IF(ISBLANK(D75),"",IF(ISBLANK(PROJEKTPARAMETER!B$6),"",PROJEKTPARAMETER!B$6)) ->  | U75: =IF(ISBLANK(D75),"",IF(ISBLANK(PROJEKTPARAMETER!B$7),"",PROJEKTPARAMETER!B$7)) ->  | V75: =IF(ISBLANK(D75),"",IF(ISBLANK(PROJEKTPARAMETER!B$8),"",PROJEKTPARAMETER!B$8)) ->  | AC75: =IF(ISBLANK(G75),"",IF(ISBLANK(VLOOKUP(G75,OBJEKTLISTE!$A$4:$G$976,7,FALSE)),"",VLOOKUP(G75,OBJEKTLISTE!$A$4:$G$976,7,FALSE))) -> 
H76: =IF(G76<>"",VLOOKUP(G76,OBJEKTLISTE!$A$4:$G$976,2,FALSE),"") ->  | J76: =IF(G76<>"",VLOOKUP(G76,OBJEKTLISTE!$A$4:$G$976,3,FALSE),"") ->  | K76: =IF(G76<>"",VLOOKUP(G76,OBJEKTLISTE!$A$4:$G$976,4,FALSE),"") ->  | L76: =IF(G76<>"",VLOOKUP(G76,OBJEKTLISTE!$A$4:$G$976,5,FALSE),"") ->  | M76: =IF(G76<>"",VLOOKUP(G76,OBJEKTLISTE!$A$4:$G$976,6,FALSE),"") ->  | N76: =IF(ISBLANK(D76),"",IF(ISBLANK(PROJEKTPARAMETER!B$2),"",PROJEKTPARAMETER!B$2)) ->  | O76: =IF(ISBLANK(D76),"",IF(ISBLANK(PROJEKTPARAMETER!B$3),"",PROJEKTPARAMETER!B$3)) ->  | P76: =IF(ISBLANK(D76),"",IF(ISBLANK(PROJEKTPARAMETER!B$4),"",PROJEKTPARAMETER!B$4)) ->  | Q76: =IF(ISBLANK(D76),"",IF(ISBLANK(PROJEKTPARAMETER!B$5),"",PROJEKTPARAMETER!B$5)) ->  | R76: =IF(ISBLANK(D76),"",IF(ISBLANK(PROJEKTPARAMETER!B$6),"",PROJEKTPARAMETER!B$6)) ->  | U76: =IF(ISBLANK(D76),"",IF(ISBLANK(PROJEKTPARAMETER!B$7),"",PROJEKTPARAMETER!B$7)) ->  | V76: =IF(ISBLANK(D76),"",IF(ISBLANK(PROJEKTPARAMETER!B$8),"",PROJEKTPARAMETER!B$8)) ->  | AC76: =IF(ISBLANK(G76),"",IF(ISBLANK(VLOOKUP(G76,OBJEKTLISTE!$A$4:$G$976,7,FALSE)),"",VLOOKUP(G76,OBJEKTLISTE!$A$4:$G$976,7,FALSE))) -> 
H77: =IF(G77<>"",VLOOKUP(G77,OBJEKTLISTE!$A$4:$G$976,2,FALSE),"") ->  | J77: =IF(G77<>"",VLOOKUP(G77,OBJEKTLISTE!$A$4:$G$976,3,FALSE),"") ->  | K77: =IF(G77<>"",VLOOKUP(G77,OBJEKTLISTE!$A$4:$G$976,4,FALSE),"") ->  | L77: =IF(G77<>"",VLOOKUP(G77,OBJEKTLISTE!$A$4:$G$976,5,FALSE),"") ->  | M77: =IF(G77<>"",VLOOKUP(G77,OBJEKTLISTE!$A$4:$G$976,6,FALSE),"") ->  | N77: =IF(ISBLANK(D77),"",IF(ISBLANK(PROJEKTPARAMETER!B$2),"",PROJEKTPARAMETER!B$2)) ->  | O77: =IF(ISBLANK(D77),"",IF(ISBLANK(PROJEKTPARAMETER!B$3),"",PROJEKTPARAMETER!B$3)) ->  | P77: =IF(ISBLANK(D77),"",IF(ISBLANK(PROJEKTPARAMETER!B$4),"",PROJEKTPARAMETER!B$4)) ->  | Q77: =IF(ISBLANK(D77),"",IF(ISBLANK(PROJEKTPARAMETER!B$5),"",PROJEKTPARAMETER!B$5)) ->  | R77: =IF(ISBLANK(D77),"",IF(ISBLANK(PROJEKTPARAMETER!B$6),"",PROJEKTPARAMETER!B$6)) ->  | U77: =IF(ISBLANK(D77),"",IF(ISBLANK(PROJEKTPARAMETER!B$7),"",PROJEKTPARAMETER!B$7)) ->  | V77: =IF(ISBLANK(D77),"",IF(ISBLANK(PROJEKTPARAMETER!B$8),"",PROJEKTPARAMETER!B$8)) ->  | AC77: =IF(ISBLANK(G77),"",IF(ISBLANK(VLOOKUP(G77,OBJEKTLISTE!$A$4:$G$976,7,FALSE)),"",VLOOKUP(G77,OBJEKTLISTE!$A$4:$G$976,7,FALSE))) -> 
H78: =IF(G78<>"",VLOOKUP(G78,OBJEKTLISTE!$A$4:$G$976,2,FALSE),"") ->  | J78: =IF(G78<>"",VLOOKUP(G78,OBJEKTLISTE!$A$4:$G$976,3,FALSE),"") ->  | K78: =IF(G78<>"",VLOOKUP(G78,OBJEKTLISTE!$A$4:$G$976,4,FALSE),"") ->  | L78: =IF(G78<>"",VLOOKUP(G78,OBJEKTLISTE!$A$4:$G$976,5,FALSE),"") ->  | M78: =IF(G78<>"",VLOOKUP(G78,OBJEKTLISTE!$A$4:$G$976,6,FALSE),"") ->  | N78: =IF(ISBLANK(D78),"",IF(ISBLANK(PROJEKTPARAMETER!B$2),"",PROJEKTPARAMETER!B$2)) ->  | O78: =IF(ISBLANK(D78),"",IF(ISBLANK(PROJEKTPARAMETER!B$3),"",PROJEKTPARAMETER!B$3)) ->  | P78: =IF(ISBLANK(D78),"",IF(ISBLANK(PROJEKTPARAMETER!B$4),"",PROJEKTPARAMETER!B$4)) ->  | Q78: =IF(ISBLANK(D78),"",IF(ISBLANK(PROJEKTPARAMETER!B$5),"",PROJEKTPARAMETER!B$5)) ->  | R78: =IF(ISBLANK(D78),"",IF(ISBLANK(PROJEKTPARAMETER!B$6),"",PROJEKTPARAMETER!B$6)) ->  | U78: =IF(ISBLANK(D78),"",IF(ISBLANK(PROJEKTPARAMETER!B$7),"",PROJEKTPARAMETER!B$7)) ->  | V78: =IF(ISBLANK(D78),"",IF(ISBLANK(PROJEKTPARAMETER!B$8),"",PROJEKTPARAMETER!B$8)) ->  | AC78: =IF(ISBLANK(G78),"",IF(ISBLANK(VLOOKUP(G78,OBJEKTLISTE!$A$4:$G$976,7,FALSE)),"",VLOOKUP(G78,OBJEKTLISTE!$A$4:$G$976,7,FALSE))) -> 
H79: =IF(G79<>"",VLOOKUP(G79,OBJEKTLISTE!$A$4:$G$976,2,FALSE),"") ->  | J79: =IF(G79<>"",VLOOKUP(G79,OBJEKTLISTE!$A$4:$G$976,3,FALSE),"") ->  | K79: =IF(G79<>"",VLOOKUP(G79,OBJEKTLISTE!$A$4:$G$976,4,FALSE),"") ->  | L79: =IF(G79<>"",VLOOKUP(G79,OBJEKTLISTE!$A$4:$G$976,5,FALSE),"") ->  | M79: =IF(G79<>"",VLOOKUP(G79,OBJEKTLISTE!$A$4:$G$976,6,FALSE),"") ->  | N79: =IF(ISBLANK(D79),"",IF(ISBLANK(PROJEKTPARAMETER!B$2),"",PROJEKTPARAMETER!B$2)) ->  | O79: =IF(ISBLANK(D79),"",IF(ISBLANK(PROJEKTPARAMETER!B$3),"",PROJEKTPARAMETER!B$3)) ->  | P79: =IF(ISBLANK(D79),"",IF(ISBLANK(PROJEKTPARAMETER!B$4),"",PROJEKTPARAMETER!B$4)) ->  | Q79: =IF(ISBLANK(D79),"",IF(ISBLANK(PROJEKTPARAMETER!B$5),"",PROJEKTPARAMETER!B$5)) ->  | R79: =IF(ISBLANK(D79),"",IF(ISBLANK(PROJEKTPARAMETER!B$6),"",PROJEKTPARAMETER!B$6)) ->  | U79: =IF(ISBLANK(D79),"",IF(ISBLANK(PROJEKTPARAMETER!B$7),"",PROJEKTPARAMETER!B$7)) ->  | V79: =IF(ISBLANK(D79),"",IF(ISBLANK(PROJEKTPARAMETER!B$8),"",PROJEKTPARAMETER!B$8)) ->  | AC79: =IF(ISBLANK(G79),"",IF(ISBLANK(VLOOKUP(G79,OBJEKTLISTE!$A$4:$G$976,7,FALSE)),"",VLOOKUP(G79,OBJEKTLISTE!$A$4:$G$976,7,FALSE))) -> 
H80: =IF(G80<>"",VLOOKUP(G80,OBJEKTLISTE!$A$4:$G$976,2,FALSE),"") ->  | J80: =IF(G80<>"",VLOOKUP(G80,OBJEKTLISTE!$A$4:$G$976,3,FALSE),"") ->  | K80: =IF(G80<>"",VLOOKUP(G80,OBJEKTLISTE!$A$4:$G$976,4,FALSE),"") ->  | L80: =IF(G80<>"",VLOOKUP(G80,OBJEKTLISTE!$A$4:$G$976,5,FALSE),"") ->  | M80: =IF(G80<>"",VLOOKUP(G80,OBJEKTLISTE!$A$4:$G$976,6,FALSE),"") ->  | N80: =IF(ISBLANK(D80),"",IF(ISBLANK(PROJEKTPARAMETER!B$2),"",PROJEKTPARAMETER!B$2)) ->  | O80: =IF(ISBLANK(D80),"",IF(ISBLANK(PROJEKTPARAMETER!B$3),"",PROJEKTPARAMETER!B$3)) ->  | P80: =IF(ISBLANK(D80),"",IF(ISBLANK(PROJEKTPARAMETER!B$4),"",PROJEKTPARAMETER!B$4)) ->  | Q80: =IF(ISBLANK(D80),"",IF(ISBLANK(PROJEKTPARAMETER!B$5),"",PROJEKTPARAMETER!B$5)) ->  | R80: =IF(ISBLANK(D80),"",IF(ISBLANK(PROJEKTPARAMETER!B$6),"",PROJEKTPARAMETER!B$6)) ->  | U80: =IF(ISBLANK(D80),"",IF(ISBLANK(PROJEKTPARAMETER!B$7),"",PROJEKTPARAMETER!B$7)) ->  | V80: =IF(ISBLANK(D80),"",IF(ISBLANK(PROJEKTPARAMETER!B$8),"",PROJEKTPARAMETER!B$8)) ->  | AC80: =IF(ISBLANK(G80),"",IF(ISBLANK(VLOOKUP(G80,OBJEKTLISTE!$A$4:$G$976,7,FALSE)),"",VLOOKUP(G80,OBJEKTLISTE!$A$4:$G$976,7,FALSE))) -> 
H81: =IF(G81<>"",VLOOKUP(G81,OBJEKTLISTE!$A$4:$G$976,2,FALSE),"") ->  | J81: =IF(G81<>"",VLOOKUP(G81,OBJEKTLISTE!$A$4:$G$976,3,FALSE),"") ->  | K81: =IF(G81<>"",VLOOKUP(G81,OBJEKTLISTE!$A$4:$G$976,4,FALSE),"") ->  | L81: =IF(G81<>"",VLOOKUP(G81,OBJEKTLISTE!$A$4:$G$976,5,FALSE),"") ->  | M81: =IF(G81<>"",VLOOKUP(G81,OBJEKTLISTE!$A$4:$G$976,6,FALSE),"") ->  | N81: =IF(ISBLANK(D81),"",IF(ISBLANK(PROJEKTPARAMETER!B$2),"",PROJEKTPARAMETER!B$2)) ->  | O81: =IF(ISBLANK(D81),"",IF(ISBLANK(PROJEKTPARAMETER!B$3),"",PROJEKTPARAMETER!B$3)) ->  | P81: =IF(ISBLANK(D81),"",IF(ISBLANK(PROJEKTPARAMETER!B$4),"",PROJEKTPARAMETER!B$4)) ->  | Q81: =IF(ISBLANK(D81),"",IF(ISBLANK(PROJEKTPARAMETER!B$5),"",PROJEKTPARAMETER!B$5)) ->  | R81: =IF(ISBLANK(D81),"",IF(ISBLANK(PROJEKTPARAMETER!B$6),"",PROJEKTPARAMETER!B$6)) ->  | U81: =IF(ISBLANK(D81),"",IF(ISBLANK(PROJEKTPARAMETER!B$7),"",PROJEKTPARAMETER!B$7)) ->  | V81: =IF(ISBLANK(D81),"",IF(ISBLANK(PROJEKTPARAMETER!B$8),"",PROJEKTPARAMETER!B$8)) ->  | AC81: =IF(ISBLANK(G81),"",IF(ISBLANK(VLOOKUP(G81,OBJEKTLISTE!$A$4:$G$976,7,FALSE)),"",VLOOKUP(G81,OBJEKTLISTE!$A$4:$G$976,7,FALSE))) -> 
H82: =IF(G82<>"",VLOOKUP(G82,OBJEKTLISTE!$A$4:$G$976,2,FALSE),"") ->  | J82: =IF(G82<>"",VLOOKUP(G82,OBJEKTLISTE!$A$4:$G$976,3,FALSE),"") ->  | K82: =IF(G82<>"",VLOOKUP(G82,OBJEKTLISTE!$A$4:$G$976,4,FALSE),"") ->  | L82: =IF(G82<>"",VLOOKUP(G82,OBJEKTLISTE!$A$4:$G$976,5,FALSE),"") ->  | M82: =IF(G82<>"",VLOOKUP(G82,OBJEKTLISTE!$A$4:$G$976,6,FALSE),"") ->  | N82: =IF(ISBLANK(D82),"",IF(ISBLANK(PROJEKTPARAMETER!B$2),"",PROJEKTPARAMETER!B$2)) ->  | O82: =IF(ISBLANK(D82),"",IF(ISBLANK(PROJEKTPARAMETER!B$3),"",PROJEKTPARAMETER!B$3)) ->  | P82: =IF(ISBLANK(D82),"",IF(ISBLANK(PROJEKTPARAMETER!B$4),"",PROJEKTPARAMETER!B$4)) ->  | Q82: =IF(ISBLANK(D82),"",IF(ISBLANK(PROJEKTPARAMETER!B$5),"",PROJEKTPARAMETER!B$5)) ->  | R82: =IF(ISBLANK(D82),"",IF(ISBLANK(PROJEKTPARAMETER!B$6),"",PROJEKTPARAMETER!B$6)) ->  | U82: =IF(ISBLANK(D82),"",IF(ISBLANK(PROJEKTPARAMETER!B$7),"",PROJEKTPARAMETER!B$7)) ->  | V82: =IF(ISBLANK(D82),"",IF(ISBLANK(PROJEKTPARAMETER!B$8),"",PROJEKTPARAMETER!B$8)) ->  | AC82: =IF(ISBLANK(G82),"",IF(ISBLANK(VLOOKUP(G82,OBJEKTLISTE!$A$4:$G$976,7,FALSE)),"",VLOOKUP(G82,OBJEKTLISTE!$A$4:$G$976,7,FALSE))) -> 
H83: =IF(G83<>"",VLOOKUP(G83,OBJEKTLISTE!$A$4:$G$976,2,FALSE),"") ->  | J83: =IF(G83<>"",VLOOKUP(G83,OBJEKTLISTE!$A$4:$G$976,3,FALSE),"") ->  | K83: =IF(G83<>"",VLOOKUP(G83,OBJEKTLISTE!$A$4:$G$976,4,FALSE),"") ->  | L83: =IF(G83<>"",VLOOKUP(G83,OBJEKTLISTE!$A$4:$G$976,5,FALSE),"") ->  | M83: =IF(G83<>"",VLOOKUP(G83,OBJEKTLISTE!$A$4:$G$976,6,FALSE),"") ->  | N83: =IF(ISBLANK(D83),"",IF(ISBLANK(PROJEKTPARAMETER!B$2),"",PROJEKTPARAMETER!B$2)) ->  | O83: =IF(ISBLANK(D83),"",IF(ISBLANK(PROJEKTPARAMETER!B$3),"",PROJEKTPARAMETER!B$3)) ->  | P83: =IF(ISBLANK(D83),"",IF(ISBLANK(PROJEKTPARAMETER!B$4),"",PROJEKTPARAMETER!B$4)) ->  | Q83: =IF(ISBLANK(D83),"",IF(ISBLANK(PROJEKTPARAMETER!B$5),"",PROJEKTPARAMETER!B$5)) ->  | R83: =IF(ISBLANK(D83),"",IF(ISBLANK(PROJEKTPARAMETER!B$6),"",PROJEKTPARAMETER!B$6)) ->  | U83: =IF(ISBLANK(D83),"",IF(ISBLANK(PROJEKTPARAMETER!B$7),"",PROJEKTPARAMETER!B$7)) ->  | V83: =IF(ISBLANK(D83),"",IF(ISBLANK(PROJEKTPARAMETER!B$8),"",PROJEKTPARAMETER!B$8)) ->  | AC83: =IF(ISBLANK(G83),"",IF(ISBLANK(VLOOKUP(G83,OBJEKTLISTE!$A$4:$G$976,7,FALSE)),"",VLOOKUP(G83,OBJEKTLISTE!$A$4:$G$976,7,FALSE))) -> 
H84: =IF(G84<>"",VLOOKUP(G84,OBJEKTLISTE!$A$4:$G$976,2,FALSE),"") ->  | J84: =IF(G84<>"",VLOOKUP(G84,OBJEKTLISTE!$A$4:$G$976,3,FALSE),"") ->  | K84: =IF(G84<>"",VLOOKUP(G84,OBJEKTLISTE!$A$4:$G$976,4,FALSE),"") ->  | L84: =IF(G84<>"",VLOOKUP(G84,OBJEKTLISTE!$A$4:$G$976,5,FALSE),"") ->  | M84: =IF(G84<>"",VLOOKUP(G84,OBJEKTLISTE!$A$4:$G$976,6,FALSE),"") ->  | N84: =IF(ISBLANK(D84),"",IF(ISBLANK(PROJEKTPARAMETER!B$2),"",PROJEKTPARAMETER!B$2)) ->  | O84: =IF(ISBLANK(D84),"",IF(ISBLANK(PROJEKTPARAMETER!B$3),"",PROJEKTPARAMETER!B$3)) ->  | P84: =IF(ISBLANK(D84),"",IF(ISBLANK(PROJEKTPARAMETER!B$4),"",PROJEKTPARAMETER!B$4)) ->  | Q84: =IF(ISBLANK(D84),"",IF(ISBLANK(PROJEKTPARAMETER!B$5),"",PROJEKTPARAMETER!B$5)) ->  | R84: =IF(ISBLANK(D84),"",IF(ISBLANK(PROJEKTPARAMETER!B$6),"",PROJEKTPARAMETER!B$6)) ->  | U84: =IF(ISBLANK(D84),"",IF(ISBLANK(PROJEKTPARAMETER!B$7),"",PROJEKTPARAMETER!B$7)) ->  | V84: =IF(ISBLANK(D84),"",IF(ISBLANK(PROJEKTPARAMETER!B$8),"",PROJEKTPARAMETER!B$8)) ->  | AC84: =IF(ISBLANK(G84),"",IF(ISBLANK(VLOOKUP(G84,OBJEKTLISTE!$A$4:$G$976,7,FALSE)),"",VLOOKUP(G84,OBJEKTLISTE!$A$4:$G$976,7,FALSE))) -> 
H85: =IF(G85<>"",VLOOKUP(G85,OBJEKTLISTE!$A$4:$G$976,2,FALSE),"") ->  | J85: =IF(G85<>"",VLOOKUP(G85,OBJEKTLISTE!$A$4:$G$976,3,FALSE),"") ->  | K85: =IF(G85<>"",VLOOKUP(G85,OBJEKTLISTE!$A$4:$G$976,4,FALSE),"") ->  | L85: =IF(G85<>"",VLOOKUP(G85,OBJEKTLISTE!$A$4:$G$976,5,FALSE),"") ->  | M85: =IF(G85<>"",VLOOKUP(G85,OBJEKTLISTE!$A$4:$G$976,6,FALSE),"") ->  | N85: =IF(ISBLANK(D85),"",IF(ISBLANK(PROJEKTPARAMETER!B$2),"",PROJEKTPARAMETER!B$2)) ->  | O85: =IF(ISBLANK(D85),"",IF(ISBLANK(PROJEKTPARAMETER!B$3),"",PROJEKTPARAMETER!B$3)) ->  | P85: =IF(ISBLANK(D85),"",IF(ISBLANK(PROJEKTPARAMETER!B$4),"",PROJEKTPARAMETER!B$4)) ->  | Q85: =IF(ISBLANK(D85),"",IF(ISBLANK(PROJEKTPARAMETER!B$5),"",PROJEKTPARAMETER!B$5)) ->  | R85: =IF(ISBLANK(D85),"",IF(ISBLANK(PROJEKTPARAMETER!B$6),"",PROJEKTPARAMETER!B$6)) ->  | U85: =IF(ISBLANK(D85),"",IF(ISBLANK(PROJEKTPARAMETER!B$7),"",PROJEKTPARAMETER!B$7)) ->  | V85: =IF(ISBLANK(D85),"",IF(ISBLANK(PROJEKTPARAMETER!B$8),"",PROJEKTPARAMETER!B$8)) ->  | AC85: =IF(ISBLANK(G85),"",IF(ISBLANK(VLOOKUP(G85,OBJEKTLISTE!$A$4:$G$976,7,FALSE)),"",VLOOKUP(G85,OBJEKTLISTE!$A$4:$G$976,7,FALSE))) -> 
H86: =IF(G86<>"",VLOOKUP(G86,OBJEKTLISTE!$A$4:$G$976,2,FALSE),"") ->  | J86: =IF(G86<>"",VLOOKUP(G86,OBJEKTLISTE!$A$4:$G$976,3,FALSE),"") ->  | K86: =IF(G86<>"",VLOOKUP(G86,OBJEKTLISTE!$A$4:$G$976,4,FALSE),"") ->  | L86: =IF(G86<>"",VLOOKUP(G86,OBJEKTLISTE!$A$4:$G$976,5,FALSE),"") ->  | M86: =IF(G86<>"",VLOOKUP(G86,OBJEKTLISTE!$A$4:$G$976,6,FALSE),"") ->  | N86: =IF(ISBLANK(D86),"",IF(ISBLANK(PROJEKTPARAMETER!B$2),"",PROJEKTPARAMETER!B$2)) ->  | O86: =IF(ISBLANK(D86),"",IF(ISBLANK(PROJEKTPARAMETER!B$3),"",PROJEKTPARAMETER!B$3)) ->  | P86: =IF(ISBLANK(D86),"",IF(ISBLANK(PROJEKTPARAMETER!B$4),"",PROJEKTPARAMETER!B$4)) ->  | Q86: =IF(ISBLANK(D86),"",IF(ISBLANK(PROJEKTPARAMETER!B$5),"",PROJEKTPARAMETER!B$5)) ->  | R86: =IF(ISBLANK(D86),"",IF(ISBLANK(PROJEKTPARAMETER!B$6),"",PROJEKTPARAMETER!B$6)) ->  | U86: =IF(ISBLANK(D86),"",IF(ISBLANK(PROJEKTPARAMETER!B$7),"",PROJEKTPARAMETER!B$7)) ->  | V86: =IF(ISBLANK(D86),"",IF(ISBLANK(PROJEKTPARAMETER!B$8),"",PROJEKTPARAMETER!B$8)) ->  | AC86: =IF(ISBLANK(G86),"",IF(ISBLANK(VLOOKUP(G86,OBJEKTLISTE!$A$4:$G$976,7,FALSE)),"",VLOOKUP(G86,OBJEKTLISTE!$A$4:$G$976,7,FALSE))) -> 
H87: =IF(G87<>"",VLOOKUP(G87,OBJEKTLISTE!$A$4:$G$976,2,FALSE),"") ->  | J87: =IF(G87<>"",VLOOKUP(G87,OBJEKTLISTE!$A$4:$G$976,3,FALSE),"") ->  | K87: =IF(G87<>"",VLOOKUP(G87,OBJEKTLISTE!$A$4:$G$976,4,FALSE),"") ->  | L87: =IF(G87<>"",VLOOKUP(G87,OBJEKTLISTE!$A$4:$G$976,5,FALSE),"") ->  | M87: =IF(G87<>"",VLOOKUP(G87,OBJEKTLISTE!$A$4:$G$976,6,FALSE),"") ->  | N87: =IF(ISBLANK(D87),"",IF(ISBLANK(PROJEKTPARAMETER!B$2),"",PROJEKTPARAMETER!B$2)) ->  | O87: =IF(ISBLANK(D87),"",IF(ISBLANK(PROJEKTPARAMETER!B$3),"",PROJEKTPARAMETER!B$3)) ->  | P87: =IF(ISBLANK(D87),"",IF(ISBLANK(PROJEKTPARAMETER!B$4),"",PROJEKTPARAMETER!B$4)) ->  | Q87: =IF(ISBLANK(D87),"",IF(ISBLANK(PROJEKTPARAMETER!B$5),"",PROJEKTPARAMETER!B$5)) ->  | R87: =IF(ISBLANK(D87),"",IF(ISBLANK(PROJEKTPARAMETER!B$6),"",PROJEKTPARAMETER!B$6)) ->  | U87: =IF(ISBLANK(D87),"",IF(ISBLANK(PROJEKTPARAMETER!B$7),"",PROJEKTPARAMETER!B$7)) ->  | V87: =IF(ISBLANK(D87),"",IF(ISBLANK(PROJEKTPARAMETER!B$8),"",PROJEKTPARAMETER!B$8)) ->  | AC87: =IF(ISBLANK(G87),"",IF(ISBLANK(VLOOKUP(G87,OBJEKTLISTE!$A$4:$G$976,7,FALSE)),"",VLOOKUP(G87,OBJEKTLISTE!$A$4:$G$976,7,FALSE))) -> 
H88: =IF(G88<>"",VLOOKUP(G88,OBJEKTLISTE!$A$4:$G$976,2,FALSE),"") ->  | J88: =IF(G88<>"",VLOOKUP(G88,OBJEKTLISTE!$A$4:$G$976,3,FALSE),"") ->  | K88: =IF(G88<>"",VLOOKUP(G88,OBJEKTLISTE!$A$4:$G$976,4,FALSE),"") ->  | L88: =IF(G88<>"",VLOOKUP(G88,OBJEKTLISTE!$A$4:$G$976,5,FALSE),"") ->  | M88: =IF(G88<>"",VLOOKUP(G88,OBJEKTLISTE!$A$4:$G$976,6,FALSE),"") ->  | N88: =IF(ISBLANK(D88),"",IF(ISBLANK(PROJEKTPARAMETER!B$2),"",PROJEKTPARAMETER!B$2)) ->  | O88: =IF(ISBLANK(D88),"",IF(ISBLANK(PROJEKTPARAMETER!B$3),"",PROJEKTPARAMETER!B$3)) ->  | P88: =IF(ISBLANK(D88),"",IF(ISBLANK(PROJEKTPARAMETER!B$4),"",PROJEKTPARAMETER!B$4)) ->  | Q88: =IF(ISBLANK(D88),"",IF(ISBLANK(PROJEKTPARAMETER!B$5),"",PROJEKTPARAMETER!B$5)) ->  | R88: =IF(ISBLANK(D88),"",IF(ISBLANK(PROJEKTPARAMETER!B$6),"",PROJEKTPARAMETER!B$6)) ->  | U88: =IF(ISBLANK(D88),"",IF(ISBLANK(PROJEKTPARAMETER!B$7),"",PROJEKTPARAMETER!B$7)) ->  | V88: =IF(ISBLANK(D88),"",IF(ISBLANK(PROJEKTPARAMETER!B$8),"",PROJEKTPARAMETER!B$8)) ->  | AC88: =IF(ISBLANK(G88),"",IF(ISBLANK(VLOOKUP(G88,OBJEKTLISTE!$A$4:$G$976,7,FALSE)),"",VLOOKUP(G88,OBJEKTLISTE!$A$4:$G$976,7,FALSE))) -> 
H89: =IF(G89<>"",VLOOKUP(G89,OBJEKTLISTE!$A$4:$G$976,2,FALSE),"") ->  | J89: =IF(G89<>"",VLOOKUP(G89,OBJEKTLISTE!$A$4:$G$976,3,FALSE),"") ->  | K89: =IF(G89<>"",VLOOKUP(G89,OBJEKTLISTE!$A$4:$G$976,4,FALSE),"") ->  | L89: =IF(G89<>"",VLOOKUP(G89,OBJEKTLISTE!$A$4:$G$976,5,FALSE),"") ->  | M89: =IF(G89<>"",VLOOKUP(G89,OBJEKTLISTE!$A$4:$G$976,6,FALSE),"") ->  | N89: =IF(ISBLANK(D89),"",IF(ISBLANK(PROJEKTPARAMETER!B$2),"",PROJEKTPARAMETER!B$2)) ->  | O89: =IF(ISBLANK(D89),"",IF(ISBLANK(PROJEKTPARAMETER!B$3),"",PROJEKTPARAMETER!B$3)) ->  | P89: =IF(ISBLANK(D89),"",IF(ISBLANK(PROJEKTPARAMETER!B$4),"",PROJEKTPARAMETER!B$4)) ->  | Q89: =IF(ISBLANK(D89),"",IF(ISBLANK(PROJEKTPARAMETER!B$5),"",PROJEKTPARAMETER!B$5)) ->  | R89: =IF(ISBLANK(D89),"",IF(ISBLANK(PROJEKTPARAMETER!B$6),"",PROJEKTPARAMETER!B$6)) ->  | U89: =IF(ISBLANK(D89),"",IF(ISBLANK(PROJEKTPARAMETER!B$7),"",PROJEKTPARAMETER!B$7)) ->  | V89: =IF(ISBLANK(D89),"",IF(ISBLANK(PROJEKTPARAMETER!B$8),"",PROJEKTPARAMETER!B$8)) ->  | AC89: =IF(ISBLANK(G89),"",IF(ISBLANK(VLOOKUP(G89,OBJEKTLISTE!$A$4:$G$976,7,FALSE)),"",VLOOKUP(G89,OBJEKTLISTE!$A$4:$G$976,7,FALSE))) -> 
H90: =IF(G90<>"",VLOOKUP(G90,OBJEKTLISTE!$A$4:$G$976,2,FALSE),"") ->  | J90: =IF(G90<>"",VLOOKUP(G90,OBJEKTLISTE!$A$4:$G$976,3,FALSE),"") ->  | K90: =IF(G90<>"",VLOOKUP(G90,OBJEKTLISTE!$A$4:$G$976,4,FALSE),"") ->  | L90: =IF(G90<>"",VLOOKUP(G90,OBJEKTLISTE!$A$4:$G$976,5,FALSE),"") ->  | M90: =IF(G90<>"",VLOOKUP(G90,OBJEKTLISTE!$A$4:$G$976,6,FALSE),"") ->  | N90: =IF(ISBLANK(D90),"",IF(ISBLANK(PROJEKTPARAMETER!B$2),"",PROJEKTPARAMETER!B$2)) ->  | O90: =IF(ISBLANK(D90),"",IF(ISBLANK(PROJEKTPARAMETER!B$3),"",PROJEKTPARAMETER!B$3)) ->  | P90: =IF(ISBLANK(D90),"",IF(ISBLANK(PROJEKTPARAMETER!B$4),"",PROJEKTPARAMETER!B$4)) ->  | Q90: =IF(ISBLANK(D90),"",IF(ISBLANK(PROJEKTPARAMETER!B$5),"",PROJEKTPARAMETER!B$5)) ->  | R90: =IF(ISBLANK(D90),"",IF(ISBLANK(PROJEKTPARAMETER!B$6),"",PROJEKTPARAMETER!B$6)) ->  | U90: =IF(ISBLANK(D90),"",IF(ISBLANK(PROJEKTPARAMETER!B$7),"",PROJEKTPARAMETER!B$7)) ->  | V90: =IF(ISBLANK(D90),"",IF(ISBLANK(PROJEKTPARAMETER!B$8),"",PROJEKTPARAMETER!B$8)) ->  | AC90: =IF(ISBLANK(G90),"",IF(ISBLANK(VLOOKUP(G90,OBJEKTLISTE!$A$4:$G$976,7,FALSE)),"",VLOOKUP(G90,OBJEKTLISTE!$A$4:$G$976,7,FALSE))) -> 
H91: =IF(G91<>"",VLOOKUP(G91,OBJEKTLISTE!$A$4:$G$976,2,FALSE),"") ->  | J91: =IF(G91<>"",VLOOKUP(G91,OBJEKTLISTE!$A$4:$G$976,3,FALSE),"") ->  | K91: =IF(G91<>"",VLOOKUP(G91,OBJEKTLISTE!$A$4:$G$976,4,FALSE),"") ->  | L91: =IF(G91<>"",VLOOKUP(G91,OBJEKTLISTE!$A$4:$G$976,5,FALSE),"") ->  | M91: =IF(G91<>"",VLOOKUP(G91,OBJEKTLISTE!$A$4:$G$976,6,FALSE),"") ->  | N91: =IF(ISBLANK(D91),"",IF(ISBLANK(PROJEKTPARAMETER!B$2),"",PROJEKTPARAMETER!B$2)) ->  | O91: =IF(ISBLANK(D91),"",IF(ISBLANK(PROJEKTPARAMETER!B$3),"",PROJEKTPARAMETER!B$3)) ->  | P91: =IF(ISBLANK(D91),"",IF(ISBLANK(PROJEKTPARAMETER!B$4),"",PROJEKTPARAMETER!B$4)) ->  | Q91: =IF(ISBLANK(D91),"",IF(ISBLANK(PROJEKTPARAMETER!B$5),"",PROJEKTPARAMETER!B$5)) ->  | R91: =IF(ISBLANK(D91),"",IF(ISBLANK(PROJEKTPARAMETER!B$6),"",PROJEKTPARAMETER!B$6)) ->  | U91: =IF(ISBLANK(D91),"",IF(ISBLANK(PROJEKTPARAMETER!B$7),"",PROJEKTPARAMETER!B$7)) ->  | V91: =IF(ISBLANK(D91),"",IF(ISBLANK(PROJEKTPARAMETER!B$8),"",PROJEKTPARAMETER!B$8)) ->  | AC91: =IF(ISBLANK(G91),"",IF(ISBLANK(VLOOKUP(G91,OBJEKTLISTE!$A$4:$G$976,7,FALSE)),"",VLOOKUP(G91,OBJEKTLISTE!$A$4:$G$976,7,FALSE))) -> 
H92: =IF(G92<>"",VLOOKUP(G92,OBJEKTLISTE!$A$4:$G$976,2,FALSE),"") ->  | J92: =IF(G92<>"",VLOOKUP(G92,OBJEKTLISTE!$A$4:$G$976,3,FALSE),"") ->  | K92: =IF(G92<>"",VLOOKUP(G92,OBJEKTLISTE!$A$4:$G$976,4,FALSE),"") ->  | L92: =IF(G92<>"",VLOOKUP(G92,OBJEKTLISTE!$A$4:$G$976,5,FALSE),"") ->  | M92: =IF(G92<>"",VLOOKUP(G92,OBJEKTLISTE!$A$4:$G$976,6,FALSE),"") ->  | N92: =IF(ISBLANK(D92),"",IF(ISBLANK(PROJEKTPARAMETER!B$2),"",PROJEKTPARAMETER!B$2)) ->  | O92: =IF(ISBLANK(D92),"",IF(ISBLANK(PROJEKTPARAMETER!B$3),"",PROJEKTPARAMETER!B$3)) ->  | P92: =IF(ISBLANK(D92),"",IF(ISBLANK(PROJEKTPARAMETER!B$4),"",PROJEKTPARAMETER!B$4)) ->  | Q92: =IF(ISBLANK(D92),"",IF(ISBLANK(PROJEKTPARAMETER!B$5),"",PROJEKTPARAMETER!B$5)) ->  | R92: =IF(ISBLANK(D92),"",IF(ISBLANK(PROJEKTPARAMETER!B$6),"",PROJEKTPARAMETER!B$6)) ->  | U92: =IF(ISBLANK(D92),"",IF(ISBLANK(PROJEKTPARAMETER!B$7),"",PROJEKTPARAMETER!B$7)) ->  | V92: =IF(ISBLANK(D92),"",IF(ISBLANK(PROJEKTPARAMETER!B$8),"",PROJEKTPARAMETER!B$8)) ->  | AC92: =IF(ISBLANK(G92),"",IF(ISBLANK(VLOOKUP(G92,OBJEKTLISTE!$A$4:$G$976,7,FALSE)),"",VLOOKUP(G92,OBJEKTLISTE!$A$4:$G$976,7,FALSE))) -> 
H93: =IF(G93<>"",VLOOKUP(G93,OBJEKTLISTE!$A$4:$G$976,2,FALSE),"") ->  | J93: =IF(G93<>"",VLOOKUP(G93,OBJEKTLISTE!$A$4:$G$976,3,FALSE),"") ->  | K93: =IF(G93<>"",VLOOKUP(G93,OBJEKTLISTE!$A$4:$G$976,4,FALSE),"") ->  | L93: =IF(G93<>"",VLOOKUP(G93,OBJEKTLISTE!$A$4:$G$976,5,FALSE),"") ->  | M93: =IF(G93<>"",VLOOKUP(G93,OBJEKTLISTE!$A$4:$G$976,6,FALSE),"") ->  | N93: =IF(ISBLANK(D93),"",IF(ISBLANK(PROJEKTPARAMETER!B$2),"",PROJEKTPARAMETER!B$2)) ->  | O93: =IF(ISBLANK(D93),"",IF(ISBLANK(PROJEKTPARAMETER!B$3),"",PROJEKTPARAMETER!B$3)) ->  | P93: =IF(ISBLANK(D93),"",IF(ISBLANK(PROJEKTPARAMETER!B$4),"",PROJEKTPARAMETER!B$4)) ->  | Q93: =IF(ISBLANK(D93),"",IF(ISBLANK(PROJEKTPARAMETER!B$5),"",PROJEKTPARAMETER!B$5)) ->  | R93: =IF(ISBLANK(D93),"",IF(ISBLANK(PROJEKTPARAMETER!B$6),"",PROJEKTPARAMETER!B$6)) ->  | U93: =IF(ISBLANK(D93),"",IF(ISBLANK(PROJEKTPARAMETER!B$7),"",PROJEKTPARAMETER!B$7)) ->  | V93: =IF(ISBLANK(D93),"",IF(ISBLANK(PROJEKTPARAMETER!B$8),"",PROJEKTPARAMETER!B$8)) ->  | AC93: =IF(ISBLANK(G93),"",IF(ISBLANK(VLOOKUP(G93,OBJEKTLISTE!$A$4:$G$976,7,FALSE)),"",VLOOKUP(G93,OBJEKTLISTE!$A$4:$G$976,7,FALSE))) -> 
H94: =IF(G94<>"",VLOOKUP(G94,OBJEKTLISTE!$A$4:$G$976,2,FALSE),"") ->  | J94: =IF(G94<>"",VLOOKUP(G94,OBJEKTLISTE!$A$4:$G$976,3,FALSE),"") ->  | K94: =IF(G94<>"",VLOOKUP(G94,OBJEKTLISTE!$A$4:$G$976,4,FALSE),"") ->  | L94: =IF(G94<>"",VLOOKUP(G94,OBJEKTLISTE!$A$4:$G$976,5,FALSE),"") ->  | M94: =IF(G94<>"",VLOOKUP(G94,OBJEKTLISTE!$A$4:$G$976,6,FALSE),"") ->  | N94: =IF(ISBLANK(D94),"",IF(ISBLANK(PROJEKTPARAMETER!B$2),"",PROJEKTPARAMETER!B$2)) ->  | O94: =IF(ISBLANK(D94),"",IF(ISBLANK(PROJEKTPARAMETER!B$3),"",PROJEKTPARAMETER!B$3)) ->  | P94: =IF(ISBLANK(D94),"",IF(ISBLANK(PROJEKTPARAMETER!B$4),"",PROJEKTPARAMETER!B$4)) ->  | Q94: =IF(ISBLANK(D94),"",IF(ISBLANK(PROJEKTPARAMETER!B$5),"",PROJEKTPARAMETER!B$5)) ->  | R94: =IF(ISBLANK(D94),"",IF(ISBLANK(PROJEKTPARAMETER!B$6),"",PROJEKTPARAMETER!B$6)) ->  | U94: =IF(ISBLANK(D94),"",IF(ISBLANK(PROJEKTPARAMETER!B$7),"",PROJEKTPARAMETER!B$7)) ->  | V94: =IF(ISBLANK(D94),"",IF(ISBLANK(PROJEKTPARAMETER!B$8),"",PROJEKTPARAMETER!B$8)) ->  | AC94: =IF(ISBLANK(G94),"",IF(ISBLANK(VLOOKUP(G94,OBJEKTLISTE!$A$4:$G$976,7,FALSE)),"",VLOOKUP(G94,OBJEKTLISTE!$A$4:$G$976,7,FALSE))) -> 
H95: =IF(G95<>"",VLOOKUP(G95,OBJEKTLISTE!$A$4:$G$976,2,FALSE),"") ->  | J95: =IF(G95<>"",VLOOKUP(G95,OBJEKTLISTE!$A$4:$G$976,3,FALSE),"") ->  | K95: =IF(G95<>"",VLOOKUP(G95,OBJEKTLISTE!$A$4:$G$976,4,FALSE),"") ->  | L95: =IF(G95<>"",VLOOKUP(G95,OBJEKTLISTE!$A$4:$G$976,5,FALSE),"") ->  | M95: =IF(G95<>"",VLOOKUP(G95,OBJEKTLISTE!$A$4:$G$976,6,FALSE),"") ->  | N95: =IF(ISBLANK(D95),"",IF(ISBLANK(PROJEKTPARAMETER!B$2),"",PROJEKTPARAMETER!B$2)) ->  | O95: =IF(ISBLANK(D95),"",IF(ISBLANK(PROJEKTPARAMETER!B$3),"",PROJEKTPARAMETER!B$3)) ->  | P95: =IF(ISBLANK(D95),"",IF(ISBLANK(PROJEKTPARAMETER!B$4),"",PROJEKTPARAMETER!B$4)) ->  | Q95: =IF(ISBLANK(D95),"",IF(ISBLANK(PROJEKTPARAMETER!B$5),"",PROJEKTPARAMETER!B$5)) ->  | R95: =IF(ISBLANK(D95),"",IF(ISBLANK(PROJEKTPARAMETER!B$6),"",PROJEKTPARAMETER!B$6)) ->  | U95: =IF(ISBLANK(D95),"",IF(ISBLANK(PROJEKTPARAMETER!B$7),"",PROJEKTPARAMETER!B$7)) ->  | V95: =IF(ISBLANK(D95),"",IF(ISBLANK(PROJEKTPARAMETER!B$8),"",PROJEKTPARAMETER!B$8)) ->  | AC95: =IF(ISBLANK(G95),"",IF(ISBLANK(VLOOKUP(G95,OBJEKTLISTE!$A$4:$G$976,7,FALSE)),"",VLOOKUP(G95,OBJEKTLISTE!$A$4:$G$976,7,FALSE))) -> 
H96: =IF(G96<>"",VLOOKUP(G96,OBJEKTLISTE!$A$4:$G$976,2,FALSE),"") ->  | J96: =IF(G96<>"",VLOOKUP(G96,OBJEKTLISTE!$A$4:$G$976,3,FALSE),"") ->  | K96: =IF(G96<>"",VLOOKUP(G96,OBJEKTLISTE!$A$4:$G$976,4,FALSE),"") ->  | L96: =IF(G96<>"",VLOOKUP(G96,OBJEKTLISTE!$A$4:$G$976,5,FALSE),"") ->  | M96: =IF(G96<>"",VLOOKUP(G96,OBJEKTLISTE!$A$4:$G$976,6,FALSE),"") ->  | N96: =IF(ISBLANK(D96),"",IF(ISBLANK(PROJEKTPARAMETER!B$2),"",PROJEKTPARAMETER!B$2)) ->  | O96: =IF(ISBLANK(D96),"",IF(ISBLANK(PROJEKTPARAMETER!B$3),"",PROJEKTPARAMETER!B$3)) ->  | P96: =IF(ISBLANK(D96),"",IF(ISBLANK(PROJEKTPARAMETER!B$4),"",PROJEKTPARAMETER!B$4)) ->  | Q96: =IF(ISBLANK(D96),"",IF(ISBLANK(PROJEKTPARAMETER!B$5),"",PROJEKTPARAMETER!B$5)) ->  | R96: =IF(ISBLANK(D96),"",IF(ISBLANK(PROJEKTPARAMETER!B$6),"",PROJEKTPARAMETER!B$6)) ->  | U96: =IF(ISBLANK(D96),"",IF(ISBLANK(PROJEKTPARAMETER!B$7),"",PROJEKTPARAMETER!B$7)) ->  | V96: =IF(ISBLANK(D96),"",IF(ISBLANK(PROJEKTPARAMETER!B$8),"",PROJEKTPARAMETER!B$8)) ->  | AC96: =IF(ISBLANK(G96),"",IF(ISBLANK(VLOOKUP(G96,OBJEKTLISTE!$A$4:$G$976,7,FALSE)),"",VLOOKUP(G96,OBJEKTLISTE!$A$4:$G$976,7,FALSE))) -> 
H97: =IF(G97<>"",VLOOKUP(G97,OBJEKTLISTE!$A$4:$G$976,2,FALSE),"") ->  | J97: =IF(G97<>"",VLOOKUP(G97,OBJEKTLISTE!$A$4:$G$976,3,FALSE),"") ->  | K97: =IF(G97<>"",VLOOKUP(G97,OBJEKTLISTE!$A$4:$G$976,4,FALSE),"") ->  | L97: =IF(G97<>"",VLOOKUP(G97,OBJEKTLISTE!$A$4:$G$976,5,FALSE),"") ->  | M97: =IF(G97<>"",VLOOKUP(G97,OBJEKTLISTE!$A$4:$G$976,6,FALSE),"") ->  | N97: =IF(ISBLANK(D97),"",IF(ISBLANK(PROJEKTPARAMETER!B$2),"",PROJEKTPARAMETER!B$2)) ->  | O97: =IF(ISBLANK(D97),"",IF(ISBLANK(PROJEKTPARAMETER!B$3),"",PROJEKTPARAMETER!B$3)) ->  | P97: =IF(ISBLANK(D97),"",IF(ISBLANK(PROJEKTPARAMETER!B$4),"",PROJEKTPARAMETER!B$4)) ->  | Q97: =IF(ISBLANK(D97),"",IF(ISBLANK(PROJEKTPARAMETER!B$5),"",PROJEKTPARAMETER!B$5)) ->  | R97: =IF(ISBLANK(D97),"",IF(ISBLANK(PROJEKTPARAMETER!B$6),"",PROJEKTPARAMETER!B$6)) ->  | U97: =IF(ISBLANK(D97),"",IF(ISBLANK(PROJEKTPARAMETER!B$7),"",PROJEKTPARAMETER!B$7)) ->  | V97: =IF(ISBLANK(D97),"",IF(ISBLANK(PROJEKTPARAMETER!B$8),"",PROJEKTPARAMETER!B$8)) ->  | AC97: =IF(ISBLANK(G97),"",IF(ISBLANK(VLOOKUP(G97,OBJEKTLISTE!$A$4:$G$976,7,FALSE)),"",VLOOKUP(G97,OBJEKTLISTE!$A$4:$G$976,7,FALSE))) -> 
H98: =IF(G98<>"",VLOOKUP(G98,OBJEKTLISTE!$A$4:$G$976,2,FALSE),"") ->  | J98: =IF(G98<>"",VLOOKUP(G98,OBJEKTLISTE!$A$4:$G$976,3,FALSE),"") ->  | K98: =IF(G98<>"",VLOOKUP(G98,OBJEKTLISTE!$A$4:$G$976,4,FALSE),"") ->  | L98: =IF(G98<>"",VLOOKUP(G98,OBJEKTLISTE!$A$4:$G$976,5,FALSE),"") ->  | M98: =IF(G98<>"",VLOOKUP(G98,OBJEKTLISTE!$A$4:$G$976,6,FALSE),"") ->  | N98: =IF(ISBLANK(D98),"",IF(ISBLANK(PROJEKTPARAMETER!B$2),"",PROJEKTPARAMETER!B$2)) ->  | O98: =IF(ISBLANK(D98),"",IF(ISBLANK(PROJEKTPARAMETER!B$3),"",PROJEKTPARAMETER!B$3)) ->  | P98: =IF(ISBLANK(D98),"",IF(ISBLANK(PROJEKTPARAMETER!B$4),"",PROJEKTPARAMETER!B$4)) ->  | Q98: =IF(ISBLANK(D98),"",IF(ISBLANK(PROJEKTPARAMETER!B$5),"",PROJEKTPARAMETER!B$5)) ->  | R98: =IF(ISBLANK(D98),"",IF(ISBLANK(PROJEKTPARAMETER!B$6),"",PROJEKTPARAMETER!B$6)) ->  | U98: =IF(ISBLANK(D98),"",IF(ISBLANK(PROJEKTPARAMETER!B$7),"",PROJEKTPARAMETER!B$7)) ->  | V98: =IF(ISBLANK(D98),"",IF(ISBLANK(PROJEKTPARAMETER!B$8),"",PROJEKTPARAMETER!B$8)) ->  | AC98: =IF(ISBLANK(G98),"",IF(ISBLANK(VLOOKUP(G98,OBJEKTLISTE!$A$4:$G$976,7,FALSE)),"",VLOOKUP(G98,OBJEKTLISTE!$A$4:$G$976,7,FALSE))) -> 
H99: =IF(G99<>"",VLOOKUP(G99,OBJEKTLISTE!$A$4:$G$976,2,FALSE),"") ->  | J99: =IF(G99<>"",VLOOKUP(G99,OBJEKTLISTE!$A$4:$G$976,3,FALSE),"") ->  | K99: =IF(G99<>"",VLOOKUP(G99,OBJEKTLISTE!$A$4:$G$976,4,FALSE),"") ->  | L99: =IF(G99<>"",VLOOKUP(G99,OBJEKTLISTE!$A$4:$G$976,5,FALSE),"") ->  | M99: =IF(G99<>"",VLOOKUP(G99,OBJEKTLISTE!$A$4:$G$976,6,FALSE),"") ->  | N99: =IF(ISBLANK(D99),"",IF(ISBLANK(PROJEKTPARAMETER!B$2),"",PROJEKTPARAMETER!B$2)) ->  | O99: =IF(ISBLANK(D99),"",IF(ISBLANK(PROJEKTPARAMETER!B$3),"",PROJEKTPARAMETER!B$3)) ->  | P99: =IF(ISBLANK(D99),"",IF(ISBLANK(PROJEKTPARAMETER!B$4),"",PROJEKTPARAMETER!B$4)) ->  | Q99: =IF(ISBLANK(D99),"",IF(ISBLANK(PROJEKTPARAMETER!B$5),"",PROJEKTPARAMETER!B$5)) ->  | R99: =IF(ISBLANK(D99),"",IF(ISBLANK(PROJEKTPARAMETER!B$6),"",PROJEKTPARAMETER!B$6)) ->  | U99: =IF(ISBLANK(D99),"",IF(ISBLANK(PROJEKTPARAMETER!B$7),"",PROJEKTPARAMETER!B$7)) ->  | V99: =IF(ISBLANK(D99),"",IF(ISBLANK(PROJEKTPARAMETER!B$8),"",PROJEKTPARAMETER!B$8)) ->  | AC99: =IF(ISBLANK(G99),"",IF(ISBLANK(VLOOKUP(G99,OBJEKTLISTE!$A$4:$G$976,7,FALSE)),"",VLOOKUP(G99,OBJEKTLISTE!$A$4:$G$976,7,FALSE))) -> 
H100: =IF(G100<>"",VLOOKUP(G100,OBJEKTLISTE!$A$4:$G$976,2,FALSE),"") ->  | J100: =IF(G100<>"",VLOOKUP(G100,OBJEKTLISTE!$A$4:$G$976,3,FALSE),"") ->  | K100: =IF(G100<>"",VLOOKUP(G100,OBJEKTLISTE!$A$4:$G$976,4,FALSE),"") ->  | L100: =IF(G100<>"",VLOOKUP(G100,OBJEKTLISTE!$A$4:$G$976,5,FALSE),"") ->  | M100: =IF(G100<>"",VLOOKUP(G100,OBJEKTLISTE!$A$4:$G$976,6,FALSE),"") ->  | N100: =IF(ISBLANK(D100),"",IF(ISBLANK(PROJEKTPARAMETER!B$2),"",PROJEKTPARAMETER!B$2)) ->  | O100: =IF(ISBLANK(D100),"",IF(ISBLANK(PROJEKTPARAMETER!B$3),"",PROJEKTPARAMETER!B$3)) ->  | P100: =IF(ISBLANK(D100),"",IF(ISBLANK(PROJEKTPARAMETER!B$4),"",PROJEKTPARAMETER!B$4)) ->  | Q100: =IF(ISBLANK(D100),"",IF(ISBLANK(PROJEKTPARAMETER!B$5),"",PROJEKTPARAMETER!B$5)) ->  | R100: =IF(ISBLANK(D100),"",IF(ISBLANK(PROJEKTPARAMETER!B$6),"",PROJEKTPARAMETER!B$6)) ->  | U100: =IF(ISBLANK(D100),"",IF(ISBLANK(PROJEKTPARAMETER!B$7),"",PROJEKTPARAMETER!B$7)) ->  | V100: =IF(ISBLANK(D100),"",IF(ISBLANK(PROJEKTPARAMETER!B$8),"",PROJEKTPARAMETER!B$8)) ->  | AC100: =IF(ISBLANK(G100),"",IF(ISBLANK(VLOOKUP(G100,OBJEKTLISTE!$A$4:$G$976,7,FALSE)),"",VLOOKUP(G100,OBJEKTLISTE!$A$4:$G$976,7,FALSE))) -> 
H101: =IF(G101<>"",VLOOKUP(G101,OBJEKTLISTE!$A$4:$G$976,2,FALSE),"") ->  | J101: =IF(G101<>"",VLOOKUP(G101,OBJEKTLISTE!$A$4:$G$976,3,FALSE),"") ->  | K101: =IF(G101<>"",VLOOKUP(G101,OBJEKTLISTE!$A$4:$G$976,4,FALSE),"") ->  | L101: =IF(G101<>"",VLOOKUP(G101,OBJEKTLISTE!$A$4:$G$976,5,FALSE),"") ->  | M101: =IF(G101<>"",VLOOKUP(G101,OBJEKTLISTE!$A$4:$G$976,6,FALSE),"") ->  | N101: =IF(ISBLANK(D101),"",IF(ISBLANK(PROJEKTPARAMETER!B$2),"",PROJEKTPARAMETER!B$2)) ->  | O101: =IF(ISBLANK(D101),"",IF(ISBLANK(PROJEKTPARAMETER!B$3),"",PROJEKTPARAMETER!B$3)) ->  | P101: =IF(ISBLANK(D101),"",IF(ISBLANK(PROJEKTPARAMETER!B$4),"",PROJEKTPARAMETER!B$4)) ->  | Q101: =IF(ISBLANK(D101),"",IF(ISBLANK(PROJEKTPARAMETER!B$5),"",PROJEKTPARAMETER!B$5)) ->  | R101: =IF(ISBLANK(D101),"",IF(ISBLANK(PROJEKTPARAMETER!B$6),"",PROJEKTPARAMETER!B$6)) ->  | U101: =IF(ISBLANK(D101),"",IF(ISBLANK(PROJEKTPARAMETER!B$7),"",PROJEKTPARAMETER!B$7)) ->  | V101: =IF(ISBLANK(D101),"",IF(ISBLANK(PROJEKTPARAMETER!B$8),"",PROJEKTPARAMETER!B$8)) ->  | AC101: =IF(ISBLANK(G101),"",IF(ISBLANK(VLOOKUP(G101,OBJEKTLISTE!$A$4:$G$976,7,FALSE)),"",VLOOKUP(G101,OBJEKTLISTE!$A$4:$G$976,7,FALSE))) -> 
H102: =IF(G102<>"",VLOOKUP(G102,OBJEKTLISTE!$A$4:$G$976,2,FALSE),"") ->  | J102: =IF(G102<>"",VLOOKUP(G102,OBJEKTLISTE!$A$4:$G$976,3,FALSE),"") ->  | K102: =IF(G102<>"",VLOOKUP(G102,OBJEKTLISTE!$A$4:$G$976,4,FALSE),"") ->  | L102: =IF(G102<>"",VLOOKUP(G102,OBJEKTLISTE!$A$4:$G$976,5,FALSE),"") ->  | M102: =IF(G102<>"",VLOOKUP(G102,OBJEKTLISTE!$A$4:$G$976,6,FALSE),"") ->  | N102: =IF(ISBLANK(D102),"",IF(ISBLANK(PROJEKTPARAMETER!B$2),"",PROJEKTPARAMETER!B$2)) ->  | O102: =IF(ISBLANK(D102),"",IF(ISBLANK(PROJEKTPARAMETER!B$3),"",PROJEKTPARAMETER!B$3)) ->  | P102: =IF(ISBLANK(D102),"",IF(ISBLANK(PROJEKTPARAMETER!B$4),"",PROJEKTPARAMETER!B$4)) ->  | Q102: =IF(ISBLANK(D102),"",IF(ISBLANK(PROJEKTPARAMETER!B$5),"",PROJEKTPARAMETER!B$5)) ->  | R102: =IF(ISBLANK(D102),"",IF(ISBLANK(PROJEKTPARAMETER!B$6),"",PROJEKTPARAMETER!B$6)) ->  | U102: =IF(ISBLANK(D102),"",IF(ISBLANK(PROJEKTPARAMETER!B$7),"",PROJEKTPARAMETER!B$7)) ->  | V102: =IF(ISBLANK(D102),"",IF(ISBLANK(PROJEKTPARAMETER!B$8),"",PROJEKTPARAMETER!B$8)) ->  | AC102: =IF(ISBLANK(G102),"",IF(ISBLANK(VLOOKUP(G102,OBJEKTLISTE!$A$4:$G$976,7,FALSE)),"",VLOOKUP(G102,OBJEKTLISTE!$A$4:$G$976,7,FALSE))) -> 
H103: =IF(G103<>"",VLOOKUP(G103,OBJEKTLISTE!$A$4:$G$976,2,FALSE),"") ->  | J103: =IF(G103<>"",VLOOKUP(G103,OBJEKTLISTE!$A$4:$G$976,3,FALSE),"") ->  | K103: =IF(G103<>"",VLOOKUP(G103,OBJEKTLISTE!$A$4:$G$976,4,FALSE),"") ->  | L103: =IF(G103<>"",VLOOKUP(G103,OBJEKTLISTE!$A$4:$G$976,5,FALSE),"") ->  | M103: =IF(G103<>"",VLOOKUP(G103,OBJEKTLISTE!$A$4:$G$976,6,FALSE),"") ->  | N103: =IF(ISBLANK(D103),"",IF(ISBLANK(PROJEKTPARAMETER!B$2),"",PROJEKTPARAMETER!B$2)) ->  | O103: =IF(ISBLANK(D103),"",IF(ISBLANK(PROJEKTPARAMETER!B$3),"",PROJEKTPARAMETER!B$3)) ->  | P103: =IF(ISBLANK(D103),"",IF(ISBLANK(PROJEKTPARAMETER!B$4),"",PROJEKTPARAMETER!B$4)) ->  | Q103: =IF(ISBLANK(D103),"",IF(ISBLANK(PROJEKTPARAMETER!B$5),"",PROJEKTPARAMETER!B$5)) ->  | R103: =IF(ISBLANK(D103),"",IF(ISBLANK(PROJEKTPARAMETER!B$6),"",PROJEKTPARAMETER!B$6)) ->  | U103: =IF(ISBLANK(D103),"",IF(ISBLANK(PROJEKTPARAMETER!B$7),"",PROJEKTPARAMETER!B$7)) ->  | V103: =IF(ISBLANK(D103),"",IF(ISBLANK(PROJEKTPARAMETER!B$8),"",PROJEKTPARAMETER!B$8)) ->  | AC103: =IF(ISBLANK(G103),"",IF(ISBLANK(VLOOKUP(G103,OBJEKTLISTE!$A$4:$G$976,7,FALSE)),"",VLOOKUP(G103,OBJEKTLISTE!$A$4:$G$976,7,FALSE))) -> 
H104: =IF(G104<>"",VLOOKUP(G104,OBJEKTLISTE!$A$4:$G$976,2,FALSE),"") ->  | J104: =IF(G104<>"",VLOOKUP(G104,OBJEKTLISTE!$A$4:$G$976,3,FALSE),"") ->  | K104: =IF(G104<>"",VLOOKUP(G104,OBJEKTLISTE!$A$4:$G$976,4,FALSE),"") ->  | L104: =IF(G104<>"",VLOOKUP(G104,OBJEKTLISTE!$A$4:$G$976,5,FALSE),"") ->  | M104: =IF(G104<>"",VLOOKUP(G104,OBJEKTLISTE!$A$4:$G$976,6,FALSE),"") ->  | N104: =IF(ISBLANK(D104),"",IF(ISBLANK(PROJEKTPARAMETER!B$2),"",PROJEKTPARAMETER!B$2)) ->  | O104: =IF(ISBLANK(D104),"",IF(ISBLANK(PROJEKTPARAMETER!B$3),"",PROJEKTPARAMETER!B$3)) ->  | P104: =IF(ISBLANK(D104),"",IF(ISBLANK(PROJEKTPARAMETER!B$4),"",PROJEKTPARAMETER!B$4)) ->  | Q104: =IF(ISBLANK(D104),"",IF(ISBLANK(PROJEKTPARAMETER!B$5),"",PROJEKTPARAMETER!B$5)) ->  | R104: =IF(ISBLANK(D104),"",IF(ISBLANK(PROJEKTPARAMETER!B$6),"",PROJEKTPARAMETER!B$6)) ->  | U104: =IF(ISBLANK(D104),"",IF(ISBLANK(PROJEKTPARAMETER!B$7),"",PROJEKTPARAMETER!B$7)) ->  | V104: =IF(ISBLANK(D104),"",IF(ISBLANK(PROJEKTPARAMETER!B$8),"",PROJEKTPARAMETER!B$8)) ->  | AC104: =IF(ISBLANK(G104),"",IF(ISBLANK(VLOOKUP(G104,OBJEKTLISTE!$A$4:$G$976,7,FALSE)),"",VLOOKUP(G104,OBJEKTLISTE!$A$4:$G$976,7,FALSE))) -> 
H105: =IF(G105<>"",VLOOKUP(G105,OBJEKTLISTE!$A$4:$G$976,2,FALSE),"") ->  | J105: =IF(G105<>"",VLOOKUP(G105,OBJEKTLISTE!$A$4:$G$976,3,FALSE),"") ->  | K105: =IF(G105<>"",VLOOKUP(G105,OBJEKTLISTE!$A$4:$G$976,4,FALSE),"") ->  | L105: =IF(G105<>"",VLOOKUP(G105,OBJEKTLISTE!$A$4:$G$976,5,FALSE),"") ->  | M105: =IF(G105<>"",VLOOKUP(G105,OBJEKTLISTE!$A$4:$G$976,6,FALSE),"") ->  | N105: =IF(ISBLANK(D105),"",IF(ISBLANK(PROJEKTPARAMETER!B$2),"",PROJEKTPARAMETER!B$2)) ->  | O105: =IF(ISBLANK(D105),"",IF(ISBLANK(PROJEKTPARAMETER!B$3),"",PROJEKTPARAMETER!B$3)) ->  | P105: =IF(ISBLANK(D105),"",IF(ISBLANK(PROJEKTPARAMETER!B$4),"",PROJEKTPARAMETER!B$4)) ->  | Q105: =IF(ISBLANK(D105),"",IF(ISBLANK(PROJEKTPARAMETER!B$5),"",PROJEKTPARAMETER!B$5)) ->  | R105: =IF(ISBLANK(D105),"",IF(ISBLANK(PROJEKTPARAMETER!B$6),"",PROJEKTPARAMETER!B$6)) ->  | U105: =IF(ISBLANK(D105),"",IF(ISBLANK(PROJEKTPARAMETER!B$7),"",PROJEKTPARAMETER!B$7)) ->  | V105: =IF(ISBLANK(D105),"",IF(ISBLANK(PROJEKTPARAMETER!B$8),"",PROJEKTPARAMETER!B$8)) ->  | AC105: =IF(ISBLANK(G105),"",IF(ISBLANK(VLOOKUP(G105,OBJEKTLISTE!$A$4:$G$976,7,FALSE)),"",VLOOKUP(G105,OBJEKTLISTE!$A$4:$G$976,7,FALSE))) -> 
H106: =IF(G106<>"",VLOOKUP(G106,OBJEKTLISTE!$A$4:$G$976,2,FALSE),"") ->  | J106: =IF(G106<>"",VLOOKUP(G106,OBJEKTLISTE!$A$4:$G$976,3,FALSE),"") ->  | K106: =IF(G106<>"",VLOOKUP(G106,OBJEKTLISTE!$A$4:$G$976,4,FALSE),"") ->  | L106: =IF(G106<>"",VLOOKUP(G106,OBJEKTLISTE!$A$4:$G$976,5,FALSE),"") ->  | M106: =IF(G106<>"",VLOOKUP(G106,OBJEKTLISTE!$A$4:$G$976,6,FALSE),"") ->  | N106: =IF(ISBLANK(D106),"",IF(ISBLANK(PROJEKTPARAMETER!B$2),"",PROJEKTPARAMETER!B$2)) ->  | O106: =IF(ISBLANK(D106),"",IF(ISBLANK(PROJEKTPARAMETER!B$3),"",PROJEKTPARAMETER!B$3)) ->  | P106: =IF(ISBLANK(D106),"",IF(ISBLANK(PROJEKTPARAMETER!B$4),"",PROJEKTPARAMETER!B$4)) ->  | Q106: =IF(ISBLANK(D106),"",IF(ISBLANK(PROJEKTPARAMETER!B$5),"",PROJEKTPARAMETER!B$5)) ->  | R106: =IF(ISBLANK(D106),"",IF(ISBLANK(PROJEKTPARAMETER!B$6),"",PROJEKTPARAMETER!B$6)) ->  | U106: =IF(ISBLANK(D106),"",IF(ISBLANK(PROJEKTPARAMETER!B$7),"",PROJEKTPARAMETER!B$7)) ->  | V106: =IF(ISBLANK(D106),"",IF(ISBLANK(PROJEKTPARAMETER!B$8),"",PROJEKTPARAMETER!B$8)) ->  | AC106: =IF(ISBLANK(G106),"",IF(ISBLANK(VLOOKUP(G106,OBJEKTLISTE!$A$4:$G$976,7,FALSE)),"",VLOOKUP(G106,OBJEKTLISTE!$A$4:$G$976,7,FALSE))) -> 
H107: =IF(G107<>"",VLOOKUP(G107,OBJEKTLISTE!$A$4:$G$976,2,FALSE),"") ->  | J107: =IF(G107<>"",VLOOKUP(G107,OBJEKTLISTE!$A$4:$G$976,3,FALSE),"") ->  | K107: =IF(G107<>"",VLOOKUP(G107,OBJEKTLISTE!$A$4:$G$976,4,FALSE),"") ->  | L107: =IF(G107<>"",VLOOKUP(G107,OBJEKTLISTE!$A$4:$G$976,5,FALSE),"") ->  | M107: =IF(G107<>"",VLOOKUP(G107,OBJEKTLISTE!$A$4:$G$976,6,FALSE),"") ->  | N107: =IF(ISBLANK(D107),"",IF(ISBLANK(PROJEKTPARAMETER!B$2),"",PROJEKTPARAMETER!B$2)) ->  | O107: =IF(ISBLANK(D107),"",IF(ISBLANK(PROJEKTPARAMETER!B$3),"",PROJEKTPARAMETER!B$3)) ->  | P107: =IF(ISBLANK(D107),"",IF(ISBLANK(PROJEKTPARAMETER!B$4),"",PROJEKTPARAMETER!B$4)) ->  | Q107: =IF(ISBLANK(D107),"",IF(ISBLANK(PROJEKTPARAMETER!B$5),"",PROJEKTPARAMETER!B$5)) ->  | R107: =IF(ISBLANK(D107),"",IF(ISBLANK(PROJEKTPARAMETER!B$6),"",PROJEKTPARAMETER!B$6)) ->  | U107: =IF(ISBLANK(D107),"",IF(ISBLANK(PROJEKTPARAMETER!B$7),"",PROJEKTPARAMETER!B$7)) ->  | V107: =IF(ISBLANK(D107),"",IF(ISBLANK(PROJEKTPARAMETER!B$8),"",PROJEKTPARAMETER!B$8)) ->  | AC107: =IF(ISBLANK(G107),"",IF(ISBLANK(VLOOKUP(G107,OBJEKTLISTE!$A$4:$G$976,7,FALSE)),"",VLOOKUP(G107,OBJEKTLISTE!$A$4:$G$976,7,FALSE))) -> 
H108: =IF(G108<>"",VLOOKUP(G108,OBJEKTLISTE!$A$4:$G$976,2,FALSE),"") ->  | J108: =IF(G108<>"",VLOOKUP(G108,OBJEKTLISTE!$A$4:$G$976,3,FALSE),"") ->  | K108: =IF(G108<>"",VLOOKUP(G108,OBJEKTLISTE!$A$4:$G$976,4,FALSE),"") ->  | L108: =IF(G108<>"",VLOOKUP(G108,OBJEKTLISTE!$A$4:$G$976,5,FALSE),"") ->  | M108: =IF(G108<>"",VLOOKUP(G108,OBJEKTLISTE!$A$4:$G$976,6,FALSE),"") ->  | N108: =IF(ISBLANK(D108),"",IF(ISBLANK(PROJEKTPARAMETER!B$2),"",PROJEKTPARAMETER!B$2)) ->  | O108: =IF(ISBLANK(D108),"",IF(ISBLANK(PROJEKTPARAMETER!B$3),"",PROJEKTPARAMETER!B$3)) ->  | P108: =IF(ISBLANK(D108),"",IF(ISBLANK(PROJEKTPARAMETER!B$4),"",PROJEKTPARAMETER!B$4)) ->  | Q108: =IF(ISBLANK(D108),"",IF(ISBLANK(PROJEKTPARAMETER!B$5),"",PROJEKTPARAMETER!B$5)) ->  | R108: =IF(ISBLANK(D108),"",IF(ISBLANK(PROJEKTPARAMETER!B$6),"",PROJEKTPARAMETER!B$6)) ->  | U108: =IF(ISBLANK(D108),"",IF(ISBLANK(PROJEKTPARAMETER!B$7),"",PROJEKTPARAMETER!B$7)) ->  | V108: =IF(ISBLANK(D108),"",IF(ISBLANK(PROJEKTPARAMETER!B$8),"",PROJEKTPARAMETER!B$8)) ->  | AC108: =IF(ISBLANK(G108),"",IF(ISBLANK(VLOOKUP(G108,OBJEKTLISTE!$A$4:$G$976,7,FALSE)),"",VLOOKUP(G108,OBJEKTLISTE!$A$4:$G$976,7,FALSE))) -> 
H109: =IF(G109<>"",VLOOKUP(G109,OBJEKTLISTE!$A$4:$G$976,2,FALSE),"") ->  | J109: =IF(G109<>"",VLOOKUP(G109,OBJEKTLISTE!$A$4:$G$976,3,FALSE),"") ->  | K109: =IF(G109<>"",VLOOKUP(G109,OBJEKTLISTE!$A$4:$G$976,4,FALSE),"") ->  | L109: =IF(G109<>"",VLOOKUP(G109,OBJEKTLISTE!$A$4:$G$976,5,FALSE),"") ->  | M109: =IF(G109<>"",VLOOKUP(G109,OBJEKTLISTE!$A$4:$G$976,6,FALSE),"") ->  | N109: =IF(ISBLANK(D109),"",IF(ISBLANK(PROJEKTPARAMETER!B$2),"",PROJEKTPARAMETER!B$2)) ->  | O109: =IF(ISBLANK(D109),"",IF(ISBLANK(PROJEKTPARAMETER!B$3),"",PROJEKTPARAMETER!B$3)) ->  | P109: =IF(ISBLANK(D109),"",IF(ISBLANK(PROJEKTPARAMETER!B$4),"",PROJEKTPARAMETER!B$4)) ->  | Q109: =IF(ISBLANK(D109),"",IF(ISBLANK(PROJEKTPARAMETER!B$5),"",PROJEKTPARAMETER!B$5)) ->  | R109: =IF(ISBLANK(D109),"",IF(ISBLANK(PROJEKTPARAMETER!B$6),"",PROJEKTPARAMETER!B$6)) ->  | U109: =IF(ISBLANK(D109),"",IF(ISBLANK(PROJEKTPARAMETER!B$7),"",PROJEKTPARAMETER!B$7)) ->  | V109: =IF(ISBLANK(D109),"",IF(ISBLANK(PROJEKTPARAMETER!B$8),"",PROJEKTPARAMETER!B$8)) ->  | AC109: =IF(ISBLANK(G109),"",IF(ISBLANK(VLOOKUP(G109,OBJEKTLISTE!$A$4:$G$976,7,FALSE)),"",VLOOKUP(G109,OBJEKTLISTE!$A$4:$G$976,7,FALSE))) -> 
H110: =IF(G110<>"",VLOOKUP(G110,OBJEKTLISTE!$A$4:$G$976,2,FALSE),"") ->  | J110: =IF(G110<>"",VLOOKUP(G110,OBJEKTLISTE!$A$4:$G$976,3,FALSE),"") ->  | K110: =IF(G110<>"",VLOOKUP(G110,OBJEKTLISTE!$A$4:$G$976,4,FALSE),"") ->  | L110: =IF(G110<>"",VLOOKUP(G110,OBJEKTLISTE!$A$4:$G$976,5,FALSE),"") ->  | M110: =IF(G110<>"",VLOOKUP(G110,OBJEKTLISTE!$A$4:$G$976,6,FALSE),"") ->  | N110: =IF(ISBLANK(D110),"",IF(ISBLANK(PROJEKTPARAMETER!B$2),"",PROJEKTPARAMETER!B$2)) ->  | O110: =IF(ISBLANK(D110),"",IF(ISBLANK(PROJEKTPARAMETER!B$3),"",PROJEKTPARAMETER!B$3)) ->  | P110: =IF(ISBLANK(D110),"",IF(ISBLANK(PROJEKTPARAMETER!B$4),"",PROJEKTPARAMETER!B$4)) ->  | Q110: =IF(ISBLANK(D110),"",IF(ISBLANK(PROJEKTPARAMETER!B$5),"",PROJEKTPARAMETER!B$5)) ->  | R110: =IF(ISBLANK(D110),"",IF(ISBLANK(PROJEKTPARAMETER!B$6),"",PROJEKTPARAMETER!B$6)) ->  | U110: =IF(ISBLANK(D110),"",IF(ISBLANK(PROJEKTPARAMETER!B$7),"",PROJEKTPARAMETER!B$7)) ->  | V110: =IF(ISBLANK(D110),"",IF(ISBLANK(PROJEKTPARAMETER!B$8),"",PROJEKTPARAMETER!B$8)) ->  | AC110: =IF(ISBLANK(G110),"",IF(ISBLANK(VLOOKUP(G110,OBJEKTLISTE!$A$4:$G$976,7,FALSE)),"",VLOOKUP(G110,OBJEKTLISTE!$A$4:$G$976,7,FALSE))) -> 
H111: =IF(G111<>"",VLOOKUP(G111,OBJEKTLISTE!$A$4:$G$976,2,FALSE),"") ->  | J111: =IF(G111<>"",VLOOKUP(G111,OBJEKTLISTE!$A$4:$G$976,3,FALSE),"") ->  | K111: =IF(G111<>"",VLOOKUP(G111,OBJEKTLISTE!$A$4:$G$976,4,FALSE),"") ->  | L111: =IF(G111<>"",VLOOKUP(G111,OBJEKTLISTE!$A$4:$G$976,5,FALSE),"") ->  | M111: =IF(G111<>"",VLOOKUP(G111,OBJEKTLISTE!$A$4:$G$976,6,FALSE),"") ->  | N111: =IF(ISBLANK(D111),"",IF(ISBLANK(PROJEKTPARAMETER!B$2),"",PROJEKTPARAMETER!B$2)) ->  | O111: =IF(ISBLANK(D111),"",IF(ISBLANK(PROJEKTPARAMETER!B$3),"",PROJEKTPARAMETER!B$3)) ->  | P111: =IF(ISBLANK(D111),"",IF(ISBLANK(PROJEKTPARAMETER!B$4),"",PROJEKTPARAMETER!B$4)) ->  | Q111: =IF(ISBLANK(D111),"",IF(ISBLANK(PROJEKTPARAMETER!B$5),"",PROJEKTPARAMETER!B$5)) ->  | R111: =IF(ISBLANK(D111),"",IF(ISBLANK(PROJEKTPARAMETER!B$6),"",PROJEKTPARAMETER!B$6)) ->  | U111: =IF(ISBLANK(D111),"",IF(ISBLANK(PROJEKTPARAMETER!B$7),"",PROJEKTPARAMETER!B$7)) ->  | V111: =IF(ISBLANK(D111),"",IF(ISBLANK(PROJEKTPARAMETER!B$8),"",PROJEKTPARAMETER!B$8)) ->  | AC111: =IF(ISBLANK(G111),"",IF(ISBLANK(VLOOKUP(G111,OBJEKTLISTE!$A$4:$G$976,7,FALSE)),"",VLOOKUP(G111,OBJEKTLISTE!$A$4:$G$976,7,FALSE))) -> 
H112: =IF(G112<>"",VLOOKUP(G112,OBJEKTLISTE!$A$4:$G$976,2,FALSE),"") ->  | J112: =IF(G112<>"",VLOOKUP(G112,OBJEKTLISTE!$A$4:$G$976,3,FALSE),"") ->  | K112: =IF(G112<>"",VLOOKUP(G112,OBJEKTLISTE!$A$4:$G$976,4,FALSE),"") ->  | L112: =IF(G112<>"",VLOOKUP(G112,OBJEKTLISTE!$A$4:$G$976,5,FALSE),"") ->  | M112: =IF(G112<>"",VLOOKUP(G112,OBJEKTLISTE!$A$4:$G$976,6,FALSE),"") ->  | N112: =IF(ISBLANK(D112),"",IF(ISBLANK(PROJEKTPARAMETER!B$2),"",PROJEKTPARAMETER!B$2)) ->  | O112: =IF(ISBLANK(D112),"",IF(ISBLANK(PROJEKTPARAMETER!B$3),"",PROJEKTPARAMETER!B$3)) ->  | P112: =IF(ISBLANK(D112),"",IF(ISBLANK(PROJEKTPARAMETER!B$4),"",PROJEKTPARAMETER!B$4)) ->  | Q112: =IF(ISBLANK(D112),"",IF(ISBLANK(PROJEKTPARAMETER!B$5),"",PROJEKTPARAMETER!B$5)) ->  | R112: =IF(ISBLANK(D112),"",IF(ISBLANK(PROJEKTPARAMETER!B$6),"",PROJEKTPARAMETER!B$6)) ->  | U112: =IF(ISBLANK(D112),"",IF(ISBLANK(PROJEKTPARAMETER!B$7),"",PROJEKTPARAMETER!B$7)) ->  | V112: =IF(ISBLANK(D112),"",IF(ISBLANK(PROJEKTPARAMETER!B$8),"",PROJEKTPARAMETER!B$8)) ->  | AC112: =IF(ISBLANK(G112),"",IF(ISBLANK(VLOOKUP(G112,OBJEKTLISTE!$A$4:$G$976,7,FALSE)),"",VLOOKUP(G112,OBJEKTLISTE!$A$4:$G$976,7,FALSE))) -> 
H113: =IF(G113<>"",VLOOKUP(G113,OBJEKTLISTE!$A$4:$G$976,2,FALSE),"") ->  | J113: =IF(G113<>"",VLOOKUP(G113,OBJEKTLISTE!$A$4:$G$976,3,FALSE),"") ->  | K113: =IF(G113<>"",VLOOKUP(G113,OBJEKTLISTE!$A$4:$G$976,4,FALSE),"") ->  | L113: =IF(G113<>"",VLOOKUP(G113,OBJEKTLISTE!$A$4:$G$976,5,FALSE),"") ->  | M113: =IF(G113<>"",VLOOKUP(G113,OBJEKTLISTE!$A$4:$G$976,6,FALSE),"") ->  | N113: =IF(ISBLANK(D113),"",IF(ISBLANK(PROJEKTPARAMETER!B$2),"",PROJEKTPARAMETER!B$2)) ->  | O113: =IF(ISBLANK(D113),"",IF(ISBLANK(PROJEKTPARAMETER!B$3),"",PROJEKTPARAMETER!B$3)) ->  | P113: =IF(ISBLANK(D113),"",IF(ISBLANK(PROJEKTPARAMETER!B$4),"",PROJEKTPARAMETER!B$4)) ->  | Q113: =IF(ISBLANK(D113),"",IF(ISBLANK(PROJEKTPARAMETER!B$5),"",PROJEKTPARAMETER!B$5)) ->  | R113: =IF(ISBLANK(D113),"",IF(ISBLANK(PROJEKTPARAMETER!B$6),"",PROJEKTPARAMETER!B$6)) ->  | U113: =IF(ISBLANK(D113),"",IF(ISBLANK(PROJEKTPARAMETER!B$7),"",PROJEKTPARAMETER!B$7)) ->  | V113: =IF(ISBLANK(D113),"",IF(ISBLANK(PROJEKTPARAMETER!B$8),"",PROJEKTPARAMETER!B$8)) ->  | AC113: =IF(ISBLANK(G113),"",IF(ISBLANK(VLOOKUP(G113,OBJEKTLISTE!$A$4:$G$976,7,FALSE)),"",VLOOKUP(G113,OBJEKTLISTE!$A$4:$G$976,7,FALSE))) -> 
H114: =IF(G114<>"",VLOOKUP(G114,OBJEKTLISTE!$A$4:$G$976,2,FALSE),"") ->  | J114: =IF(G114<>"",VLOOKUP(G114,OBJEKTLISTE!$A$4:$G$976,3,FALSE),"") ->  | K114: =IF(G114<>"",VLOOKUP(G114,OBJEKTLISTE!$A$4:$G$976,4,FALSE),"") ->  | L114: =IF(G114<>"",VLOOKUP(G114,OBJEKTLISTE!$A$4:$G$976,5,FALSE),"") ->  | M114: =IF(G114<>"",VLOOKUP(G114,OBJEKTLISTE!$A$4:$G$976,6,FALSE),"") ->  | N114: =IF(ISBLANK(D114),"",IF(ISBLANK(PROJEKTPARAMETER!B$2),"",PROJEKTPARAMETER!B$2)) ->  | O114: =IF(ISBLANK(D114),"",IF(ISBLANK(PROJEKTPARAMETER!B$3),"",PROJEKTPARAMETER!B$3)) ->  | P114: =IF(ISBLANK(D114),"",IF(ISBLANK(PROJEKTPARAMETER!B$4),"",PROJEKTPARAMETER!B$4)) ->  | Q114: =IF(ISBLANK(D114),"",IF(ISBLANK(PROJEKTPARAMETER!B$5),"",PROJEKTPARAMETER!B$5)) ->  | R114: =IF(ISBLANK(D114),"",IF(ISBLANK(PROJEKTPARAMETER!B$6),"",PROJEKTPARAMETER!B$6)) ->  | U114: =IF(ISBLANK(D114),"",IF(ISBLANK(PROJEKTPARAMETER!B$7),"",PROJEKTPARAMETER!B$7)) ->  | V114: =IF(ISBLANK(D114),"",IF(ISBLANK(PROJEKTPARAMETER!B$8),"",PROJEKTPARAMETER!B$8)) ->  | AC114: =IF(ISBLANK(G114),"",IF(ISBLANK(VLOOKUP(G114,OBJEKTLISTE!$A$4:$G$976,7,FALSE)),"",VLOOKUP(G114,OBJEKTLISTE!$A$4:$G$976,7,FALSE))) -> 
H115: =IF(G115<>"",VLOOKUP(G115,OBJEKTLISTE!$A$4:$G$976,2,FALSE),"") ->  | J115: =IF(G115<>"",VLOOKUP(G115,OBJEKTLISTE!$A$4:$G$976,3,FALSE),"") ->  | K115: =IF(G115<>"",VLOOKUP(G115,OBJEKTLISTE!$A$4:$G$976,4,FALSE),"") ->  | L115: =IF(G115<>"",VLOOKUP(G115,OBJEKTLISTE!$A$4:$G$976,5,FALSE),"") ->  | M115: =IF(G115<>"",VLOOKUP(G115,OBJEKTLISTE!$A$4:$G$976,6,FALSE),"") ->  | N115: =IF(ISBLANK(D115),"",IF(ISBLANK(PROJEKTPARAMETER!B$2),"",PROJEKTPARAMETER!B$2)) ->  | O115: =IF(ISBLANK(D115),"",IF(ISBLANK(PROJEKTPARAMETER!B$3),"",PROJEKTPARAMETER!B$3)) ->  | P115: =IF(ISBLANK(D115),"",IF(ISBLANK(PROJEKTPARAMETER!B$4),"",PROJEKTPARAMETER!B$4)) ->  | Q115: =IF(ISBLANK(D115),"",IF(ISBLANK(PROJEKTPARAMETER!B$5),"",PROJEKTPARAMETER!B$5)) ->  | R115: =IF(ISBLANK(D115),"",IF(ISBLANK(PROJEKTPARAMETER!B$6),"",PROJEKTPARAMETER!B$6)) ->  | U115: =IF(ISBLANK(D115),"",IF(ISBLANK(PROJEKTPARAMETER!B$7),"",PROJEKTPARAMETER!B$7)) ->  | V115: =IF(ISBLANK(D115),"",IF(ISBLANK(PROJEKTPARAMETER!B$8),"",PROJEKTPARAMETER!B$8)) ->  | AC115: =IF(ISBLANK(G115),"",IF(ISBLANK(VLOOKUP(G115,OBJEKTLISTE!$A$4:$G$976,7,FALSE)),"",VLOOKUP(G115,OBJEKTLISTE!$A$4:$G$976,7,FALSE))) -> 
H116: =IF(G116<>"",VLOOKUP(G116,OBJEKTLISTE!$A$4:$G$976,2,FALSE),"") ->  | J116: =IF(G116<>"",VLOOKUP(G116,OBJEKTLISTE!$A$4:$G$976,3,FALSE),"") ->  | K116: =IF(G116<>"",VLOOKUP(G116,OBJEKTLISTE!$A$4:$G$976,4,FALSE),"") ->  | L116: =IF(G116<>"",VLOOKUP(G116,OBJEKTLISTE!$A$4:$G$976,5,FALSE),"") ->  | M116: =IF(G116<>"",VLOOKUP(G116,OBJEKTLISTE!$A$4:$G$976,6,FALSE),"") ->  | N116: =IF(ISBLANK(D116),"",IF(ISBLANK(PROJEKTPARAMETER!B$2),"",PROJEKTPARAMETER!B$2)) ->  | O116: =IF(ISBLANK(D116),"",IF(ISBLANK(PROJEKTPARAMETER!B$3),"",PROJEKTPARAMETER!B$3)) ->  | P116: =IF(ISBLANK(D116),"",IF(ISBLANK(PROJEKTPARAMETER!B$4),"",PROJEKTPARAMETER!B$4)) ->  | Q116: =IF(ISBLANK(D116),"",IF(ISBLANK(PROJEKTPARAMETER!B$5),"",PROJEKTPARAMETER!B$5)) ->  | R116: =IF(ISBLANK(D116),"",IF(ISBLANK(PROJEKTPARAMETER!B$6),"",PROJEKTPARAMETER!B$6)) ->  | U116: =IF(ISBLANK(D116),"",IF(ISBLANK(PROJEKTPARAMETER!B$7),"",PROJEKTPARAMETER!B$7)) ->  | V116: =IF(ISBLANK(D116),"",IF(ISBLANK(PROJEKTPARAMETER!B$8),"",PROJEKTPARAMETER!B$8)) ->  | AC116: =IF(ISBLANK(G116),"",IF(ISBLANK(VLOOKUP(G116,OBJEKTLISTE!$A$4:$G$976,7,FALSE)),"",VLOOKUP(G116,OBJEKTLISTE!$A$4:$G$976,7,FALSE))) -> 
H117: =IF(G117<>"",VLOOKUP(G117,OBJEKTLISTE!$A$4:$G$976,2,FALSE),"") ->  | J117: =IF(G117<>"",VLOOKUP(G117,OBJEKTLISTE!$A$4:$G$976,3,FALSE),"") ->  | K117: =IF(G117<>"",VLOOKUP(G117,OBJEKTLISTE!$A$4:$G$976,4,FALSE),"") ->  | L117: =IF(G117<>"",VLOOKUP(G117,OBJEKTLISTE!$A$4:$G$976,5,FALSE),"") ->  | M117: =IF(G117<>"",VLOOKUP(G117,OBJEKTLISTE!$A$4:$G$976,6,FALSE),"") ->  | N117: =IF(ISBLANK(D117),"",IF(ISBLANK(PROJEKTPARAMETER!B$2),"",PROJEKTPARAMETER!B$2)) ->  | O117: =IF(ISBLANK(D117),"",IF(ISBLANK(PROJEKTPARAMETER!B$3),"",PROJEKTPARAMETER!B$3)) ->  | P117: =IF(ISBLANK(D117),"",IF(ISBLANK(PROJEKTPARAMETER!B$4),"",PROJEKTPARAMETER!B$4)) ->  | Q117: =IF(ISBLANK(D117),"",IF(ISBLANK(PROJEKTPARAMETER!B$5),"",PROJEKTPARAMETER!B$5)) ->  | R117: =IF(ISBLANK(D117),"",IF(ISBLANK(PROJEKTPARAMETER!B$6),"",PROJEKTPARAMETER!B$6)) ->  | U117: =IF(ISBLANK(D117),"",IF(ISBLANK(PROJEKTPARAMETER!B$7),"",PROJEKTPARAMETER!B$7)) ->  | V117: =IF(ISBLANK(D117),"",IF(ISBLANK(PROJEKTPARAMETER!B$8),"",PROJEKTPARAMETER!B$8)) ->  | AC117: =IF(ISBLANK(G117),"",IF(ISBLANK(VLOOKUP(G117,OBJEKTLISTE!$A$4:$G$976,7,FALSE)),"",VLOOKUP(G117,OBJEKTLISTE!$A$4:$G$976,7,FALSE))) -> 
H118: =IF(G118<>"",VLOOKUP(G118,OBJEKTLISTE!$A$4:$G$976,2,FALSE),"") ->  | J118: =IF(G118<>"",VLOOKUP(G118,OBJEKTLISTE!$A$4:$G$976,3,FALSE),"") ->  | K118: =IF(G118<>"",VLOOKUP(G118,OBJEKTLISTE!$A$4:$G$976,4,FALSE),"") ->  | L118: =IF(G118<>"",VLOOKUP(G118,OBJEKTLISTE!$A$4:$G$976,5,FALSE),"") ->  | M118: =IF(G118<>"",VLOOKUP(G118,OBJEKTLISTE!$A$4:$G$976,6,FALSE),"") ->  | N118: =IF(ISBLANK(D118),"",IF(ISBLANK(PROJEKTPARAMETER!B$2),"",PROJEKTPARAMETER!B$2)) ->  | O118: =IF(ISBLANK(D118),"",IF(ISBLANK(PROJEKTPARAMETER!B$3),"",PROJEKTPARAMETER!B$3)) ->  | P118: =IF(ISBLANK(D118),"",IF(ISBLANK(PROJEKTPARAMETER!B$4),"",PROJEKTPARAMETER!B$4)) ->  | Q118: =IF(ISBLANK(D118),"",IF(ISBLANK(PROJEKTPARAMETER!B$5),"",PROJEKTPARAMETER!B$5)) ->  | R118: =IF(ISBLANK(D118),"",IF(ISBLANK(PROJEKTPARAMETER!B$6),"",PROJEKTPARAMETER!B$6)) ->  | U118: =IF(ISBLANK(D118),"",IF(ISBLANK(PROJEKTPARAMETER!B$7),"",PROJEKTPARAMETER!B$7)) ->  | V118: =IF(ISBLANK(D118),"",IF(ISBLANK(PROJEKTPARAMETER!B$8),"",PROJEKTPARAMETER!B$8)) ->  | AC118: =IF(ISBLANK(G118),"",IF(ISBLANK(VLOOKUP(G118,OBJEKTLISTE!$A$4:$G$976,7,FALSE)),"",VLOOKUP(G118,OBJEKTLISTE!$A$4:$G$976,7,FALSE))) -> 
H119: =IF(G119<>"",VLOOKUP(G119,OBJEKTLISTE!$A$4:$G$976,2,FALSE),"") ->  | J119: =IF(G119<>"",VLOOKUP(G119,OBJEKTLISTE!$A$4:$G$976,3,FALSE),"") ->  | K119: =IF(G119<>"",VLOOKUP(G119,OBJEKTLISTE!$A$4:$G$976,4,FALSE),"") ->  | L119: =IF(G119<>"",VLOOKUP(G119,OBJEKTLISTE!$A$4:$G$976,5,FALSE),"") ->  | M119: =IF(G119<>"",VLOOKUP(G119,OBJEKTLISTE!$A$4:$G$976,6,FALSE),"") ->  | N119: =IF(ISBLANK(D119),"",IF(ISBLANK(PROJEKTPARAMETER!B$2),"",PROJEKTPARAMETER!B$2)) ->  | O119: =IF(ISBLANK(D119),"",IF(ISBLANK(PROJEKTPARAMETER!B$3),"",PROJEKTPARAMETER!B$3)) ->  | P119: =IF(ISBLANK(D119),"",IF(ISBLANK(PROJEKTPARAMETER!B$4),"",PROJEKTPARAMETER!B$4)) ->  | Q119: =IF(ISBLANK(D119),"",IF(ISBLANK(PROJEKTPARAMETER!B$5),"",PROJEKTPARAMETER!B$5)) ->  | R119: =IF(ISBLANK(D119),"",IF(ISBLANK(PROJEKTPARAMETER!B$6),"",PROJEKTPARAMETER!B$6)) ->  | U119: =IF(ISBLANK(D119),"",IF(ISBLANK(PROJEKTPARAMETER!B$7),"",PROJEKTPARAMETER!B$7)) ->  | V119: =IF(ISBLANK(D119),"",IF(ISBLANK(PROJEKTPARAMETER!B$8),"",PROJEKTPARAMETER!B$8)) ->  | AC119: =IF(ISBLANK(G119),"",IF(ISBLANK(VLOOKUP(G119,OBJEKTLISTE!$A$4:$G$976,7,FALSE)),"",VLOOKUP(G119,OBJEKTLISTE!$A$4:$G$976,7,FALSE))) -> 
H120: =IF(G120<>"",VLOOKUP(G120,OBJEKTLISTE!$A$4:$G$976,2,FALSE),"") ->  | J120: =IF(G120<>"",VLOOKUP(G120,OBJEKTLISTE!$A$4:$G$976,3,FALSE),"") ->  | K120: =IF(G120<>"",VLOOKUP(G120,OBJEKTLISTE!$A$4:$G$976,4,FALSE),"") ->  | L120: =IF(G120<>"",VLOOKUP(G120,OBJEKTLISTE!$A$4:$G$976,5,FALSE),"") ->  | M120: =IF(G120<>"",VLOOKUP(G120,OBJEKTLISTE!$A$4:$G$976,6,FALSE),"") ->  | N120: =IF(ISBLANK(D120),"",IF(ISBLANK(PROJEKTPARAMETER!B$2),"",PROJEKTPARAMETER!B$2)) ->  | O120: =IF(ISBLANK(D120),"",IF(ISBLANK(PROJEKTPARAMETER!B$3),"",PROJEKTPARAMETER!B$3)) ->  | P120: =IF(ISBLANK(D120),"",IF(ISBLANK(PROJEKTPARAMETER!B$4),"",PROJEKTPARAMETER!B$4)) ->  | Q120: =IF(ISBLANK(D120),"",IF(ISBLANK(PROJEKTPARAMETER!B$5),"",PROJEKTPARAMETER!B$5)) ->  | R120: =IF(ISBLANK(D120),"",IF(ISBLANK(PROJEKTPARAMETER!B$6),"",PROJEKTPARAMETER!B$6)) ->  | U120: =IF(ISBLANK(D120),"",IF(ISBLANK(PROJEKTPARAMETER!B$7),"",PROJEKTPARAMETER!B$7)) ->  | V120: =IF(ISBLANK(D120),"",IF(ISBLANK(PROJEKTPARAMETER!B$8),"",PROJEKTPARAMETER!B$8)) ->  | AC120: =IF(ISBLANK(G120),"",IF(ISBLANK(VLOOKUP(G120,OBJEKTLISTE!$A$4:$G$976,7,FALSE)),"",VLOOKUP(G120,OBJEKTLISTE!$A$4:$G$976,7,FALSE))) -> 
H121: =IF(G121<>"",VLOOKUP(G121,OBJEKTLISTE!$A$4:$G$976,2,FALSE),"") ->  | J121: =IF(G121<>"",VLOOKUP(G121,OBJEKTLISTE!$A$4:$G$976,3,FALSE),"") ->  | K121: =IF(G121<>"",VLOOKUP(G121,OBJEKTLISTE!$A$4:$G$976,4,FALSE),"") ->  | L121: =IF(G121<>"",VLOOKUP(G121,OBJEKTLISTE!$A$4:$G$976,5,FALSE),"") ->  | M121: =IF(G121<>"",VLOOKUP(G121,OBJEKTLISTE!$A$4:$G$976,6,FALSE),"") ->  | N121: =IF(ISBLANK(D121),"",IF(ISBLANK(PROJEKTPARAMETER!B$2),"",PROJEKTPARAMETER!B$2)) ->  | O121: =IF(ISBLANK(D121),"",IF(ISBLANK(PROJEKTPARAMETER!B$3),"",PROJEKTPARAMETER!B$3)) ->  | P121: =IF(ISBLANK(D121),"",IF(ISBLANK(PROJEKTPARAMETER!B$4),"",PROJEKTPARAMETER!B$4)) ->  | Q121: =IF(ISBLANK(D121),"",IF(ISBLANK(PROJEKTPARAMETER!B$5),"",PROJEKTPARAMETER!B$5)) ->  | R121: =IF(ISBLANK(D121),"",IF(ISBLANK(PROJEKTPARAMETER!B$6),"",PROJEKTPARAMETER!B$6)) ->  | U121: =IF(ISBLANK(D121),"",IF(ISBLANK(PROJEKTPARAMETER!B$7),"",PROJEKTPARAMETER!B$7)) ->  | V121: =IF(ISBLANK(D121),"",IF(ISBLANK(PROJEKTPARAMETER!B$8),"",PROJEKTPARAMETER!B$8)) ->  | AC121: =IF(ISBLANK(G121),"",IF(ISBLANK(VLOOKUP(G121,OBJEKTLISTE!$A$4:$G$976,7,FALSE)),"",VLOOKUP(G121,OBJEKTLISTE!$A$4:$G$976,7,FALSE))) -> 
H122: =IF(G122<>"",VLOOKUP(G122,OBJEKTLISTE!$A$4:$G$976,2,FALSE),"") ->  | J122: =IF(G122<>"",VLOOKUP(G122,OBJEKTLISTE!$A$4:$G$976,3,FALSE),"") ->  | K122: =IF(G122<>"",VLOOKUP(G122,OBJEKTLISTE!$A$4:$G$976,4,FALSE),"") ->  | L122: =IF(G122<>"",VLOOKUP(G122,OBJEKTLISTE!$A$4:$G$976,5,FALSE),"") ->  | M122: =IF(G122<>"",VLOOKUP(G122,OBJEKTLISTE!$A$4:$G$976,6,FALSE),"") ->  | N122: =IF(ISBLANK(D122),"",IF(ISBLANK(PROJEKTPARAMETER!B$2),"",PROJEKTPARAMETER!B$2)) ->  | O122: =IF(ISBLANK(D122),"",IF(ISBLANK(PROJEKTPARAMETER!B$3),"",PROJEKTPARAMETER!B$3)) ->  | P122: =IF(ISBLANK(D122),"",IF(ISBLANK(PROJEKTPARAMETER!B$4),"",PROJEKTPARAMETER!B$4)) ->  | Q122: =IF(ISBLANK(D122),"",IF(ISBLANK(PROJEKTPARAMETER!B$5),"",PROJEKTPARAMETER!B$5)) ->  | R122: =IF(ISBLANK(D122),"",IF(ISBLANK(PROJEKTPARAMETER!B$6),"",PROJEKTPARAMETER!B$6)) ->  | U122: =IF(ISBLANK(D122),"",IF(ISBLANK(PROJEKTPARAMETER!B$7),"",PROJEKTPARAMETER!B$7)) ->  | V122: =IF(ISBLANK(D122),"",IF(ISBLANK(PROJEKTPARAMETER!B$8),"",PROJEKTPARAMETER!B$8)) ->  | AC122: =IF(ISBLANK(G122),"",IF(ISBLANK(VLOOKUP(G122,OBJEKTLISTE!$A$4:$G$976,7,FALSE)),"",VLOOKUP(G122,OBJEKTLISTE!$A$4:$G$976,7,FALSE))) -> 
H123: =IF(G123<>"",VLOOKUP(G123,OBJEKTLISTE!$A$4:$G$976,2,FALSE),"") ->  | J123: =IF(G123<>"",VLOOKUP(G123,OBJEKTLISTE!$A$4:$G$976,3,FALSE),"") ->  | K123: =IF(G123<>"",VLOOKUP(G123,OBJEKTLISTE!$A$4:$G$976,4,FALSE),"") ->  | L123: =IF(G123<>"",VLOOKUP(G123,OBJEKTLISTE!$A$4:$G$976,5,FALSE),"") ->  | M123: =IF(G123<>"",VLOOKUP(G123,OBJEKTLISTE!$A$4:$G$976,6,FALSE),"") ->  | N123: =IF(ISBLANK(D123),"",IF(ISBLANK(PROJEKTPARAMETER!B$2),"",PROJEKTPARAMETER!B$2)) ->  | O123: =IF(ISBLANK(D123),"",IF(ISBLANK(PROJEKTPARAMETER!B$3),"",PROJEKTPARAMETER!B$3)) ->  | P123: =IF(ISBLANK(D123),"",IF(ISBLANK(PROJEKTPARAMETER!B$4),"",PROJEKTPARAMETER!B$4)) ->  | Q123: =IF(ISBLANK(D123),"",IF(ISBLANK(PROJEKTPARAMETER!B$5),"",PROJEKTPARAMETER!B$5)) ->  | R123: =IF(ISBLANK(D123),"",IF(ISBLANK(PROJEKTPARAMETER!B$6),"",PROJEKTPARAMETER!B$6)) ->  | U123: =IF(ISBLANK(D123),"",IF(ISBLANK(PROJEKTPARAMETER!B$7),"",PROJEKTPARAMETER!B$7)) ->  | V123: =IF(ISBLANK(D123),"",IF(ISBLANK(PROJEKTPARAMETER!B$8),"",PROJEKTPARAMETER!B$8)) ->  | AC123: =IF(ISBLANK(G123),"",IF(ISBLANK(VLOOKUP(G123,OBJEKTLISTE!$A$4:$G$976,7,FALSE)),"",VLOOKUP(G123,OBJEKTLISTE!$A$4:$G$976,7,FALSE))) -> 
H124: =IF(G124<>"",VLOOKUP(G124,OBJEKTLISTE!$A$4:$G$976,2,FALSE),"") ->  | J124: =IF(G124<>"",VLOOKUP(G124,OBJEKTLISTE!$A$4:$G$976,3,FALSE),"") ->  | K124: =IF(G124<>"",VLOOKUP(G124,OBJEKTLISTE!$A$4:$G$976,4,FALSE),"") ->  | L124: =IF(G124<>"",VLOOKUP(G124,OBJEKTLISTE!$A$4:$G$976,5,FALSE),"") ->  | M124: =IF(G124<>"",VLOOKUP(G124,OBJEKTLISTE!$A$4:$G$976,6,FALSE),"") ->  | N124: =IF(ISBLANK(D124),"",IF(ISBLANK(PROJEKTPARAMETER!B$2),"",PROJEKTPARAMETER!B$2)) ->  | O124: =IF(ISBLANK(D124),"",IF(ISBLANK(PROJEKTPARAMETER!B$3),"",PROJEKTPARAMETER!B$3)) ->  | P124: =IF(ISBLANK(D124),"",IF(ISBLANK(PROJEKTPARAMETER!B$4),"",PROJEKTPARAMETER!B$4)) ->  | Q124: =IF(ISBLANK(D124),"",IF(ISBLANK(PROJEKTPARAMETER!B$5),"",PROJEKTPARAMETER!B$5)) ->  | R124: =IF(ISBLANK(D124),"",IF(ISBLANK(PROJEKTPARAMETER!B$6),"",PROJEKTPARAMETER!B$6)) ->  | U124: =IF(ISBLANK(D124),"",IF(ISBLANK(PROJEKTPARAMETER!B$7),"",PROJEKTPARAMETER!B$7)) ->  | V124: =IF(ISBLANK(D124),"",IF(ISBLANK(PROJEKTPARAMETER!B$8),"",PROJEKTPARAMETER!B$8)) ->  | AC124: =IF(ISBLANK(G124),"",IF(ISBLANK(VLOOKUP(G124,OBJEKTLISTE!$A$4:$G$976,7,FALSE)),"",VLOOKUP(G124,OBJEKTLISTE!$A$4:$G$976,7,FALSE))) -> 
H125: =IF(G125<>"",VLOOKUP(G125,OBJEKTLISTE!$A$4:$G$976,2,FALSE),"") ->  | J125: =IF(G125<>"",VLOOKUP(G125,OBJEKTLISTE!$A$4:$G$976,3,FALSE),"") ->  | K125: =IF(G125<>"",VLOOKUP(G125,OBJEKTLISTE!$A$4:$G$976,4,FALSE),"") ->  | L125: =IF(G125<>"",VLOOKUP(G125,OBJEKTLISTE!$A$4:$G$976,5,FALSE),"") ->  | M125: =IF(G125<>"",VLOOKUP(G125,OBJEKTLISTE!$A$4:$G$976,6,FALSE),"") ->  | N125: =IF(ISBLANK(D125),"",IF(ISBLANK(PROJEKTPARAMETER!B$2),"",PROJEKTPARAMETER!B$2)) ->  | O125: =IF(ISBLANK(D125),"",IF(ISBLANK(PROJEKTPARAMETER!B$3),"",PROJEKTPARAMETER!B$3)) ->  | P125: =IF(ISBLANK(D125),"",IF(ISBLANK(PROJEKTPARAMETER!B$4),"",PROJEKTPARAMETER!B$4)) ->  | Q125: =IF(ISBLANK(D125),"",IF(ISBLANK(PROJEKTPARAMETER!B$5),"",PROJEKTPARAMETER!B$5)) ->  | R125: =IF(ISBLANK(D125),"",IF(ISBLANK(PROJEKTPARAMETER!B$6),"",PROJEKTPARAMETER!B$6)) ->  | U125: =IF(ISBLANK(D125),"",IF(ISBLANK(PROJEKTPARAMETER!B$7),"",PROJEKTPARAMETER!B$7)) ->  | V125: =IF(ISBLANK(D125),"",IF(ISBLANK(PROJEKTPARAMETER!B$8),"",PROJEKTPARAMETER!B$8)) ->  | AC125: =IF(ISBLANK(G125),"",IF(ISBLANK(VLOOKUP(G125,OBJEKTLISTE!$A$4:$G$976,7,FALSE)),"",VLOOKUP(G125,OBJEKTLISTE!$A$4:$G$976,7,FALSE))) -> 
H126: =IF(G126<>"",VLOOKUP(G126,OBJEKTLISTE!$A$4:$G$976,2,FALSE),"") ->  | J126: =IF(G126<>"",VLOOKUP(G126,OBJEKTLISTE!$A$4:$G$976,3,FALSE),"") ->  | K126: =IF(G126<>"",VLOOKUP(G126,OBJEKTLISTE!$A$4:$G$976,4,FALSE),"") ->  | L126: =IF(G126<>"",VLOOKUP(G126,OBJEKTLISTE!$A$4:$G$976,5,FALSE),"") ->  | M126: =IF(G126<>"",VLOOKUP(G126,OBJEKTLISTE!$A$4:$G$976,6,FALSE),"") ->  | N126: =IF(ISBLANK(D126),"",IF(ISBLANK(PROJEKTPARAMETER!B$2),"",PROJEKTPARAMETER!B$2)) ->  | O126: =IF(ISBLANK(D126),"",IF(ISBLANK(PROJEKTPARAMETER!B$3),"",PROJEKTPARAMETER!B$3)) ->  | P126: =IF(ISBLANK(D126),"",IF(ISBLANK(PROJEKTPARAMETER!B$4),"",PROJEKTPARAMETER!B$4)) ->  | Q126: =IF(ISBLANK(D126),"",IF(ISBLANK(PROJEKTPARAMETER!B$5),"",PROJEKTPARAMETER!B$5)) ->  | R126: =IF(ISBLANK(D126),"",IF(ISBLANK(PROJEKTPARAMETER!B$6),"",PROJEKTPARAMETER!B$6)) ->  | U126: =IF(ISBLANK(D126),"",IF(ISBLANK(PROJEKTPARAMETER!B$7),"",PROJEKTPARAMETER!B$7)) ->  | V126: =IF(ISBLANK(D126),"",IF(ISBLANK(PROJEKTPARAMETER!B$8),"",PROJEKTPARAMETER!B$8)) ->  | AC126: =IF(ISBLANK(G126),"",IF(ISBLANK(VLOOKUP(G126,OBJEKTLISTE!$A$4:$G$976,7,FALSE)),"",VLOOKUP(G126,OBJEKTLISTE!$A$4:$G$976,7,FALSE))) -> 
H127: =IF(G127<>"",VLOOKUP(G127,OBJEKTLISTE!$A$4:$G$976,2,FALSE),"") ->  | J127: =IF(G127<>"",VLOOKUP(G127,OBJEKTLISTE!$A$4:$G$976,3,FALSE),"") ->  | K127: =IF(G127<>"",VLOOKUP(G127,OBJEKTLISTE!$A$4:$G$976,4,FALSE),"") ->  | L127: =IF(G127<>"",VLOOKUP(G127,OBJEKTLISTE!$A$4:$G$976,5,FALSE),"") ->  | M127: =IF(G127<>"",VLOOKUP(G127,OBJEKTLISTE!$A$4:$G$976,6,FALSE),"") ->  | N127: =IF(ISBLANK(D127),"",IF(ISBLANK(PROJEKTPARAMETER!B$2),"",PROJEKTPARAMETER!B$2)) ->  | O127: =IF(ISBLANK(D127),"",IF(ISBLANK(PROJEKTPARAMETER!B$3),"",PROJEKTPARAMETER!B$3)) ->  | P127: =IF(ISBLANK(D127),"",IF(ISBLANK(PROJEKTPARAMETER!B$4),"",PROJEKTPARAMETER!B$4)) ->  | Q127: =IF(ISBLANK(D127),"",IF(ISBLANK(PROJEKTPARAMETER!B$5),"",PROJEKTPARAMETER!B$5)) ->  | R127: =IF(ISBLANK(D127),"",IF(ISBLANK(PROJEKTPARAMETER!B$6),"",PROJEKTPARAMETER!B$6)) ->  | U127: =IF(ISBLANK(D127),"",IF(ISBLANK(PROJEKTPARAMETER!B$7),"",PROJEKTPARAMETER!B$7)) ->  | V127: =IF(ISBLANK(D127),"",IF(ISBLANK(PROJEKTPARAMETER!B$8),"",PROJEKTPARAMETER!B$8)) ->  | AC127: =IF(ISBLANK(G127),"",IF(ISBLANK(VLOOKUP(G127,OBJEKTLISTE!$A$4:$G$976,7,FALSE)),"",VLOOKUP(G127,OBJEKTLISTE!$A$4:$G$976,7,FALSE))) -> 
H128: =IF(G128<>"",VLOOKUP(G128,OBJEKTLISTE!$A$4:$G$976,2,FALSE),"") ->  | J128: =IF(G128<>"",VLOOKUP(G128,OBJEKTLISTE!$A$4:$G$976,3,FALSE),"") ->  | K128: =IF(G128<>"",VLOOKUP(G128,OBJEKTLISTE!$A$4:$G$976,4,FALSE),"") ->  | L128: =IF(G128<>"",VLOOKUP(G128,OBJEKTLISTE!$A$4:$G$976,5,FALSE),"") ->  | M128: =IF(G128<>"",VLOOKUP(G128,OBJEKTLISTE!$A$4:$G$976,6,FALSE),"") ->  | N128: =IF(ISBLANK(D128),"",IF(ISBLANK(PROJEKTPARAMETER!B$2),"",PROJEKTPARAMETER!B$2)) ->  | O128: =IF(ISBLANK(D128),"",IF(ISBLANK(PROJEKTPARAMETER!B$3),"",PROJEKTPARAMETER!B$3)) ->  | P128: =IF(ISBLANK(D128),"",IF(ISBLANK(PROJEKTPARAMETER!B$4),"",PROJEKTPARAMETER!B$4)) ->  | Q128: =IF(ISBLANK(D128),"",IF(ISBLANK(PROJEKTPARAMETER!B$5),"",PROJEKTPARAMETER!B$5)) ->  | R128: =IF(ISBLANK(D128),"",IF(ISBLANK(PROJEKTPARAMETER!B$6),"",PROJEKTPARAMETER!B$6)) ->  | U128: =IF(ISBLANK(D128),"",IF(ISBLANK(PROJEKTPARAMETER!B$7),"",PROJEKTPARAMETER!B$7)) ->  | V128: =IF(ISBLANK(D128),"",IF(ISBLANK(PROJEKTPARAMETER!B$8),"",PROJEKTPARAMETER!B$8)) ->  | AC128: =IF(ISBLANK(G128),"",IF(ISBLANK(VLOOKUP(G128,OBJEKTLISTE!$A$4:$G$976,7,FALSE)),"",VLOOKUP(G128,OBJEKTLISTE!$A$4:$G$976,7,FALSE))) -> 
H129: =IF(G129<>"",VLOOKUP(G129,OBJEKTLISTE!$A$4:$G$976,2,FALSE),"") ->  | J129: =IF(G129<>"",VLOOKUP(G129,OBJEKTLISTE!$A$4:$G$976,3,FALSE),"") ->  | K129: =IF(G129<>"",VLOOKUP(G129,OBJEKTLISTE!$A$4:$G$976,4,FALSE),"") ->  | L129: =IF(G129<>"",VLOOKUP(G129,OBJEKTLISTE!$A$4:$G$976,5,FALSE),"") ->  | M129: =IF(G129<>"",VLOOKUP(G129,OBJEKTLISTE!$A$4:$G$976,6,FALSE),"") ->  | N129: =IF(ISBLANK(D129),"",IF(ISBLANK(PROJEKTPARAMETER!B$2),"",PROJEKTPARAMETER!B$2)) ->  | O129: =IF(ISBLANK(D129),"",IF(ISBLANK(PROJEKTPARAMETER!B$3),"",PROJEKTPARAMETER!B$3)) ->  | P129: =IF(ISBLANK(D129),"",IF(ISBLANK(PROJEKTPARAMETER!B$4),"",PROJEKTPARAMETER!B$4)) ->  | Q129: =IF(ISBLANK(D129),"",IF(ISBLANK(PROJEKTPARAMETER!B$5),"",PROJEKTPARAMETER!B$5)) ->  | R129: =IF(ISBLANK(D129),"",IF(ISBLANK(PROJEKTPARAMETER!B$6),"",PROJEKTPARAMETER!B$6)) ->  | U129: =IF(ISBLANK(D129),"",IF(ISBLANK(PROJEKTPARAMETER!B$7),"",PROJEKTPARAMETER!B$7)) ->  | V129: =IF(ISBLANK(D129),"",IF(ISBLANK(PROJEKTPARAMETER!B$8),"",PROJEKTPARAMETER!B$8)) ->  | AC129: =IF(ISBLANK(G129),"",IF(ISBLANK(VLOOKUP(G129,OBJEKTLISTE!$A$4:$G$976,7,FALSE)),"",VLOOKUP(G129,OBJEKTLISTE!$A$4:$G$976,7,FALSE))) -> 
H130: =IF(G130<>"",VLOOKUP(G130,OBJEKTLISTE!$A$4:$G$976,2,FALSE),"") ->  | J130: =IF(G130<>"",VLOOKUP(G130,OBJEKTLISTE!$A$4:$G$976,3,FALSE),"") ->  | K130: =IF(G130<>"",VLOOKUP(G130,OBJEKTLISTE!$A$4:$G$976,4,FALSE),"") ->  | L130: =IF(G130<>"",VLOOKUP(G130,OBJEKTLISTE!$A$4:$G$976,5,FALSE),"") ->  | M130: =IF(G130<>"",VLOOKUP(G130,OBJEKTLISTE!$A$4:$G$976,6,FALSE),"") ->  | N130: =IF(ISBLANK(D130),"",IF(ISBLANK(PROJEKTPARAMETER!B$2),"",PROJEKTPARAMETER!B$2)) ->  | O130: =IF(ISBLANK(D130),"",IF(ISBLANK(PROJEKTPARAMETER!B$3),"",PROJEKTPARAMETER!B$3)) ->  | P130: =IF(ISBLANK(D130),"",IF(ISBLANK(PROJEKTPARAMETER!B$4),"",PROJEKTPARAMETER!B$4)) ->  | Q130: =IF(ISBLANK(D130),"",IF(ISBLANK(PROJEKTPARAMETER!B$5),"",PROJEKTPARAMETER!B$5)) ->  | R130: =IF(ISBLANK(D130),"",IF(ISBLANK(PROJEKTPARAMETER!B$6),"",PROJEKTPARAMETER!B$6)) ->  | U130: =IF(ISBLANK(D130),"",IF(ISBLANK(PROJEKTPARAMETER!B$7),"",PROJEKTPARAMETER!B$7)) ->  | V130: =IF(ISBLANK(D130),"",IF(ISBLANK(PROJEKTPARAMETER!B$8),"",PROJEKTPARAMETER!B$8)) ->  | AC130: =IF(ISBLANK(G130),"",IF(ISBLANK(VLOOKUP(G130,OBJEKTLISTE!$A$4:$G$976,7,FALSE)),"",VLOOKUP(G130,OBJEKTLISTE!$A$4:$G$976,7,FALSE))) -> 
H131: =IF(G131<>"",VLOOKUP(G131,OBJEKTLISTE!$A$4:$G$976,2,FALSE),"") ->  | J131: =IF(G131<>"",VLOOKUP(G131,OBJEKTLISTE!$A$4:$G$976,3,FALSE),"") ->  | K131: =IF(G131<>"",VLOOKUP(G131,OBJEKTLISTE!$A$4:$G$976,4,FALSE),"") ->  | L131: =IF(G131<>"",VLOOKUP(G131,OBJEKTLISTE!$A$4:$G$976,5,FALSE),"") ->  | M131: =IF(G131<>"",VLOOKUP(G131,OBJEKTLISTE!$A$4:$G$976,6,FALSE),"") ->  | N131: =IF(ISBLANK(D131),"",IF(ISBLANK(PROJEKTPARAMETER!B$2),"",PROJEKTPARAMETER!B$2)) ->  | O131: =IF(ISBLANK(D131),"",IF(ISBLANK(PROJEKTPARAMETER!B$3),"",PROJEKTPARAMETER!B$3)) ->  | P131: =IF(ISBLANK(D131),"",IF(ISBLANK(PROJEKTPARAMETER!B$4),"",PROJEKTPARAMETER!B$4)) ->  | Q131: =IF(ISBLANK(D131),"",IF(ISBLANK(PROJEKTPARAMETER!B$5),"",PROJEKTPARAMETER!B$5)) ->  | R131: =IF(ISBLANK(D131),"",IF(ISBLANK(PROJEKTPARAMETER!B$6),"",PROJEKTPARAMETER!B$6)) ->  | U131: =IF(ISBLANK(D131),"",IF(ISBLANK(PROJEKTPARAMETER!B$7),"",PROJEKTPARAMETER!B$7)) ->  | V131: =IF(ISBLANK(D131),"",IF(ISBLANK(PROJEKTPARAMETER!B$8),"",PROJEKTPARAMETER!B$8)) ->  | Z131: =IF(OR(ISBLANK(C131), ISBLANK(E131)),"",VLOOKUP(C131 & "_" & E131,Dokumentart_ID,3,FALSE)) ->  | AA131: =IF(C131<>"",VLOOKUP(C131,Kategorisierung_ID,2,FALSE),"") ->  | AB131: =IF(OR(ISBLANK(C131), ISBLANK(E131)),"",VLOOKUP(C131 & "_" & E131,Dokumentart_ID,2,FALSE)) ->  | AC131: =IF(ISBLANK(G131),"",IF(ISBLANK(VLOOKUP(G131,OBJEKTLISTE!$A$4:$G$976,7,FALSE)),"",VLOOKUP(G131,OBJEKTLISTE!$A$4:$G$976,7,FALSE))) ->  | AD131: =IF(H131<>"",VLOOKUP(H131,Objekttyp_ID,3,FALSE),"") ->  | AE131: =IF(I131="","",IF(VLOOKUP(H131 & "_" & I131,Objektdetail_ID,2,FALSE)="","",VLOOKUP(H131 & "_" & I131,Objektdetail_ID,2,FALSE))) ->  | AF131: =IF(J131<>"",VLOOKUP(J131,Strecke_ID,2,FALSE),"") -> 
H132: =IF(G132<>"",VLOOKUP(G132,OBJEKTLISTE!$A$4:$G$976,2,FALSE),"") ->  | J132: =IF(G132<>"",VLOOKUP(G132,OBJEKTLISTE!$A$4:$G$976,3,FALSE),"") ->  | K132: =IF(G132<>"",VLOOKUP(G132,OBJEKTLISTE!$A$4:$G$976,4,FALSE),"") ->  | L132: =IF(G132<>"",VLOOKUP(G132,OBJEKTLISTE!$A$4:$G$976,5,FALSE),"") ->  | M132: =IF(G132<>"",VLOOKUP(G132,OBJEKTLISTE!$A$4:$G$976,6,FALSE),"") ->  | N132: =IF(ISBLANK(D132),"",IF(ISBLANK(PROJEKTPARAMETER!B$2),"",PROJEKTPARAMETER!B$2)) ->  | O132: =IF(ISBLANK(D132),"",IF(ISBLANK(PROJEKTPARAMETER!B$3),"",PROJEKTPARAMETER!B$3)) ->  | P132: =IF(ISBLANK(D132),"",IF(ISBLANK(PROJEKTPARAMETER!B$4),"",PROJEKTPARAMETER!B$4)) ->  | Q132: =IF(ISBLANK(D132),"",IF(ISBLANK(PROJEKTPARAMETER!B$5),"",PROJEKTPARAMETER!B$5)) ->  | R132: =IF(ISBLANK(D132),"",IF(ISBLANK(PROJEKTPARAMETER!B$6),"",PROJEKTPARAMETER!B$6)) ->  | U132: =IF(ISBLANK(D132),"",IF(ISBLANK(PROJEKTPARAMETER!B$7),"",PROJEKTPARAMETER!B$7)) ->  | V132: =IF(ISBLANK(D132),"",IF(ISBLANK(PROJEKTPARAMETER!B$8),"",PROJEKTPARAMETER!B$8)) ->  | Y132: =IF(ISBLANK(D132),"","freigegeben") ->  | AC132: =IF(ISBLANK(G132),"",IF(ISBLANK(VLOOKUP(G132,OBJEKTLISTE!$A$4:$G$976,7,FALSE)),"",VLOOKUP(G132,OBJEKTLISTE!$A$4:$G$976,7,FALSE))) -> 
H133: =IF(G133<>"",VLOOKUP(G133,OBJEKTLISTE!$A$4:$G$976,2,FALSE),"") ->  | J133: =IF(G133<>"",VLOOKUP(G133,OBJEKTLISTE!$A$4:$G$976,3,FALSE),"") ->  | K133: =IF(G133<>"",VLOOKUP(G133,OBJEKTLISTE!$A$4:$G$976,4,FALSE),"") ->  | L133: =IF(G133<>"",VLOOKUP(G133,OBJEKTLISTE!$A$4:$G$976,5,FALSE),"") ->  | M133: =IF(G133<>"",VLOOKUP(G133,OBJEKTLISTE!$A$4:$G$976,6,FALSE),"") ->  | N133: =IF(ISBLANK(D133),"",IF(ISBLANK(PROJEKTPARAMETER!B$2),"",PROJEKTPARAMETER!B$2)) ->  | O133: =IF(ISBLANK(D133),"",IF(ISBLANK(PROJEKTPARAMETER!B$3),"",PROJEKTPARAMETER!B$3)) ->  | P133: =IF(ISBLANK(D133),"",IF(ISBLANK(PROJEKTPARAMETER!B$4),"",PROJEKTPARAMETER!B$4)) ->  | Q133: =IF(ISBLANK(D133),"",IF(ISBLANK(PROJEKTPARAMETER!B$5),"",PROJEKTPARAMETER!B$5)) ->  | R133: =IF(ISBLANK(D133),"",IF(ISBLANK(PROJEKTPARAMETER!B$6),"",PROJEKTPARAMETER!B$6)) ->  | U133: =IF(ISBLANK(D133),"",IF(ISBLANK(PROJEKTPARAMETER!B$7),"",PROJEKTPARAMETER!B$7)) ->  | V133: =IF(ISBLANK(D133),"",IF(ISBLANK(PROJEKTPARAMETER!B$8),"",PROJEKTPARAMETER!B$8)) ->  | AC133: =IF(ISBLANK(G133),"",IF(ISBLANK(VLOOKUP(G133,OBJEKTLISTE!$A$4:$G$976,7,FALSE)),"",VLOOKUP(G133,OBJEKTLISTE!$A$4:$G$976,7,FALSE))) -> 
H134: =IF(G134<>"",VLOOKUP(G134,OBJEKTLISTE!$A$4:$G$976,2,FALSE),"") ->  | J134: =IF(G134<>"",VLOOKUP(G134,OBJEKTLISTE!$A$4:$G$976,3,FALSE),"") ->  | K134: =IF(G134<>"",VLOOKUP(G134,OBJEKTLISTE!$A$4:$G$976,4,FALSE),"") ->  | L134: =IF(G134<>"",VLOOKUP(G134,OBJEKTLISTE!$A$4:$G$976,5,FALSE),"") ->  | M134: =IF(G134<>"",VLOOKUP(G134,OBJEKTLISTE!$A$4:$G$976,6,FALSE),"") ->  | N134: =IF(ISBLANK(D134),"",IF(ISBLANK(PROJEKTPARAMETER!B$2),"",PROJEKTPARAMETER!B$2)) ->  | O134: =IF(ISBLANK(D134),"",IF(ISBLANK(PROJEKTPARAMETER!B$3),"",PROJEKTPARAMETER!B$3)) ->  | P134: =IF(ISBLANK(D134),"",IF(ISBLANK(PROJEKTPARAMETER!B$4),"",PROJEKTPARAMETER!B$4)) ->  | Q134: =IF(ISBLANK(D134),"",IF(ISBLANK(PROJEKTPARAMETER!B$5),"",PROJEKTPARAMETER!B$5)) ->  | R134: =IF(ISBLANK(D134),"",IF(ISBLANK(PROJEKTPARAMETER!B$6),"",PROJEKTPARAMETER!B$6)) ->  | U134: =IF(ISBLANK(D134),"",IF(ISBLANK(PROJEKTPARAMETER!B$7),"",PROJEKTPARAMETER!B$7)) ->  | V134: =IF(ISBLANK(D134),"",IF(ISBLANK(PROJEKTPARAMETER!B$8),"",PROJEKTPARAMETER!B$8)) ->  | AC134: =IF(ISBLANK(G134),"",IF(ISBLANK(VLOOKUP(G134,OBJEKTLISTE!$A$4:$G$976,7,FALSE)),"",VLOOKUP(G134,OBJEKTLISTE!$A$4:$G$976,7,FALSE))) -> 
H135: =IF(G135<>"",VLOOKUP(G135,OBJEKTLISTE!$A$4:$G$976,2,FALSE),"") ->  | J135: =IF(G135<>"",VLOOKUP(G135,OBJEKTLISTE!$A$4:$G$976,3,FALSE),"") ->  | K135: =IF(G135<>"",VLOOKUP(G135,OBJEKTLISTE!$A$4:$G$976,4,FALSE),"") ->  | L135: =IF(G135<>"",VLOOKUP(G135,OBJEKTLISTE!$A$4:$G$976,5,FALSE),"") ->  | M135: =IF(G135<>"",VLOOKUP(G135,OBJEKTLISTE!$A$4:$G$976,6,FALSE),"") ->  | N135: =IF(ISBLANK(D135),"",IF(ISBLANK(PROJEKTPARAMETER!B$2),"",PROJEKTPARAMETER!B$2)) ->  | O135: =IF(ISBLANK(D135),"",IF(ISBLANK(PROJEKTPARAMETER!B$3),"",PROJEKTPARAMETER!B$3)) ->  | P135: =IF(ISBLANK(D135),"",IF(ISBLANK(PROJEKTPARAMETER!B$4),"",PROJEKTPARAMETER!B$4)) ->  | Q135: =IF(ISBLANK(D135),"",IF(ISBLANK(PROJEKTPARAMETER!B$5),"",PROJEKTPARAMETER!B$5)) ->  | R135: =IF(ISBLANK(D135),"",IF(ISBLANK(PROJEKTPARAMETER!B$6),"",PROJEKTPARAMETER!B$6)) ->  | U135: =IF(ISBLANK(D135),"",IF(ISBLANK(PROJEKTPARAMETER!B$7),"",PROJEKTPARAMETER!B$7)) ->  | V135: =IF(ISBLANK(D135),"",IF(ISBLANK(PROJEKTPARAMETER!B$8),"",PROJEKTPARAMETER!B$8)) ->  | AC135: =IF(ISBLANK(G135),"",IF(ISBLANK(VLOOKUP(G135,OBJEKTLISTE!$A$4:$G$976,7,FALSE)),"",VLOOKUP(G135,OBJEKTLISTE!$A$4:$G$976,7,FALSE))) -> 
H136: =IF(G136<>"",VLOOKUP(G136,OBJEKTLISTE!$A$4:$G$976,2,FALSE),"") ->  | J136: =IF(G136<>"",VLOOKUP(G136,OBJEKTLISTE!$A$4:$G$976,3,FALSE),"") ->  | K136: =IF(G136<>"",VLOOKUP(G136,OBJEKTLISTE!$A$4:$G$976,4,FALSE),"") ->  | L136: =IF(G136<>"",VLOOKUP(G136,OBJEKTLISTE!$A$4:$G$976,5,FALSE),"") ->  | M136: =IF(G136<>"",VLOOKUP(G136,OBJEKTLISTE!$A$4:$G$976,6,FALSE),"") ->  | N136: =IF(ISBLANK(D136),"",IF(ISBLANK(PROJEKTPARAMETER!B$2),"",PROJEKTPARAMETER!B$2)) ->  | O136: =IF(ISBLANK(D136),"",IF(ISBLANK(PROJEKTPARAMETER!B$3),"",PROJEKTPARAMETER!B$3)) ->  | P136: =IF(ISBLANK(D136),"",IF(ISBLANK(PROJEKTPARAMETER!B$4),"",PROJEKTPARAMETER!B$4)) ->  | Q136: =IF(ISBLANK(D136),"",IF(ISBLANK(PROJEKTPARAMETER!B$5),"",PROJEKTPARAMETER!B$5)) ->  | R136: =IF(ISBLANK(D136),"",IF(ISBLANK(PROJEKTPARAMETER!B$6),"",PROJEKTPARAMETER!B$6)) ->  | U136: =IF(ISBLANK(D136),"",IF(ISBLANK(PROJEKTPARAMETER!B$7),"",PROJEKTPARAMETER!B$7)) ->  | V136: =IF(ISBLANK(D136),"",IF(ISBLANK(PROJEKTPARAMETER!B$8),"",PROJEKTPARAMETER!B$8)) ->  | AC136: =IF(ISBLANK(G136),"",IF(ISBLANK(VLOOKUP(G136,OBJEKTLISTE!$A$4:$G$976,7,FALSE)),"",VLOOKUP(G136,OBJEKTLISTE!$A$4:$G$976,7,FALSE))) -> 
H137: =IF(G137<>"",VLOOKUP(G137,OBJEKTLISTE!$A$4:$G$976,2,FALSE),"") ->  | J137: =IF(G137<>"",VLOOKUP(G137,OBJEKTLISTE!$A$4:$G$976,3,FALSE),"") ->  | K137: =IF(G137<>"",VLOOKUP(G137,OBJEKTLISTE!$A$4:$G$976,4,FALSE),"") ->  | L137: =IF(G137<>"",VLOOKUP(G137,OBJEKTLISTE!$A$4:$G$976,5,FALSE),"") ->  | M137: =IF(G137<>"",VLOOKUP(G137,OBJEKTLISTE!$A$4:$G$976,6,FALSE),"") ->  | N137: =IF(ISBLANK(D137),"",IF(ISBLANK(PROJEKTPARAMETER!B$2),"",PROJEKTPARAMETER!B$2)) ->  | O137: =IF(ISBLANK(D137),"",IF(ISBLANK(PROJEKTPARAMETER!B$3),"",PROJEKTPARAMETER!B$3)) ->  | P137: =IF(ISBLANK(D137),"",IF(ISBLANK(PROJEKTPARAMETER!B$4),"",PROJEKTPARAMETER!B$4)) ->  | Q137: =IF(ISBLANK(D137),"",IF(ISBLANK(PROJEKTPARAMETER!B$5),"",PROJEKTPARAMETER!B$5)) ->  | R137: =IF(ISBLANK(D137),"",IF(ISBLANK(PROJEKTPARAMETER!B$6),"",PROJEKTPARAMETER!B$6)) ->  | U137: =IF(ISBLANK(D137),"",IF(ISBLANK(PROJEKTPARAMETER!B$7),"",PROJEKTPARAMETER!B$7)) ->  | V137: =IF(ISBLANK(D137),"",IF(ISBLANK(PROJEKTPARAMETER!B$8),"",PROJEKTPARAMETER!B$8)) ->  | AC137: =IF(ISBLANK(G137),"",IF(ISBLANK(VLOOKUP(G137,OBJEKTLISTE!$A$4:$G$976,7,FALSE)),"",VLOOKUP(G137,OBJEKTLISTE!$A$4:$G$976,7,FALSE))) -> 
H138: =IF(G138<>"",VLOOKUP(G138,OBJEKTLISTE!$A$4:$G$976,2,FALSE),"") ->  | J138: =IF(G138<>"",VLOOKUP(G138,OBJEKTLISTE!$A$4:$G$976,3,FALSE),"") ->  | K138: =IF(G138<>"",VLOOKUP(G138,OBJEKTLISTE!$A$4:$G$976,4,FALSE),"") ->  | L138: =IF(G138<>"",VLOOKUP(G138,OBJEKTLISTE!$A$4:$G$976,5,FALSE),"") ->  | M138: =IF(G138<>"",VLOOKUP(G138,OBJEKTLISTE!$A$4:$G$976,6,FALSE),"") ->  | N138: =IF(ISBLANK(D138),"",IF(ISBLANK(PROJEKTPARAMETER!B$2),"",PROJEKTPARAMETER!B$2)) ->  | O138: =IF(ISBLANK(D138),"",IF(ISBLANK(PROJEKTPARAMETER!B$3),"",PROJEKTPARAMETER!B$3)) ->  | P138: =IF(ISBLANK(D138),"",IF(ISBLANK(PROJEKTPARAMETER!B$4),"",PROJEKTPARAMETER!B$4)) ->  | Q138: =IF(ISBLANK(D138),"",IF(ISBLANK(PROJEKTPARAMETER!B$5),"",PROJEKTPARAMETER!B$5)) ->  | R138: =IF(ISBLANK(D138),"",IF(ISBLANK(PROJEKTPARAMETER!B$6),"",PROJEKTPARAMETER!B$6)) ->  | U138: =IF(ISBLANK(D138),"",IF(ISBLANK(PROJEKTPARAMETER!B$7),"",PROJEKTPARAMETER!B$7)) ->  | V138: =IF(ISBLANK(D138),"",IF(ISBLANK(PROJEKTPARAMETER!B$8),"",PROJEKTPARAMETER!B$8)) ->  | AC138: =IF(ISBLANK(G138),"",IF(ISBLANK(VLOOKUP(G138,OBJEKTLISTE!$A$4:$G$976,7,FALSE)),"",VLOOKUP(G138,OBJEKTLISTE!$A$4:$G$976,7,FALSE))) -> 
H139: =IF(G139<>"",VLOOKUP(G139,OBJEKTLISTE!$A$4:$G$976,2,FALSE),"") ->  | J139: =IF(G139<>"",VLOOKUP(G139,OBJEKTLISTE!$A$4:$G$976,3,FALSE),"") ->  | K139: =IF(G139<>"",VLOOKUP(G139,OBJEKTLISTE!$A$4:$G$976,4,FALSE),"") ->  | L139: =IF(G139<>"",VLOOKUP(G139,OBJEKTLISTE!$A$4:$G$976,5,FALSE),"") ->  | M139: =IF(G139<>"",VLOOKUP(G139,OBJEKTLISTE!$A$4:$G$976,6,FALSE),"") ->  | N139: =IF(ISBLANK(D139),"",IF(ISBLANK(PROJEKTPARAMETER!B$2),"",PROJEKTPARAMETER!B$2)) ->  | O139: =IF(ISBLANK(D139),"",IF(ISBLANK(PROJEKTPARAMETER!B$3),"",PROJEKTPARAMETER!B$3)) ->  | P139: =IF(ISBLANK(D139),"",IF(ISBLANK(PROJEKTPARAMETER!B$4),"",PROJEKTPARAMETER!B$4)) ->  | Q139: =IF(ISBLANK(D139),"",IF(ISBLANK(PROJEKTPARAMETER!B$5),"",PROJEKTPARAMETER!B$5)) ->  | R139: =IF(ISBLANK(D139),"",IF(ISBLANK(PROJEKTPARAMETER!B$6),"",PROJEKTPARAMETER!B$6)) ->  | U139: =IF(ISBLANK(D139),"",IF(ISBLANK(PROJEKTPARAMETER!B$7),"",PROJEKTPARAMETER!B$7)) ->  | V139: =IF(ISBLANK(D139),"",IF(ISBLANK(PROJEKTPARAMETER!B$8),"",PROJEKTPARAMETER!B$8)) ->  | AC139: =IF(ISBLANK(G139),"",IF(ISBLANK(VLOOKUP(G139,OBJEKTLISTE!$A$4:$G$976,7,FALSE)),"",VLOOKUP(G139,OBJEKTLISTE!$A$4:$G$976,7,FALSE))) -> 
H140: =IF(G140<>"",VLOOKUP(G140,OBJEKTLISTE!$A$4:$G$976,2,FALSE),"") ->  | J140: =IF(G140<>"",VLOOKUP(G140,OBJEKTLISTE!$A$4:$G$976,3,FALSE),"") ->  | K140: =IF(G140<>"",VLOOKUP(G140,OBJEKTLISTE!$A$4:$G$976,4,FALSE),"") ->  | L140: =IF(G140<>"",VLOOKUP(G140,OBJEKTLISTE!$A$4:$G$976,5,FALSE),"") ->  | M140: =IF(G140<>"",VLOOKUP(G140,OBJEKTLISTE!$A$4:$G$976,6,FALSE),"") ->  | N140: =IF(ISBLANK(D140),"",IF(ISBLANK(PROJEKTPARAMETER!B$2),"",PROJEKTPARAMETER!B$2)) ->  | O140: =IF(ISBLANK(D140),"",IF(ISBLANK(PROJEKTPARAMETER!B$3),"",PROJEKTPARAMETER!B$3)) ->  | P140: =IF(ISBLANK(D140),"",IF(ISBLANK(PROJEKTPARAMETER!B$4),"",PROJEKTPARAMETER!B$4)) ->  | Q140: =IF(ISBLANK(D140),"",IF(ISBLANK(PROJEKTPARAMETER!B$5),"",PROJEKTPARAMETER!B$5)) ->  | R140: =IF(ISBLANK(D140),"",IF(ISBLANK(PROJEKTPARAMETER!B$6),"",PROJEKTPARAMETER!B$6)) ->  | U140: =IF(ISBLANK(D140),"",IF(ISBLANK(PROJEKTPARAMETER!B$7),"",PROJEKTPARAMETER!B$7)) ->  | V140: =IF(ISBLANK(D140),"",IF(ISBLANK(PROJEKTPARAMETER!B$8),"",PROJEKTPARAMETER!B$8)) ->  | AC140: =IF(ISBLANK(G140),"",IF(ISBLANK(VLOOKUP(G140,OBJEKTLISTE!$A$4:$G$976,7,FALSE)),"",VLOOKUP(G140,OBJEKTLISTE!$A$4:$G$976,7,FALSE))) -> 
H141: =IF(G141<>"",VLOOKUP(G141,OBJEKTLISTE!$A$4:$G$976,2,FALSE),"") ->  | J141: =IF(G141<>"",VLOOKUP(G141,OBJEKTLISTE!$A$4:$G$976,3,FALSE),"") ->  | K141: =IF(G141<>"",VLOOKUP(G141,OBJEKTLISTE!$A$4:$G$976,4,FALSE),"") ->  | L141: =IF(G141<>"",VLOOKUP(G141,OBJEKTLISTE!$A$4:$G$976,5,FALSE),"") ->  | M141: =IF(G141<>"",VLOOKUP(G141,OBJEKTLISTE!$A$4:$G$976,6,FALSE),"") ->  | N141: =IF(ISBLANK(D141),"",IF(ISBLANK(PROJEKTPARAMETER!B$2),"",PROJEKTPARAMETER!B$2)) ->  | O141: =IF(ISBLANK(D141),"",IF(ISBLANK(PROJEKTPARAMETER!B$3),"",PROJEKTPARAMETER!B$3)) ->  | P141: =IF(ISBLANK(D141),"",IF(ISBLANK(PROJEKTPARAMETER!B$4),"",PROJEKTPARAMETER!B$4)) ->  | Q141: =IF(ISBLANK(D141),"",IF(ISBLANK(PROJEKTPARAMETER!B$5),"",PROJEKTPARAMETER!B$5)) ->  | R141: =IF(ISBLANK(D141),"",IF(ISBLANK(PROJEKTPARAMETER!B$6),"",PROJEKTPARAMETER!B$6)) ->  | U141: =IF(ISBLANK(D141),"",IF(ISBLANK(PROJEKTPARAMETER!B$7),"",PROJEKTPARAMETER!B$7)) ->  | V141: =IF(ISBLANK(D141),"",IF(ISBLANK(PROJEKTPARAMETER!B$8),"",PROJEKTPARAMETER!B$8)) ->  | AC141: =IF(ISBLANK(G141),"",IF(ISBLANK(VLOOKUP(G141,OBJEKTLISTE!$A$4:$G$976,7,FALSE)),"",VLOOKUP(G141,OBJEKTLISTE!$A$4:$G$976,7,FALSE))) -> 
H142: =IF(G142<>"",VLOOKUP(G142,OBJEKTLISTE!$A$4:$G$976,2,FALSE),"") ->  | J142: =IF(G142<>"",VLOOKUP(G142,OBJEKTLISTE!$A$4:$G$976,3,FALSE),"") ->  | K142: =IF(G142<>"",VLOOKUP(G142,OBJEKTLISTE!$A$4:$G$976,4,FALSE),"") ->  | L142: =IF(G142<>"",VLOOKUP(G142,OBJEKTLISTE!$A$4:$G$976,5,FALSE),"") ->  | M142: =IF(G142<>"",VLOOKUP(G142,OBJEKTLISTE!$A$4:$G$976,6,FALSE),"") ->  | N142: =IF(ISBLANK(D142),"",IF(ISBLANK(PROJEKTPARAMETER!B$2),"",PROJEKTPARAMETER!B$2)) ->  | O142: =IF(ISBLANK(D142),"",IF(ISBLANK(PROJEKTPARAMETER!B$3),"",PROJEKTPARAMETER!B$3)) ->  | P142: =IF(ISBLANK(D142),"",IF(ISBLANK(PROJEKTPARAMETER!B$4),"",PROJEKTPARAMETER!B$4)) ->  | Q142: =IF(ISBLANK(D142),"",IF(ISBLANK(PROJEKTPARAMETER!B$5),"",PROJEKTPARAMETER!B$5)) ->  | R142: =IF(ISBLANK(D142),"",IF(ISBLANK(PROJEKTPARAMETER!B$6),"",PROJEKTPARAMETER!B$6)) ->  | U142: =IF(ISBLANK(D142),"",IF(ISBLANK(PROJEKTPARAMETER!B$7),"",PROJEKTPARAMETER!B$7)) ->  | V142: =IF(ISBLANK(D142),"",IF(ISBLANK(PROJEKTPARAMETER!B$8),"",PROJEKTPARAMETER!B$8)) ->  | AC142: =IF(ISBLANK(G142),"",IF(ISBLANK(VLOOKUP(G142,OBJEKTLISTE!$A$4:$G$976,7,FALSE)),"",VLOOKUP(G142,OBJEKTLISTE!$A$4:$G$976,7,FALSE))) -> 
H143: =IF(G143<>"",VLOOKUP(G143,OBJEKTLISTE!$A$4:$G$976,2,FALSE),"") ->  | J143: =IF(G143<>"",VLOOKUP(G143,OBJEKTLISTE!$A$4:$G$976,3,FALSE),"") ->  | K143: =IF(G143<>"",VLOOKUP(G143,OBJEKTLISTE!$A$4:$G$976,4,FALSE),"") ->  | L143: =IF(G143<>"",VLOOKUP(G143,OBJEKTLISTE!$A$4:$G$976,5,FALSE),"") ->  | M143: =IF(G143<>"",VLOOKUP(G143,OBJEKTLISTE!$A$4:$G$976,6,FALSE),"") ->  | N143: =IF(ISBLANK(D143),"",IF(ISBLANK(PROJEKTPARAMETER!B$2),"",PROJEKTPARAMETER!B$2)) ->  | O143: =IF(ISBLANK(D143),"",IF(ISBLANK(PROJEKTPARAMETER!B$3),"",PROJEKTPARAMETER!B$3)) ->  | P143: =IF(ISBLANK(D143),"",IF(ISBLANK(PROJEKTPARAMETER!B$4),"",PROJEKTPARAMETER!B$4)) ->  | Q143: =IF(ISBLANK(D143),"",IF(ISBLANK(PROJEKTPARAMETER!B$5),"",PROJEKTPARAMETER!B$5)) ->  | R143: =IF(ISBLANK(D143),"",IF(ISBLANK(PROJEKTPARAMETER!B$6),"",PROJEKTPARAMETER!B$6)) ->  | U143: =IF(ISBLANK(D143),"",IF(ISBLANK(PROJEKTPARAMETER!B$7),"",PROJEKTPARAMETER!B$7)) ->  | V143: =IF(ISBLANK(D143),"",IF(ISBLANK(PROJEKTPARAMETER!B$8),"",PROJEKTPARAMETER!B$8)) ->  | AC143: =IF(ISBLANK(G143),"",IF(ISBLANK(VLOOKUP(G143,OBJEKTLISTE!$A$4:$G$976,7,FALSE)),"",VLOOKUP(G143,OBJEKTLISTE!$A$4:$G$976,7,FALSE))) -> 
H144: =IF(G144<>"",VLOOKUP(G144,OBJEKTLISTE!$A$4:$G$976,2,FALSE),"") ->  | J144: =IF(G144<>"",VLOOKUP(G144,OBJEKTLISTE!$A$4:$G$976,3,FALSE),"") ->  | K144: =IF(G144<>"",VLOOKUP(G144,OBJEKTLISTE!$A$4:$G$976,4,FALSE),"") ->  | L144: =IF(G144<>"",VLOOKUP(G144,OBJEKTLISTE!$A$4:$G$976,5,FALSE),"") ->  | M144: =IF(G144<>"",VLOOKUP(G144,OBJEKTLISTE!$A$4:$G$976,6,FALSE),"") ->  | N144: =IF(ISBLANK(D144),"",IF(ISBLANK(PROJEKTPARAMETER!B$2),"",PROJEKTPARAMETER!B$2)) ->  | O144: =IF(ISBLANK(D144),"",IF(ISBLANK(PROJEKTPARAMETER!B$3),"",PROJEKTPARAMETER!B$3)) ->  | P144: =IF(ISBLANK(D144),"",IF(ISBLANK(PROJEKTPARAMETER!B$4),"",PROJEKTPARAMETER!B$4)) ->  | Q144: =IF(ISBLANK(D144),"",IF(ISBLANK(PROJEKTPARAMETER!B$5),"",PROJEKTPARAMETER!B$5)) ->  | R144: =IF(ISBLANK(D144),"",IF(ISBLANK(PROJEKTPARAMETER!B$6),"",PROJEKTPARAMETER!B$6)) ->  | U144: =IF(ISBLANK(D144),"",IF(ISBLANK(PROJEKTPARAMETER!B$7),"",PROJEKTPARAMETER!B$7)) ->  | V144: =IF(ISBLANK(D144),"",IF(ISBLANK(PROJEKTPARAMETER!B$8),"",PROJEKTPARAMETER!B$8)) ->  | AC144: =IF(ISBLANK(G144),"",IF(ISBLANK(VLOOKUP(G144,OBJEKTLISTE!$A$4:$G$976,7,FALSE)),"",VLOOKUP(G144,OBJEKTLISTE!$A$4:$G$976,7,FALSE))) -> 
H145: =IF(G145<>"",VLOOKUP(G145,OBJEKTLISTE!$A$4:$G$976,2,FALSE),"") ->  | J145: =IF(G145<>"",VLOOKUP(G145,OBJEKTLISTE!$A$4:$G$976,3,FALSE),"") ->  | K145: =IF(G145<>"",VLOOKUP(G145,OBJEKTLISTE!$A$4:$G$976,4,FALSE),"") ->  | L145: =IF(G145<>"",VLOOKUP(G145,OBJEKTLISTE!$A$4:$G$976,5,FALSE),"") ->  | M145: =IF(G145<>"",VLOOKUP(G145,OBJEKTLISTE!$A$4:$G$976,6,FALSE),"") ->  | N145: =IF(ISBLANK(D145),"",IF(ISBLANK(PROJEKTPARAMETER!B$2),"",PROJEKTPARAMETER!B$2)) ->  | O145: =IF(ISBLANK(D145),"",IF(ISBLANK(PROJEKTPARAMETER!B$3),"",PROJEKTPARAMETER!B$3)) ->  | P145: =IF(ISBLANK(D145),"",IF(ISBLANK(PROJEKTPARAMETER!B$4),"",PROJEKTPARAMETER!B$4)) ->  | Q145: =IF(ISBLANK(D145),"",IF(ISBLANK(PROJEKTPARAMETER!B$5),"",PROJEKTPARAMETER!B$5)) ->  | R145: =IF(ISBLANK(D145),"",IF(ISBLANK(PROJEKTPARAMETER!B$6),"",PROJEKTPARAMETER!B$6)) ->  | U145: =IF(ISBLANK(D145),"",IF(ISBLANK(PROJEKTPARAMETER!B$7),"",PROJEKTPARAMETER!B$7)) ->  | V145: =IF(ISBLANK(D145),"",IF(ISBLANK(PROJEKTPARAMETER!B$8),"",PROJEKTPARAMETER!B$8)) ->  | AC145: =IF(ISBLANK(G145),"",IF(ISBLANK(VLOOKUP(G145,OBJEKTLISTE!$A$4:$G$976,7,FALSE)),"",VLOOKUP(G145,OBJEKTLISTE!$A$4:$G$976,7,FALSE))) -> 
H146: =IF(G146<>"",VLOOKUP(G146,OBJEKTLISTE!$A$4:$G$976,2,FALSE),"") ->  | J146: =IF(G146<>"",VLOOKUP(G146,OBJEKTLISTE!$A$4:$G$976,3,FALSE),"") ->  | K146: =IF(G146<>"",VLOOKUP(G146,OBJEKTLISTE!$A$4:$G$976,4,FALSE),"") ->  | L146: =IF(G146<>"",VLOOKUP(G146,OBJEKTLISTE!$A$4:$G$976,5,FALSE),"") ->  | M146: =IF(G146<>"",VLOOKUP(G146,OBJEKTLISTE!$A$4:$G$976,6,FALSE),"") ->  | N146: =IF(ISBLANK(D146),"",IF(ISBLANK(PROJEKTPARAMETER!B$2),"",PROJEKTPARAMETER!B$2)) ->  | O146: =IF(ISBLANK(D146),"",IF(ISBLANK(PROJEKTPARAMETER!B$3),"",PROJEKTPARAMETER!B$3)) ->  | P146: =IF(ISBLANK(D146),"",IF(ISBLANK(PROJEKTPARAMETER!B$4),"",PROJEKTPARAMETER!B$4)) ->  | Q146: =IF(ISBLANK(D146),"",IF(ISBLANK(PROJEKTPARAMETER!B$5),"",PROJEKTPARAMETER!B$5)) ->  | R146: =IF(ISBLANK(D146),"",IF(ISBLANK(PROJEKTPARAMETER!B$6),"",PROJEKTPARAMETER!B$6)) ->  | U146: =IF(ISBLANK(D146),"",IF(ISBLANK(PROJEKTPARAMETER!B$7),"",PROJEKTPARAMETER!B$7)) ->  | V146: =IF(ISBLANK(D146),"",IF(ISBLANK(PROJEKTPARAMETER!B$8),"",PROJEKTPARAMETER!B$8)) ->  | AC146: =IF(ISBLANK(G146),"",IF(ISBLANK(VLOOKUP(G146,OBJEKTLISTE!$A$4:$G$976,7,FALSE)),"",VLOOKUP(G146,OBJEKTLISTE!$A$4:$G$976,7,FALSE))) -> 
H147: =IF(G147<>"",VLOOKUP(G147,OBJEKTLISTE!$A$4:$G$976,2,FALSE),"") ->  | J147: =IF(G147<>"",VLOOKUP(G147,OBJEKTLISTE!$A$4:$G$976,3,FALSE),"") ->  | K147: =IF(G147<>"",VLOOKUP(G147,OBJEKTLISTE!$A$4:$G$976,4,FALSE),"") ->  | L147: =IF(G147<>"",VLOOKUP(G147,OBJEKTLISTE!$A$4:$G$976,5,FALSE),"") ->  | M147: =IF(G147<>"",VLOOKUP(G147,OBJEKTLISTE!$A$4:$G$976,6,FALSE),"") ->  | N147: =IF(ISBLANK(D147),"",IF(ISBLANK(PROJEKTPARAMETER!B$2),"",PROJEKTPARAMETER!B$2)) ->  | O147: =IF(ISBLANK(D147),"",IF(ISBLANK(PROJEKTPARAMETER!B$3),"",PROJEKTPARAMETER!B$3)) ->  | P147: =IF(ISBLANK(D147),"",IF(ISBLANK(PROJEKTPARAMETER!B$4),"",PROJEKTPARAMETER!B$4)) ->  | Q147: =IF(ISBLANK(D147),"",IF(ISBLANK(PROJEKTPARAMETER!B$5),"",PROJEKTPARAMETER!B$5)) ->  | R147: =IF(ISBLANK(D147),"",IF(ISBLANK(PROJEKTPARAMETER!B$6),"",PROJEKTPARAMETER!B$6)) ->  | U147: =IF(ISBLANK(D147),"",IF(ISBLANK(PROJEKTPARAMETER!B$7),"",PROJEKTPARAMETER!B$7)) ->  | V147: =IF(ISBLANK(D147),"",IF(ISBLANK(PROJEKTPARAMETER!B$8),"",PROJEKTPARAMETER!B$8)) ->  | AC147: =IF(ISBLANK(G147),"",IF(ISBLANK(VLOOKUP(G147,OBJEKTLISTE!$A$4:$G$976,7,FALSE)),"",VLOOKUP(G147,OBJEKTLISTE!$A$4:$G$976,7,FALSE))) -> 
H148: =IF(G148<>"",VLOOKUP(G148,OBJEKTLISTE!$A$4:$G$976,2,FALSE),"") ->  | J148: =IF(G148<>"",VLOOKUP(G148,OBJEKTLISTE!$A$4:$G$976,3,FALSE),"") ->  | K148: =IF(G148<>"",VLOOKUP(G148,OBJEKTLISTE!$A$4:$G$976,4,FALSE),"") ->  | L148: =IF(G148<>"",VLOOKUP(G148,OBJEKTLISTE!$A$4:$G$976,5,FALSE),"") ->  | M148: =IF(G148<>"",VLOOKUP(G148,OBJEKTLISTE!$A$4:$G$976,6,FALSE),"") ->  | N148: =IF(ISBLANK(D148),"",IF(ISBLANK(PROJEKTPARAMETER!B$2),"",PROJEKTPARAMETER!B$2)) ->  | O148: =IF(ISBLANK(D148),"",IF(ISBLANK(PROJEKTPARAMETER!B$3),"",PROJEKTPARAMETER!B$3)) ->  | P148: =IF(ISBLANK(D148),"",IF(ISBLANK(PROJEKTPARAMETER!B$4),"",PROJEKTPARAMETER!B$4)) ->  | Q148: =IF(ISBLANK(D148),"",IF(ISBLANK(PROJEKTPARAMETER!B$5),"",PROJEKTPARAMETER!B$5)) ->  | R148: =IF(ISBLANK(D148),"",IF(ISBLANK(PROJEKTPARAMETER!B$6),"",PROJEKTPARAMETER!B$6)) ->  | U148: =IF(ISBLANK(D148),"",IF(ISBLANK(PROJEKTPARAMETER!B$7),"",PROJEKTPARAMETER!B$7)) ->  | V148: =IF(ISBLANK(D148),"",IF(ISBLANK(PROJEKTPARAMETER!B$8),"",PROJEKTPARAMETER!B$8)) ->  | AC148: =IF(ISBLANK(G148),"",IF(ISBLANK(VLOOKUP(G148,OBJEKTLISTE!$A$4:$G$976,7,FALSE)),"",VLOOKUP(G148,OBJEKTLISTE!$A$4:$G$976,7,FALSE))) -> 
H149: =IF(G149<>"",VLOOKUP(G149,OBJEKTLISTE!$A$4:$G$976,2,FALSE),"") ->  | J149: =IF(G149<>"",VLOOKUP(G149,OBJEKTLISTE!$A$4:$G$976,3,FALSE),"") ->  | K149: =IF(G149<>"",VLOOKUP(G149,OBJEKTLISTE!$A$4:$G$976,4,FALSE),"") ->  | L149: =IF(G149<>"",VLOOKUP(G149,OBJEKTLISTE!$A$4:$G$976,5,FALSE),"") ->  | M149: =IF(G149<>"",VLOOKUP(G149,OBJEKTLISTE!$A$4:$G$976,6,FALSE),"") ->  | N149: =IF(ISBLANK(D149),"",IF(ISBLANK(PROJEKTPARAMETER!B$2),"",PROJEKTPARAMETER!B$2)) ->  | O149: =IF(ISBLANK(D149),"",IF(ISBLANK(PROJEKTPARAMETER!B$3),"",PROJEKTPARAMETER!B$3)) ->  | P149: =IF(ISBLANK(D149),"",IF(ISBLANK(PROJEKTPARAMETER!B$4),"",PROJEKTPARAMETER!B$4)) ->  | Q149: =IF(ISBLANK(D149),"",IF(ISBLANK(PROJEKTPARAMETER!B$5),"",PROJEKTPARAMETER!B$5)) ->  | R149: =IF(ISBLANK(D149),"",IF(ISBLANK(PROJEKTPARAMETER!B$6),"",PROJEKTPARAMETER!B$6)) ->  | U149: =IF(ISBLANK(D149),"",IF(ISBLANK(PROJEKTPARAMETER!B$7),"",PROJEKTPARAMETER!B$7)) ->  | V149: =IF(ISBLANK(D149),"",IF(ISBLANK(PROJEKTPARAMETER!B$8),"",PROJEKTPARAMETER!B$8)) ->  | AC149: =IF(ISBLANK(G149),"",IF(ISBLANK(VLOOKUP(G149,OBJEKTLISTE!$A$4:$G$976,7,FALSE)),"",VLOOKUP(G149,OBJEKTLISTE!$A$4:$G$976,7,FALSE))) -> 
H150: =IF(G150<>"",VLOOKUP(G150,OBJEKTLISTE!$A$4:$G$976,2,FALSE),"") ->  | J150: =IF(G150<>"",VLOOKUP(G150,OBJEKTLISTE!$A$4:$G$976,3,FALSE),"") ->  | K150: =IF(G150<>"",VLOOKUP(G150,OBJEKTLISTE!$A$4:$G$976,4,FALSE),"") ->  | L150: =IF(G150<>"",VLOOKUP(G150,OBJEKTLISTE!$A$4:$G$976,5,FALSE),"") ->  | M150: =IF(G150<>"",VLOOKUP(G150,OBJEKTLISTE!$A$4:$G$976,6,FALSE),"") ->  | N150: =IF(ISBLANK(D150),"",IF(ISBLANK(PROJEKTPARAMETER!B$2),"",PROJEKTPARAMETER!B$2)) ->  | O150: =IF(ISBLANK(D150),"",IF(ISBLANK(PROJEKTPARAMETER!B$3),"",PROJEKTPARAMETER!B$3)) ->  | P150: =IF(ISBLANK(D150),"",IF(ISBLANK(PROJEKTPARAMETER!B$4),"",PROJEKTPARAMETER!B$4)) ->  | Q150: =IF(ISBLANK(D150),"",IF(ISBLANK(PROJEKTPARAMETER!B$5),"",PROJEKTPARAMETER!B$5)) ->  | R150: =IF(ISBLANK(D150),"",IF(ISBLANK(PROJEKTPARAMETER!B$6),"",PROJEKTPARAMETER!B$6)) ->  | U150: =IF(ISBLANK(D150),"",IF(ISBLANK(PROJEKTPARAMETER!B$7),"",PROJEKTPARAMETER!B$7)) ->  | V150: =IF(ISBLANK(D150),"",IF(ISBLANK(PROJEKTPARAMETER!B$8),"",PROJEKTPARAMETER!B$8)) ->  | AC150: =IF(ISBLANK(G150),"",IF(ISBLANK(VLOOKUP(G150,OBJEKTLISTE!$A$4:$G$976,7,FALSE)),"",VLOOKUP(G150,OBJEKTLISTE!$A$4:$G$976,7,FALSE))) -> 
H151: =IF(G151<>"",VLOOKUP(G151,OBJEKTLISTE!$A$4:$G$976,2,FALSE),"") ->  | J151: =IF(G151<>"",VLOOKUP(G151,OBJEKTLISTE!$A$4:$G$976,3,FALSE),"") ->  | K151: =IF(G151<>"",VLOOKUP(G151,OBJEKTLISTE!$A$4:$G$976,4,FALSE),"") ->  | L151: =IF(G151<>"",VLOOKUP(G151,OBJEKTLISTE!$A$4:$G$976,5,FALSE),"") ->  | M151: =IF(G151<>"",VLOOKUP(G151,OBJEKTLISTE!$A$4:$G$976,6,FALSE),"") ->  | N151: =IF(ISBLANK(D151),"",IF(ISBLANK(PROJEKTPARAMETER!B$2),"",PROJEKTPARAMETER!B$2)) ->  | O151: =IF(ISBLANK(D151),"",IF(ISBLANK(PROJEKTPARAMETER!B$3),"",PROJEKTPARAMETER!B$3)) ->  | P151: =IF(ISBLANK(D151),"",IF(ISBLANK(PROJEKTPARAMETER!B$4),"",PROJEKTPARAMETER!B$4)) ->  | Q151: =IF(ISBLANK(D151),"",IF(ISBLANK(PROJEKTPARAMETER!B$5),"",PROJEKTPARAMETER!B$5)) ->  | R151: =IF(ISBLANK(D151),"",IF(ISBLANK(PROJEKTPARAMETER!B$6),"",PROJEKTPARAMETER!B$6)) ->  | U151: =IF(ISBLANK(D151),"",IF(ISBLANK(PROJEKTPARAMETER!B$7),"",PROJEKTPARAMETER!B$7)) ->  | V151: =IF(ISBLANK(D151),"",IF(ISBLANK(PROJEKTPARAMETER!B$8),"",PROJEKTPARAMETER!B$8)) ->  | AC151: =IF(ISBLANK(G151),"",IF(ISBLANK(VLOOKUP(G151,OBJEKTLISTE!$A$4:$G$976,7,FALSE)),"",VLOOKUP(G151,OBJEKTLISTE!$A$4:$G$976,7,FALSE))) -> 
H152: =IF(G152<>"",VLOOKUP(G152,OBJEKTLISTE!$A$4:$G$976,2,FALSE),"") ->  | J152: =IF(G152<>"",VLOOKUP(G152,OBJEKTLISTE!$A$4:$G$976,3,FALSE),"") ->  | K152: =IF(G152<>"",VLOOKUP(G152,OBJEKTLISTE!$A$4:$G$976,4,FALSE),"") ->  | L152: =IF(G152<>"",VLOOKUP(G152,OBJEKTLISTE!$A$4:$G$976,5,FALSE),"") ->  | M152: =IF(G152<>"",VLOOKUP(G152,OBJEKTLISTE!$A$4:$G$976,6,FALSE),"") ->  | N152: =IF(ISBLANK(D152),"",IF(ISBLANK(PROJEKTPARAMETER!B$2),"",PROJEKTPARAMETER!B$2)) ->  | O152: =IF(ISBLANK(D152),"",IF(ISBLANK(PROJEKTPARAMETER!B$3),"",PROJEKTPARAMETER!B$3)) ->  | P152: =IF(ISBLANK(D152),"",IF(ISBLANK(PROJEKTPARAMETER!B$4),"",PROJEKTPARAMETER!B$4)) ->  | Q152: =IF(ISBLANK(D152),"",IF(ISBLANK(PROJEKTPARAMETER!B$5),"",PROJEKTPARAMETER!B$5)) ->  | R152: =IF(ISBLANK(D152),"",IF(ISBLANK(PROJEKTPARAMETER!B$6),"",PROJEKTPARAMETER!B$6)) ->  | U152: =IF(ISBLANK(D152),"",IF(ISBLANK(PROJEKTPARAMETER!B$7),"",PROJEKTPARAMETER!B$7)) ->  | V152: =IF(ISBLANK(D152),"",IF(ISBLANK(PROJEKTPARAMETER!B$8),"",PROJEKTPARAMETER!B$8)) ->  | AC152: =IF(ISBLANK(G152),"",IF(ISBLANK(VLOOKUP(G152,OBJEKTLISTE!$A$4:$G$976,7,FALSE)),"",VLOOKUP(G152,OBJEKTLISTE!$A$4:$G$976,7,FALSE))) -> 
H153: =IF(G153<>"",VLOOKUP(G153,OBJEKTLISTE!$A$4:$G$976,2,FALSE),"") ->  | J153: =IF(G153<>"",VLOOKUP(G153,OBJEKTLISTE!$A$4:$G$976,3,FALSE),"") ->  | K153: =IF(G153<>"",VLOOKUP(G153,OBJEKTLISTE!$A$4:$G$976,4,FALSE),"") ->  | L153: =IF(G153<>"",VLOOKUP(G153,OBJEKTLISTE!$A$4:$G$976,5,FALSE),"") ->  | M153: =IF(G153<>"",VLOOKUP(G153,OBJEKTLISTE!$A$4:$G$976,6,FALSE),"") ->  | N153: =IF(ISBLANK(D153),"",IF(ISBLANK(PROJEKTPARAMETER!B$2),"",PROJEKTPARAMETER!B$2)) ->  | O153: =IF(ISBLANK(D153),"",IF(ISBLANK(PROJEKTPARAMETER!B$3),"",PROJEKTPARAMETER!B$3)) ->  | P153: =IF(ISBLANK(D153),"",IF(ISBLANK(PROJEKTPARAMETER!B$4),"",PROJEKTPARAMETER!B$4)) ->  | Q153: =IF(ISBLANK(D153),"",IF(ISBLANK(PROJEKTPARAMETER!B$5),"",PROJEKTPARAMETER!B$5)) ->  | R153: =IF(ISBLANK(D153),"",IF(ISBLANK(PROJEKTPARAMETER!B$6),"",PROJEKTPARAMETER!B$6)) ->  | U153: =IF(ISBLANK(D153),"",IF(ISBLANK(PROJEKTPARAMETER!B$7),"",PROJEKTPARAMETER!B$7)) ->  | V153: =IF(ISBLANK(D153),"",IF(ISBLANK(PROJEKTPARAMETER!B$8),"",PROJEKTPARAMETER!B$8)) ->  | AC153: =IF(ISBLANK(G153),"",IF(ISBLANK(VLOOKUP(G153,OBJEKTLISTE!$A$4:$G$976,7,FALSE)),"",VLOOKUP(G153,OBJEKTLISTE!$A$4:$G$976,7,FALSE))) -> 
H154: =IF(G154<>"",VLOOKUP(G154,OBJEKTLISTE!$A$4:$G$976,2,FALSE),"") ->  | J154: =IF(G154<>"",VLOOKUP(G154,OBJEKTLISTE!$A$4:$G$976,3,FALSE),"") ->  | K154: =IF(G154<>"",VLOOKUP(G154,OBJEKTLISTE!$A$4:$G$976,4,FALSE),"") ->  | L154: =IF(G154<>"",VLOOKUP(G154,OBJEKTLISTE!$A$4:$G$976,5,FALSE),"") ->  | M154: =IF(G154<>"",VLOOKUP(G154,OBJEKTLISTE!$A$4:$G$976,6,FALSE),"") ->  | N154: =IF(ISBLANK(D154),"",IF(ISBLANK(PROJEKTPARAMETER!B$2),"",PROJEKTPARAMETER!B$2)) ->  | O154: =IF(ISBLANK(D154),"",IF(ISBLANK(PROJEKTPARAMETER!B$3),"",PROJEKTPARAMETER!B$3)) ->  | P154: =IF(ISBLANK(D154),"",IF(ISBLANK(PROJEKTPARAMETER!B$4),"",PROJEKTPARAMETER!B$4)) ->  | Q154: =IF(ISBLANK(D154),"",IF(ISBLANK(PROJEKTPARAMETER!B$5),"",PROJEKTPARAMETER!B$5)) ->  | R154: =IF(ISBLANK(D154),"",IF(ISBLANK(PROJEKTPARAMETER!B$6),"",PROJEKTPARAMETER!B$6)) ->  | U154: =IF(ISBLANK(D154),"",IF(ISBLANK(PROJEKTPARAMETER!B$7),"",PROJEKTPARAMETER!B$7)) ->  | V154: =IF(ISBLANK(D154),"",IF(ISBLANK(PROJEKTPARAMETER!B$8),"",PROJEKTPARAMETER!B$8)) ->  | AC154: =IF(ISBLANK(G154),"",IF(ISBLANK(VLOOKUP(G154,OBJEKTLISTE!$A$4:$G$976,7,FALSE)),"",VLOOKUP(G154,OBJEKTLISTE!$A$4:$G$976,7,FALSE))) -> 
H155: =IF(G155<>"",VLOOKUP(G155,OBJEKTLISTE!$A$4:$G$976,2,FALSE),"") ->  | J155: =IF(G155<>"",VLOOKUP(G155,OBJEKTLISTE!$A$4:$G$976,3,FALSE),"") ->  | K155: =IF(G155<>"",VLOOKUP(G155,OBJEKTLISTE!$A$4:$G$976,4,FALSE),"") ->  | L155: =IF(G155<>"",VLOOKUP(G155,OBJEKTLISTE!$A$4:$G$976,5,FALSE),"") ->  | M155: =IF(G155<>"",VLOOKUP(G155,OBJEKTLISTE!$A$4:$G$976,6,FALSE),"") ->  | N155: =IF(ISBLANK(D155),"",IF(ISBLANK(PROJEKTPARAMETER!B$2),"",PROJEKTPARAMETER!B$2)) ->  | O155: =IF(ISBLANK(D155),"",IF(ISBLANK(PROJEKTPARAMETER!B$3),"",PROJEKTPARAMETER!B$3)) ->  | P155: =IF(ISBLANK(D155),"",IF(ISBLANK(PROJEKTPARAMETER!B$4),"",PROJEKTPARAMETER!B$4)) ->  | Q155: =IF(ISBLANK(D155),"",IF(ISBLANK(PROJEKTPARAMETER!B$5),"",PROJEKTPARAMETER!B$5)) ->  | R155: =IF(ISBLANK(D155),"",IF(ISBLANK(PROJEKTPARAMETER!B$6),"",PROJEKTPARAMETER!B$6)) ->  | U155: =IF(ISBLANK(D155),"",IF(ISBLANK(PROJEKTPARAMETER!B$7),"",PROJEKTPARAMETER!B$7)) ->  | V155: =IF(ISBLANK(D155),"",IF(ISBLANK(PROJEKTPARAMETER!B$8),"",PROJEKTPARAMETER!B$8)) ->  | AC155: =IF(ISBLANK(G155),"",IF(ISBLANK(VLOOKUP(G155,OBJEKTLISTE!$A$4:$G$976,7,FALSE)),"",VLOOKUP(G155,OBJEKTLISTE!$A$4:$G$976,7,FALSE))) -> 
H156: =IF(G156<>"",VLOOKUP(G156,OBJEKTLISTE!$A$4:$G$976,2,FALSE),"") ->  | J156: =IF(G156<>"",VLOOKUP(G156,OBJEKTLISTE!$A$4:$G$976,3,FALSE),"") ->  | K156: =IF(G156<>"",VLOOKUP(G156,OBJEKTLISTE!$A$4:$G$976,4,FALSE),"") ->  | L156: =IF(G156<>"",VLOOKUP(G156,OBJEKTLISTE!$A$4:$G$976,5,FALSE),"") ->  | M156: =IF(G156<>"",VLOOKUP(G156,OBJEKTLISTE!$A$4:$G$976,6,FALSE),"") ->  | N156: =IF(ISBLANK(D156),"",IF(ISBLANK(PROJEKTPARAMETER!B$2),"",PROJEKTPARAMETER!B$2)) ->  | O156: =IF(ISBLANK(D156),"",IF(ISBLANK(PROJEKTPARAMETER!B$3),"",PROJEKTPARAMETER!B$3)) ->  | P156: =IF(ISBLANK(D156),"",IF(ISBLANK(PROJEKTPARAMETER!B$4),"",PROJEKTPARAMETER!B$4)) ->  | Q156: =IF(ISBLANK(D156),"",IF(ISBLANK(PROJEKTPARAMETER!B$5),"",PROJEKTPARAMETER!B$5)) ->  | R156: =IF(ISBLANK(D156),"",IF(ISBLANK(PROJEKTPARAMETER!B$6),"",PROJEKTPARAMETER!B$6)) ->  | U156: =IF(ISBLANK(D156),"",IF(ISBLANK(PROJEKTPARAMETER!B$7),"",PROJEKTPARAMETER!B$7)) ->  | V156: =IF(ISBLANK(D156),"",IF(ISBLANK(PROJEKTPARAMETER!B$8),"",PROJEKTPARAMETER!B$8)) ->  | AC156: =IF(ISBLANK(G156),"",IF(ISBLANK(VLOOKUP(G156,OBJEKTLISTE!$A$4:$G$976,7,FALSE)),"",VLOOKUP(G156,OBJEKTLISTE!$A$4:$G$976,7,FALSE))) -> 
H157: =IF(G157<>"",VLOOKUP(G157,OBJEKTLISTE!$A$4:$G$976,2,FALSE),"") ->  | J157: =IF(G157<>"",VLOOKUP(G157,OBJEKTLISTE!$A$4:$G$976,3,FALSE),"") ->  | K157: =IF(G157<>"",VLOOKUP(G157,OBJEKTLISTE!$A$4:$G$976,4,FALSE),"") ->  | L157: =IF(G157<>"",VLOOKUP(G157,OBJEKTLISTE!$A$4:$G$976,5,FALSE),"") ->  | M157: =IF(G157<>"",VLOOKUP(G157,OBJEKTLISTE!$A$4:$G$976,6,FALSE),"") ->  | N157: =IF(ISBLANK(D157),"",IF(ISBLANK(PROJEKTPARAMETER!B$2),"",PROJEKTPARAMETER!B$2)) ->  | O157: =IF(ISBLANK(D157),"",IF(ISBLANK(PROJEKTPARAMETER!B$3),"",PROJEKTPARAMETER!B$3)) ->  | P157: =IF(ISBLANK(D157),"",IF(ISBLANK(PROJEKTPARAMETER!B$4),"",PROJEKTPARAMETER!B$4)) ->  | Q157: =IF(ISBLANK(D157),"",IF(ISBLANK(PROJEKTPARAMETER!B$5),"",PROJEKTPARAMETER!B$5)) ->  | R157: =IF(ISBLANK(D157),"",IF(ISBLANK(PROJEKTPARAMETER!B$6),"",PROJEKTPARAMETER!B$6)) ->  | U157: =IF(ISBLANK(D157),"",IF(ISBLANK(PROJEKTPARAMETER!B$7),"",PROJEKTPARAMETER!B$7)) ->  | V157: =IF(ISBLANK(D157),"",IF(ISBLANK(PROJEKTPARAMETER!B$8),"",PROJEKTPARAMETER!B$8)) ->  | AC157: =IF(ISBLANK(G157),"",IF(ISBLANK(VLOOKUP(G157,OBJEKTLISTE!$A$4:$G$976,7,FALSE)),"",VLOOKUP(G157,OBJEKTLISTE!$A$4:$G$976,7,FALSE))) -> 
H158: =IF(G158<>"",VLOOKUP(G158,OBJEKTLISTE!$A$4:$G$976,2,FALSE),"") ->  | J158: =IF(G158<>"",VLOOKUP(G158,OBJEKTLISTE!$A$4:$G$976,3,FALSE),"") ->  | K158: =IF(G158<>"",VLOOKUP(G158,OBJEKTLISTE!$A$4:$G$976,4,FALSE),"") ->  | L158: =IF(G158<>"",VLOOKUP(G158,OBJEKTLISTE!$A$4:$G$976,5,FALSE),"") ->  | M158: =IF(G158<>"",VLOOKUP(G158,OBJEKTLISTE!$A$4:$G$976,6,FALSE),"") ->  | N158: =IF(ISBLANK(D158),"",IF(ISBLANK(PROJEKTPARAMETER!B$2),"",PROJEKTPARAMETER!B$2)) ->  | O158: =IF(ISBLANK(D158),"",IF(ISBLANK(PROJEKTPARAMETER!B$3),"",PROJEKTPARAMETER!B$3)) ->  | P158: =IF(ISBLANK(D158),"",IF(ISBLANK(PROJEKTPARAMETER!B$4),"",PROJEKTPARAMETER!B$4)) ->  | Q158: =IF(ISBLANK(D158),"",IF(ISBLANK(PROJEKTPARAMETER!B$5),"",PROJEKTPARAMETER!B$5)) ->  | R158: =IF(ISBLANK(D158),"",IF(ISBLANK(PROJEKTPARAMETER!B$6),"",PROJEKTPARAMETER!B$6)) ->  | U158: =IF(ISBLANK(D158),"",IF(ISBLANK(PROJEKTPARAMETER!B$7),"",PROJEKTPARAMETER!B$7)) ->  | V158: =IF(ISBLANK(D158),"",IF(ISBLANK(PROJEKTPARAMETER!B$8),"",PROJEKTPARAMETER!B$8)) ->  | AC158: =IF(ISBLANK(G158),"",IF(ISBLANK(VLOOKUP(G158,OBJEKTLISTE!$A$4:$G$976,7,FALSE)),"",VLOOKUP(G158,OBJEKTLISTE!$A$4:$G$976,7,FALSE))) -> 
H159: =IF(G159<>"",VLOOKUP(G159,OBJEKTLISTE!$A$4:$G$976,2,FALSE),"") ->  | J159: =IF(G159<>"",VLOOKUP(G159,OBJEKTLISTE!$A$4:$G$976,3,FALSE),"") ->  | K159: =IF(G159<>"",VLOOKUP(G159,OBJEKTLISTE!$A$4:$G$976,4,FALSE),"") ->  | L159: =IF(G159<>"",VLOOKUP(G159,OBJEKTLISTE!$A$4:$G$976,5,FALSE),"") ->  | M159: =IF(G159<>"",VLOOKUP(G159,OBJEKTLISTE!$A$4:$G$976,6,FALSE),"") ->  | N159: =IF(ISBLANK(D159),"",IF(ISBLANK(PROJEKTPARAMETER!B$2),"",PROJEKTPARAMETER!B$2)) ->  | O159: =IF(ISBLANK(D159),"",IF(ISBLANK(PROJEKTPARAMETER!B$3),"",PROJEKTPARAMETER!B$3)) ->  | P159: =IF(ISBLANK(D159),"",IF(ISBLANK(PROJEKTPARAMETER!B$4),"",PROJEKTPARAMETER!B$4)) ->  | Q159: =IF(ISBLANK(D159),"",IF(ISBLANK(PROJEKTPARAMETER!B$5),"",PROJEKTPARAMETER!B$5)) ->  | R159: =IF(ISBLANK(D159),"",IF(ISBLANK(PROJEKTPARAMETER!B$6),"",PROJEKTPARAMETER!B$6)) ->  | U159: =IF(ISBLANK(D159),"",IF(ISBLANK(PROJEKTPARAMETER!B$7),"",PROJEKTPARAMETER!B$7)) ->  | V159: =IF(ISBLANK(D159),"",IF(ISBLANK(PROJEKTPARAMETER!B$8),"",PROJEKTPARAMETER!B$8)) ->  | AC159: =IF(ISBLANK(G159),"",IF(ISBLANK(VLOOKUP(G159,OBJEKTLISTE!$A$4:$G$976,7,FALSE)),"",VLOOKUP(G159,OBJEKTLISTE!$A$4:$G$976,7,FALSE))) -> 
H160: =IF(G160<>"",VLOOKUP(G160,OBJEKTLISTE!$A$4:$G$976,2,FALSE),"") ->  | J160: =IF(G160<>"",VLOOKUP(G160,OBJEKTLISTE!$A$4:$G$976,3,FALSE),"") ->  | K160: =IF(G160<>"",VLOOKUP(G160,OBJEKTLISTE!$A$4:$G$976,4,FALSE),"") ->  | L160: =IF(G160<>"",VLOOKUP(G160,OBJEKTLISTE!$A$4:$G$976,5,FALSE),"") ->  | M160: =IF(G160<>"",VLOOKUP(G160,OBJEKTLISTE!$A$4:$G$976,6,FALSE),"") ->  | N160: =IF(ISBLANK(D160),"",IF(ISBLANK(PROJEKTPARAMETER!B$2),"",PROJEKTPARAMETER!B$2)) ->  | O160: =IF(ISBLANK(D160),"",IF(ISBLANK(PROJEKTPARAMETER!B$3),"",PROJEKTPARAMETER!B$3)) ->  | P160: =IF(ISBLANK(D160),"",IF(ISBLANK(PROJEKTPARAMETER!B$4),"",PROJEKTPARAMETER!B$4)) ->  | Q160: =IF(ISBLANK(D160),"",IF(ISBLANK(PROJEKTPARAMETER!B$5),"",PROJEKTPARAMETER!B$5)) ->  | R160: =IF(ISBLANK(D160),"",IF(ISBLANK(PROJEKTPARAMETER!B$6),"",PROJEKTPARAMETER!B$6)) ->  | U160: =IF(ISBLANK(D160),"",IF(ISBLANK(PROJEKTPARAMETER!B$7),"",PROJEKTPARAMETER!B$7)) ->  | V160: =IF(ISBLANK(D160),"",IF(ISBLANK(PROJEKTPARAMETER!B$8),"",PROJEKTPARAMETER!B$8)) ->  | AC160: =IF(ISBLANK(G160),"",IF(ISBLANK(VLOOKUP(G160,OBJEKTLISTE!$A$4:$G$976,7,FALSE)),"",VLOOKUP(G160,OBJEKTLISTE!$A$4:$G$976,7,FALSE))) -> 
H161: =IF(G161<>"",VLOOKUP(G161,OBJEKTLISTE!$A$4:$G$976,2,FALSE),"") ->  | J161: =IF(G161<>"",VLOOKUP(G161,OBJEKTLISTE!$A$4:$G$976,3,FALSE),"") ->  | K161: =IF(G161<>"",VLOOKUP(G161,OBJEKTLISTE!$A$4:$G$976,4,FALSE),"") ->  | L161: =IF(G161<>"",VLOOKUP(G161,OBJEKTLISTE!$A$4:$G$976,5,FALSE),"") ->  | M161: =IF(G161<>"",VLOOKUP(G161,OBJEKTLISTE!$A$4:$G$976,6,FALSE),"") ->  | N161: =IF(ISBLANK(D161),"",IF(ISBLANK(PROJEKTPARAMETER!B$2),"",PROJEKTPARAMETER!B$2)) ->  | O161: =IF(ISBLANK(D161),"",IF(ISBLANK(PROJEKTPARAMETER!B$3),"",PROJEKTPARAMETER!B$3)) ->  | P161: =IF(ISBLANK(D161),"",IF(ISBLANK(PROJEKTPARAMETER!B$4),"",PROJEKTPARAMETER!B$4)) ->  | Q161: =IF(ISBLANK(D161),"",IF(ISBLANK(PROJEKTPARAMETER!B$5),"",PROJEKTPARAMETER!B$5)) ->  | R161: =IF(ISBLANK(D161),"",IF(ISBLANK(PROJEKTPARAMETER!B$6),"",PROJEKTPARAMETER!B$6)) ->  | U161: =IF(ISBLANK(D161),"",IF(ISBLANK(PROJEKTPARAMETER!B$7),"",PROJEKTPARAMETER!B$7)) ->  | V161: =IF(ISBLANK(D161),"",IF(ISBLANK(PROJEKTPARAMETER!B$8),"",PROJEKTPARAMETER!B$8)) ->  | AC161: =IF(ISBLANK(G161),"",IF(ISBLANK(VLOOKUP(G161,OBJEKTLISTE!$A$4:$G$976,7,FALSE)),"",VLOOKUP(G161,OBJEKTLISTE!$A$4:$G$976,7,FALSE))) -> 
H162: =IF(G162<>"",VLOOKUP(G162,OBJEKTLISTE!$A$4:$G$976,2,FALSE),"") ->  | J162: =IF(G162<>"",VLOOKUP(G162,OBJEKTLISTE!$A$4:$G$976,3,FALSE),"") ->  | K162: =IF(G162<>"",VLOOKUP(G162,OBJEKTLISTE!$A$4:$G$976,4,FALSE),"") ->  | L162: =IF(G162<>"",VLOOKUP(G162,OBJEKTLISTE!$A$4:$G$976,5,FALSE),"") ->  | M162: =IF(G162<>"",VLOOKUP(G162,OBJEKTLISTE!$A$4:$G$976,6,FALSE),"") ->  | N162: =IF(ISBLANK(D162),"",IF(ISBLANK(PROJEKTPARAMETER!B$2),"",PROJEKTPARAMETER!B$2)) ->  | O162: =IF(ISBLANK(D162),"",IF(ISBLANK(PROJEKTPARAMETER!B$3),"",PROJEKTPARAMETER!B$3)) ->  | P162: =IF(ISBLANK(D162),"",IF(ISBLANK(PROJEKTPARAMETER!B$4),"",PROJEKTPARAMETER!B$4)) ->  | Q162: =IF(ISBLANK(D162),"",IF(ISBLANK(PROJEKTPARAMETER!B$5),"",PROJEKTPARAMETER!B$5)) ->  | R162: =IF(ISBLANK(D162),"",IF(ISBLANK(PROJEKTPARAMETER!B$6),"",PROJEKTPARAMETER!B$6)) ->  | U162: =IF(ISBLANK(D162),"",IF(ISBLANK(PROJEKTPARAMETER!B$7),"",PROJEKTPARAMETER!B$7)) ->  | V162: =IF(ISBLANK(D162),"",IF(ISBLANK(PROJEKTPARAMETER!B$8),"",PROJEKTPARAMETER!B$8)) ->  | AC162: =IF(ISBLANK(G162),"",IF(ISBLANK(VLOOKUP(G162,OBJEKTLISTE!$A$4:$G$976,7,FALSE)),"",VLOOKUP(G162,OBJEKTLISTE!$A$4:$G$976,7,FALSE))) -> 
H163: =IF(G163<>"",VLOOKUP(G163,OBJEKTLISTE!$A$4:$G$976,2,FALSE),"") ->  | J163: =IF(G163<>"",VLOOKUP(G163,OBJEKTLISTE!$A$4:$G$976,3,FALSE),"") ->  | K163: =IF(G163<>"",VLOOKUP(G163,OBJEKTLISTE!$A$4:$G$976,4,FALSE),"") ->  | L163: =IF(G163<>"",VLOOKUP(G163,OBJEKTLISTE!$A$4:$G$976,5,FALSE),"") ->  | M163: =IF(G163<>"",VLOOKUP(G163,OBJEKTLISTE!$A$4:$G$976,6,FALSE),"") ->  | N163: =IF(ISBLANK(D163),"",IF(ISBLANK(PROJEKTPARAMETER!B$2),"",PROJEKTPARAMETER!B$2)) ->  | O163: =IF(ISBLANK(D163),"",IF(ISBLANK(PROJEKTPARAMETER!B$3),"",PROJEKTPARAMETER!B$3)) ->  | P163: =IF(ISBLANK(D163),"",IF(ISBLANK(PROJEKTPARAMETER!B$4),"",PROJEKTPARAMETER!B$4)) ->  | Q163: =IF(ISBLANK(D163),"",IF(ISBLANK(PROJEKTPARAMETER!B$5),"",PROJEKTPARAMETER!B$5)) ->  | R163: =IF(ISBLANK(D163),"",IF(ISBLANK(PROJEKTPARAMETER!B$6),"",PROJEKTPARAMETER!B$6)) ->  | U163: =IF(ISBLANK(D163),"",IF(ISBLANK(PROJEKTPARAMETER!B$7),"",PROJEKTPARAMETER!B$7)) ->  | V163: =IF(ISBLANK(D163),"",IF(ISBLANK(PROJEKTPARAMETER!B$8),"",PROJEKTPARAMETER!B$8)) ->  | AC163: =IF(ISBLANK(G163),"",IF(ISBLANK(VLOOKUP(G163,OBJEKTLISTE!$A$4:$G$976,7,FALSE)),"",VLOOKUP(G163,OBJEKTLISTE!$A$4:$G$976,7,FALSE))) -> 
H164: =IF(G164<>"",VLOOKUP(G164,OBJEKTLISTE!$A$4:$G$976,2,FALSE),"") ->  | J164: =IF(G164<>"",VLOOKUP(G164,OBJEKTLISTE!$A$4:$G$976,3,FALSE),"") ->  | K164: =IF(G164<>"",VLOOKUP(G164,OBJEKTLISTE!$A$4:$G$976,4,FALSE),"") ->  | L164: =IF(G164<>"",VLOOKUP(G164,OBJEKTLISTE!$A$4:$G$976,5,FALSE),"") ->  | M164: =IF(G164<>"",VLOOKUP(G164,OBJEKTLISTE!$A$4:$G$976,6,FALSE),"") ->  | N164: =IF(ISBLANK(D164),"",IF(ISBLANK(PROJEKTPARAMETER!B$2),"",PROJEKTPARAMETER!B$2)) ->  | O164: =IF(ISBLANK(D164),"",IF(ISBLANK(PROJEKTPARAMETER!B$3),"",PROJEKTPARAMETER!B$3)) ->  | P164: =IF(ISBLANK(D164),"",IF(ISBLANK(PROJEKTPARAMETER!B$4),"",PROJEKTPARAMETER!B$4)) ->  | Q164: =IF(ISBLANK(D164),"",IF(ISBLANK(PROJEKTPARAMETER!B$5),"",PROJEKTPARAMETER!B$5)) ->  | R164: =IF(ISBLANK(D164),"",IF(ISBLANK(PROJEKTPARAMETER!B$6),"",PROJEKTPARAMETER!B$6)) ->  | U164: =IF(ISBLANK(D164),"",IF(ISBLANK(PROJEKTPARAMETER!B$7),"",PROJEKTPARAMETER!B$7)) ->  | V164: =IF(ISBLANK(D164),"",IF(ISBLANK(PROJEKTPARAMETER!B$8),"",PROJEKTPARAMETER!B$8)) ->  | AC164: =IF(ISBLANK(G164),"",IF(ISBLANK(VLOOKUP(G164,OBJEKTLISTE!$A$4:$G$976,7,FALSE)),"",VLOOKUP(G164,OBJEKTLISTE!$A$4:$G$976,7,FALSE))) -> 
H165: =IF(G165<>"",VLOOKUP(G165,OBJEKTLISTE!$A$4:$G$976,2,FALSE),"") ->  | J165: =IF(G165<>"",VLOOKUP(G165,OBJEKTLISTE!$A$4:$G$976,3,FALSE),"") ->  | K165: =IF(G165<>"",VLOOKUP(G165,OBJEKTLISTE!$A$4:$G$976,4,FALSE),"") ->  | L165: =IF(G165<>"",VLOOKUP(G165,OBJEKTLISTE!$A$4:$G$976,5,FALSE),"") ->  | M165: =IF(G165<>"",VLOOKUP(G165,OBJEKTLISTE!$A$4:$G$976,6,FALSE),"") ->  | N165: =IF(ISBLANK(D165),"",IF(ISBLANK(PROJEKTPARAMETER!B$2),"",PROJEKTPARAMETER!B$2)) ->  | O165: =IF(ISBLANK(D165),"",IF(ISBLANK(PROJEKTPARAMETER!B$3),"",PROJEKTPARAMETER!B$3)) ->  | P165: =IF(ISBLANK(D165),"",IF(ISBLANK(PROJEKTPARAMETER!B$4),"",PROJEKTPARAMETER!B$4)) ->  | Q165: =IF(ISBLANK(D165),"",IF(ISBLANK(PROJEKTPARAMETER!B$5),"",PROJEKTPARAMETER!B$5)) ->  | R165: =IF(ISBLANK(D165),"",IF(ISBLANK(PROJEKTPARAMETER!B$6),"",PROJEKTPARAMETER!B$6)) ->  | U165: =IF(ISBLANK(D165),"",IF(ISBLANK(PROJEKTPARAMETER!B$7),"",PROJEKTPARAMETER!B$7)) ->  | V165: =IF(ISBLANK(D165),"",IF(ISBLANK(PROJEKTPARAMETER!B$8),"",PROJEKTPARAMETER!B$8)) ->  | AC165: =IF(ISBLANK(G165),"",IF(ISBLANK(VLOOKUP(G165,OBJEKTLISTE!$A$4:$G$976,7,FALSE)),"",VLOOKUP(G165,OBJEKTLISTE!$A$4:$G$976,7,FALSE))) -> 
H166: =IF(G166<>"",VLOOKUP(G166,OBJEKTLISTE!$A$4:$G$976,2,FALSE),"") ->  | J166: =IF(G166<>"",VLOOKUP(G166,OBJEKTLISTE!$A$4:$G$976,3,FALSE),"") ->  | K166: =IF(G166<>"",VLOOKUP(G166,OBJEKTLISTE!$A$4:$G$976,4,FALSE),"") ->  | L166: =IF(G166<>"",VLOOKUP(G166,OBJEKTLISTE!$A$4:$G$976,5,FALSE),"") ->  | M166: =IF(G166<>"",VLOOKUP(G166,OBJEKTLISTE!$A$4:$G$976,6,FALSE),"") ->  | N166: =IF(ISBLANK(D166),"",IF(ISBLANK(PROJEKTPARAMETER!B$2),"",PROJEKTPARAMETER!B$2)) ->  | O166: =IF(ISBLANK(D166),"",IF(ISBLANK(PROJEKTPARAMETER!B$3),"",PROJEKTPARAMETER!B$3)) ->  | P166: =IF(ISBLANK(D166),"",IF(ISBLANK(PROJEKTPARAMETER!B$4),"",PROJEKTPARAMETER!B$4)) ->  | Q166: =IF(ISBLANK(D166),"",IF(ISBLANK(PROJEKTPARAMETER!B$5),"",PROJEKTPARAMETER!B$5)) ->  | R166: =IF(ISBLANK(D166),"",IF(ISBLANK(PROJEKTPARAMETER!B$6),"",PROJEKTPARAMETER!B$6)) ->  | U166: =IF(ISBLANK(D166),"",IF(ISBLANK(PROJEKTPARAMETER!B$7),"",PROJEKTPARAMETER!B$7)) ->  | V166: =IF(ISBLANK(D166),"",IF(ISBLANK(PROJEKTPARAMETER!B$8),"",PROJEKTPARAMETER!B$8)) ->  | AC166: =IF(ISBLANK(G166),"",IF(ISBLANK(VLOOKUP(G166,OBJEKTLISTE!$A$4:$G$976,7,FALSE)),"",VLOOKUP(G166,OBJEKTLISTE!$A$4:$G$976,7,FALSE))) -> 
H167: =IF(G167<>"",VLOOKUP(G167,OBJEKTLISTE!$A$4:$G$976,2,FALSE),"") ->  | J167: =IF(G167<>"",VLOOKUP(G167,OBJEKTLISTE!$A$4:$G$976,3,FALSE),"") ->  | K167: =IF(G167<>"",VLOOKUP(G167,OBJEKTLISTE!$A$4:$G$976,4,FALSE),"") ->  | L167: =IF(G167<>"",VLOOKUP(G167,OBJEKTLISTE!$A$4:$G$976,5,FALSE),"") ->  | M167: =IF(G167<>"",VLOOKUP(G167,OBJEKTLISTE!$A$4:$G$976,6,FALSE),"") ->  | N167: =IF(ISBLANK(D167),"",IF(ISBLANK(PROJEKTPARAMETER!B$2),"",PROJEKTPARAMETER!B$2)) ->  | O167: =IF(ISBLANK(D167),"",IF(ISBLANK(PROJEKTPARAMETER!B$3),"",PROJEKTPARAMETER!B$3)) ->  | P167: =IF(ISBLANK(D167),"",IF(ISBLANK(PROJEKTPARAMETER!B$4),"",PROJEKTPARAMETER!B$4)) ->  | Q167: =IF(ISBLANK(D167),"",IF(ISBLANK(PROJEKTPARAMETER!B$5),"",PROJEKTPARAMETER!B$5)) ->  | R167: =IF(ISBLANK(D167),"",IF(ISBLANK(PROJEKTPARAMETER!B$6),"",PROJEKTPARAMETER!B$6)) ->  | U167: =IF(ISBLANK(D167),"",IF(ISBLANK(PROJEKTPARAMETER!B$7),"",PROJEKTPARAMETER!B$7)) ->  | V167: =IF(ISBLANK(D167),"",IF(ISBLANK(PROJEKTPARAMETER!B$8),"",PROJEKTPARAMETER!B$8)) ->  | AC167: =IF(ISBLANK(G167),"",IF(ISBLANK(VLOOKUP(G167,OBJEKTLISTE!$A$4:$G$976,7,FALSE)),"",VLOOKUP(G167,OBJEKTLISTE!$A$4:$G$976,7,FALSE))) -> 
H168: =IF(G168<>"",VLOOKUP(G168,OBJEKTLISTE!$A$4:$G$976,2,FALSE),"") ->  | J168: =IF(G168<>"",VLOOKUP(G168,OBJEKTLISTE!$A$4:$G$976,3,FALSE),"") ->  | K168: =IF(G168<>"",VLOOKUP(G168,OBJEKTLISTE!$A$4:$G$976,4,FALSE),"") ->  | L168: =IF(G168<>"",VLOOKUP(G168,OBJEKTLISTE!$A$4:$G$976,5,FALSE),"") ->  | M168: =IF(G168<>"",VLOOKUP(G168,OBJEKTLISTE!$A$4:$G$976,6,FALSE),"") ->  | N168: =IF(ISBLANK(D168),"",IF(ISBLANK(PROJEKTPARAMETER!B$2),"",PROJEKTPARAMETER!B$2)) ->  | O168: =IF(ISBLANK(D168),"",IF(ISBLANK(PROJEKTPARAMETER!B$3),"",PROJEKTPARAMETER!B$3)) ->  | P168: =IF(ISBLANK(D168),"",IF(ISBLANK(PROJEKTPARAMETER!B$4),"",PROJEKTPARAMETER!B$4)) ->  | Q168: =IF(ISBLANK(D168),"",IF(ISBLANK(PROJEKTPARAMETER!B$5),"",PROJEKTPARAMETER!B$5)) ->  | R168: =IF(ISBLANK(D168),"",IF(ISBLANK(PROJEKTPARAMETER!B$6),"",PROJEKTPARAMETER!B$6)) ->  | U168: =IF(ISBLANK(D168),"",IF(ISBLANK(PROJEKTPARAMETER!B$7),"",PROJEKTPARAMETER!B$7)) ->  | V168: =IF(ISBLANK(D168),"",IF(ISBLANK(PROJEKTPARAMETER!B$8),"",PROJEKTPARAMETER!B$8)) ->  | AC168: =IF(ISBLANK(G168),"",IF(ISBLANK(VLOOKUP(G168,OBJEKTLISTE!$A$4:$G$976,7,FALSE)),"",VLOOKUP(G168,OBJEKTLISTE!$A$4:$G$976,7,FALSE))) -> 
H169: =IF(G169<>"",VLOOKUP(G169,OBJEKTLISTE!$A$4:$G$976,2,FALSE),"") ->  | J169: =IF(G169<>"",VLOOKUP(G169,OBJEKTLISTE!$A$4:$G$976,3,FALSE),"") ->  | K169: =IF(G169<>"",VLOOKUP(G169,OBJEKTLISTE!$A$4:$G$976,4,FALSE),"") ->  | L169: =IF(G169<>"",VLOOKUP(G169,OBJEKTLISTE!$A$4:$G$976,5,FALSE),"") ->  | M169: =IF(G169<>"",VLOOKUP(G169,OBJEKTLISTE!$A$4:$G$976,6,FALSE),"") ->  | N169: =IF(ISBLANK(D169),"",IF(ISBLANK(PROJEKTPARAMETER!B$2),"",PROJEKTPARAMETER!B$2)) ->  | O169: =IF(ISBLANK(D169),"",IF(ISBLANK(PROJEKTPARAMETER!B$3),"",PROJEKTPARAMETER!B$3)) ->  | P169: =IF(ISBLANK(D169),"",IF(ISBLANK(PROJEKTPARAMETER!B$4),"",PROJEKTPARAMETER!B$4)) ->  | Q169: =IF(ISBLANK(D169),"",IF(ISBLANK(PROJEKTPARAMETER!B$5),"",PROJEKTPARAMETER!B$5)) ->  | R169: =IF(ISBLANK(D169),"",IF(ISBLANK(PROJEKTPARAMETER!B$6),"",PROJEKTPARAMETER!B$6)) ->  | U169: =IF(ISBLANK(D169),"",IF(ISBLANK(PROJEKTPARAMETER!B$7),"",PROJEKTPARAMETER!B$7)) ->  | V169: =IF(ISBLANK(D169),"",IF(ISBLANK(PROJEKTPARAMETER!B$8),"",PROJEKTPARAMETER!B$8)) ->  | AC169: =IF(ISBLANK(G169),"",IF(ISBLANK(VLOOKUP(G169,OBJEKTLISTE!$A$4:$G$976,7,FALSE)),"",VLOOKUP(G169,OBJEKTLISTE!$A$4:$G$976,7,FALSE))) -> 
H170: =IF(G170<>"",VLOOKUP(G170,OBJEKTLISTE!$A$4:$G$976,2,FALSE),"") ->  | J170: =IF(G170<>"",VLOOKUP(G170,OBJEKTLISTE!$A$4:$G$976,3,FALSE),"") ->  | K170: =IF(G170<>"",VLOOKUP(G170,OBJEKTLISTE!$A$4:$G$976,4,FALSE),"") ->  | L170: =IF(G170<>"",VLOOKUP(G170,OBJEKTLISTE!$A$4:$G$976,5,FALSE),"") ->  | M170: =IF(G170<>"",VLOOKUP(G170,OBJEKTLISTE!$A$4:$G$976,6,FALSE),"") ->  | N170: =IF(ISBLANK(D170),"",IF(ISBLANK(PROJEKTPARAMETER!B$2),"",PROJEKTPARAMETER!B$2)) ->  | O170: =IF(ISBLANK(D170),"",IF(ISBLANK(PROJEKTPARAMETER!B$3),"",PROJEKTPARAMETER!B$3)) ->  | P170: =IF(ISBLANK(D170),"",IF(ISBLANK(PROJEKTPARAMETER!B$4),"",PROJEKTPARAMETER!B$4)) ->  | Q170: =IF(ISBLANK(D170),"",IF(ISBLANK(PROJEKTPARAMETER!B$5),"",PROJEKTPARAMETER!B$5)) ->  | R170: =IF(ISBLANK(D170),"",IF(ISBLANK(PROJEKTPARAMETER!B$6),"",PROJEKTPARAMETER!B$6)) ->  | U170: =IF(ISBLANK(D170),"",IF(ISBLANK(PROJEKTPARAMETER!B$7),"",PROJEKTPARAMETER!B$7)) ->  | V170: =IF(ISBLANK(D170),"",IF(ISBLANK(PROJEKTPARAMETER!B$8),"",PROJEKTPARAMETER!B$8)) ->  | AC170: =IF(ISBLANK(G170),"",IF(ISBLANK(VLOOKUP(G170,OBJEKTLISTE!$A$4:$G$976,7,FALSE)),"",VLOOKUP(G170,OBJEKTLISTE!$A$4:$G$976,7,FALSE))) -> 
H171: =IF(G171<>"",VLOOKUP(G171,OBJEKTLISTE!$A$4:$G$976,2,FALSE),"") ->  | J171: =IF(G171<>"",VLOOKUP(G171,OBJEKTLISTE!$A$4:$G$976,3,FALSE),"") ->  | K171: =IF(G171<>"",VLOOKUP(G171,OBJEKTLISTE!$A$4:$G$976,4,FALSE),"") ->  | L171: =IF(G171<>"",VLOOKUP(G171,OBJEKTLISTE!$A$4:$G$976,5,FALSE),"") ->  | M171: =IF(G171<>"",VLOOKUP(G171,OBJEKTLISTE!$A$4:$G$976,6,FALSE),"") ->  | N171: =IF(ISBLANK(D171),"",IF(ISBLANK(PROJEKTPARAMETER!B$2),"",PROJEKTPARAMETER!B$2)) ->  | O171: =IF(ISBLANK(D171),"",IF(ISBLANK(PROJEKTPARAMETER!B$3),"",PROJEKTPARAMETER!B$3)) ->  | P171: =IF(ISBLANK(D171),"",IF(ISBLANK(PROJEKTPARAMETER!B$4),"",PROJEKTPARAMETER!B$4)) ->  | Q171: =IF(ISBLANK(D171),"",IF(ISBLANK(PROJEKTPARAMETER!B$5),"",PROJEKTPARAMETER!B$5)) ->  | R171: =IF(ISBLANK(D171),"",IF(ISBLANK(PROJEKTPARAMETER!B$6),"",PROJEKTPARAMETER!B$6)) ->  | U171: =IF(ISBLANK(D171),"",IF(ISBLANK(PROJEKTPARAMETER!B$7),"",PROJEKTPARAMETER!B$7)) ->  | V171: =IF(ISBLANK(D171),"",IF(ISBLANK(PROJEKTPARAMETER!B$8),"",PROJEKTPARAMETER!B$8)) ->  | AC171: =IF(ISBLANK(G171),"",IF(ISBLANK(VLOOKUP(G171,OBJEKTLISTE!$A$4:$G$976,7,FALSE)),"",VLOOKUP(G171,OBJEKTLISTE!$A$4:$G$976,7,FALSE))) -> 
H172: =IF(G172<>"",VLOOKUP(G172,OBJEKTLISTE!$A$4:$G$976,2,FALSE),"") ->  | J172: =IF(G172<>"",VLOOKUP(G172,OBJEKTLISTE!$A$4:$G$976,3,FALSE),"") ->  | K172: =IF(G172<>"",VLOOKUP(G172,OBJEKTLISTE!$A$4:$G$976,4,FALSE),"") ->  | L172: =IF(G172<>"",VLOOKUP(G172,OBJEKTLISTE!$A$4:$G$976,5,FALSE),"") ->  | M172: =IF(G172<>"",VLOOKUP(G172,OBJEKTLISTE!$A$4:$G$976,6,FALSE),"") ->  | N172: =IF(ISBLANK(D172),"",IF(ISBLANK(PROJEKTPARAMETER!B$2),"",PROJEKTPARAMETER!B$2)) ->  | O172: =IF(ISBLANK(D172),"",IF(ISBLANK(PROJEKTPARAMETER!B$3),"",PROJEKTPARAMETER!B$3)) ->  | P172: =IF(ISBLANK(D172),"",IF(ISBLANK(PROJEKTPARAMETER!B$4),"",PROJEKTPARAMETER!B$4)) ->  | Q172: =IF(ISBLANK(D172),"",IF(ISBLANK(PROJEKTPARAMETER!B$5),"",PROJEKTPARAMETER!B$5)) ->  | R172: =IF(ISBLANK(D172),"",IF(ISBLANK(PROJEKTPARAMETER!B$6),"",PROJEKTPARAMETER!B$6)) ->  | U172: =IF(ISBLANK(D172),"",IF(ISBLANK(PROJEKTPARAMETER!B$7),"",PROJEKTPARAMETER!B$7)) ->  | V172: =IF(ISBLANK(D172),"",IF(ISBLANK(PROJEKTPARAMETER!B$8),"",PROJEKTPARAMETER!B$8)) ->  | AC172: =IF(ISBLANK(G172),"",IF(ISBLANK(VLOOKUP(G172,OBJEKTLISTE!$A$4:$G$976,7,FALSE)),"",VLOOKUP(G172,OBJEKTLISTE!$A$4:$G$976,7,FALSE))) -> 
H173: =IF(G173<>"",VLOOKUP(G173,OBJEKTLISTE!$A$4:$G$976,2,FALSE),"") ->  | J173: =IF(G173<>"",VLOOKUP(G173,OBJEKTLISTE!$A$4:$G$976,3,FALSE),"") ->  | K173: =IF(G173<>"",VLOOKUP(G173,OBJEKTLISTE!$A$4:$G$976,4,FALSE),"") ->  | L173: =IF(G173<>"",VLOOKUP(G173,OBJEKTLISTE!$A$4:$G$976,5,FALSE),"") ->  | M173: =IF(G173<>"",VLOOKUP(G173,OBJEKTLISTE!$A$4:$G$976,6,FALSE),"") ->  | N173: =IF(ISBLANK(D173),"",IF(ISBLANK(PROJEKTPARAMETER!B$2),"",PROJEKTPARAMETER!B$2)) ->  | O173: =IF(ISBLANK(D173),"",IF(ISBLANK(PROJEKTPARAMETER!B$3),"",PROJEKTPARAMETER!B$3)) ->  | P173: =IF(ISBLANK(D173),"",IF(ISBLANK(PROJEKTPARAMETER!B$4),"",PROJEKTPARAMETER!B$4)) ->  | Q173: =IF(ISBLANK(D173),"",IF(ISBLANK(PROJEKTPARAMETER!B$5),"",PROJEKTPARAMETER!B$5)) ->  | R173: =IF(ISBLANK(D173),"",IF(ISBLANK(PROJEKTPARAMETER!B$6),"",PROJEKTPARAMETER!B$6)) ->  | U173: =IF(ISBLANK(D173),"",IF(ISBLANK(PROJEKTPARAMETER!B$7),"",PROJEKTPARAMETER!B$7)) ->  | V173: =IF(ISBLANK(D173),"",IF(ISBLANK(PROJEKTPARAMETER!B$8),"",PROJEKTPARAMETER!B$8)) ->  | AC173: =IF(ISBLANK(G173),"",IF(ISBLANK(VLOOKUP(G173,OBJEKTLISTE!$A$4:$G$976,7,FALSE)),"",VLOOKUP(G173,OBJEKTLISTE!$A$4:$G$976,7,FALSE))) -> 
H174: =IF(G174<>"",VLOOKUP(G174,OBJEKTLISTE!$A$4:$G$976,2,FALSE),"") ->  | J174: =IF(G174<>"",VLOOKUP(G174,OBJEKTLISTE!$A$4:$G$976,3,FALSE),"") ->  | K174: =IF(G174<>"",VLOOKUP(G174,OBJEKTLISTE!$A$4:$G$976,4,FALSE),"") ->  | L174: =IF(G174<>"",VLOOKUP(G174,OBJEKTLISTE!$A$4:$G$976,5,FALSE),"") ->  | M174: =IF(G174<>"",VLOOKUP(G174,OBJEKTLISTE!$A$4:$G$976,6,FALSE),"") ->  | N174: =IF(ISBLANK(D174),"",IF(ISBLANK(PROJEKTPARAMETER!B$2),"",PROJEKTPARAMETER!B$2)) ->  | O174: =IF(ISBLANK(D174),"",IF(ISBLANK(PROJEKTPARAMETER!B$3),"",PROJEKTPARAMETER!B$3)) ->  | P174: =IF(ISBLANK(D174),"",IF(ISBLANK(PROJEKTPARAMETER!B$4),"",PROJEKTPARAMETER!B$4)) ->  | Q174: =IF(ISBLANK(D174),"",IF(ISBLANK(PROJEKTPARAMETER!B$5),"",PROJEKTPARAMETER!B$5)) ->  | R174: =IF(ISBLANK(D174),"",IF(ISBLANK(PROJEKTPARAMETER!B$6),"",PROJEKTPARAMETER!B$6)) ->  | U174: =IF(ISBLANK(D174),"",IF(ISBLANK(PROJEKTPARAMETER!B$7),"",PROJEKTPARAMETER!B$7)) ->  | V174: =IF(ISBLANK(D174),"",IF(ISBLANK(PROJEKTPARAMETER!B$8),"",PROJEKTPARAMETER!B$8)) ->  | AC174: =IF(ISBLANK(G174),"",IF(ISBLANK(VLOOKUP(G174,OBJEKTLISTE!$A$4:$G$976,7,FALSE)),"",VLOOKUP(G174,OBJEKTLISTE!$A$4:$G$976,7,FALSE))) -> 
H175: =IF(G175<>"",VLOOKUP(G175,OBJEKTLISTE!$A$4:$G$976,2,FALSE),"") ->  | J175: =IF(G175<>"",VLOOKUP(G175,OBJEKTLISTE!$A$4:$G$976,3,FALSE),"") ->  | K175: =IF(G175<>"",VLOOKUP(G175,OBJEKTLISTE!$A$4:$G$976,4,FALSE),"") ->  | L175: =IF(G175<>"",VLOOKUP(G175,OBJEKTLISTE!$A$4:$G$976,5,FALSE),"") ->  | M175: =IF(G175<>"",VLOOKUP(G175,OBJEKTLISTE!$A$4:$G$976,6,FALSE),"") ->  | N175: =IF(ISBLANK(D175),"",IF(ISBLANK(PROJEKTPARAMETER!B$2),"",PROJEKTPARAMETER!B$2)) ->  | O175: =IF(ISBLANK(D175),"",IF(ISBLANK(PROJEKTPARAMETER!B$3),"",PROJEKTPARAMETER!B$3)) ->  | P175: =IF(ISBLANK(D175),"",IF(ISBLANK(PROJEKTPARAMETER!B$4),"",PROJEKTPARAMETER!B$4)) ->  | Q175: =IF(ISBLANK(D175),"",IF(ISBLANK(PROJEKTPARAMETER!B$5),"",PROJEKTPARAMETER!B$5)) ->  | R175: =IF(ISBLANK(D175),"",IF(ISBLANK(PROJEKTPARAMETER!B$6),"",PROJEKTPARAMETER!B$6)) ->  | U175: =IF(ISBLANK(D175),"",IF(ISBLANK(PROJEKTPARAMETER!B$7),"",PROJEKTPARAMETER!B$7)) ->  | V175: =IF(ISBLANK(D175),"",IF(ISBLANK(PROJEKTPARAMETER!B$8),"",PROJEKTPARAMETER!B$8)) ->  | AC175: =IF(ISBLANK(G175),"",IF(ISBLANK(VLOOKUP(G175,OBJEKTLISTE!$A$4:$G$976,7,FALSE)),"",VLOOKUP(G175,OBJEKTLISTE!$A$4:$G$976,7,FALSE))) -> 
H176: =IF(G176<>"",VLOOKUP(G176,OBJEKTLISTE!$A$4:$G$976,2,FALSE),"") ->  | J176: =IF(G176<>"",VLOOKUP(G176,OBJEKTLISTE!$A$4:$G$976,3,FALSE),"") ->  | K176: =IF(G176<>"",VLOOKUP(G176,OBJEKTLISTE!$A$4:$G$976,4,FALSE),"") ->  | L176: =IF(G176<>"",VLOOKUP(G176,OBJEKTLISTE!$A$4:$G$976,5,FALSE),"") ->  | M176: =IF(G176<>"",VLOOKUP(G176,OBJEKTLISTE!$A$4:$G$976,6,FALSE),"") ->  | N176: =IF(ISBLANK(D176),"",IF(ISBLANK(PROJEKTPARAMETER!B$2),"",PROJEKTPARAMETER!B$2)) ->  | O176: =IF(ISBLANK(D176),"",IF(ISBLANK(PROJEKTPARAMETER!B$3),"",PROJEKTPARAMETER!B$3)) ->  | P176: =IF(ISBLANK(D176),"",IF(ISBLANK(PROJEKTPARAMETER!B$4),"",PROJEKTPARAMETER!B$4)) ->  | Q176: =IF(ISBLANK(D176),"",IF(ISBLANK(PROJEKTPARAMETER!B$5),"",PROJEKTPARAMETER!B$5)) ->  | R176: =IF(ISBLANK(D176),"",IF(ISBLANK(PROJEKTPARAMETER!B$6),"",PROJEKTPARAMETER!B$6)) ->  | U176: =IF(ISBLANK(D176),"",IF(ISBLANK(PROJEKTPARAMETER!B$7),"",PROJEKTPARAMETER!B$7)) ->  | V176: =IF(ISBLANK(D176),"",IF(ISBLANK(PROJEKTPARAMETER!B$8),"",PROJEKTPARAMETER!B$8)) ->  | AC176: =IF(ISBLANK(G176),"",IF(ISBLANK(VLOOKUP(G176,OBJEKTLISTE!$A$4:$G$976,7,FALSE)),"",VLOOKUP(G176,OBJEKTLISTE!$A$4:$G$976,7,FALSE))) -> 
H177: =IF(G177<>"",VLOOKUP(G177,OBJEKTLISTE!$A$4:$G$976,2,FALSE),"") ->  | J177: =IF(G177<>"",VLOOKUP(G177,OBJEKTLISTE!$A$4:$G$976,3,FALSE),"") ->  | K177: =IF(G177<>"",VLOOKUP(G177,OBJEKTLISTE!$A$4:$G$976,4,FALSE),"") ->  | L177: =IF(G177<>"",VLOOKUP(G177,OBJEKTLISTE!$A$4:$G$976,5,FALSE),"") ->  | M177: =IF(G177<>"",VLOOKUP(G177,OBJEKTLISTE!$A$4:$G$976,6,FALSE),"") ->  | N177: =IF(ISBLANK(D177),"",IF(ISBLANK(PROJEKTPARAMETER!B$2),"",PROJEKTPARAMETER!B$2)) ->  | O177: =IF(ISBLANK(D177),"",IF(ISBLANK(PROJEKTPARAMETER!B$3),"",PROJEKTPARAMETER!B$3)) ->  | P177: =IF(ISBLANK(D177),"",IF(ISBLANK(PROJEKTPARAMETER!B$4),"",PROJEKTPARAMETER!B$4)) ->  | Q177: =IF(ISBLANK(D177),"",IF(ISBLANK(PROJEKTPARAMETER!B$5),"",PROJEKTPARAMETER!B$5)) ->  | R177: =IF(ISBLANK(D177),"",IF(ISBLANK(PROJEKTPARAMETER!B$6),"",PROJEKTPARAMETER!B$6)) ->  | U177: =IF(ISBLANK(D177),"",IF(ISBLANK(PROJEKTPARAMETER!B$7),"",PROJEKTPARAMETER!B$7)) ->  | V177: =IF(ISBLANK(D177),"",IF(ISBLANK(PROJEKTPARAMETER!B$8),"",PROJEKTPARAMETER!B$8)) ->  | AC177: =IF(ISBLANK(G177),"",IF(ISBLANK(VLOOKUP(G177,OBJEKTLISTE!$A$4:$G$976,7,FALSE)),"",VLOOKUP(G177,OBJEKTLISTE!$A$4:$G$976,7,FALSE))) -> 
H178: =IF(G178<>"",VLOOKUP(G178,OBJEKTLISTE!$A$4:$G$976,2,FALSE),"") ->  | J178: =IF(G178<>"",VLOOKUP(G178,OBJEKTLISTE!$A$4:$G$976,3,FALSE),"") ->  | K178: =IF(G178<>"",VLOOKUP(G178,OBJEKTLISTE!$A$4:$G$976,4,FALSE),"") ->  | L178: =IF(G178<>"",VLOOKUP(G178,OBJEKTLISTE!$A$4:$G$976,5,FALSE),"") ->  | M178: =IF(G178<>"",VLOOKUP(G178,OBJEKTLISTE!$A$4:$G$976,6,FALSE),"") ->  | N178: =IF(ISBLANK(D178),"",IF(ISBLANK(PROJEKTPARAMETER!B$2),"",PROJEKTPARAMETER!B$2)) ->  | O178: =IF(ISBLANK(D178),"",IF(ISBLANK(PROJEKTPARAMETER!B$3),"",PROJEKTPARAMETER!B$3)) ->  | P178: =IF(ISBLANK(D178),"",IF(ISBLANK(PROJEKTPARAMETER!B$4),"",PROJEKTPARAMETER!B$4)) ->  | Q178: =IF(ISBLANK(D178),"",IF(ISBLANK(PROJEKTPARAMETER!B$5),"",PROJEKTPARAMETER!B$5)) ->  | R178: =IF(ISBLANK(D178),"",IF(ISBLANK(PROJEKTPARAMETER!B$6),"",PROJEKTPARAMETER!B$6)) ->  | U178: =IF(ISBLANK(D178),"",IF(ISBLANK(PROJEKTPARAMETER!B$7),"",PROJEKTPARAMETER!B$7)) ->  | V178: =IF(ISBLANK(D178),"",IF(ISBLANK(PROJEKTPARAMETER!B$8),"",PROJEKTPARAMETER!B$8)) ->  | AC178: =IF(ISBLANK(G178),"",IF(ISBLANK(VLOOKUP(G178,OBJEKTLISTE!$A$4:$G$976,7,FALSE)),"",VLOOKUP(G178,OBJEKTLISTE!$A$4:$G$976,7,FALSE))) -> 
H179: =IF(G179<>"",VLOOKUP(G179,OBJEKTLISTE!$A$4:$G$976,2,FALSE),"") ->  | J179: =IF(G179<>"",VLOOKUP(G179,OBJEKTLISTE!$A$4:$G$976,3,FALSE),"") ->  | K179: =IF(G179<>"",VLOOKUP(G179,OBJEKTLISTE!$A$4:$G$976,4,FALSE),"") ->  | L179: =IF(G179<>"",VLOOKUP(G179,OBJEKTLISTE!$A$4:$G$976,5,FALSE),"") ->  | M179: =IF(G179<>"",VLOOKUP(G179,OBJEKTLISTE!$A$4:$G$976,6,FALSE),"") ->  | N179: =IF(ISBLANK(D179),"",IF(ISBLANK(PROJEKTPARAMETER!B$2),"",PROJEKTPARAMETER!B$2)) ->  | O179: =IF(ISBLANK(D179),"",IF(ISBLANK(PROJEKTPARAMETER!B$3),"",PROJEKTPARAMETER!B$3)) ->  | P179: =IF(ISBLANK(D179),"",IF(ISBLANK(PROJEKTPARAMETER!B$4),"",PROJEKTPARAMETER!B$4)) ->  | Q179: =IF(ISBLANK(D179),"",IF(ISBLANK(PROJEKTPARAMETER!B$5),"",PROJEKTPARAMETER!B$5)) ->  | R179: =IF(ISBLANK(D179),"",IF(ISBLANK(PROJEKTPARAMETER!B$6),"",PROJEKTPARAMETER!B$6)) ->  | U179: =IF(ISBLANK(D179),"",IF(ISBLANK(PROJEKTPARAMETER!B$7),"",PROJEKTPARAMETER!B$7)) ->  | V179: =IF(ISBLANK(D179),"",IF(ISBLANK(PROJEKTPARAMETER!B$8),"",PROJEKTPARAMETER!B$8)) ->  | AC179: =IF(ISBLANK(G179),"",IF(ISBLANK(VLOOKUP(G179,OBJEKTLISTE!$A$4:$G$976,7,FALSE)),"",VLOOKUP(G179,OBJEKTLISTE!$A$4:$G$976,7,FALSE))) -> 
H180: =IF(G180<>"",VLOOKUP(G180,OBJEKTLISTE!$A$4:$G$976,2,FALSE),"") ->  | J180: =IF(G180<>"",VLOOKUP(G180,OBJEKTLISTE!$A$4:$G$976,3,FALSE),"") ->  | K180: =IF(G180<>"",VLOOKUP(G180,OBJEKTLISTE!$A$4:$G$976,4,FALSE),"") ->  | L180: =IF(G180<>"",VLOOKUP(G180,OBJEKTLISTE!$A$4:$G$976,5,FALSE),"") ->  | M180: =IF(G180<>"",VLOOKUP(G180,OBJEKTLISTE!$A$4:$G$976,6,FALSE),"") ->  | N180: =IF(ISBLANK(D180),"",IF(ISBLANK(PROJEKTPARAMETER!B$2),"",PROJEKTPARAMETER!B$2)) ->  | O180: =IF(ISBLANK(D180),"",IF(ISBLANK(PROJEKTPARAMETER!B$3),"",PROJEKTPARAMETER!B$3)) ->  | P180: =IF(ISBLANK(D180),"",IF(ISBLANK(PROJEKTPARAMETER!B$4),"",PROJEKTPARAMETER!B$4)) ->  | Q180: =IF(ISBLANK(D180),"",IF(ISBLANK(PROJEKTPARAMETER!B$5),"",PROJEKTPARAMETER!B$5)) ->  | R180: =IF(ISBLANK(D180),"",IF(ISBLANK(PROJEKTPARAMETER!B$6),"",PROJEKTPARAMETER!B$6)) ->  | U180: =IF(ISBLANK(D180),"",IF(ISBLANK(PROJEKTPARAMETER!B$7),"",PROJEKTPARAMETER!B$7)) ->  | V180: =IF(ISBLANK(D180),"",IF(ISBLANK(PROJEKTPARAMETER!B$8),"",PROJEKTPARAMETER!B$8)) ->  | AC180: =IF(ISBLANK(G180),"",IF(ISBLANK(VLOOKUP(G180,OBJEKTLISTE!$A$4:$G$976,7,FALSE)),"",VLOOKUP(G180,OBJEKTLISTE!$A$4:$G$976,7,FALSE))) -> 
H181: =IF(G181<>"",VLOOKUP(G181,OBJEKTLISTE!$A$4:$G$976,2,FALSE),"") ->  | J181: =IF(G181<>"",VLOOKUP(G181,OBJEKTLISTE!$A$4:$G$976,3,FALSE),"") ->  | K181: =IF(G181<>"",VLOOKUP(G181,OBJEKTLISTE!$A$4:$G$976,4,FALSE),"") ->  | L181: =IF(G181<>"",VLOOKUP(G181,OBJEKTLISTE!$A$4:$G$976,5,FALSE),"") ->  | M181: =IF(G181<>"",VLOOKUP(G181,OBJEKTLISTE!$A$4:$G$976,6,FALSE),"") ->  | N181: =IF(ISBLANK(D181),"",IF(ISBLANK(PROJEKTPARAMETER!B$2),"",PROJEKTPARAMETER!B$2)) ->  | O181: =IF(ISBLANK(D181),"",IF(ISBLANK(PROJEKTPARAMETER!B$3),"",PROJEKTPARAMETER!B$3)) ->  | P181: =IF(ISBLANK(D181),"",IF(ISBLANK(PROJEKTPARAMETER!B$4),"",PROJEKTPARAMETER!B$4)) ->  | Q181: =IF(ISBLANK(D181),"",IF(ISBLANK(PROJEKTPARAMETER!B$5),"",PROJEKTPARAMETER!B$5)) ->  | R181: =IF(ISBLANK(D181),"",IF(ISBLANK(PROJEKTPARAMETER!B$6),"",PROJEKTPARAMETER!B$6)) ->  | U181: =IF(ISBLANK(D181),"",IF(ISBLANK(PROJEKTPARAMETER!B$7),"",PROJEKTPARAMETER!B$7)) ->  | V181: =IF(ISBLANK(D181),"",IF(ISBLANK(PROJEKTPARAMETER!B$8),"",PROJEKTPARAMETER!B$8)) ->  | AC181: =IF(ISBLANK(G181),"",IF(ISBLANK(VLOOKUP(G181,OBJEKTLISTE!$A$4:$G$976,7,FALSE)),"",VLOOKUP(G181,OBJEKTLISTE!$A$4:$G$976,7,FALSE))) -> 
H182: =IF(G182<>"",VLOOKUP(G182,OBJEKTLISTE!$A$4:$G$976,2,FALSE),"") ->  | J182: =IF(G182<>"",VLOOKUP(G182,OBJEKTLISTE!$A$4:$G$976,3,FALSE),"") ->  | K182: =IF(G182<>"",VLOOKUP(G182,OBJEKTLISTE!$A$4:$G$976,4,FALSE),"") ->  | L182: =IF(G182<>"",VLOOKUP(G182,OBJEKTLISTE!$A$4:$G$976,5,FALSE),"") ->  | M182: =IF(G182<>"",VLOOKUP(G182,OBJEKTLISTE!$A$4:$G$976,6,FALSE),"") ->  | N182: =IF(ISBLANK(D182),"",IF(ISBLANK(PROJEKTPARAMETER!B$2),"",PROJEKTPARAMETER!B$2)) ->  | O182: =IF(ISBLANK(D182),"",IF(ISBLANK(PROJEKTPARAMETER!B$3),"",PROJEKTPARAMETER!B$3)) ->  | P182: =IF(ISBLANK(D182),"",IF(ISBLANK(PROJEKTPARAMETER!B$4),"",PROJEKTPARAMETER!B$4)) ->  | Q182: =IF(ISBLANK(D182),"",IF(ISBLANK(PROJEKTPARAMETER!B$5),"",PROJEKTPARAMETER!B$5)) ->  | R182: =IF(ISBLANK(D182),"",IF(ISBLANK(PROJEKTPARAMETER!B$6),"",PROJEKTPARAMETER!B$6)) ->  | U182: =IF(ISBLANK(D182),"",IF(ISBLANK(PROJEKTPARAMETER!B$7),"",PROJEKTPARAMETER!B$7)) ->  | V182: =IF(ISBLANK(D182),"",IF(ISBLANK(PROJEKTPARAMETER!B$8),"",PROJEKTPARAMETER!B$8)) ->  | AC182: =IF(ISBLANK(G182),"",IF(ISBLANK(VLOOKUP(G182,OBJEKTLISTE!$A$4:$G$976,7,FALSE)),"",VLOOKUP(G182,OBJEKTLISTE!$A$4:$G$976,7,FALSE))) -> 
H183: =IF(G183<>"",VLOOKUP(G183,OBJEKTLISTE!$A$4:$G$976,2,FALSE),"") ->  | J183: =IF(G183<>"",VLOOKUP(G183,OBJEKTLISTE!$A$4:$G$976,3,FALSE),"") ->  | K183: =IF(G183<>"",VLOOKUP(G183,OBJEKTLISTE!$A$4:$G$976,4,FALSE),"") ->  | L183: =IF(G183<>"",VLOOKUP(G183,OBJEKTLISTE!$A$4:$G$976,5,FALSE),"") ->  | M183: =IF(G183<>"",VLOOKUP(G183,OBJEKTLISTE!$A$4:$G$976,6,FALSE),"") ->  | N183: =IF(ISBLANK(D183),"",IF(ISBLANK(PROJEKTPARAMETER!B$2),"",PROJEKTPARAMETER!B$2)) ->  | O183: =IF(ISBLANK(D183),"",IF(ISBLANK(PROJEKTPARAMETER!B$3),"",PROJEKTPARAMETER!B$3)) ->  | P183: =IF(ISBLANK(D183),"",IF(ISBLANK(PROJEKTPARAMETER!B$4),"",PROJEKTPARAMETER!B$4)) ->  | Q183: =IF(ISBLANK(D183),"",IF(ISBLANK(PROJEKTPARAMETER!B$5),"",PROJEKTPARAMETER!B$5)) ->  | R183: =IF(ISBLANK(D183),"",IF(ISBLANK(PROJEKTPARAMETER!B$6),"",PROJEKTPARAMETER!B$6)) ->  | U183: =IF(ISBLANK(D183),"",IF(ISBLANK(PROJEKTPARAMETER!B$7),"",PROJEKTPARAMETER!B$7)) ->  | V183: =IF(ISBLANK(D183),"",IF(ISBLANK(PROJEKTPARAMETER!B$8),"",PROJEKTPARAMETER!B$8)) ->  | AC183: =IF(ISBLANK(G183),"",IF(ISBLANK(VLOOKUP(G183,OBJEKTLISTE!$A$4:$G$976,7,FALSE)),"",VLOOKUP(G183,OBJEKTLISTE!$A$4:$G$976,7,FALSE))) -> 
H184: =IF(G184<>"",VLOOKUP(G184,OBJEKTLISTE!$A$4:$G$976,2,FALSE),"") ->  | J184: =IF(G184<>"",VLOOKUP(G184,OBJEKTLISTE!$A$4:$G$976,3,FALSE),"") ->  | K184: =IF(G184<>"",VLOOKUP(G184,OBJEKTLISTE!$A$4:$G$976,4,FALSE),"") ->  | L184: =IF(G184<>"",VLOOKUP(G184,OBJEKTLISTE!$A$4:$G$976,5,FALSE),"") ->  | M184: =IF(G184<>"",VLOOKUP(G184,OBJEKTLISTE!$A$4:$G$976,6,FALSE),"") ->  | N184: =IF(ISBLANK(D184),"",IF(ISBLANK(PROJEKTPARAMETER!B$2),"",PROJEKTPARAMETER!B$2)) ->  | O184: =IF(ISBLANK(D184),"",IF(ISBLANK(PROJEKTPARAMETER!B$3),"",PROJEKTPARAMETER!B$3)) ->  | P184: =IF(ISBLANK(D184),"",IF(ISBLANK(PROJEKTPARAMETER!B$4),"",PROJEKTPARAMETER!B$4)) ->  | Q184: =IF(ISBLANK(D184),"",IF(ISBLANK(PROJEKTPARAMETER!B$5),"",PROJEKTPARAMETER!B$5)) ->  | R184: =IF(ISBLANK(D184),"",IF(ISBLANK(PROJEKTPARAMETER!B$6),"",PROJEKTPARAMETER!B$6)) ->  | U184: =IF(ISBLANK(D184),"",IF(ISBLANK(PROJEKTPARAMETER!B$7),"",PROJEKTPARAMETER!B$7)) ->  | V184: =IF(ISBLANK(D184),"",IF(ISBLANK(PROJEKTPARAMETER!B$8),"",PROJEKTPARAMETER!B$8)) ->  | AC184: =IF(ISBLANK(G184),"",IF(ISBLANK(VLOOKUP(G184,OBJEKTLISTE!$A$4:$G$976,7,FALSE)),"",VLOOKUP(G184,OBJEKTLISTE!$A$4:$G$976,7,FALSE))) -> 
H185: =IF(G185<>"",VLOOKUP(G185,OBJEKTLISTE!$A$4:$G$976,2,FALSE),"") ->  | J185: =IF(G185<>"",VLOOKUP(G185,OBJEKTLISTE!$A$4:$G$976,3,FALSE),"") ->  | K185: =IF(G185<>"",VLOOKUP(G185,OBJEKTLISTE!$A$4:$G$976,4,FALSE),"") ->  | L185: =IF(G185<>"",VLOOKUP(G185,OBJEKTLISTE!$A$4:$G$976,5,FALSE),"") ->  | M185: =IF(G185<>"",VLOOKUP(G185,OBJEKTLISTE!$A$4:$G$976,6,FALSE),"") ->  | N185: =IF(ISBLANK(D185),"",IF(ISBLANK(PROJEKTPARAMETER!B$2),"",PROJEKTPARAMETER!B$2)) ->  | O185: =IF(ISBLANK(D185),"",IF(ISBLANK(PROJEKTPARAMETER!B$3),"",PROJEKTPARAMETER!B$3)) ->  | P185: =IF(ISBLANK(D185),"",IF(ISBLANK(PROJEKTPARAMETER!B$4),"",PROJEKTPARAMETER!B$4)) ->  | Q185: =IF(ISBLANK(D185),"",IF(ISBLANK(PROJEKTPARAMETER!B$5),"",PROJEKTPARAMETER!B$5)) ->  | R185: =IF(ISBLANK(D185),"",IF(ISBLANK(PROJEKTPARAMETER!B$6),"",PROJEKTPARAMETER!B$6)) ->  | U185: =IF(ISBLANK(D185),"",IF(ISBLANK(PROJEKTPARAMETER!B$7),"",PROJEKTPARAMETER!B$7)) ->  | V185: =IF(ISBLANK(D185),"",IF(ISBLANK(PROJEKTPARAMETER!B$8),"",PROJEKTPARAMETER!B$8)) ->  | AC185: =IF(ISBLANK(G185),"",IF(ISBLANK(VLOOKUP(G185,OBJEKTLISTE!$A$4:$G$976,7,FALSE)),"",VLOOKUP(G185,OBJEKTLISTE!$A$4:$G$976,7,FALSE))) -> 
H186: =IF(G186<>"",VLOOKUP(G186,OBJEKTLISTE!$A$4:$G$976,2,FALSE),"") ->  | J186: =IF(G186<>"",VLOOKUP(G186,OBJEKTLISTE!$A$4:$G$976,3,FALSE),"") ->  | K186: =IF(G186<>"",VLOOKUP(G186,OBJEKTLISTE!$A$4:$G$976,4,FALSE),"") ->  | L186: =IF(G186<>"",VLOOKUP(G186,OBJEKTLISTE!$A$4:$G$976,5,FALSE),"") ->  | M186: =IF(G186<>"",VLOOKUP(G186,OBJEKTLISTE!$A$4:$G$976,6,FALSE),"") ->  | N186: =IF(ISBLANK(D186),"",IF(ISBLANK(PROJEKTPARAMETER!B$2),"",PROJEKTPARAMETER!B$2)) ->  | O186: =IF(ISBLANK(D186),"",IF(ISBLANK(PROJEKTPARAMETER!B$3),"",PROJEKTPARAMETER!B$3)) ->  | P186: =IF(ISBLANK(D186),"",IF(ISBLANK(PROJEKTPARAMETER!B$4),"",PROJEKTPARAMETER!B$4)) ->  | Q186: =IF(ISBLANK(D186),"",IF(ISBLANK(PROJEKTPARAMETER!B$5),"",PROJEKTPARAMETER!B$5)) ->  | R186: =IF(ISBLANK(D186),"",IF(ISBLANK(PROJEKTPARAMETER!B$6),"",PROJEKTPARAMETER!B$6)) ->  | U186: =IF(ISBLANK(D186),"",IF(ISBLANK(PROJEKTPARAMETER!B$7),"",PROJEKTPARAMETER!B$7)) ->  | V186: =IF(ISBLANK(D186),"",IF(ISBLANK(PROJEKTPARAMETER!B$8),"",PROJEKTPARAMETER!B$8)) ->  | AC186: =IF(ISBLANK(G186),"",IF(ISBLANK(VLOOKUP(G186,OBJEKTLISTE!$A$4:$G$976,7,FALSE)),"",VLOOKUP(G186,OBJEKTLISTE!$A$4:$G$976,7,FALSE))) -> 
H187: =IF(G187<>"",VLOOKUP(G187,OBJEKTLISTE!$A$4:$G$976,2,FALSE),"") ->  | J187: =IF(G187<>"",VLOOKUP(G187,OBJEKTLISTE!$A$4:$G$976,3,FALSE),"") ->  | K187: =IF(G187<>"",VLOOKUP(G187,OBJEKTLISTE!$A$4:$G$976,4,FALSE),"") ->  | L187: =IF(G187<>"",VLOOKUP(G187,OBJEKTLISTE!$A$4:$G$976,5,FALSE),"") ->  | M187: =IF(G187<>"",VLOOKUP(G187,OBJEKTLISTE!$A$4:$G$976,6,FALSE),"") ->  | N187: =IF(ISBLANK(D187),"",IF(ISBLANK(PROJEKTPARAMETER!B$2),"",PROJEKTPARAMETER!B$2)) ->  | O187: =IF(ISBLANK(D187),"",IF(ISBLANK(PROJEKTPARAMETER!B$3),"",PROJEKTPARAMETER!B$3)) ->  | P187: =IF(ISBLANK(D187),"",IF(ISBLANK(PROJEKTPARAMETER!B$4),"",PROJEKTPARAMETER!B$4)) ->  | Q187: =IF(ISBLANK(D187),"",IF(ISBLANK(PROJEKTPARAMETER!B$5),"",PROJEKTPARAMETER!B$5)) ->  | R187: =IF(ISBLANK(D187),"",IF(ISBLANK(PROJEKTPARAMETER!B$6),"",PROJEKTPARAMETER!B$6)) ->  | U187: =IF(ISBLANK(D187),"",IF(ISBLANK(PROJEKTPARAMETER!B$7),"",PROJEKTPARAMETER!B$7)) ->  | V187: =IF(ISBLANK(D187),"",IF(ISBLANK(PROJEKTPARAMETER!B$8),"",PROJEKTPARAMETER!B$8)) ->  | AC187: =IF(ISBLANK(G187),"",IF(ISBLANK(VLOOKUP(G187,OBJEKTLISTE!$A$4:$G$976,7,FALSE)),"",VLOOKUP(G187,OBJEKTLISTE!$A$4:$G$976,7,FALSE))) -> 
H188: =IF(G188<>"",VLOOKUP(G188,OBJEKTLISTE!$A$4:$G$976,2,FALSE),"") ->  | J188: =IF(G188<>"",VLOOKUP(G188,OBJEKTLISTE!$A$4:$G$976,3,FALSE),"") ->  | K188: =IF(G188<>"",VLOOKUP(G188,OBJEKTLISTE!$A$4:$G$976,4,FALSE),"") ->  | L188: =IF(G188<>"",VLOOKUP(G188,OBJEKTLISTE!$A$4:$G$976,5,FALSE),"") ->  | M188: =IF(G188<>"",VLOOKUP(G188,OBJEKTLISTE!$A$4:$G$976,6,FALSE),"") ->  | N188: =IF(ISBLANK(D188),"",IF(ISBLANK(PROJEKTPARAMETER!B$2),"",PROJEKTPARAMETER!B$2)) ->  | O188: =IF(ISBLANK(D188),"",IF(ISBLANK(PROJEKTPARAMETER!B$3),"",PROJEKTPARAMETER!B$3)) ->  | P188: =IF(ISBLANK(D188),"",IF(ISBLANK(PROJEKTPARAMETER!B$4),"",PROJEKTPARAMETER!B$4)) ->  | Q188: =IF(ISBLANK(D188),"",IF(ISBLANK(PROJEKTPARAMETER!B$5),"",PROJEKTPARAMETER!B$5)) ->  | R188: =IF(ISBLANK(D188),"",IF(ISBLANK(PROJEKTPARAMETER!B$6),"",PROJEKTPARAMETER!B$6)) ->  | U188: =IF(ISBLANK(D188),"",IF(ISBLANK(PROJEKTPARAMETER!B$7),"",PROJEKTPARAMETER!B$7)) ->  | V188: =IF(ISBLANK(D188),"",IF(ISBLANK(PROJEKTPARAMETER!B$8),"",PROJEKTPARAMETER!B$8)) ->  | AC188: =IF(ISBLANK(G188),"",IF(ISBLANK(VLOOKUP(G188,OBJEKTLISTE!$A$4:$G$976,7,FALSE)),"",VLOOKUP(G188,OBJEKTLISTE!$A$4:$G$976,7,FALSE))) -> 
H189: =IF(G189<>"",VLOOKUP(G189,OBJEKTLISTE!$A$4:$G$976,2,FALSE),"") ->  | J189: =IF(G189<>"",VLOOKUP(G189,OBJEKTLISTE!$A$4:$G$976,3,FALSE),"") ->  | K189: =IF(G189<>"",VLOOKUP(G189,OBJEKTLISTE!$A$4:$G$976,4,FALSE),"") ->  | L189: =IF(G189<>"",VLOOKUP(G189,OBJEKTLISTE!$A$4:$G$976,5,FALSE),"") ->  | M189: =IF(G189<>"",VLOOKUP(G189,OBJEKTLISTE!$A$4:$G$976,6,FALSE),"") ->  | N189: =IF(ISBLANK(D189),"",IF(ISBLANK(PROJEKTPARAMETER!B$2),"",PROJEKTPARAMETER!B$2)) ->  | O189: =IF(ISBLANK(D189),"",IF(ISBLANK(PROJEKTPARAMETER!B$3),"",PROJEKTPARAMETER!B$3)) ->  | P189: =IF(ISBLANK(D189),"",IF(ISBLANK(PROJEKTPARAMETER!B$4),"",PROJEKTPARAMETER!B$4)) ->  | Q189: =IF(ISBLANK(D189),"",IF(ISBLANK(PROJEKTPARAMETER!B$5),"",PROJEKTPARAMETER!B$5)) ->  | R189: =IF(ISBLANK(D189),"",IF(ISBLANK(PROJEKTPARAMETER!B$6),"",PROJEKTPARAMETER!B$6)) ->  | U189: =IF(ISBLANK(D189),"",IF(ISBLANK(PROJEKTPARAMETER!B$7),"",PROJEKTPARAMETER!B$7)) ->  | V189: =IF(ISBLANK(D189),"",IF(ISBLANK(PROJEKTPARAMETER!B$8),"",PROJEKTPARAMETER!B$8)) ->  | AC189: =IF(ISBLANK(G189),"",IF(ISBLANK(VLOOKUP(G189,OBJEKTLISTE!$A$4:$G$976,7,FALSE)),"",VLOOKUP(G189,OBJEKTLISTE!$A$4:$G$976,7,FALSE))) -> 
H190: =IF(G190<>"",VLOOKUP(G190,OBJEKTLISTE!$A$4:$G$976,2,FALSE),"") ->  | J190: =IF(G190<>"",VLOOKUP(G190,OBJEKTLISTE!$A$4:$G$976,3,FALSE),"") ->  | K190: =IF(G190<>"",VLOOKUP(G190,OBJEKTLISTE!$A$4:$G$976,4,FALSE),"") ->  | L190: =IF(G190<>"",VLOOKUP(G190,OBJEKTLISTE!$A$4:$G$976,5,FALSE),"") ->  | M190: =IF(G190<>"",VLOOKUP(G190,OBJEKTLISTE!$A$4:$G$976,6,FALSE),"") ->  | N190: =IF(ISBLANK(D190),"",IF(ISBLANK(PROJEKTPARAMETER!B$2),"",PROJEKTPARAMETER!B$2)) ->  | O190: =IF(ISBLANK(D190),"",IF(ISBLANK(PROJEKTPARAMETER!B$3),"",PROJEKTPARAMETER!B$3)) ->  | P190: =IF(ISBLANK(D190),"",IF(ISBLANK(PROJEKTPARAMETER!B$4),"",PROJEKTPARAMETER!B$4)) ->  | Q190: =IF(ISBLANK(D190),"",IF(ISBLANK(PROJEKTPARAMETER!B$5),"",PROJEKTPARAMETER!B$5)) ->  | R190: =IF(ISBLANK(D190),"",IF(ISBLANK(PROJEKTPARAMETER!B$6),"",PROJEKTPARAMETER!B$6)) ->  | U190: =IF(ISBLANK(D190),"",IF(ISBLANK(PROJEKTPARAMETER!B$7),"",PROJEKTPARAMETER!B$7)) ->  | V190: =IF(ISBLANK(D190),"",IF(ISBLANK(PROJEKTPARAMETER!B$8),"",PROJEKTPARAMETER!B$8)) ->  | AC190: =IF(ISBLANK(G190),"",IF(ISBLANK(VLOOKUP(G190,OBJEKTLISTE!$A$4:$G$976,7,FALSE)),"",VLOOKUP(G190,OBJEKTLISTE!$A$4:$G$976,7,FALSE))) -> 
H191: =IF(G191<>"",VLOOKUP(G191,OBJEKTLISTE!$A$4:$G$976,2,FALSE),"") ->  | J191: =IF(G191<>"",VLOOKUP(G191,OBJEKTLISTE!$A$4:$G$976,3,FALSE),"") ->  | K191: =IF(G191<>"",VLOOKUP(G191,OBJEKTLISTE!$A$4:$G$976,4,FALSE),"") ->  | L191: =IF(G191<>"",VLOOKUP(G191,OBJEKTLISTE!$A$4:$G$976,5,FALSE),"") ->  | M191: =IF(G191<>"",VLOOKUP(G191,OBJEKTLISTE!$A$4:$G$976,6,FALSE),"") ->  | N191: =IF(ISBLANK(D191),"",IF(ISBLANK(PROJEKTPARAMETER!B$2),"",PROJEKTPARAMETER!B$2)) ->  | O191: =IF(ISBLANK(D191),"",IF(ISBLANK(PROJEKTPARAMETER!B$3),"",PROJEKTPARAMETER!B$3)) ->  | P191: =IF(ISBLANK(D191),"",IF(ISBLANK(PROJEKTPARAMETER!B$4),"",PROJEKTPARAMETER!B$4)) ->  | Q191: =IF(ISBLANK(D191),"",IF(ISBLANK(PROJEKTPARAMETER!B$5),"",PROJEKTPARAMETER!B$5)) ->  | R191: =IF(ISBLANK(D191),"",IF(ISBLANK(PROJEKTPARAMETER!B$6),"",PROJEKTPARAMETER!B$6)) ->  | U191: =IF(ISBLANK(D191),"",IF(ISBLANK(PROJEKTPARAMETER!B$7),"",PROJEKTPARAMETER!B$7)) ->  | V191: =IF(ISBLANK(D191),"",IF(ISBLANK(PROJEKTPARAMETER!B$8),"",PROJEKTPARAMETER!B$8)) ->  | AC191: =IF(ISBLANK(G191),"",IF(ISBLANK(VLOOKUP(G191,OBJEKTLISTE!$A$4:$G$976,7,FALSE)),"",VLOOKUP(G191,OBJEKTLISTE!$A$4:$G$976,7,FALSE))) -> 
H192: =IF(G192<>"",VLOOKUP(G192,OBJEKTLISTE!$A$4:$G$976,2,FALSE),"") ->  | J192: =IF(G192<>"",VLOOKUP(G192,OBJEKTLISTE!$A$4:$G$976,3,FALSE),"") ->  | K192: =IF(G192<>"",VLOOKUP(G192,OBJEKTLISTE!$A$4:$G$976,4,FALSE),"") ->  | L192: =IF(G192<>"",VLOOKUP(G192,OBJEKTLISTE!$A$4:$G$976,5,FALSE),"") ->  | M192: =IF(G192<>"",VLOOKUP(G192,OBJEKTLISTE!$A$4:$G$976,6,FALSE),"") ->  | N192: =IF(ISBLANK(D192),"",IF(ISBLANK(PROJEKTPARAMETER!B$2),"",PROJEKTPARAMETER!B$2)) ->  | O192: =IF(ISBLANK(D192),"",IF(ISBLANK(PROJEKTPARAMETER!B$3),"",PROJEKTPARAMETER!B$3)) ->  | P192: =IF(ISBLANK(D192),"",IF(ISBLANK(PROJEKTPARAMETER!B$4),"",PROJEKTPARAMETER!B$4)) ->  | Q192: =IF(ISBLANK(D192),"",IF(ISBLANK(PROJEKTPARAMETER!B$5),"",PROJEKTPARAMETER!B$5)) ->  | R192: =IF(ISBLANK(D192),"",IF(ISBLANK(PROJEKTPARAMETER!B$6),"",PROJEKTPARAMETER!B$6)) ->  | U192: =IF(ISBLANK(D192),"",IF(ISBLANK(PROJEKTPARAMETER!B$7),"",PROJEKTPARAMETER!B$7)) ->  | V192: =IF(ISBLANK(D192),"",IF(ISBLANK(PROJEKTPARAMETER!B$8),"",PROJEKTPARAMETER!B$8)) ->  | AC192: =IF(ISBLANK(G192),"",IF(ISBLANK(VLOOKUP(G192,OBJEKTLISTE!$A$4:$G$976,7,FALSE)),"",VLOOKUP(G192,OBJEKTLISTE!$A$4:$G$976,7,FALSE))) -> 
H193: =IF(G193<>"",VLOOKUP(G193,OBJEKTLISTE!$A$4:$G$976,2,FALSE),"") ->  | J193: =IF(G193<>"",VLOOKUP(G193,OBJEKTLISTE!$A$4:$G$976,3,FALSE),"") ->  | K193: =IF(G193<>"",VLOOKUP(G193,OBJEKTLISTE!$A$4:$G$976,4,FALSE),"") ->  | L193: =IF(G193<>"",VLOOKUP(G193,OBJEKTLISTE!$A$4:$G$976,5,FALSE),"") ->  | M193: =IF(G193<>"",VLOOKUP(G193,OBJEKTLISTE!$A$4:$G$976,6,FALSE),"") ->  | N193: =IF(ISBLANK(D193),"",IF(ISBLANK(PROJEKTPARAMETER!B$2),"",PROJEKTPARAMETER!B$2)) ->  | O193: =IF(ISBLANK(D193),"",IF(ISBLANK(PROJEKTPARAMETER!B$3),"",PROJEKTPARAMETER!B$3)) ->  | P193: =IF(ISBLANK(D193),"",IF(ISBLANK(PROJEKTPARAMETER!B$4),"",PROJEKTPARAMETER!B$4)) ->  | Q193: =IF(ISBLANK(D193),"",IF(ISBLANK(PROJEKTPARAMETER!B$5),"",PROJEKTPARAMETER!B$5)) ->  | R193: =IF(ISBLANK(D193),"",IF(ISBLANK(PROJEKTPARAMETER!B$6),"",PROJEKTPARAMETER!B$6)) ->  | U193: =IF(ISBLANK(D193),"",IF(ISBLANK(PROJEKTPARAMETER!B$7),"",PROJEKTPARAMETER!B$7)) ->  | V193: =IF(ISBLANK(D193),"",IF(ISBLANK(PROJEKTPARAMETER!B$8),"",PROJEKTPARAMETER!B$8)) ->  | AC193: =IF(ISBLANK(G193),"",IF(ISBLANK(VLOOKUP(G193,OBJEKTLISTE!$A$4:$G$976,7,FALSE)),"",VLOOKUP(G193,OBJEKTLISTE!$A$4:$G$976,7,FALSE))) -> 
H194: =IF(G194<>"",VLOOKUP(G194,OBJEKTLISTE!$A$4:$G$976,2,FALSE),"") ->  | J194: =IF(G194<>"",VLOOKUP(G194,OBJEKTLISTE!$A$4:$G$976,3,FALSE),"") ->  | K194: =IF(G194<>"",VLOOKUP(G194,OBJEKTLISTE!$A$4:$G$976,4,FALSE),"") ->  | L194: =IF(G194<>"",VLOOKUP(G194,OBJEKTLISTE!$A$4:$G$976,5,FALSE),"") ->  | M194: =IF(G194<>"",VLOOKUP(G194,OBJEKTLISTE!$A$4:$G$976,6,FALSE),"") ->  | N194: =IF(ISBLANK(D194),"",IF(ISBLANK(PROJEKTPARAMETER!B$2),"",PROJEKTPARAMETER!B$2)) ->  | O194: =IF(ISBLANK(D194),"",IF(ISBLANK(PROJEKTPARAMETER!B$3),"",PROJEKTPARAMETER!B$3)) ->  | P194: =IF(ISBLANK(D194),"",IF(ISBLANK(PROJEKTPARAMETER!B$4),"",PROJEKTPARAMETER!B$4)) ->  | Q194: =IF(ISBLANK(D194),"",IF(ISBLANK(PROJEKTPARAMETER!B$5),"",PROJEKTPARAMETER!B$5)) ->  | R194: =IF(ISBLANK(D194),"",IF(ISBLANK(PROJEKTPARAMETER!B$6),"",PROJEKTPARAMETER!B$6)) ->  | U194: =IF(ISBLANK(D194),"",IF(ISBLANK(PROJEKTPARAMETER!B$7),"",PROJEKTPARAMETER!B$7)) ->  | V194: =IF(ISBLANK(D194),"",IF(ISBLANK(PROJEKTPARAMETER!B$8),"",PROJEKTPARAMETER!B$8)) ->  | AC194: =IF(ISBLANK(G194),"",IF(ISBLANK(VLOOKUP(G194,OBJEKTLISTE!$A$4:$G$976,7,FALSE)),"",VLOOKUP(G194,OBJEKTLISTE!$A$4:$G$976,7,FALSE))) -> 
H195: =IF(G195<>"",VLOOKUP(G195,OBJEKTLISTE!$A$4:$G$976,2,FALSE),"") ->  | J195: =IF(G195<>"",VLOOKUP(G195,OBJEKTLISTE!$A$4:$G$976,3,FALSE),"") ->  | K195: =IF(G195<>"",VLOOKUP(G195,OBJEKTLISTE!$A$4:$G$976,4,FALSE),"") ->  | L195: =IF(G195<>"",VLOOKUP(G195,OBJEKTLISTE!$A$4:$G$976,5,FALSE),"") ->  | M195: =IF(G195<>"",VLOOKUP(G195,OBJEKTLISTE!$A$4:$G$976,6,FALSE),"") ->  | N195: =IF(ISBLANK(D195),"",IF(ISBLANK(PROJEKTPARAMETER!B$2),"",PROJEKTPARAMETER!B$2)) ->  | O195: =IF(ISBLANK(D195),"",IF(ISBLANK(PROJEKTPARAMETER!B$3),"",PROJEKTPARAMETER!B$3)) ->  | P195: =IF(ISBLANK(D195),"",IF(ISBLANK(PROJEKTPARAMETER!B$4),"",PROJEKTPARAMETER!B$4)) ->  | Q195: =IF(ISBLANK(D195),"",IF(ISBLANK(PROJEKTPARAMETER!B$5),"",PROJEKTPARAMETER!B$5)) ->  | R195: =IF(ISBLANK(D195),"",IF(ISBLANK(PROJEKTPARAMETER!B$6),"",PROJEKTPARAMETER!B$6)) ->  | U195: =IF(ISBLANK(D195),"",IF(ISBLANK(PROJEKTPARAMETER!B$7),"",PROJEKTPARAMETER!B$7)) ->  | V195: =IF(ISBLANK(D195),"",IF(ISBLANK(PROJEKTPARAMETER!B$8),"",PROJEKTPARAMETER!B$8)) ->  | Z195: =IF(OR(ISBLANK(C195), ISBLANK(E195)),"",VLOOKUP(C195 & "_" & E195,Dokumentart_ID,3,FALSE)) ->  | AA195: =IF(C195<>"",VLOOKUP(C195,Kategorisierung_ID,2,FALSE),"") ->  | AB195: =IF(OR(ISBLANK(C195), ISBLANK(E195)),"",VLOOKUP(C195 & "_" & E195,Dokumentart_ID,2,FALSE)) ->  | AC195: =IF(ISBLANK(G195),"",IF(ISBLANK(VLOOKUP(G195,OBJEKTLISTE!$A$4:$G$976,7,FALSE)),"",VLOOKUP(G195,OBJEKTLISTE!$A$4:$G$976,7,FALSE))) ->  | AD195: =IF(H195<>"",VLOOKUP(H195,Objekttyp_ID,3,FALSE),"") ->  | AE195: =IF(I195="","",IF(VLOOKUP(H195 & "_" & I195,Objektdetail_ID,2,FALSE)="","",VLOOKUP(H195 & "_" & I195,Objektdetail_ID,2,FALSE))) ->  | AF195: =IF(J195<>"",VLOOKUP(J195,Strecke_ID,2,FALSE),"") -> 
H196: =IF(G196<>"",VLOOKUP(G196,OBJEKTLISTE!$A$4:$G$976,2,FALSE),"") ->  | J196: =IF(G196<>"",VLOOKUP(G196,OBJEKTLISTE!$A$4:$G$976,3,FALSE),"") ->  | K196: =IF(G196<>"",VLOOKUP(G196,OBJEKTLISTE!$A$4:$G$976,4,FALSE),"") ->  | L196: =IF(G196<>"",VLOOKUP(G196,OBJEKTLISTE!$A$4:$G$976,5,FALSE),"") ->  | M196: =IF(G196<>"",VLOOKUP(G196,OBJEKTLISTE!$A$4:$G$976,6,FALSE),"") ->  | N196: =IF(ISBLANK(D196),"",IF(ISBLANK(PROJEKTPARAMETER!B$2),"",PROJEKTPARAMETER!B$2)) ->  | O196: =IF(ISBLANK(D196),"",IF(ISBLANK(PROJEKTPARAMETER!B$3),"",PROJEKTPARAMETER!B$3)) ->  | P196: =IF(ISBLANK(D196),"",IF(ISBLANK(PROJEKTPARAMETER!B$4),"",PROJEKTPARAMETER!B$4)) ->  | Q196: =IF(ISBLANK(D196),"",IF(ISBLANK(PROJEKTPARAMETER!B$5),"",PROJEKTPARAMETER!B$5)) ->  | R196: =IF(ISBLANK(D196),"",IF(ISBLANK(PROJEKTPARAMETER!B$6),"",PROJEKTPARAMETER!B$6)) ->  | U196: =IF(ISBLANK(D196),"",IF(ISBLANK(PROJEKTPARAMETER!B$7),"",PROJEKTPARAMETER!B$7)) ->  | V196: =IF(ISBLANK(D196),"",IF(ISBLANK(PROJEKTPARAMETER!B$8),"",PROJEKTPARAMETER!B$8)) ->  | Y196: =IF(ISBLANK(D196),"","freigegeben") ->  | AC196: =IF(ISBLANK(G196),"",IF(ISBLANK(VLOOKUP(G196,OBJEKTLISTE!$A$4:$G$976,7,FALSE)),"",VLOOKUP(G196,OBJEKTLISTE!$A$4:$G$976,7,FALSE))) -> 
H197: =IF(G197<>"",VLOOKUP(G197,OBJEKTLISTE!$A$4:$G$976,2,FALSE),"") ->  | J197: =IF(G197<>"",VLOOKUP(G197,OBJEKTLISTE!$A$4:$G$976,3,FALSE),"") ->  | K197: =IF(G197<>"",VLOOKUP(G197,OBJEKTLISTE!$A$4:$G$976,4,FALSE),"") ->  | L197: =IF(G197<>"",VLOOKUP(G197,OBJEKTLISTE!$A$4:$G$976,5,FALSE),"") ->  | M197: =IF(G197<>"",VLOOKUP(G197,OBJEKTLISTE!$A$4:$G$976,6,FALSE),"") ->  | N197: =IF(ISBLANK(D197),"",IF(ISBLANK(PROJEKTPARAMETER!B$2),"",PROJEKTPARAMETER!B$2)) ->  | O197: =IF(ISBLANK(D197),"",IF(ISBLANK(PROJEKTPARAMETER!B$3),"",PROJEKTPARAMETER!B$3)) ->  | P197: =IF(ISBLANK(D197),"",IF(ISBLANK(PROJEKTPARAMETER!B$4),"",PROJEKTPARAMETER!B$4)) ->  | Q197: =IF(ISBLANK(D197),"",IF(ISBLANK(PROJEKTPARAMETER!B$5),"",PROJEKTPARAMETER!B$5)) ->  | R197: =IF(ISBLANK(D197),"",IF(ISBLANK(PROJEKTPARAMETER!B$6),"",PROJEKTPARAMETER!B$6)) ->  | U197: =IF(ISBLANK(D197),"",IF(ISBLANK(PROJEKTPARAMETER!B$7),"",PROJEKTPARAMETER!B$7)) ->  | V197: =IF(ISBLANK(D197),"",IF(ISBLANK(PROJEKTPARAMETER!B$8),"",PROJEKTPARAMETER!B$8)) ->  | AC197: =IF(ISBLANK(G197),"",IF(ISBLANK(VLOOKUP(G197,OBJEKTLISTE!$A$4:$G$976,7,FALSE)),"",VLOOKUP(G197,OBJEKTLISTE!$A$4:$G$976,7,FALSE))) -> 
H198: =IF(G198<>"",VLOOKUP(G198,OBJEKTLISTE!$A$4:$G$976,2,FALSE),"") ->  | J198: =IF(G198<>"",VLOOKUP(G198,OBJEKTLISTE!$A$4:$G$976,3,FALSE),"") ->  | K198: =IF(G198<>"",VLOOKUP(G198,OBJEKTLISTE!$A$4:$G$976,4,FALSE),"") ->  | L198: =IF(G198<>"",VLOOKUP(G198,OBJEKTLISTE!$A$4:$G$976,5,FALSE),"") ->  | M198: =IF(G198<>"",VLOOKUP(G198,OBJEKTLISTE!$A$4:$G$976,6,FALSE),"") ->  | N198: =IF(ISBLANK(D198),"",IF(ISBLANK(PROJEKTPARAMETER!B$2),"",PROJEKTPARAMETER!B$2)) ->  | O198: =IF(ISBLANK(D198),"",IF(ISBLANK(PROJEKTPARAMETER!B$3),"",PROJEKTPARAMETER!B$3)) ->  | P198: =IF(ISBLANK(D198),"",IF(ISBLANK(PROJEKTPARAMETER!B$4),"",PROJEKTPARAMETER!B$4)) ->  | Q198: =IF(ISBLANK(D198),"",IF(ISBLANK(PROJEKTPARAMETER!B$5),"",PROJEKTPARAMETER!B$5)) ->  | R198: =IF(ISBLANK(D198),"",IF(ISBLANK(PROJEKTPARAMETER!B$6),"",PROJEKTPARAMETER!B$6)) ->  | U198: =IF(ISBLANK(D198),"",IF(ISBLANK(PROJEKTPARAMETER!B$7),"",PROJEKTPARAMETER!B$7)) ->  | V198: =IF(ISBLANK(D198),"",IF(ISBLANK(PROJEKTPARAMETER!B$8),"",PROJEKTPARAMETER!B$8)) ->  | AC198: =IF(ISBLANK(G198),"",IF(ISBLANK(VLOOKUP(G198,OBJEKTLISTE!$A$4:$G$976,7,FALSE)),"",VLOOKUP(G198,OBJEKTLISTE!$A$4:$G$976,7,FALSE))) -> 
H199: =IF(G199<>"",VLOOKUP(G199,OBJEKTLISTE!$A$4:$G$976,2,FALSE),"") ->  | J199: =IF(G199<>"",VLOOKUP(G199,OBJEKTLISTE!$A$4:$G$976,3,FALSE),"") ->  | K199: =IF(G199<>"",VLOOKUP(G199,OBJEKTLISTE!$A$4:$G$976,4,FALSE),"") ->  | L199: =IF(G199<>"",VLOOKUP(G199,OBJEKTLISTE!$A$4:$G$976,5,FALSE),"") ->  | M199: =IF(G199<>"",VLOOKUP(G199,OBJEKTLISTE!$A$4:$G$976,6,FALSE),"") ->  | N199: =IF(ISBLANK(D199),"",IF(ISBLANK(PROJEKTPARAMETER!B$2),"",PROJEKTPARAMETER!B$2)) ->  | O199: =IF(ISBLANK(D199),"",IF(ISBLANK(PROJEKTPARAMETER!B$3),"",PROJEKTPARAMETER!B$3)) ->  | P199: =IF(ISBLANK(D199),"",IF(ISBLANK(PROJEKTPARAMETER!B$4),"",PROJEKTPARAMETER!B$4)) ->  | Q199: =IF(ISBLANK(D199),"",IF(ISBLANK(PROJEKTPARAMETER!B$5),"",PROJEKTPARAMETER!B$5)) ->  | R199: =IF(ISBLANK(D199),"",IF(ISBLANK(PROJEKTPARAMETER!B$6),"",PROJEKTPARAMETER!B$6)) ->  | U199: =IF(ISBLANK(D199),"",IF(ISBLANK(PROJEKTPARAMETER!B$7),"",PROJEKTPARAMETER!B$7)) ->  | V199: =IF(ISBLANK(D199),"",IF(ISBLANK(PROJEKTPARAMETER!B$8),"",PROJEKTPARAMETER!B$8)) ->  | AC199: =IF(ISBLANK(G199),"",IF(ISBLANK(VLOOKUP(G199,OBJEKTLISTE!$A$4:$G$976,7,FALSE)),"",VLOOKUP(G199,OBJEKTLISTE!$A$4:$G$976,7,FALSE))) -> 
H200: =IF(G200<>"",VLOOKUP(G200,OBJEKTLISTE!$A$4:$G$976,2,FALSE),"") ->  | J200: =IF(G200<>"",VLOOKUP(G200,OBJEKTLISTE!$A$4:$G$976,3,FALSE),"") ->  | K200: =IF(G200<>"",VLOOKUP(G200,OBJEKTLISTE!$A$4:$G$976,4,FALSE),"") ->  | L200: =IF(G200<>"",VLOOKUP(G200,OBJEKTLISTE!$A$4:$G$976,5,FALSE),"") ->  | M200: =IF(G200<>"",VLOOKUP(G200,OBJEKTLISTE!$A$4:$G$976,6,FALSE),"") ->  | N200: =IF(ISBLANK(D200),"",IF(ISBLANK(PROJEKTPARAMETER!B$2),"",PROJEKTPARAMETER!B$2)) ->  | O200: =IF(ISBLANK(D200),"",IF(ISBLANK(PROJEKTPARAMETER!B$3),"",PROJEKTPARAMETER!B$3)) ->  | P200: =IF(ISBLANK(D200),"",IF(ISBLANK(PROJEKTPARAMETER!B$4),"",PROJEKTPARAMETER!B$4)) ->  | Q200: =IF(ISBLANK(D200),"",IF(ISBLANK(PROJEKTPARAMETER!B$5),"",PROJEKTPARAMETER!B$5)) ->  | R200: =IF(ISBLANK(D200),"",IF(ISBLANK(PROJEKTPARAMETER!B$6),"",PROJEKTPARAMETER!B$6)) ->  | U200: =IF(ISBLANK(D200),"",IF(ISBLANK(PROJEKTPARAMETER!B$7),"",PROJEKTPARAMETER!B$7)) ->  | V200: =IF(ISBLANK(D200),"",IF(ISBLANK(PROJEKTPARAMETER!B$8),"",PROJEKTPARAMETER!B$8)) ->  | AC200: =IF(ISBLANK(G200),"",IF(ISBLANK(VLOOKUP(G200,OBJEKTLISTE!$A$4:$G$976,7,FALSE)),"",VLOOKUP(G200,OBJEKTLISTE!$A$4:$G$976,7,FALSE))) -> 
... 2050 more rows

Sheet Info
A1: VERSIONSNUMMER & LETZTES ÄNDERUNGSDATUM:
A4: 3.16
A6: 2013-02-28
A10: V3.14
A11: 1 | B11: Strukturerweiterung "Ablageregister"
A12: 2 | B12: Strukturerweiterung "Dokumentenklasse"
A13: 3 | B13: "Umwelt und Verfahren" - Erweiterung - Standard-Dokumenttypen - "Bescheide, Erlass, Verordnung, Zulassung"
A14: 4 | B14: "Grundeinlöse" - Erweiterung um Punkt 6.7
A15: 5 | B15: "Grundeinlöse" - Erweiterung Dokumentart "Vertrag/Vereinbarung"
A17: V3.15
A18: 1 | B18: Strukturerweiterung "Objektdetails"
A19: 2 | B19: Strukturerweiterung "Objekte" - CN.as
A21: V3.16
A22: 1 | B22: Dokumentart "Kosten-/Zeitplan" bei "7. Bestandsdokumentation" erweitert

Sheet DOXIS_Kategorisierung_CSV (hidden)
B1: EXCEL-Bereichsvariable: "Kategorisierung" - B5:B31
B2: EXCEL-Bereichsvariable: "Kategorisierung_ID" - B5:C31
A4: ID | B4: SuchKey | C4: Category_ID | D4: Hauptkategorie | E4: SubKategorie_1 | F4: SubKategorie_2
A5: 1 | B5: =MID(D5,4,255) & IF(E5="NULL", "", " / " & E5) & IF(F5="NULL", "", " / " & F5) -> Bestandsdokumentation | C5: 430B9357-562A-46F6-9171-0CBFA0EFAF27 | D5: 7. Bestandsdokumentation | E5: NULL | F5: NULL
A6: 2 | B6: Projektphasen / 4.5 Einreichprojekt | C6: 32872FE2-960D-4F63-B8EF-5E1DA03F7933 | D6: 4. Projektphasen | E6: 4.5 Einreichprojekt | F6: NULL
A7: 3 | B7: Projektphasen / 4.6 Bauprojekt | C7: AA37A49C-6A9D-4F98-AB63-FA4291B57084 | D7: 4. Projektphasen | E7: 4.6 Bauprojekt | F7: NULL
A8: 4 | B8: Projektphasen / 4.7 Bauphase | C8: 91A35521-E5FA-4283-971A-16F8F7C17323 | D8: 4. Projektphasen | E8: 4.7 Bauphase | F8: NULL
A9: 5 | B9: Umwelt und Verfahren / Abfallrecht (AWG) | C9: 6376409F-A53F-4E13-AD75-80DC66FB52AF | D9: 3. Umwelt und Verfahren | E9: Abfallrecht (AWG) | F9: NULL
A10: 6 | B10: Umwelt und Verfahren / Baurecht (ROG, Bauordnungen) | C10: FFA1B2A0-EF2B-42EA-9124-526F828A84EC | D10: 3. Umwelt und Verfahren | E10: Baurecht (ROG, Bauordnungen) | F10: NULL
A11: 7 | B11: Umwelt und Verfahren / Denkmalschutzgesetz (DMSG) | C11: 21B68B50-CB46-4D53-A71A-F7BD665804A9 | D11: 3. Umwelt und Verfahren | E11: Denkmalschutzgesetz (DMSG) | F11: NULL
A12: 8 | B12: Umwelt und Verfahren / Datenschutzrecht (DSG) | C12: 4A4C7D8F-CE90-4E38-8E3D-6DE9B127AC6A | D12: 3. Umwelt und Verfahren | E12: Datenschutzrecht (DSG) | F12: NULL
A13: 9 | B13: Umwelt und Verfahren / Eisenbahnrecht (EisBG) | C13: 3D14FA05-AE04-4E09-AFC4-891B7FC38ADD | D13: 3. Umwelt und Verfahren | E13: Eisenbahnrecht (EisBG) | F13: NULL
A14: 10 | B14: Umwelt und Verfahren / Forstrecht (ForstG) | C14: 4EF974B4-6838-4C13-AEAF-7C663EEE51D8 | D14: 3. Umwelt und Verfahren | E14: Forstrecht (ForstG) | F14: NULL
A15: 11 | B15: Umwelt und Verfahren / Gewerberecht (GewO) | C15: 445FF4BF-3348-4FCC-9E9B-3585F5A6A431 | D15: 3. Umwelt und Verfahren | E15: Gewerberecht (GewO) | F15: NULL
A16: 12 | B16: Umwelt und Verfahren / Grundbuchrecht (GBG) | C16: C2E57F7C-6A93-4932-84F6-A8A2CF5D50B2 | D16: 3. Umwelt und Verfahren | E16: Grundbuchrecht (GBG) | F16: NULL
A17: 13 | B17: Umwelt und Verfahren / Kulturflächenausgleich | C17: 3350A1EF-2BFB-4A4E-B9F3-ABF7979B410A | D17: 3. Umwelt und Verfahren | E17: Kulturflächenausgleich | F17: NULL
A18: 14 | B18: Umwelt und Verfahren / Luftfahrtrecht (LFG) | C18: 59848533-E600-441F-9F31-8EC73EE30749 | D18: 3. Umwelt und Verfahren | E18: Luftfahrtrecht (LFG) | F18: NULL
A19: 15 | B19: Umwelt und Verfahren / Mautrecht (BStMG) | C19: F5D1FF3A-58C2-4213-B7C3-1D55764CDCED | D19: 3. Umwelt und Verfahren | E19: Mautrecht (BStMG) | F19: NULL
A20: 16 | B20: Umwelt und Verfahren / Naturschutzrecht (NSchG, BaumSchG) | C20: A119144A-5E9D-4176-B8F4-A2870E0666B5 | D20: 3. Umwelt und Verfahren | E20: Naturschutzrecht (NSchG, BaumSchG) | F20: NULL
A21: 17 | B21: Umwelt und Verfahren / Schifffahrtsrecht (SchFG) | C21: 30A056B1-6154-424B-971F-01CEE0B2FAA4 | D21: 3. Umwelt und Verfahren | E21: Schifffahrtsrecht (SchFG) | F21: NULL
A22: 18 | B22: Umwelt und Verfahren / Straßenrecht (BStG, STSG, Landesstraßengesetze) | C22: 58788B41-4488-4303-8059-65C8C0E65027 | D22: 3. Umwelt und Verfahren | E22: Straßenrecht (BStG, STSG, Landesstraßengesetze) | F22: NULL
A23: 19 | B23: Umwelt und Verfahren / Straßenverkehrsrecht (StVO, KFG) | C23: 23057BB6-A31F-421F-AD2C-1124652366AD | D23: 3. Umwelt und Verfahren | E23: Straßenverkehrsrecht (StVO, KFG) | F23: NULL
A24: 20 | B24: Umwelt und Verfahren / Umweltrecht (UVP-G, SP-V, UIG) | C24: FF0BE4F5-9C8E-4C24-B127-1841F5281591 | D24: 3. Umwelt und Verfahren | E24: Umweltrecht (UVP-G, SP-V, UIG) | F24: NULL
A25: 21 | B25: Umwelt und Verfahren / Vergaberecht (BVergG) | C25: A36D753C-B160-4285-95E7-A15E90742639 | D25: 3. Umwelt und Verfahren | E25: Vergaberecht (BVergG) | F25: NULL
A26: 22 | B26: Umwelt und Verfahren / VfGH, VwGH | C26: 5CBC8380-BE95-4E6B-A6B4-182715145486 | D26: 3. Umwelt und Verfahren | E26: VfGH, VwGH | F26: NULL
A27: 23 | B27: Umwelt und Verfahren / Wasserrecht (WRG) | C27: CDEEFAD6-E106-4C85-9DA6-0685B43219EA | D27: 3. Umwelt und Verfahren | E27: Wasserrecht (WRG) | F27: NULL
A28: 24 | B28: Umwelt und Verfahren / Flächenwidmungspläne | C28: 1107E8C6-F5A7-4E9D-9FD1-284A3EAC14CD | D28: 3. Umwelt und Verfahren | E28: Flächenwidmungspläne | F28: NULL
A29: 25 | B29: Umwelt und Verfahren / IG-L | C29: 16B424A2-AFD7-4315-B3BE-B51BC47260E5 | D29: 3. Umwelt und Verfahren | E29: IG-L | F29: NULL
A30: 26 | B30: Umwelt und Verfahren / Trassenverordungen (altes Regime UVP-G, BStG) | C30: CD935BC0-7653-40FA-B9D5-766C98B2DC24 | D30: 3. Umwelt und Verfahren | E30: Trassenverordungen (altes Regime UVP-G, BStG) | F30: NULL
A31: 27 | B31: Umwelt und Verfahren / Sonstiges | C31: 4C4606DC-C2A6-494E-A94E-D7330AD8D1B1 | D31: 3. Umwelt und Verfahren | E31: Sonstiges | F31: NULL

Sheet DOXIS_Kategorisierung (hidden)
B1: EXCEL-Bereichsvariable: "Kategorisierung" - B5:B67
B2: EXCEL-Bereichsvariable: "Kategorisierung_ID" - B5:C67
A4: ID | B4: SuchKey | C4: Category_ID | D4: Hauptkategorie | E4: SubKategorie_1 | F4: SubKategorie_2
A5: 1 | B5: =MID(D5,4,255) & IF(E5="NULL", "", " / " & E5) & IF(F5="NULL", "", " / " & F5) -> Projektmanagement / 1.1 Interne Anforderung/Bestellung/Übergabe | C5: C99B4EE8-4D1E-467F-85FF-5E00F0645DB6 | D5: 1. Projektmanagement | E5: 1.1 Interne Anforderung/Bestellung/Übergabe | F5: NULL
A6: 2 | B6: =MID(D6,4,255) & IF(E6="NULL", "", " / " & E6) & IF(F6="NULL", "", " / " & F6) -> Projektmanagement / 1.2 Aufsichtsrat | C6: 0CD54C56-5491-455F-AA64-019488895BB8 | D6: 1. Projektmanagement | E6: 1.2 Aufsichtsrat | F6: NULL
A7: 3 | B7: Projektmanagement / 1.3 Lenkungsausschuss | C7: 63EFB9ED-3FCB-4852-86C0-7C1C2DEE47E8 | D7: 1. Projektmanagement | E7: 1.3 Lenkungsausschuss | F7: NULL
A8: 4 | B8: Projektmanagement / 1.4 Begleitende Kontrolle | C8: 2BB8EBC5-5D9A-41A0-BD03-89DDB7392759 | D8: 1. Projektmanagement | E8: 1.4 Begleitende Kontrolle | F8: NULL
A9: 5 | B9: Projektmanagement / 1.5 Entscheidungsmanagement | C9: EF5861EA-ED5A-4A3F-80CF-7F58251286E2 | D9: 1. Projektmanagement | E9: 1.5 Entscheidungsmanagement | F9: NULL
A10: 6 | B10: Projektmanagement / 1.6 Kosten- und Terminmanagement | C10: 7006245F-F502-48D9-AACC-55D5C5D63327 | D10: 1. Projektmanagement | E10: 1.6 Kosten- und Terminmanagement | F10: NULL
A11: 7 | B11: Projektmanagement / 1.7 Öffentlichkeitsarbeit | C11: 67A50C1B-175F-4184-BD5D-FCC11A7C41FB | D11: 1. Projektmanagement | E11: 1.7 Öffentlichkeitsarbeit | F11: NULL
A12: 8 | B12: Projektmanagement / 1.8 Projektsteuerung | C12: 1D08E316-AA66-44CF-A98B-4E884309CD84 | D12: 1. Projektmanagement | E12: 1.8 Projektsteuerung | F12: NULL
A13: 9 | B13: Projektmanagement / 1.9 ÖBA | C13: 86B4E523-8640-4436-987D-350A79C446BF | D13: 1. Projektmanagement | E13: 1.9 ÖBA | F13: NULL
A14: 10 | B14: Projektmanagement / 1.10 Planungs- und Baustellenkoordination | C14: CAD675D1-11B7-4655-B7B3-0D7303B9FB62 | D14: 1. Projektmanagement | E14: 1.10 Planungs- und Baustellenkoordination | F14: NULL
A15: 11 | B15: Projektmanagement / 1.11 Besprechungen / 1.11.1 Projektbesprechung | C15: 2D0438DA-9471-4284-8D67-0E34E7DD38D2 | D15: 1. Projektmanagement | E15: 1.11 Besprechungen | F15: 1.11.1 Projektbesprechung
A16: 12 | B16: Projektmanagement / 1.11 Besprechungen / 1.11.2 Baubesprechung | C16: 4E2C0670-791A-49F9-AB0D-3D323FD71987 | D16: 1. Projektmanagement | E16: 1.11 Besprechungen | F16: 1.11.2 Baubesprechung
A17: 13 | B17: Projektmanagement / 1.11 Besprechungen / 1.11.3 Sonstige Besprechung | C17: F956A0B1-0026-42FC-A66A-7F30A4EDB052 | D17: 1. Projektmanagement | E17: 1.11 Besprechungen | F17: 1.11.3 Sonstige Besprechung
A18: 14 | B18: Projektmanagement / 1.12 Audit und Beirat | C18: 2C689644-0761-46C5-B21B-2155EB0CA042 | D18: 1. Projektmanagement | E18: 1.12 Audit und Beirat | F18: NULL
A19: 15 | B19: Projektmanagement / 1.13 Sonstiges | C19: E0BE467D-25F9-4C70-8D51-79707FC00A8A | D19: 1. Projektmanagement | E19: 1.13 Sonstiges | F19: NULL
A20: 16 | B20: Schriftverkehr / 2.1 ASFINAG | C20: DA1B1324-0C20-4C79-B7AF-A66F2F365F5F | D20: 2. Schriftverkehr | E20: 2.1 ASFINAG | F20: NULL
A21: 17 | B21: Schriftverkehr / 2.2 Bezirkshauptmannschaften | C21: 880AC328-3D54-47F8-A0CC-98A380E083FD | D21: 2. Schriftverkehr | E21: 2.2 Bezirkshauptmannschaften | F21: NULL
A22: 18 | B22: Schriftverkehr / 2.3 Bundesministerien | C22: AAC0A911-4BB3-4AD0-A8D7-44A739725BB3 | D22: 2. Schriftverkehr | E22: 2.3 Bundesministerien | F22: NULL
A23: 19 | B23: Schriftverkehr / 2.4 Einbautenträger | C23: B441CD55-D88A-42F3-B225-FA883542C500 | D23: 2. Schriftverkehr | E23: 2.4 Einbautenträger | F23: NULL
A24: 20 | B24: Schriftverkehr / 2.5 Gemeinden | C24: 9FE8B579-D935-4264-9566-62D89AA9FE1C | D24: 2. Schriftverkehr | E24: 2.5 Gemeinden | F24: NULL
A25: 21 | B25: Schriftverkehr / 2.6 Interessensvertretungen | C25: 602936D1-8399-4766-9A7B-AA7DC5E32760 | D25: 2. Schriftverkehr | E25: 2.6 Interessensvertretungen | F25: NULL
A26: 22 | B26: Schriftverkehr / 2.7 Länder | C26: A981D5F0-2C67-402A-978D-E194D063E831 | D26: 2. Schriftverkehr | E26: 2.7 Länder | F26: NULL
A27: 23 | B27: Schriftverkehr / 2.8 ÖBB | C27: B8ACACD7-F213-41D3-B23F-DFC07A6C1F73 | D27: 2. Schriftverkehr | E27: 2.8 ÖBB | F27: NULL
A28: 24 | B28: Schriftverkehr / 2.9 sonstige Projektbeteiligte | C28: 0125C742-9163-44BD-BCB7-AD97CAD80542 | D28: 2. Schriftverkehr | E28: 2.9 sonstige Projektbeteiligte | F28: NULL
A29: 25 | B29: Umwelt und Verfahren / Abfallrecht (AWG) | C29: 6376409F-A53F-4E13-AD75-80DC66FB52AF | D29: 3. Umwelt und Verfahren | E29: Abfallrecht (AWG) | F29: NULL
A30: 26 | B30: Umwelt und Verfahren / Baurecht (ROG, Bauordnungen) | C30: FFA1B2A0-EF2B-42EA-9124-526F828A84EC | D30: 3. Umwelt und Verfahren | E30: Baurecht (ROG, Bauordnungen) | F30: NULL
A31: 27 | B31: Umwelt und Verfahren / Denkmalschutzgesetz (DMSG) | C31: 21B68B50-CB46-4D53-A71A-F7BD665804A9 | D31: 3. Umwelt und Verfahren | E31: Denkmalschutzgesetz (DMSG) | F31: NULL
A32: 28 | B32: Umwelt und Verfahren / Datenschutzrecht (DSG) | C32: 4A4C7D8F-CE90-4E38-8E3D-6DE9B127AC6A | D32: 3. Umwelt und Verfahren | E32: Datenschutzrecht (DSG) | F32: NULL
A33: 29 | B33: Umwelt und Verfahren / Eisenbahnrecht (EisBG) | C33: 3D14FA05-AE04-4E09-AFC4-891B7FC38ADD | D33: 3. Umwelt und Verfahren | E33: Eisenbahnrecht (EisBG) | F33: NULL
A34: 30 | B34: Umwelt und Verfahren / Forstrecht (ForstG) | C34: 4EF974B4-6838-4C13-AEAF-7C663EEE51D8 | D34: 3. Umwelt und Verfahren | E34: Forstrecht (ForstG) | F34: NULL
A35: 31 | B35: Umwelt und Verfahren / Gewerberecht (GewO) | C35: 445FF4BF-3348-4FCC-9E9B-3585F5A6A431 | D35: 3. Umwelt und Verfahren | E35: Gewerberecht (GewO) | F35: NULL
A36: 32 | B36: Umwelt und Verfahren / Grundbuchrecht (GBG) | C36: C2E57F7C-6A93-4932-84F6-A8A2CF5D50B2 | D36: 3. Umwelt und Verfahren | E36: Grundbuchrecht (GBG) | F36: NULL
A37: 33 | B37: Umwelt und Verfahren / Kulturflächenausgleich | C37: 3350A1EF-2BFB-4A4E-B9F3-ABF7979B410A | D37: 3. Umwelt und Verfahren | E37: Kulturflächenausgleich | F37: NULL
A38: 34 | B38: Umwelt und Verfahren / Luftfahrtrecht (LFG) | C38: 59848533-E600-441F-9F31-8EC73EE30749 | D38: 3. Umwelt und Verfahren | E38: Luftfahrtrecht (LFG) | F38: NULL
A39: 35 | B39: Umwelt und Verfahren / Mautrecht (BStMG) | C39: F5D1FF3A-58C2-4213-B7C3-1D55764CDCED | D39: 3. Umwelt und Verfahren | E39: Mautrecht (BStMG) | F39: NULL
A40: 36 | B40: Umwelt und Verfahren / Naturschutzrecht (NSchG, BaumSchG) | C40: A119144A-5E9D-4176-B8F4-A2870E0666B5 | D40: 3. Umwelt und Verfahren | E40: Naturschutzrecht (NSchG, BaumSchG) | F40: NULL
A41: 37 | B41: Umwelt und Verfahren / Schifffahrtsrecht (SchFG) | C41: 30A056B1-6154-424B-971F-01CEE0B2FAA4 | D41: 3. Umwelt und Verfahren | E41: Schifffahrtsrecht (SchFG) | F41: NULL
A42: 38 | B42: Umwelt und Verfahren / Straßenrecht (BStG, STSG, Landesstraßengesetze) | C42: 58788B41-4488-4303-8059-65C8C0E65027 | D42: 3. Umwelt und Verfahren | E42: Straßenrecht (BStG, STSG, Landesstraßengesetze) | F42: NULL
A43: 39 | B43: Umwelt und Verfahren / Straßenverkehrsrecht (StVO, KFG) | C43: 23057BB6-A31F-421F-AD2C-1124652366AD | D43: 3. Umwelt und Verfahren | E43: Straßenverkehrsrecht (StVO, KFG) | F43: NULL
A44: 40 | B44: Umwelt und Verfahren / Umweltrecht (UVP-G, SP-V, UIG) | C44: FF0BE4F5-9C8E-4C24-B127-1841F5281591 | D44: 3. Umwelt und Verfahren | E44: Umweltrecht (UVP-G, SP-V, UIG) | F44: NULL
A45: 41 | B45: Umwelt und Verfahren / Vergaberecht (BVergG) | C45: A36D753C-B160-4285-95E7-A15E90742639 | D45: 3. Umwelt und Verfahren | E45: Vergaberecht (BVergG) | F45: NULL
A46: 42 | B46: Umwelt und Verfahren / VfGH, VwGH | C46: 5CBC8380-BE95-4E6B-A6B4-182715145486 | D46: 3. Umwelt und Verfahren | E46: VfGH, VwGH | F46: NULL
A47: 43 | B47: Umwelt und Verfahren / Wasserrecht (WRG) | C47: CDEEFAD6-E106-4C85-9DA6-0685B43219EA | D47: 3. Umwelt und Verfahren | E47: Wasserrecht (WRG) | F47: NULL
A48: 44 | B48: Umwelt und Verfahren / Flächenwidmungspläne | C48: 1107E8C6-F5A7-4E9D-9FD1-284A3EAC14CD | D48: 3. Umwelt und Verfahren | E48: Flächenwidmungspläne | F48: NULL
A49: 45 | B49: Umwelt und Verfahren / IG-L | C49: 16B424A2-AFD7-4315-B3BE-B51BC47260E5 | D49: 3. Umwelt und Verfahren | E49: IG-L | F49: NULL
A50: 46 | B50: Umwelt und Verfahren / Trassenverordungen (altes Regime UVP-G, BStG) | C50: CD935BC0-7653-40FA-B9D5-766C98B2DC24 | D50: 3. Umwelt und Verfahren | E50: Trassenverordungen (altes Regime UVP-G, BStG) | F50: NULL
A51: 47 | B51: Umwelt und Verfahren / Sonstiges | C51: 4C4606DC-C2A6-494E-A94E-D7330AD8D1B1 | D51: 3. Umwelt und Verfahren | E51: Sonstiges | F51: NULL
A52: 48 | B52: Projektphasen / 4.1 Planungsgrundlagen | C52: 906ED278-8C0C-4B59-9B1D-E4B94ACB883D | D52: 4. Projektphasen | E52: 4.1 Planungsgrundlagen | F52: NULL
A53: 49 | B53: Projektphasen / 4.2 Vorstudie | C53: 896AA6A0-A152-4134-9D13-C3E9331252D6 | D53: 4. Projektphasen | E53: 4.2 Vorstudie | F53: NULL
A54: 50 | B54: Projektphasen / 4.3 ESA | C54: 98AB8D8E-ADC6-4B4C-9B6E-1C162D6B20CC | D54: 4. Projektphasen | E54: 4.3 ESA | F54: NULL
A55: 51 | B55: Projektphasen / 4.4 Vorprojekt | C55: 2E81B333-4B7D-4272-A4F5-64E0CBA32623 | D55: 4. Projektphasen | E55: 4.4 Vorprojekt | F55: NULL
A56: 52 | B56: Projektphasen / 4.5 Einreichprojekt | C56: 32872FE2-960D-4F63-B8EF-5E1DA03F7933 | D56: 4. Projektphasen | E56: 4.5 Einreichprojekt | F56: NULL
A57: 53 | B57: Projektphasen / 4.6 Bauprojekt | C57: AA37A49C-6A9D-4F98-AB63-FA4291B57084 | D57: 4. Projektphasen | E57: 4.6 Bauprojekt | F57: NULL
A58: 54 | B58: Projektphasen / 4.7 Bauphase | C58: 91A35521-E5FA-4283-971A-16F8F7C17323 | D58: 4. Projektphasen | E58: 4.7 Bauphase | F58: NULL
A59: 56 | B59: Grundeinlöse / 6.1 Allgemeiner Schriftverkehr | C59: 727B3E0C-C00F-47EC-8BAD-7DD7797131B3 | D59: 6. Grundeinlöse | E59: 6.1 Allgemeiner Schriftverkehr | F59: NULL
A60: 57 | B60: Grundeinlöse / 6.2 Grundsatzgutachten | C60: 4609C562-5E1F-4C84-8A7E-F3953CD06DF5 | D60: 6. Grundeinlöse | E60: 6.2 Grundsatzgutachten | F60: NULL
A61: 58 | B61: Grundeinlöse / 6.3 Grundeinlöseoperat | C61: 3D0BECA2-3F7C-4ECC-9828-924CCCEED106 | D61: 6. Grundeinlöse | E61: 6.3 Grundeinlöseoperat | F61: NULL
A62: 59 | B62: Grundeinlöse / 6.4 GE-Projekt JF | C62: 24B8582B-9BFD-445A-B6C5-529FF740B405 | D62: 6. Grundeinlöse | E62: 6.4 GE-Projekt JF | F62: NULL
A63: 60 | B63: Grundeinlöse / 6.5 Endvermessungsoperat | C63: B2BC05AD-2681-4833-92A5-8E725397DB1C | D63: 6. Grundeinlöse | E63: 6.5 Endvermessungsoperat | F63: NULL
A64: 61 | B64: Grundeinlöse / 6.6 GE-Akten/Fälle | C64: 5AB8E6E5-43C4-4818-8F5A-D36D9A92492D | D64: 6. Grundeinlöse | E64: 6.6 GE-Akten/Fälle | F64: NULL
A65: 62 | B65: Grundeinlöse / 6.7 Nachlauf Altfälle | C65: 00AD1502-5455-4AD2-AE7A-1D8C04DF5D4E | D65: 6. Grundeinlöse | E65: 6.7 Nachlauf Altfälle | F65: NULL
A66: 63 | B66: =MID(D66,4,255) & IF(E66="NULL", "", " / " & E66) & IF(F66="NULL", "", " / " & F66) -> Bestandsdokumentation | C66: 430B9357-562A-46F6-9171-0CBFA0EFAF27 | D66: 7. Bestandsdokumentation | E66: NULL | F66: NULL

Sheet DOXIS_Dokumentart (hidden)
B2: EXCEL-Bereichsvariable: "Dokumentart_ID" - C5:D1617
A4: ID | B4: SuchKey | C4: Dokumentart_ID | D4: Dokumentenklasse | E4: Hauptkategorie | F4: SubKategorie_1 | G4: SubKategorie_2 | H4: Category_ID | I4: Dokumentart
A5: 1 | B5: =MID(E5,4,255) & IF(F5="NULL", "", " / " & F5) & IF(G5="NULL", "", " / " & G5) & "_" & I5 -> Projektmanagement / 1.1 Interne Anforderung/Bestellung/Übergabe_Aktenvermerk | C5: 66304C4B-3B88-41BD-9B95-FC637AEFFB75 | D5: BauBestandsDok | E5: 1. Projektmanagement | F5: 1.1 Interne Anforderung/Bestellung/Übergabe | G5: NULL | H5: C99B4EE8-4D1E-467F-85FF-5E00F0645DB6 | I5: Aktenvermerk
A6: 2 | B6: =MID(E6,4,255) & IF(F6="NULL", "", " / " & F6) & IF(G6="NULL", "", " / " & G6) & "_" & I6 -> Projektmanagement / 1.1 Interne Anforderung/Bestellung/Übergabe_Angebot | C6: 14A47022-2427-46F4-902E-8C8C4C3E1B09 | D6: BauBestandsDok | E6: 1. Projektmanagement | F6: 1.1 Interne Anforderung/Bestellung/Übergabe | G6: NULL | H6: C99B4EE8-4D1E-467F-85FF-5E00F0645DB6 | I6: Angebot
A7: 3 | B7: Projektmanagement / 1.1 Interne Anforderung/Bestellung/Übergabe_Auftragsschreiben | C7: 26A57A08-C6CD-415C-BBE9-449C51405F62 | D7: BauBestandsDok | E7: 1. Projektmanagement | F7: 1.1 Interne Anforderung/Bestellung/Übergabe | G7: NULL | H7: C99B4EE8-4D1E-467F-85FF-5E00F0645DB6 | I7: Auftragsschreiben
A8: 4 | B8: Projektmanagement / 1.1 Interne Anforderung/Bestellung/Übergabe_Anfrage/Antrag | C8: 13F9CAA2-0BB2-4ED5-8826-9D912EA1C657 | D8: BauBestandsDok | E8: 1. Projektmanagement | F8: 1.1 Interne Anforderung/Bestellung/Übergabe | G8: NULL | H8: C99B4EE8-4D1E-467F-85FF-5E00F0645DB6 | I8: Anfrage/Antrag
A9: 5 | B9: Projektmanagement / 1.1 Interne Anforderung/Bestellung/Übergabe_Aufstellung/Liste | C9: B048B709-FAED-47D8-A750-8BBA3E28C272 | D9: BauBestandsDok | E9: 1. Projektmanagement | F9: 1.1 Interne Anforderung/Bestellung/Übergabe | G9: NULL | H9: C99B4EE8-4D1E-467F-85FF-5E00F0645DB6 | I9: Aufstellung/Liste
A10: 6 | B10: Projektmanagement / 1.1 Interne Anforderung/Bestellung/Übergabe_Bankgarantie | C10: FD298E6B-3BAE-4B38-B540-0281D643BA10 | D10: BauBestandsDok | E10: 1. Projektmanagement | F10: 1.1 Interne Anforderung/Bestellung/Übergabe | G10: NULL | H10: C99B4EE8-4D1E-467F-85FF-5E00F0645DB6 | I10: Bankgarantie
A11: 7 | B11: Projektmanagement / 1.1 Interne Anforderung/Bestellung/Übergabe_Bericht | C11: 0DF675C7-9296-4CCB-9C44-DC3021C844F2 | D11: BauBestandsDok | E11: 1. Projektmanagement | F11: 1.1 Interne Anforderung/Bestellung/Übergabe | G11: NULL | H11: C99B4EE8-4D1E-467F-85FF-5E00F0645DB6 | I11: Bericht
A12: 8 | B12: Projektmanagement / 1.1 Interne Anforderung/Bestellung/Übergabe_Beschluss | C12: 56C14D23-828E-479E-9085-9DC6664AECF5 | D12: BauBestandsDok | E12: 1. Projektmanagement | F12: 1.1 Interne Anforderung/Bestellung/Übergabe | G12: NULL | H12: C99B4EE8-4D1E-467F-85FF-5E00F0645DB6 | I12: Beschluss
A13: 9 | B13: Projektmanagement / 1.1 Interne Anforderung/Bestellung/Übergabe_Externes Regelwerk | C13: ACE69BFC-FBED-45D0-8939-45E0EAF28787 | D13: BauBestandsDok | E13: 1. Projektmanagement | F13: 1.1 Interne Anforderung/Bestellung/Übergabe | G13: NULL | H13: C99B4EE8-4D1E-467F-85FF-5E00F0645DB6 | I13: Externes Regelwerk
A14: 10 | B14: Projektmanagement / 1.1 Interne Anforderung/Bestellung/Übergabe_Foto | C14: 19F2099E-4D50-4031-B652-56E07B426F0A | D14: BauBestandsDok | E14: 1. Projektmanagement | F14: 1.1 Interne Anforderung/Bestellung/Übergabe | G14: NULL | H14: C99B4EE8-4D1E-467F-85FF-5E00F0645DB6 | I14: Foto
A15: 11 | B15: Projektmanagement / 1.1 Interne Anforderung/Bestellung/Übergabe_Gutachten | C15: 2224FBFE-161A-4B23-914F-0B3232C95C1D | D15: BauBestandsDok | E15: 1. Projektmanagement | F15: 1.1 Interne Anforderung/Bestellung/Übergabe | G15: NULL | H15: C99B4EE8-4D1E-467F-85FF-5E00F0645DB6 | I15: Gutachten
A16: 12 | B16: Projektmanagement / 1.1 Interne Anforderung/Bestellung/Übergabe_Konzept | C16: 79336A12-DCB5-4AE8-A493-9039E94D3656 | D16: BauBestandsDok | E16: 1. Projektmanagement | F16: 1.1 Interne Anforderung/Bestellung/Übergabe | G16: NULL | H16: C99B4EE8-4D1E-467F-85FF-5E00F0645DB6 | I16: Konzept
A17: 13 | B17: Projektmanagement / 1.1 Interne Anforderung/Bestellung/Übergabe_Korrespondenz ausgehend | C17: 8E38CC1D-38D5-47D9-94D2-412855B55E8E | D17: BauBestandsDok | E17: 1. Projektmanagement | F17: 1.1 Interne Anforderung/Bestellung/Übergabe | G17: NULL | H17: C99B4EE8-4D1E-467F-85FF-5E00F0645DB6 | I17: Korrespondenz ausgehend
A18: 14 | B18: Projektmanagement / 1.1 Interne Anforderung/Bestellung/Übergabe_Korrespondenz eingehend | C18: 3E2D48F4-20C1-40F1-8410-F2B853B37713 | D18: BauBestandsDok | E18: 1. Projektmanagement | F18: 1.1 Interne Anforderung/Bestellung/Übergabe | G18: NULL | H18: C99B4EE8-4D1E-467F-85FF-5E00F0645DB6 | I18: Korrespondenz eingehend
A19: 15 | B19: Projektmanagement / 1.1 Interne Anforderung/Bestellung/Übergabe_Kosten-/Zeitplan | C19: 207D5269-C5E6-4FC2-B7E9-C1ADE8B33645 | D19: BauBestandsDok | E19: 1. Projektmanagement | F19: 1.1 Interne Anforderung/Bestellung/Übergabe | G19: NULL | H19: C99B4EE8-4D1E-467F-85FF-5E00F0645DB6 | I19: Kosten-/Zeitplan
A20: 16 | B20: Projektmanagement / 1.1 Interne Anforderung/Bestellung/Übergabe_Präsentation | C20: 98C55BD7-300D-4D90-B06E-0EFA0A382FAF | D20: BauBestandsDok | E20: 1. Projektmanagement | F20: 1.1 Interne Anforderung/Bestellung/Übergabe | G20: NULL | H20: C99B4EE8-4D1E-467F-85FF-5E00F0645DB6 | I20: Präsentation
A21: 17 | B21: Projektmanagement / 1.1 Interne Anforderung/Bestellung/Übergabe_Projektbeschreibung | C21: B39E910B-1E50-4DD2-A441-7A9A485AB5BD | D21: BauBestandsDok | E21: 1. Projektmanagement | F21: 1.1 Interne Anforderung/Bestellung/Übergabe | G21: NULL | H21: C99B4EE8-4D1E-467F-85FF-5E00F0645DB6 | I21: Projektbeschreibung
A22: 18 | B22: Projektmanagement / 1.1 Interne Anforderung/Bestellung/Übergabe_Projektplan | C22: C29E0A44-5CF5-43F8-8E91-B972170DBBD5 | D22: BauBestandsDok | E22: 1. Projektmanagement | F22: 1.1 Interne Anforderung/Bestellung/Übergabe | G22: NULL | H22: C99B4EE8-4D1E-467F-85FF-5E00F0645DB6 | I22: Projektplan
A23: 19 | B23: Projektmanagement / 1.1 Interne Anforderung/Bestellung/Übergabe_Projektstammblatt | C23: 2700751F-0215-4346-860F-9D66617BCEA6 | D23: BauBestandsDok | E23: 1. Projektmanagement | F23: 1.1 Interne Anforderung/Bestellung/Übergabe | G23: NULL | H23: C99B4EE8-4D1E-467F-85FF-5E00F0645DB6 | I23: Projektstammblatt
A24: 20 | B24: Projektmanagement / 1.1 Interne Anforderung/Bestellung/Übergabe_Protokoll | C24: 0C95E384-9A6C-4292-914F-6AAB895375E7 | D24: BauBestandsDok | E24: 1. Projektmanagement | F24: 1.1 Interne Anforderung/Bestellung/Übergabe | G24: NULL | H24: C99B4EE8-4D1E-467F-85FF-5E00F0645DB6 | I24: Protokoll
A25: 21 | B25: Projektmanagement / 1.1 Interne Anforderung/Bestellung/Übergabe_Publikation | C25: 9D5B123D-6043-494D-80A9-67A3048E5C3F | D25: BauBestandsDok | E25: 1. Projektmanagement | F25: 1.1 Interne Anforderung/Bestellung/Übergabe | G25: NULL | H25: C99B4EE8-4D1E-467F-85FF-5E00F0645DB6 | I25: Publikation
A26: 22 | B26: Projektmanagement / 1.1 Interne Anforderung/Bestellung/Übergabe_Stellungnahme | C26: 4B8EDCBE-8AF2-445D-B3E0-7D66413588C6 | D26: BauBestandsDok | E26: 1. Projektmanagement | F26: 1.1 Interne Anforderung/Bestellung/Übergabe | G26: NULL | H26: C99B4EE8-4D1E-467F-85FF-5E00F0645DB6 | I26: Stellungnahme
A27: 23 | B27: Projektmanagement / 1.1 Interne Anforderung/Bestellung/Übergabe_Technische Dokumentation | C27: 8FB4D245-1283-48C3-9E52-00BB74F651BE | D27: BauBestandsDok | E27: 1. Projektmanagement | F27: 1.1 Interne Anforderung/Bestellung/Übergabe | G27: NULL | H27: C99B4EE8-4D1E-467F-85FF-5E00F0645DB6 | I27: Technische Dokumentation
A28: 23 | B28: Projektmanagement / 1.1 Interne Anforderung/Bestellung/Übergabe_Übergabevereinbarung | C28: 0CE4447B-22E7-4057-9428-D893BDBA63F1 | D28: BauBestandsDok | E28: 1. Projektmanagement | F28: 1.1 Interne Anforderung/Bestellung/Übergabe | G28: NULL | H28: C99B4EE8-4D1E-467F-85FF-5E00F0645DB6 | I28: Übergabevereinbarung
A29: 24 | B29: Projektmanagement / 1.1 Interne Anforderung/Bestellung/Übergabe_Vorlage an den Vorstand | C29: B92CF413-82B3-4B0C-9E95-F0C1452D1CA8 | D29: BauBestandsDok | E29: 1. Projektmanagement | F29: 1.1 Interne Anforderung/Bestellung/Übergabe | G29: NULL | H29: C99B4EE8-4D1E-467F-85FF-5E00F0645DB6 | I29: Vorlage an den Vorstand
A30: 25 | B30: Projektmanagement / 1.1 Interne Anforderung/Bestellung/Übergabe_nicht zuordenbar | C30: F6529695-462D-481E-8095-585A3C94F938 | D30: BauBestandsDok | E30: 1. Projektmanagement | F30: 1.1 Interne Anforderung/Bestellung/Übergabe | G30: NULL | H30: C99B4EE8-4D1E-467F-85FF-5E00F0645DB6 | I30: nicht zuordenbar
A31: 26 | B31: Projektmanagement / 1.2 Aufsichtsrat_nicht zuordenbar | C31: 3785533A-6CDA-491C-BB9C-96FE1026F11C | D31: BauBestandsDok | E31: 1. Projektmanagement | F31: 1.2 Aufsichtsrat | G31: NULL | H31: 0CD54C56-5491-455F-AA64-019488895BB8 | I31: nicht zuordenbar
A32: 27 | B32: Projektmanagement / 1.2 Aufsichtsrat_Aktenvermerk | C32: 8FF62CA6-E713-4AE2-AEBC-00A704ACD76D | D32: BauBestandsDok | E32: 1. Projektmanagement | F32: 1.2 Aufsichtsrat | G32: NULL | H32: 0CD54C56-5491-455F-AA64-019488895BB8 | I32: Aktenvermerk
A33: 28 | B33: Projektmanagement / 1.2 Aufsichtsrat_Angebot | C33: 9D589526-06D3-4B71-BDDD-050255039D10 | D33: BauBestandsDok | E33: 1. Projektmanagement | F33: 1.2 Aufsichtsrat | G33: NULL | H33: 0CD54C56-5491-455F-AA64-019488895BB8 | I33: Angebot
A34: 29 | B34: Projektmanagement / 1.2 Aufsichtsrat_Auftragsschreiben | C34: 9D2FA7DE-37F3-4892-B53F-87F7C8F2F676 | D34: BauBestandsDok | E34: 1. Projektmanagement | F34: 1.2 Aufsichtsrat | G34: NULL | H34: 0CD54C56-5491-455F-AA64-019488895BB8 | I34: Auftragsschreiben
A35: 30 | B35: Projektmanagement / 1.2 Aufsichtsrat_Anfrage/Antrag | C35: F1D4E8A8-4A50-4388-83C2-4EF806DDD159 | D35: BauBestandsDok | E35: 1. Projektmanagement | F35: 1.2 Aufsichtsrat | G35: NULL | H35: 0CD54C56-5491-455F-AA64-019488895BB8 | I35: Anfrage/Antrag
A36: 31 | B36: Projektmanagement / 1.2 Aufsichtsrat_Aufstellung/Liste | C36: 72DCB9D0-2757-47A1-8209-F57737240B8A | D36: BauBestandsDok | E36: 1. Projektmanagement | F36: 1.2 Aufsichtsrat | G36: NULL | H36: 0CD54C56-5491-455F-AA64-019488895BB8 | I36: Aufstellung/Liste
A37: 32 | B37: Projektmanagement / 1.2 Aufsichtsrat_Bankgarantie | C37: ABA641C7-81F0-4A36-AFD1-C218F7140118 | D37: BauBestandsDok | E37: 1. Projektmanagement | F37: 1.2 Aufsichtsrat | G37: NULL | H37: 0CD54C56-5491-455F-AA64-019488895BB8 | I37: Bankgarantie
A38: 33 | B38: Projektmanagement / 1.2 Aufsichtsrat_Bericht | C38: 0B281F53-A5D0-496D-802F-5DD7614DA8B1 | D38: BauBestandsDok | E38: 1. Projektmanagement | F38: 1.2 Aufsichtsrat | G38: NULL | H38: 0CD54C56-5491-455F-AA64-019488895BB8 | I38: Bericht
A39: 34 | B39: Projektmanagement / 1.2 Aufsichtsrat_Beschluss | C39: 9DD38F44-A68C-4248-9371-1F0AE225B452 | D39: BauBestandsDok | E39: 1. Projektmanagement | F39: 1.2 Aufsichtsrat | G39: NULL | H39: 0CD54C56-5491-455F-AA64-019488895BB8 | I39: Beschluss
A40: 35 | B40: Projektmanagement / 1.2 Aufsichtsrat_Externes Regelwerk | C40: 2921D3D2-93A1-4CF9-8820-E78D3DF4AB06 | D40: BauBestandsDok | E40: 1. Projektmanagement | F40: 1.2 Aufsichtsrat | G40: NULL | H40: 0CD54C56-5491-455F-AA64-019488895BB8 | I40: Externes Regelwerk
A41: 36 | B41: Projektmanagement / 1.2 Aufsichtsrat_Foto | C41: 300EA00C-CF79-495C-A339-5BD67DA3F5DC | D41: BauBestandsDok | E41: 1. Projektmanagement | F41: 1.2 Aufsichtsrat | G41: NULL | H41: 0CD54C56-5491-455F-AA64-019488895BB8 | I41: Foto
A42: 37 | B42: Projektmanagement / 1.2 Aufsichtsrat_Gutachten | C42: E5FAFB1B-6E61-4581-8F4E-43BB6EE9B833 | D42: BauBestandsDok | E42: 1. Projektmanagement | F42: 1.2 Aufsichtsrat | G42: NULL | H42: 0CD54C56-5491-455F-AA64-019488895BB8 | I42: Gutachten
A43: 38 | B43: Projektmanagement / 1.2 Aufsichtsrat_Konzept | C43: C181D978-77FF-474C-89AC-447F98AAD6C5 | D43: BauBestandsDok | E43: 1. Projektmanagement | F43: 1.2 Aufsichtsrat | G43: NULL | H43: 0CD54C56-5491-455F-AA64-019488895BB8 | I43: Konzept
A44: 39 | B44: Projektmanagement / 1.2 Aufsichtsrat_Korrespondenz ausgehend | C44: C52C9D35-266A-41A0-98B5-539DFF579916 | D44: BauBestandsDok | E44: 1. Projektmanagement | F44: 1.2 Aufsichtsrat | G44: NULL | H44: 0CD54C56-5491-455F-AA64-019488895BB8 | I44: Korrespondenz ausgehend
A45: 40 | B45: Projektmanagement / 1.2 Aufsichtsrat_Korrespondenz eingehend | C45: 445088E5-767F-4206-91C3-4074ACE2A631 | D45: BauBestandsDok | E45: 1. Projektmanagement | F45: 1.2 Aufsichtsrat | G45: NULL | H45: 0CD54C56-5491-455F-AA64-019488895BB8 | I45: Korrespondenz eingehend
A46: 41 | B46: Projektmanagement / 1.2 Aufsichtsrat_Kosten-/Zeitplan | C46: 7009AAC9-5BB4-4F9A-9376-BCB5C30CB081 | D46: BauBestandsDok | E46: 1. Projektmanagement | F46: 1.2 Aufsichtsrat | G46: NULL | H46: 0CD54C56-5491-455F-AA64-019488895BB8 | I46: Kosten-/Zeitplan
A47: 42 | B47: Projektmanagement / 1.2 Aufsichtsrat_Präsentation | C47: 5C7C93EC-4BF0-4884-9F29-CBC4EE0F3746 | D47: BauBestandsDok | E47: 1. Projektmanagement | F47: 1.2 Aufsichtsrat | G47: NULL | H47: 0CD54C56-5491-455F-AA64-019488895BB8 | I47: Präsentation
A48: 43 | B48: Projektmanagement / 1.2 Aufsichtsrat_Projektbeschreibung | C48: 4A9043A4-7034-4BE2-9FAE-AD2679225DEE | D48: BauBestandsDok | E48: 1. Projektmanagement | F48: 1.2 Aufsichtsrat | G48: NULL | H48: 0CD54C56-5491-455F-AA64-019488895BB8 | I48: Projektbeschreibung
A49: 44 | B49: Projektmanagement / 1.2 Aufsichtsrat_Projektplan | C49: 54F34DDA-5D37-4194-B098-D20BD30AD376 | D49: BauBestandsDok | E49: 1. Projektmanagement | F49: 1.2 Aufsichtsrat | G49: NULL | H49: 0CD54C56-5491-455F-AA64-019488895BB8 | I49: Projektplan
A50: 45 | B50: Projektmanagement / 1.2 Aufsichtsrat_Projektstammblatt | C50: 9AA1A1FA-E9AA-4FED-BECB-70AB49E7D003 | D50: BauBestandsDok | E50: 1. Projektmanagement | F50: 1.2 Aufsichtsrat | G50: NULL | H50: 0CD54C56-5491-455F-AA64-019488895BB8 | I50: Projektstammblatt
A51: 46 | B51: Projektmanagement / 1.2 Aufsichtsrat_Protokoll | C51: E7AC2C51-30D9-4777-82A6-922FEB53DE98 | D51: BauBestandsDok | E51: 1. Projektmanagement | F51: 1.2 Aufsichtsrat | G51: NULL | H51: 0CD54C56-5491-455F-AA64-019488895BB8 | I51: Protokoll
A52: 47 | B52: Projektmanagement / 1.2 Aufsichtsrat_Publikation | C52: 74D98BC7-73AC-455A-A4A2-DCDDE77EC203 | D52: BauBestandsDok | E52: 1. Projektmanagement | F52: 1.2 Aufsichtsrat | G52: NULL | H52: 0CD54C56-5491-455F-AA64-019488895BB8 | I52: Publikation
A53: 48 | B53: Projektmanagement / 1.2 Aufsichtsrat_Stellungnahme | C53: EA5A4A31-038F-47B4-8FA4-A24423A30B2F | D53: BauBestandsDok | E53: 1. Projektmanagement | F53: 1.2 Aufsichtsrat | G53: NULL | H53: 0CD54C56-5491-455F-AA64-019488895BB8 | I53: Stellungnahme
A54: 49 | B54: Projektmanagement / 1.2 Aufsichtsrat_Technische Dokumentation | C54: D150B5DC-80C1-40D3-98A4-FB0D0CFC33E5 | D54: BauBestandsDok | E54: 1. Projektmanagement | F54: 1.2 Aufsichtsrat | G54: NULL | H54: 0CD54C56-5491-455F-AA64-019488895BB8 | I54: Technische Dokumentation
A55: 50 | B55: Projektmanagement / 1.2 Aufsichtsrat_Vorlage an den Vorstand | C55: 4F57DCDF-17BB-4EF7-B967-C7371CB1688F | D55: BauBestandsDok | E55: 1. Projektmanagement | F55: 1.2 Aufsichtsrat | G55: NULL | H55: 0CD54C56-5491-455F-AA64-019488895BB8 | I55: Vorlage an den Vorstand
A56: 51 | B56: Projektmanagement / 1.3 Lenkungsausschuss_Aktenvermerk | C56: CBD53932-8A87-40DB-8D96-D6B172A4558A | D56: BauBestandsDok | E56: 1. Projektmanagement | F56: 1.3 Lenkungsausschuss | G56: NULL | H56: 63EFB9ED-3FCB-4852-86C0-7C1C2DEE47E8 | I56: Aktenvermerk
A57: 52 | B57: Projektmanagement / 1.3 Lenkungsausschuss_Angebot | C57: 4ED8DB1B-9C49-4B32-B974-6DD1577AFFD7 | D57: BauBestandsDok | E57: 1. Projektmanagement | F57: 1.3 Lenkungsausschuss | G57: NULL | H57: 63EFB9ED-3FCB-4852-86C0-7C1C2DEE47E8 | I57: Angebot
A58: 53 | B58: Projektmanagement / 1.3 Lenkungsausschuss_Auftragsschreiben | C58: 66C30BA3-02A6-4CCE-828D-717CBD9A2C86 | D58: BauBestandsDok | E58: 1. Projektmanagement | F58: 1.3 Lenkungsausschuss | G58: NULL | H58: 63EFB9ED-3FCB-4852-86C0-7C1C2DEE47E8 | I58: Auftragsschreiben
A59: 54 | B59: Projektmanagement / 1.3 Lenkungsausschuss_Anfrage/Antrag | C59: E3D84880-899C-4CD7-997C-91A6F85D6118 | D59: BauBestandsDok | E59: 1. Projektmanagement | F59: 1.3 Lenkungsausschuss | G59: NULL | H59: 63EFB9ED-3FCB-4852-86C0-7C1C2DEE47E8 | I59: Anfrage/Antrag
A60: 55 | B60: Projektmanagement / 1.3 Lenkungsausschuss_Aufstellung/Liste | C60: A4D6DEB4-1610-4CCB-ABAE-B6167ACB372C | D60: BauBestandsDok | E60: 1. Projektmanagement | F60: 1.3 Lenkungsausschuss | G60: NULL | H60: 63EFB9ED-3FCB-4852-86C0-7C1C2DEE47E8 | I60: Aufstellung/Liste
A61: 56 | B61: Projektmanagement / 1.3 Lenkungsausschuss_Bankgarantie | C61: F055B789-C68D-4DDB-914A-03FEE9B1B296 | D61: BauBestandsDok | E61: 1. Projektmanagement | F61: 1.3 Lenkungsausschuss | G61: NULL | H61: 63EFB9ED-3FCB-4852-86C0-7C1C2DEE47E8 | I61: Bankgarantie
A62: 57 | B62: Projektmanagement / 1.3 Lenkungsausschuss_Bericht | C62: 5C77F3F2-6FAD-4FF4-97C9-19A9A306F135 | D62: BauBestandsDok | E62: 1. Projektmanagement | F62: 1.3 Lenkungsausschuss | G62: NULL | H62: 63EFB9ED-3FCB-4852-86C0-7C1C2DEE47E8 | I62: Bericht
A63: 58 | B63: Projektmanagement / 1.3 Lenkungsausschuss_Beschluss | C63: 3C41A483-2A38-4FE1-98A4-39F733339F67 | D63: BauBestandsDok | E63: 1. Projektmanagement | F63: 1.3 Lenkungsausschuss | G63: NULL | H63: 63EFB9ED-3FCB-4852-86C0-7C1C2DEE47E8 | I63: Beschluss
A64: 59 | B64: Projektmanagement / 1.3 Lenkungsausschuss_Externes Regelwerk | C64: A459F92F-9C59-485D-B64D-64EECAFD4465 | D64: BauBestandsDok | E64: 1. Projektmanagement | F64: 1.3 Lenkungsausschuss | G64: NULL | H64: 63EFB9ED-3FCB-4852-86C0-7C1C2DEE47E8 | I64: Externes Regelwerk
A65: 60 | B65: Projektmanagement / 1.3 Lenkungsausschuss_Foto | C65: F9AA50E3-D837-4541-AC1E-63B52C174BDD | D65: BauBestandsDok | E65: 1. Projektmanagement | F65: 1.3 Lenkungsausschuss | G65: NULL | H65: 63EFB9ED-3FCB-4852-86C0-7C1C2DEE47E8 | I65: Foto
A66: 61 | B66: Projektmanagement / 1.3 Lenkungsausschuss_Gutachten | C66: EDA5F9EA-FB67-4CCF-9F02-5447A1E97CE6 | D66: BauBestandsDok | E66: 1. Projektmanagement | F66: 1.3 Lenkungsausschuss | G66: NULL | H66: 63EFB9ED-3FCB-4852-86C0-7C1C2DEE47E8 | I66: Gutachten
A67: 62 | B67: Projektmanagement / 1.3 Lenkungsausschuss_Konzept | C67: 0AFF4FC2-9D8F-4925-BD9E-145ED8B3B2C7 | D67: BauBestandsDok | E67: 1. Projektmanagement | F67: 1.3 Lenkungsausschuss | G67: NULL | H67: 63EFB9ED-3FCB-4852-86C0-7C1C2DEE47E8 | I67: Konzept
A68: 63 | B68: Projektmanagement / 1.3 Lenkungsausschuss_Korrespondenz ausgehend | C68: 3BBF43EE-D041-4FBD-9A7C-3F1A7823ABCC | D68: BauBestandsDok | E68: 1. Projektmanagement | F68: 1.3 Lenkungsausschuss | G68: NULL | H68: 63EFB9ED-3FCB-4852-86C0-7C1C2DEE47E8 | I68: Korrespondenz ausgehend
A69: 64 | B69: Projektmanagement / 1.3 Lenkungsausschuss_Korrespondenz eingehend | C69: 977B8BDE-5E8D-4323-8E9B-523C22B19A5F | D69: BauBestandsDok | E69: 1. Projektmanagement | F69: 1.3 Lenkungsausschuss | G69: NULL | H69: 63EFB9ED-3FCB-4852-86C0-7C1C2DEE47E8 | I69: Korrespondenz eingehend
A70: 65 | B70: Projektmanagement / 1.3 Lenkungsausschuss_Kosten-/Zeitplan | C70: 780621F7-D334-4998-8CB5-396138B594FE | D70: BauBestandsDok | E70: 1. Projektmanagement | F70: 1.3 Lenkungsausschuss | G70: NULL | H70: 63EFB9ED-3FCB-4852-86C0-7C1C2DEE47E8 | I70: Kosten-/Zeitplan
A71: 66 | B71: =MID(E71,4,255) & IF(F71="NULL", "", " / " & F71) & IF(G71="NULL", "", " / " & G71) & "_" & I71 -> Projektmanagement / 1.3 Lenkungsausschuss_Präsentation | C71: EBD81450-9179-4D0F-9143-81951E67DD4A | D71: BauBestandsDok | E71: 1. Projektmanagement | F71: 1.3 Lenkungsausschuss | G71: NULL | H71: 63EFB9ED-3FCB-4852-86C0-7C1C2DEE47E8 | I71: Präsentation
A72: 67 | B72: Projektmanagement / 1.3 Lenkungsausschuss_Projektbeschreibung | C72: C34A2787-9A88-4090-B381-BCD1C1CAD5A0 | D72: BauBestandsDok | E72: 1. Projektmanagement | F72: 1.3 Lenkungsausschuss | G72: NULL | H72: 63EFB9ED-3FCB-4852-86C0-7C1C2DEE47E8 | I72: Projektbeschreibung
A73: 68 | B73: Projektmanagement / 1.3 Lenkungsausschuss_Projektplan | C73: A94CB267-ED50-4CB7-9910-38E26FFF9BE0 | D73: BauBestandsDok | E73: 1. Projektmanagement | F73: 1.3 Lenkungsausschuss | G73: NULL | H73: 63EFB9ED-3FCB-4852-86C0-7C1C2DEE47E8 | I73: Projektplan
A74: 69 | B74: Projektmanagement / 1.3 Lenkungsausschuss_Projektstammblatt | C74: 9934DC63-2766-4F0A-8C32-A2305D6B826D | D74: BauBestandsDok | E74: 1. Projektmanagement | F74: 1.3 Lenkungsausschuss | G74: NULL | H74: 63EFB9ED-3FCB-4852-86C0-7C1C2DEE47E8 | I74: Projektstammblatt
A75: 70 | B75: Projektmanagement / 1.3 Lenkungsausschuss_Protokoll | C75: BA674078-6939-4301-8F3D-3AD6C94BBE7D | D75: BauBestandsDok | E75: 1. Projektmanagement | F75: 1.3 Lenkungsausschuss | G75: NULL | H75: 63EFB9ED-3FCB-4852-86C0-7C1C2DEE47E8 | I75: Protokoll
A76: 71 | B76: Projektmanagement / 1.3 Lenkungsausschuss_Publikation | C76: 41816868-3BB3-41A6-91FA-D6DAA153AA97 | D76: BauBestandsDok | E76: 1. Projektmanagement | F76: 1.3 Lenkungsausschuss | G76: NULL | H76: 63EFB9ED-3FCB-4852-86C0-7C1C2DEE47E8 | I76: Publikation
A77: 72 | B77: Projektmanagement / 1.3 Lenkungsausschuss_Stellungnahme | C77: E0642B4F-9A76-4920-B624-E2C1BA0A85EA | D77: BauBestandsDok | E77: 1. Projektmanagement | F77: 1.3 Lenkungsausschuss | G77: NULL | H77: 63EFB9ED-3FCB-4852-86C0-7C1C2DEE47E8 | I77: Stellungnahme
A78: 73 | B78: Projektmanagement / 1.3 Lenkungsausschuss_Technische Dokumentation | C78: 4925E7B9-B2E6-446D-909C-E25D82324FDC | D78: BauBestandsDok | E78: 1. Projektmanagement | F78: 1.3 Lenkungsausschuss | G78: NULL | H78: 63EFB9ED-3FCB-4852-86C0-7C1C2DEE47E8 | I78: Technische Dokumentation
A79: 74 | B79: Projektmanagement / 1.3 Lenkungsausschuss_Vorlage an den Vorstand | C79: 3A2D3ACA-1B67-49B9-AD92-DC7CBF270530 | D79: BauBestandsDok | E79: 1. Projektmanagement | F79: 1.3 Lenkungsausschuss | G79: NULL | H79: 63EFB9ED-3FCB-4852-86C0-7C1C2DEE47E8 | I79: Vorlage an den Vorstand
A80: 75 | B80: Projektmanagement / 1.3 Lenkungsausschuss_nicht zuordenbar | C80: DD409592-8938-41BE-9203-4EA757E3E696 | D80: BauBestandsDok | E80: 1. Projektmanagement | F80: 1.3 Lenkungsausschuss | G80: NULL | H80: 63EFB9ED-3FCB-4852-86C0-7C1C2DEE47E8 | I80: nicht zuordenbar
A81: 76 | B81: Projektmanagement / 1.4 Begleitende Kontrolle_nicht zuordenbar | C81: FA862785-3222-441C-8C7C-9026B377BC04 | D81: BauBestandsDok | E81: 1. Projektmanagement | F81: 1.4 Begleitende Kontrolle | G81: NULL | H81: 2BB8EBC5-5D9A-41A0-BD03-89DDB7392759 | I81: nicht zuordenbar
A82: 77 | B82: Projektmanagement / 1.4 Begleitende Kontrolle_Aktenvermerk | C82: 32F4EF48-14DE-4992-A5FE-0ED749FAA50C | D82: BauBestandsDok | E82: 1. Projektmanagement | F82: 1.4 Begleitende Kontrolle | G82: NULL | H82: 2BB8EBC5-5D9A-41A0-BD03-89DDB7392759 | I82: Aktenvermerk
A83: 78 | B83: Projektmanagement / 1.4 Begleitende Kontrolle_Angebot | C83: BCE1D25D-E4AE-42C2-BE84-08D6772F7863 | D83: BauBestandsDok | E83: 1. Projektmanagement | F83: 1.4 Begleitende Kontrolle | G83: NULL | H83: 2BB8EBC5-5D9A-41A0-BD03-89DDB7392759 | I83: Angebot
A84: 79 | B84: Projektmanagement / 1.4 Begleitende Kontrolle_Auftragsschreiben | C84: D0859D37-0B80-47E1-8B8D-085892887359 | D84: BauBestandsDok | E84: 1. Projektmanagement | F84: 1.4 Begleitende Kontrolle | G84: NULL | H84: 2BB8EBC5-5D9A-41A0-BD03-89DDB7392759 | I84: Auftragsschreiben
A85: 80 | B85: Projektmanagement / 1.4 Begleitende Kontrolle_Anfrage/Antrag | C85: D8F473AE-755A-47EE-A74C-D24D161E82AC | D85: BauBestandsDok | E85: 1. Projektmanagement | F85: 1.4 Begleitende Kontrolle | G85: NULL | H85: 2BB8EBC5-5D9A-41A0-BD03-89DDB7392759 | I85: Anfrage/Antrag
A86: 81 | B86: Projektmanagement / 1.4 Begleitende Kontrolle_Aufstellung/Liste | C86: 62747F35-9E4C-431E-87BE-95E1982F99E3 | D86: BauBestandsDok | E86: 1. Projektmanagement | F86: 1.4 Begleitende Kontrolle | G86: NULL | H86: 2BB8EBC5-5D9A-41A0-BD03-89DDB7392759 | I86: Aufstellung/Liste
A87: 82 | B87: Projektmanagement / 1.4 Begleitende Kontrolle_Bankgarantie | C87: F538D29A-874E-4FBA-9F26-2571906E65F9 | D87: BauBestandsDok | E87: 1. Projektmanagement | F87: 1.4 Begleitende Kontrolle | G87: NULL | H87: 2BB8EBC5-5D9A-41A0-BD03-89DDB7392759 | I87: Bankgarantie
A88: 83 | B88: Projektmanagement / 1.4 Begleitende Kontrolle_Bericht | C88: ECC1E89B-159C-4528-9E76-119B0404B902 | D88: BauBestandsDok | E88: 1. Projektmanagement | F88: 1.4 Begleitende Kontrolle | G88: NULL | H88: 2BB8EBC5-5D9A-41A0-BD03-89DDB7392759 | I88: Bericht
A89: 84 | B89: Projektmanagement / 1.4 Begleitende Kontrolle_Beschluss | C89: 84BECA48-6B36-4A2A-8B39-38E1FE686A7A | D89: BauBestandsDok | E89: 1. Projektmanagement | F89: 1.4 Begleitende Kontrolle | G89: NULL | H89: 2BB8EBC5-5D9A-41A0-BD03-89DDB7392759 | I89: Beschluss
A90: 85 | B90: Projektmanagement / 1.4 Begleitende Kontrolle_Externes Regelwerk | C90: C17F912E-CABE-434E-8696-A0FC58A965E7 | D90: BauBestandsDok | E90: 1. Projektmanagement | F90: 1.4 Begleitende Kontrolle | G90: NULL | H90: 2BB8EBC5-5D9A-41A0-BD03-89DDB7392759 | I90: Externes Regelwerk
A91: 86 | B91: Projektmanagement / 1.4 Begleitende Kontrolle_Foto | C91: A9CC5C13-340D-4F74-ADA6-F10B9A7DBCAD | D91: BauBestandsDok | E91: 1. Projektmanagement | F91: 1.4 Begleitende Kontrolle | G91: NULL | H91: 2BB8EBC5-5D9A-41A0-BD03-89DDB7392759 | I91: Foto
A92: 87 | B92: Projektmanagement / 1.4 Begleitende Kontrolle_Gutachten | C92: 762C9A4B-510A-4359-A69D-AC184DB8931A | D92: BauBestandsDok | E92: 1. Projektmanagement | F92: 1.4 Begleitende Kontrolle | G92: NULL | H92: 2BB8EBC5-5D9A-41A0-BD03-89DDB7392759 | I92: Gutachten
A93: 88 | B93: Projektmanagement / 1.4 Begleitende Kontrolle_Konzept | C93: E5CEC8C3-A6D2-4DD4-A339-08FE62F8F5AC | D93: BauBestandsDok | E93: 1. Projektmanagement | F93: 1.4 Begleitende Kontrolle | G93: NULL | H93: 2BB8EBC5-5D9A-41A0-BD03-89DDB7392759 | I93: Konzept
A94: 89 | B94: Projektmanagement / 1.4 Begleitende Kontrolle_Korrespondenz ausgehend | C94: 4D1780D4-44E0-4AA3-B606-7848C464AE1B | D94: BauBestandsDok | E94: 1. Projektmanagement | F94: 1.4 Begleitende Kontrolle | G94: NULL | H94: 2BB8EBC5-5D9A-41A0-BD03-89DDB7392759 | I94: Korrespondenz ausgehend
A95: 90 | B95: Projektmanagement / 1.4 Begleitende Kontrolle_Korrespondenz eingehend | C95: 33D35ECC-B445-4D9B-9B7A-9CED4289DDA3 | D95: BauBestandsDok | E95: 1. Projektmanagement | F95: 1.4 Begleitende Kontrolle | G95: NULL | H95: 2BB8EBC5-5D9A-41A0-BD03-89DDB7392759 | I95: Korrespondenz eingehend
A96: 91 | B96: Projektmanagement / 1.4 Begleitende Kontrolle_Kosten-/Zeitplan | C96: FE30B6D6-11B1-411A-ACBC-FB2F96DA3C60 | D96: BauBestandsDok | E96: 1. Projektmanagement | F96: 1.4 Begleitende Kontrolle | G96: NULL | H96: 2BB8EBC5-5D9A-41A0-BD03-89DDB7392759 | I96: Kosten-/Zeitplan
A97: 92 | B97: Projektmanagement / 1.4 Begleitende Kontrolle_Präsentation | C97: D9527465-3EA5-462D-A380-1E276D24E818 | D97: BauBestandsDok | E97: 1. Projektmanagement | F97: 1.4 Begleitende Kontrolle | G97: NULL | H97: 2BB8EBC5-5D9A-41A0-BD03-89DDB7392759 | I97: Präsentation
A98: 93 | B98: Projektmanagement / 1.4 Begleitende Kontrolle_Projektbeschreibung | C98: 90D3897A-AEB2-4595-BA56-0F12567B7528 | D98: BauBestandsDok | E98: 1. Projektmanagement | F98: 1.4 Begleitende Kontrolle | G98: NULL | H98: 2BB8EBC5-5D9A-41A0-BD03-89DDB7392759 | I98: Projektbeschreibung
A99: 94 | B99: Projektmanagement / 1.4 Begleitende Kontrolle_Projektplan | C99: 5E79B41B-9CD4-4A8D-A6A7-FD9BB0AF0427 | D99: BauBestandsDok | E99: 1. Projektmanagement | F99: 1.4 Begleitende Kontrolle | G99: NULL | H99: 2BB8EBC5-5D9A-41A0-BD03-89DDB7392759 | I99: Projektplan
